Workbook

Sheet Notes
A1: EhlersPredictiveIndicators.xlsm
A2: Coded beginning 2013-Nov-01 by Ronald McAllister (rpmac_xltt@sprynet.com)
A4: This Workbook demonstrates an EXCEL version of the ideas presented
A5: by John F. Ehlers, PhD in an article titled "Predictive Indicators For Effective Trading Strategies"
A6: which appears in the January 2014 issue of
A7: "Technical Analysis of Stocks and Commodities" magazine.
A9: New Features for the basic TradersTips Template
A10: 1 | C10: Intra-Day price and volume bar.
C11: On the InputPriceData tab, the Direct from Yahoo Finance Price History download button will now retrieve the data necessary to
C12: create an Intra-Day price bar which is cumulative for the trading day through the then current last trade price and time stamp.
C13: Last Trade data from the Fundamentals interface appears to be delayed by approximately 15 minutes.
C15: If the download request is for daily data:
C16: The logic will insert this bar as the most recent data bar as long as the most recent date in the normally downloaded file
C17: is less than the intra-day bar date. After the markets close, there is a delay of 2 to 3 hours before the normal history download
C18: incorporates a bar for the current day. So this intra-day bar can fill in the gap if one is the impatient sort.
C20: If the download request is NOT for daily data the intra-day bar will not be inserted into the price history data.
C22: One Note: Well after the close of the markets, the volume returned for the intra-day bar tends to be slightly higher than the volume in the
C23: bar for the day that eventually shows up in the normal history download. On the otherhand, the prices all seem to match.
A25: CalculationsAndCharts construction Notes:
C26: Mr. Ehlers' signals are generated by the Close of a bar, which for daily data, means the market is closed.
C28: For trading simulation purposes one cannot logically trade a closed bar, so I am generating trades on the next bar after a signal using the Open price of that next bar.
A31: Data for this EXCEL example:
A34: Development Notes:
A35: 1 | C35: This workbook contains and uses VBA macros.
A36: 2 | C36: Input Data
C37: The data in this workbook is sorted date descending (most recent date at the top). All formulas and
C38: VBA routines are built accordingly.
A39: Calculation and Chart Worksheet Usage Comments:
A40: 1 | C40: In General, Items in Bolded BLUE are items you may freely change to play what-if games.
C41: Be sure to have a backup copy of the spreadsheet before you alter anything else.
A42: 2 | C42: Several of the column formulas begin with "IF" logic that determines when there is sufficient data
C43: available for the subsequent calculations to be relevant. The cell will calculate to blank or the
C44: result of the calculation.
C45: In a couple of cases, this "IF" logic also sets starter values for subsequent smoothing calculations.
A46: 3 | C46: Data windowing can be performed by changing cell A11. Positive values logically "Pan" the
C47: data window represented by the Calculation sheet down the input sheet and back in time.
C48: This can have two side effects: First, data may fall outside of the fixed Y-axis scales and be clipped
C49: or fall well inside the Y-axis scales wasting a lot of chart vertical space. Second, you may move far
C50: enough back that you do not have sufficient data points to fill the left of the chart.
A51: 4 | C51: The VBA macros behind the SetChart button address these Data Windowing problems and also
C52: resizes and vertically aligns all charts on the work sheet to match the Price chart and then
C53: horizontally adjusts the X-axis positions of all charts on the work sheet so that the corresponding
C54: data points align vertically.
C55: The macros behind the SetChart button are sensitive to the user control values in cells A11 and
C56: A12, and also uses the computed values in cells A8, F11, and F12

Sheet InputPriceData
A1: Dollar General Co (DG) -NYSE | P1: Notes: | Q1: Online Yahoo Finance Query Interfaces used in the VBA code to obtain this data:
A2: Last Trade | B2: 2013-11-08 | C2: 57.19 | D2: 57.41 | E2: 56.81 | F2: 57.28 | G2: 1920765 | H2: 4:02pm | Q2: A.) Price History Only: "http://ichart.finance.yahoo.com/table.csv"
A3: Request Online Yahoo History for: | Q3: B.) Price History w/ imbedded divs n splits: "http://ichart.finance.yahoo.com/x"
A4: Symbol | B4: dg | D4: Valid
A5: From | B5: 1977-01-07 | D5: Data | Q5: C.) Fundamentals (in this case name and exchange):
A6: To | B6: =TODAY() -> 2013-11-08 | D6: Types | E6: =VLOOKUP(B7,D7:E10,2,FALSE) -> d | Q6: "http://download.finance.yahoo.com/d/quotes.csv?"
A7: Data Type | B7: Daily | D7: Daily | E7: d | Q7: For some how-to doc regarding this particular interface, including a list of the
D8: Weekly | E8: w | Q8: specific fields you can include in a request to this interface see:
A9: Available Data | D9: Monthly | E9: m | Q9: http://www.gummy-stuff.org/Yahoo-data.htm
A10: Bar Count: | B10: =COUNTA(B15:B64892)-1 -> 1004 | D10: Div/Split | E10: v | Q10: This web site includes a downloadable working EXCEL/VBA example
A11: From: | B11: =IF(B10<=0,"",OFFSET(B15,B10,IF(HistReqDataType="v",1,0),1,1)) -> 2009-11-13 | Q11: of the capabilities of this interface.
A12: To: | B12: =IF(B10<=0,"",IF(HistReqDataType="v",OFFSET(B15,2,1,1,1),OFFSET(B15,1,0,1,1))) -> 2013-11-08
B14: Raw Data Values | H14: Adjusted | I14: Adjustment | J14: Adjusted Values
A15: RelRow | B15: Date | C15: Open | D15: High | E15: Low | F15: Close | G15: Volume | H15: Adj Close | I15: Factor | J15: Open | K15: High | L15: Low | M15: Close
A16: 1 | B16: 2013-11-08 | C16: 57.19 | D16: 57.41 | E16: 56.81 | F16: 57.28 | G16: 1920765 | H16: 57.28 | I16: =H16/F16 -> 1 | J16: =ROUND($I16*C16,2) -> 57.19 | K16: =ROUND($I16*D16,2) -> 57.41 | L16: =ROUND($I16*E16,2) -> 56.81 | M16: =ROUND($I16*F16,2) -> 57.28 | N16: 4:02pm
A17: 2 | B17: 2013-11-07 | C17: 58.09 | D17: 58.59 | E17: 56.95 | F17: 57.22 | G17: 2247800 | H17: 57.22 | I17: =H17/F17 -> 1 | J17: 58.09 | K17: 58.59 | L17: 56.95 | M17: 57.22
A18: 3 | B18: 2013-11-06 | C18: 58.11 | D18: 58.59 | E18: 57.89 | F18: 58.01 | G18: 1629700 | H18: 58.01 | I18: =H18/F18 -> 1 | J18: 58.11 | K18: 58.59 | L18: 57.89 | M18: 58.01
A19: 4 | B19: 2013-11-05 | C19: 57.41 | D19: 58.4 | E19: 57.2 | F19: 58.11 | G19: 2864800 | H19: 58.11 | I19: 1 | J19: 57.41 | K19: 58.4 | L19: 57.2 | M19: 58.11
A20: 5 | B20: 2013-11-04 | C20: 57.99 | D20: 58.23 | E20: 57.47 | F20: 57.53 | G20: 2516900 | H20: 57.53 | I20: 1 | J20: 57.99 | K20: 58.23 | L20: 57.47 | M20: 57.53
A21: 6 | B21: 2013-11-01 | C21: 57.83 | D21: 58.14 | E21: 57.5 | F21: 57.77 | G21: 2128200 | H21: 57.77 | I21: 1 | J21: 57.83 | K21: 58.14 | L21: 57.5 | M21: 57.77
A22: 7 | B22: 2013-10-31 | C22: 58.5 | D22: 58.79 | E22: 57.7 | F22: 57.78 | G22: 2837700 | H22: 57.78 | I22: 1 | J22: 58.5 | K22: 58.79 | L22: 57.7 | M22: 57.78
A23: 8 | B23: 2013-10-30 | C23: 59.48 | D23: 59.52 | E23: 58.13 | F23: 58.57 | G23: 1879600 | H23: 58.57 | I23: 1 | J23: 59.48 | K23: 59.52 | L23: 58.13 | M23: 58.57
A24: 9 | B24: 2013-10-29 | C24: 59.46 | D24: 59.71 | E24: 59.17 | F24: 59.34 | G24: 1755800 | H24: 59.34 | I24: 1 | J24: 59.46 | K24: 59.71 | L24: 59.17 | M24: 59.34
A25: 10 | B25: 2013-10-28 | C25: 59.4 | D25: 59.57 | E25: 58.97 | F25: 59.17 | G25: 1678900 | H25: 59.17 | I25: 1 | J25: 59.4 | K25: 59.57 | L25: 58.97 | M25: 59.17
A26: 11 | B26: 2013-10-25 | C26: 59.74 | D26: 59.87 | E26: 59.27 | F26: 59.5 | G26: 1959800 | H26: 59.5 | I26: 1 | J26: 59.74 | K26: 59.87 | L26: 59.27 | M26: 59.5
A27: 12 | B27: 2013-10-24 | C27: 59.13 | D27: 59.84 | E27: 58.94 | F27: 59.75 | G27: 1930800 | H27: 59.75 | I27: 1 | J27: 59.13 | K27: 59.84 | L27: 58.94 | M27: 59.75
A28: 13 | B28: 2013-10-23 | C28: 59.38 | D28: 59.43 | E28: 58.5 | F28: 58.98 | G28: 1711500 | H28: 58.98 | I28: 1 | J28: 59.38 | K28: 59.43 | L28: 58.5 | M28: 58.98
A29: 14 | B29: 2013-10-22 | C29: 58.98 | D29: 59.59 | E29: 58.96 | F29: 59.37 | G29: 1676100 | H29: 59.37 | I29: 1 | J29: 58.98 | K29: 59.59 | L29: 58.96 | M29: 59.37
A30: 15 | B30: 2013-10-21 | C30: 58.88 | D30: 59.04 | E30: 58.37 | F30: 58.92 | G30: 968900 | H30: 58.92 | I30: 1 | J30: 58.88 | K30: 59.04 | L30: 58.37 | M30: 58.92
A31: 16 | B31: 2013-10-18 | C31: 59.13 | D31: 59.13 | E31: 57.98 | F31: 58.89 | G31: 2678100 | H31: 58.89 | I31: 1 | J31: 59.13 | K31: 59.13 | L31: 57.98 | M31: 58.89
A32: 17 | B32: 2013-10-17 | C32: 57.24 | D32: 58.93 | E32: 57.1 | F32: 58.82 | G32: 2379500 | H32: 58.82 | I32: 1 | J32: 57.24 | K32: 58.93 | L32: 57.1 | M32: 58.82
A33: 18 | B33: 2013-10-16 | C33: 57.19 | D33: 57.66 | E33: 57.04 | F33: 57.37 | G33: 2308400 | H33: 57.37 | I33: 1 | J33: 57.19 | K33: 57.66 | L33: 57.04 | M33: 57.37
A34: 19 | B34: 2013-10-15 | C34: 57.03 | D34: 57.23 | E34: 56.44 | F34: 56.75 | G34: 2110800 | H34: 56.75 | I34: 1 | J34: 57.03 | K34: 57.23 | L34: 56.44 | M34: 56.75
A35: 20 | B35: 2013-10-14 | C35: 57.52 | D35: 57.8 | E35: 56.76 | F35: 57.05 | G35: 3449400 | H35: 57.05 | I35: 1 | J35: 57.52 | K35: 57.8 | L35: 56.76 | M35: 57.05
A36: 21 | B36: 2013-10-11 | C36: 57.4 | D36: 57.95 | E36: 57.15 | F36: 57.83 | G36: 2580800 | H36: 57.83 | I36: 1 | J36: 57.4 | K36: 57.95 | L36: 57.15 | M36: 57.83
A37: 22 | B37: 2013-10-10 | C37: 57.1 | D37: 57.63 | E37: 57.04 | F37: 57.54 | G37: 2483900 | H37: 57.54 | I37: 1 | J37: 57.1 | K37: 57.63 | L37: 57.04 | M37: 57.54
A38: 23 | B38: 2013-10-09 | C38: 56.35 | D38: 56.78 | E38: 55.96 | F38: 56.7 | G38: 4153900 | H38: 56.7 | I38: 1 | J38: 56.35 | K38: 56.78 | L38: 55.96 | M38: 56.7
A39: 24 | B39: 2013-10-08 | C39: 57 | D39: 57.28 | E39: 56.27 | F39: 56.35 | G39: 2762100 | H39: 56.35 | I39: 1 | J39: 57 | K39: 57.28 | L39: 56.27 | M39: 56.35
A40: 25 | B40: 2013-10-07 | C40: 58.36 | D40: 58.36 | E40: 57.13 | F40: 57.14 | G40: 2790100 | H40: 57.14 | I40: 1 | J40: 58.36 | K40: 58.36 | L40: 57.13 | M40: 57.14
A41: 26 | B41: 2013-10-04 | C41: 57.66 | D41: 58.82 | E41: 57.54 | F41: 58.77 | G41: 2513700 | H41: 58.77 | I41: 1 | J41: 57.66 | K41: 58.82 | L41: 57.54 | M41: 58.77
A42: 27 | B42: 2013-10-03 | C42: 57.9 | D42: 58.02 | E42: 57.45 | F42: 57.75 | G42: 2609500 | H42: 57.75 | I42: 1 | J42: 57.9 | K42: 58.02 | L42: 57.45 | M42: 57.75
A43: 28 | B43: 2013-10-02 | C43: 57.44 | D43: 57.94 | E43: 57.25 | F43: 57.9 | G43: 2206400 | H43: 57.9 | I43: 1 | J43: 57.44 | K43: 57.94 | L43: 57.25 | M43: 57.9
A44: 29 | B44: 2013-10-01 | C44: 56.59 | D44: 57.98 | E44: 56.32 | F44: 57.78 | G44: 3575200 | H44: 57.78 | I44: 1 | J44: 56.59 | K44: 57.98 | L44: 56.32 | M44: 57.78
A45: 30 | B45: 2013-09-30 | C45: 56.23 | D45: 56.76 | E45: 55.71 | F45: 56.46 | G45: 1860400 | H45: 56.46 | I45: 1 | J45: 56.23 | K45: 56.76 | L45: 55.71 | M45: 56.46
A46: 31 | B46: 2013-09-27 | C46: 56.7 | D46: 57.08 | E46: 56.51 | F46: 56.59 | G46: 2568700 | H46: 56.59 | I46: 1 | J46: 56.7 | K46: 57.08 | L46: 56.51 | M46: 56.59
A47: 32 | B47: 2013-09-26 | C47: 57.15 | D47: 57.55 | E47: 56.71 | F47: 56.75 | G47: 2741900 | H47: 56.75 | I47: 1 | J47: 57.15 | K47: 57.55 | L47: 56.71 | M47: 56.75
A48: 33 | B48: 2013-09-25 | C48: 58.09 | D48: 58.11 | E48: 56.96 | F48: 57 | G48: 2844400 | H48: 57 | I48: 1 | J48: 58.09 | K48: 58.11 | L48: 56.96 | M48: 57
A49: 34 | B49: 2013-09-24 | C49: 58.22 | D49: 58.29 | E49: 58 | F49: 58.11 | G49: 1923600 | H49: 58.11 | I49: 1 | J49: 58.22 | K49: 58.29 | L49: 58 | M49: 58.11
A50: 35 | B50: 2013-09-23 | C50: 57.68 | D50: 58.29 | E50: 57.61 | F50: 58.19 | G50: 2416700 | H50: 58.19 | I50: 1 | J50: 57.68 | K50: 58.29 | L50: 57.61 | M50: 58.19
A51: 36 | B51: 2013-09-20 | C51: 58.42 | D51: 58.44 | E51: 57.65 | F51: 57.65 | G51: 4398300 | H51: 57.65 | I51: 1 | J51: 58.42 | K51: 58.44 | L51: 57.65 | M51: 57.65
A52: 37 | B52: 2013-09-19 | C52: 58.1 | D52: 58.71 | E52: 57.69 | F52: 58.49 | G52: 3267900 | H52: 58.49 | I52: 1 | J52: 58.1 | K52: 58.71 | L52: 57.69 | M52: 58.49
A53: 38 | B53: 2013-09-18 | C53: 57.35 | D53: 58.14 | E53: 57.27 | F53: 57.92 | G53: 2848800 | H53: 57.92 | I53: 1 | J53: 57.35 | K53: 58.14 | L53: 57.27 | M53: 57.92
A54: 39 | B54: 2013-09-17 | C54: 57.07 | D54: 57.57 | E54: 57.04 | F54: 57.33 | G54: 2038300 | H54: 57.33 | I54: 1 | J54: 57.07 | K54: 57.57 | L54: 57.04 | M54: 57.33
A55: 40 | B55: 2013-09-16 | C55: 57.4 | D55: 57.57 | E55: 56.57 | F55: 57 | G55: 2618500 | H55: 57 | I55: 1 | J55: 57.4 | K55: 57.57 | L55: 56.57 | M55: 57
A56: 41 | B56: 2013-09-13 | C56: 57.25 | D56: 57.35 | E56: 56.64 | F56: 56.83 | G56: 1366800 | H56: 56.83 | I56: 1 | J56: 57.25 | K56: 57.35 | L56: 56.64 | M56: 56.83
A57: 42 | B57: 2013-09-12 | C57: 57.46 | D57: 57.5 | E57: 56.77 | F57: 57.14 | G57: 1261100 | H57: 57.14 | I57: 1 | J57: 57.46 | K57: 57.5 | L57: 56.77 | M57: 57.14
A58: 43 | B58: 2013-09-11 | C58: 57.4 | D58: 57.42 | E58: 56.88 | F58: 57.36 | G58: 1579500 | H58: 57.36 | I58: 1 | J58: 57.4 | K58: 57.42 | L58: 56.88 | M58: 57.36
A59: 44 | B59: 2013-09-10 | C59: 57.24 | D59: 57.36 | E59: 56.54 | F59: 57.33 | G59: 2373900 | H59: 57.33 | I59: 1 | J59: 57.24 | K59: 57.36 | L59: 56.54 | M59: 57.33
A60: 45 | B60: 2013-09-09 | C60: 57.2 | D60: 57.52 | E60: 57 | F60: 57.47 | G60: 3070700 | H60: 57.47 | I60: 1 | J60: 57.2 | K60: 57.52 | L60: 57 | M60: 57.47
A61: 46 | B61: 2013-09-06 | C61: 57.61 | D61: 57.71 | E61: 56.72 | F61: 56.96 | G61: 2302300 | H61: 56.96 | I61: 1 | J61: 57.61 | K61: 57.71 | L61: 56.72 | M61: 56.96
A62: 47 | B62: 2013-09-05 | C62: 56.58 | D62: 57.8 | E62: 56.41 | F62: 57.38 | G62: 4013800 | H62: 57.38 | I62: 1 | J62: 56.58 | K62: 57.8 | L62: 56.41 | M62: 57.38
A63: 48 | B63: 2013-09-04 | C63: 56.06 | D63: 57.42 | E63: 55.29 | F63: 56.39 | G63: 9699000 | H63: 56.39 | I63: 1 | J63: 56.06 | K63: 57.42 | L63: 55.29 | M63: 56.39
A64: 49 | B64: 2013-09-03 | C64: 54.47 | D64: 54.74 | E64: 53.4 | F64: 53.88 | G64: 4268700 | H64: 53.88 | I64: 1 | J64: 54.47 | K64: 54.74 | L64: 53.4 | M64: 53.88
A65: 50 | B65: 2013-08-30 | C65: 54.61 | D65: 54.87 | E65: 53.86 | F65: 53.97 | G65: 1887400 | H65: 53.97 | I65: 1 | J65: 54.61 | K65: 54.87 | L65: 53.86 | M65: 53.97
A66: 51 | B66: 2013-08-29 | C66: 54.4 | D66: 54.75 | E66: 54.24 | F66: 54.37 | G66: 1346300 | H66: 54.37 | I66: 1 | J66: 54.4 | K66: 54.75 | L66: 54.24 | M66: 54.37
A67: 52 | B67: 2013-08-28 | C67: 54.65 | D67: 54.9 | E67: 54.21 | F67: 54.48 | G67: 1777200 | H67: 54.48 | I67: 1 | J67: 54.65 | K67: 54.9 | L67: 54.21 | M67: 54.48
A68: 53 | B68: 2013-08-27 | C68: 55 | D68: 55.33 | E68: 54.62 | F68: 54.65 | G68: 1908400 | H68: 54.65 | I68: 1 | J68: 55 | K68: 55.33 | L68: 54.62 | M68: 54.65
A69: 54 | B69: 2013-08-26 | C69: 55.43 | D69: 56.1 | E69: 55.16 | F69: 55.59 | G69: 1744600 | H69: 55.59 | I69: 1 | J69: 55.43 | K69: 56.1 | L69: 55.16 | M69: 55.59
A70: 55 | B70: 2013-08-23 | C70: 55.51 | D70: 55.6 | E70: 54.79 | F70: 55.05 | G70: 2263300 | H70: 55.05 | I70: 1 | J70: 55.51 | K70: 55.6 | L70: 54.79 | M70: 55.05
A71: 56 | B71: 2013-08-22 | C71: 54.34 | D71: 55.6 | E71: 54 | F71: 55.45 | G71: 3108500 | H71: 55.45 | I71: 1 | J71: 54.34 | K71: 55.6 | L71: 54 | M71: 55.45
A72: 57 | B72: 2013-08-21 | C72: 53.4 | D72: 54.5 | E72: 53.1 | F72: 54.4 | G72: 3274300 | H72: 54.4 | I72: 1 | J72: 53.4 | K72: 54.5 | L72: 53.1 | M72: 54.4
A73: 58 | B73: 2013-08-20 | C73: 54.16 | D73: 54.23 | E73: 53.3 | F73: 53.37 | G73: 2663400 | H73: 53.37 | I73: 1 | J73: 54.16 | K73: 54.23 | L73: 53.3 | M73: 53.37
A74: 59 | B74: 2013-08-19 | C74: 53.5 | D74: 54.47 | E74: 53.2 | F74: 54.09 | G74: 4538700 | H74: 54.09 | I74: 1 | J74: 53.5 | K74: 54.47 | L74: 53.2 | M74: 54.09
A75: 60 | B75: 2013-08-16 | C75: 53.23 | D75: 53.32 | E75: 52.4 | F75: 52.47 | G75: 3489900 | H75: 52.47 | I75: 1 | J75: 53.23 | K75: 53.32 | L75: 52.4 | M75: 52.47
A76: 61 | B76: 2013-08-15 | C76: 54.19 | D76: 54.49 | E76: 53.37 | F76: 53.5 | G76: 2987200 | H76: 53.5 | I76: 1 | J76: 54.19 | K76: 54.49 | L76: 53.37 | M76: 53.5
A77: 62 | B77: 2013-08-14 | C77: 54.41 | D77: 54.82 | E77: 54.08 | F77: 54.5 | G77: 1792300 | H77: 54.5 | I77: 1 | J77: 54.41 | K77: 54.82 | L77: 54.08 | M77: 54.5
A78: 63 | B78: 2013-08-13 | C78: 54.36 | D78: 54.83 | E78: 54.2 | F78: 54.6 | G78: 2171300 | H78: 54.6 | I78: 1 | J78: 54.36 | K78: 54.83 | L78: 54.2 | M78: 54.6
A79: 64 | B79: 2013-08-12 | C79: 54.14 | D79: 54.58 | E79: 53.99 | F79: 54.35 | G79: 2295500 | H79: 54.35 | I79: 1 | J79: 54.14 | K79: 54.58 | L79: 53.99 | M79: 54.35
A80: 65 | B80: 2013-08-09 | C80: 54.7 | D80: 54.82 | E80: 54.22 | F80: 54.25 | G80: 1201100 | H80: 54.25 | I80: 1 | J80: =ROUND($I80*C80,2) -> 54.7 | K80: =ROUND($I80*D80,2) -> 54.82 | L80: =ROUND($I80*E80,2) -> 54.22 | M80: =ROUND($I80*F80,2) -> 54.25
A81: 66 | B81: 2013-08-08 | C81: 54.36 | D81: 54.91 | E81: 54.27 | F81: 54.73 | G81: 2739700 | H81: 54.73 | I81: 1 | J81: 54.36 | K81: 54.91 | L81: 54.27 | M81: 54.73
A82: 67 | B82: 2013-08-07 | C82: 54.76 | D82: 54.79 | E82: 54.12 | F82: 54.12 | G82: 3007200 | H82: 54.12 | I82: =H82/F82 -> 1 | J82: 54.76 | K82: 54.79 | L82: 54.12 | M82: 54.12
A83: 68 | B83: 2013-08-06 | C83: 55.04 | D83: 55.18 | E83: 54.31 | F83: 54.87 | G83: 2533700 | H83: 54.87 | I83: 1 | J83: 55.04 | K83: 55.18 | L83: 54.31 | M83: 54.87
A84: 69 | B84: 2013-08-05 | C84: 55.52 | D84: 55.64 | E84: 55.02 | F84: 55.25 | G84: 1875900 | H84: 55.25 | I84: 1 | J84: 55.52 | K84: 55.64 | L84: 55.02 | M84: 55.25
A85: 70 | B85: 2013-08-02 | C85: 55.4 | D85: 55.82 | E85: 54.55 | F85: 55.79 | G85: 3049700 | H85: 55.79 | I85: 1 | J85: 55.4 | K85: 55.82 | L85: 54.55 | M85: 55.79
A86: 71 | B86: 2013-08-01 | C86: 54.97 | D86: 55.6 | E86: 54.4 | F86: 55.42 | G86: 4140100 | H86: 55.42 | I86: 1 | J86: 54.97 | K86: 55.6 | L86: 54.4 | M86: 55.42
A87: 72 | B87: 2013-07-31 | C87: 54.2 | D87: 54.84 | E87: 54.17 | F87: 54.67 | G87: 2868800 | H87: 54.67 | I87: 1 | J87: 54.2 | K87: 54.84 | L87: 54.17 | M87: 54.67
A88: 73 | B88: 2013-07-30 | C88: 54.15 | D88: 54.44 | E88: 53.86 | F88: 54.06 | G88: 2051100 | H88: 54.06 | I88: 1 | J88: 54.15 | K88: 54.44 | L88: 53.86 | M88: 54.06
A89: 74 | B89: 2013-07-29 | C89: 53.81 | D89: 54.2 | E89: 53.44 | F89: 54.18 | G89: 2497900 | H89: 54.18 | I89: 1 | J89: 53.81 | K89: 54.2 | L89: 53.44 | M89: 54.18
A90: 75 | B90: 2013-07-26 | C90: 54.03 | D90: 54.05 | E90: 53.25 | F90: 53.78 | G90: 2808400 | H90: 53.78 | I90: 1 | J90: 54.03 | K90: 54.05 | L90: 53.25 | M90: 53.78
A91: 76 | B91: 2013-07-25 | C91: 54.1 | D91: 54.37 | E91: 53.72 | F91: 54.23 | G91: 2688000 | H91: 54.23 | I91: 1 | J91: 54.1 | K91: 54.37 | L91: 53.72 | M91: 54.23
A92: 77 | B92: 2013-07-24 | C92: 53.76 | D92: 54.25 | E92: 53.67 | F92: 54.23 | G92: 2924700 | H92: 54.23 | I92: 1 | J92: 53.76 | K92: 54.25 | L92: 53.67 | M92: 54.23
A93: 78 | B93: 2013-07-23 | C93: 53.63 | D93: 53.95 | E93: 53.31 | F93: 53.82 | G93: 2915400 | H93: 53.82 | I93: 1 | J93: 53.63 | K93: 53.95 | L93: 53.31 | M93: 53.82
A94: 79 | B94: 2013-07-22 | C94: 53.37 | D94: 53.69 | E94: 53.04 | F94: 53.54 | G94: 2225000 | H94: 53.54 | I94: 1 | J94: 53.37 | K94: 53.69 | L94: 53.04 | M94: 53.54
A95: 80 | B95: 2013-07-19 | C95: 53.51 | D95: 53.94 | E95: 53.06 | F95: 53.3 | G95: 2474400 | H95: 53.3 | I95: 1 | J95: 53.51 | K95: 53.94 | L95: 53.06 | M95: 53.3
A96: 81 | B96: 2013-07-18 | C96: 53.71 | D96: 53.91 | E96: 53.29 | F96: 53.45 | G96: 2050400 | H96: 53.45 | I96: 1 | J96: 53.71 | K96: 53.91 | L96: 53.29 | M96: 53.45
A97: 82 | B97: 2013-07-17 | C97: 54.15 | D97: 54.2 | E97: 53.6 | F97: 53.65 | G97: 1784300 | H97: 53.65 | I97: 1 | J97: 54.15 | K97: 54.2 | L97: 53.6 | M97: 53.65
A98: 83 | B98: 2013-07-16 | C98: 53.71 | D98: 54.03 | E98: 53.5 | F98: 53.9 | G98: 2169100 | H98: 53.9 | I98: 1 | J98: 53.71 | K98: 54.03 | L98: 53.5 | M98: 53.9
A99: 84 | B99: 2013-07-15 | C99: 53.93 | D99: 54.2 | E99: 53.76 | F99: 53.96 | G99: 2538100 | H99: 53.96 | I99: 1 | J99: 53.93 | K99: 54.2 | L99: 53.76 | M99: 53.96
A100: 85 | B100: 2013-07-12 | C100: 54.14 | D100: 54.4 | E100: 53.45 | F100: 53.77 | G100: 7579900 | H100: 53.77 | I100: 1 | J100: 54.14 | K100: 54.4 | L100: 53.45 | M100: 53.77
A101: 86 | B101: 2013-07-11 | C101: 55.05 | D101: 55.8 | E101: 54.58 | F101: 55.65 | G101: 4215300 | H101: 55.65 | I101: 1 | J101: 55.05 | K101: 55.8 | L101: 54.58 | M101: 55.65
A102: 87 | B102: 2013-07-10 | C102: 52.87 | D102: 55.01 | E102: 52.83 | F102: 54.78 | G102: 8237500 | H102: 54.78 | I102: 1 | J102: 52.87 | K102: 55.01 | L102: 52.83 | M102: 54.78
A103: 88 | B103: 2013-07-09 | C103: 52.32 | D103: 52.82 | E103: 51.77 | F103: 51.8 | G103: 2370100 | H103: 51.8 | I103: 1 | J103: 52.32 | K103: 52.82 | L103: 51.77 | M103: 51.8
A104: 89 | B104: 2013-07-08 | C104: 52 | D104: 52.36 | E104: 51.49 | F104: 52.12 | G104: 2309500 | H104: 52.12 | I104: 1 | J104: 52 | K104: 52.36 | L104: 51.49 | M104: 52.12
A105: 90 | B105: 2013-07-05 | C105: 51.46 | D105: 52.05 | E105: 51.26 | F105: 52.01 | G105: 1673500 | H105: 52.01 | I105: 1 | J105: 51.46 | K105: 52.05 | L105: 51.26 | M105: 52.01
A106: 91 | B106: 2013-07-03 | C106: 51.25 | D106: 51.38 | E106: 50.53 | F106: 51.11 | G106: 1860000 | H106: 51.11 | I106: 1 | J106: 51.25 | K106: 51.38 | L106: 50.53 | M106: 51.11
A107: 92 | B107: 2013-07-02 | C107: 52.19 | D107: 52.43 | E107: 51.23 | F107: 51.36 | G107: 3334300 | H107: 51.36 | I107: 1 | J107: 52.19 | K107: 52.43 | L107: 51.23 | M107: 51.36
A108: 93 | B108: 2013-07-01 | C108: 51.03 | D108: 52.84 | E108: 50.97 | F108: 52.43 | G108: 4290300 | H108: 52.43 | I108: 1 | J108: 51.03 | K108: 52.84 | L108: 50.97 | M108: 52.43
A109: 94 | B109: 2013-06-28 | C109: 51.45 | D109: 51.59 | E109: 50.43 | F109: 50.43 | G109: 8498100 | H109: 50.43 | I109: 1 | J109: 51.45 | K109: 51.59 | L109: 50.43 | M109: 50.43
A110: 95 | B110: 2013-06-27 | C110: 51.28 | D110: 51.93 | E110: 51.16 | F110: 51.64 | G110: 2268900 | H110: 51.64 | I110: 1 | J110: 51.28 | K110: 51.93 | L110: 51.16 | M110: 51.64
A111: 96 | B111: 2013-06-26 | C111: 50.54 | D111: 51.27 | E111: 50.54 | F111: 51.17 | G111: 1980700 | H111: 51.17 | I111: 1 | J111: 50.54 | K111: 51.27 | L111: 50.54 | M111: 51.17
A112: 97 | B112: 2013-06-25 | C112: 50.16 | D112: 50.81 | E112: 50.03 | F112: 50.51 | G112: 2966100 | H112: 50.51 | I112: 1 | J112: 50.16 | K112: 50.81 | L112: 50.03 | M112: 50.51
A113: 98 | B113: 2013-06-24 | C113: 49.78 | D113: 50.42 | E113: 49.5 | F113: 50 | G113: 3669000 | H113: 50 | I113: 1 | J113: 49.78 | K113: 50.42 | L113: 49.5 | M113: 50
A114: 99 | B114: 2013-06-21 | C114: 50.3 | D114: 50.33 | E114: 49.47 | F114: 50.21 | G114: 4118300 | H114: 50.21 | I114: 1 | J114: 50.3 | K114: 50.33 | L114: 49.47 | M114: 50.21
A115: 100 | B115: 2013-06-20 | C115: 51.17 | D115: 51.19 | E115: 49.72 | F115: 49.88 | G115: 4553000 | H115: 49.88 | I115: 1 | J115: 51.17 | K115: 51.19 | L115: 49.72 | M115: 49.88
A116: 101 | B116: 2013-06-19 | C116: 52.36 | D116: 52.47 | E116: 51.3 | F116: 51.33 | G116: 2913500 | H116: 51.33 | I116: 1 | J116: 52.36 | K116: 52.47 | L116: 51.3 | M116: 51.33
A117: 102 | B117: 2013-06-18 | C117: 51.1 | D117: 52.3 | E117: 50.81 | F117: 52.29 | G117: 2988500 | H117: 52.29 | I117: 1 | J117: 51.1 | K117: 52.3 | L117: 50.81 | M117: 52.29
A118: 103 | B118: 2013-06-17 | C118: 51.37 | D118: 51.8 | E118: 50.73 | F118: 51.13 | G118: 2745200 | H118: 51.13 | I118: 1 | J118: 51.37 | K118: 51.8 | L118: 50.73 | M118: 51.13
A119: 104 | B119: 2013-06-14 | C119: 51.15 | D119: 51.58 | E119: 50.96 | F119: 51.18 | G119: 1600000 | H119: 51.18 | I119: 1 | J119: 51.15 | K119: 51.58 | L119: 50.96 | M119: 51.18
A120: 105 | B120: 2013-06-13 | C120: 51.18 | D120: 51.5 | E120: 50.85 | F120: 51.2 | G120: 2163900 | H120: 51.2 | I120: 1 | J120: 51.18 | K120: 51.5 | L120: 50.85 | M120: 51.2
A121: 106 | B121: 2013-06-12 | C121: 51.75 | D121: 52 | E121: 50.78 | F121: 51.09 | G121: 3171300 | H121: 51.09 | I121: 1 | J121: 51.75 | K121: 52 | L121: 50.78 | M121: 51.09
A122: 107 | B122: 2013-06-11 | C122: 50.33 | D122: 52 | E122: 50.16 | F122: 51.67 | G122: 4824900 | H122: 51.67 | I122: 1 | J122: 50.33 | K122: 52 | L122: 50.16 | M122: 51.67
A123: 108 | B123: 2013-06-10 | C123: 51.11 | D123: 51.33 | E123: 50.31 | F123: 50.35 | G123: 5033200 | H123: 50.35 | I123: 1 | J123: 51.11 | K123: 51.33 | L123: 50.31 | M123: 50.35
A124: 109 | B124: 2013-06-07 | C124: 51.49 | D124: 52.3 | E124: 50.87 | F124: 51.09 | G124: 4334600 | H124: 51.09 | I124: 1 | J124: 51.49 | K124: 52.3 | L124: 50.87 | M124: 51.09
A125: 110 | B125: 2013-06-06 | C125: 50.43 | D125: 51.49 | E125: 49.83 | F125: 51.32 | G125: 5672300 | H125: 51.32 | I125: 1 | J125: 50.43 | K125: 51.49 | L125: 49.83 | M125: 51.32
A126: 111 | B126: 2013-06-05 | C126: 49.3 | D126: 51.2 | E126: 49.22 | F126: 50.19 | G126: 8192600 | H126: 50.19 | I126: 1 | J126: 49.3 | K126: 51.2 | L126: 49.22 | M126: 50.19
A127: 112 | B127: 2013-06-04 | C127: 50 | D127: 50.22 | E127: 48.61 | F127: 48.64 | G127: 16091900 | H127: 48.64 | I127: 1 | J127: 50 | K127: 50.22 | L127: 48.61 | M127: 48.64
A128: 113 | B128: 2013-06-03 | C128: 53.06 | D128: 53.99 | E128: 52.65 | F128: 53.55 | G128: 4486900 | H128: 53.55 | I128: 1 | J128: 53.06 | K128: 53.99 | L128: 52.65 | M128: 53.55
A129: 114 | B129: 2013-05-31 | C129: 53.7 | D129: 54.06 | E129: 52.72 | F129: 52.8 | G129: 3723900 | H129: 52.8 | I129: 1 | J129: 53.7 | K129: 54.06 | L129: 52.72 | M129: 52.8
A130: 115 | B130: 2013-05-30 | C130: 53.94 | D130: 54.21 | E130: 53.66 | F130: 53.67 | G130: 1145400 | H130: 53.67 | I130: 1 | J130: 53.94 | K130: 54.21 | L130: 53.66 | M130: 53.67
A131: 116 | B131: 2013-05-29 | C131: 54.23 | D131: 54.51 | E131: 53.65 | F131: 53.93 | G131: 2206800 | H131: 53.93 | I131: 1 | J131: 54.23 | K131: 54.51 | L131: 53.65 | M131: 53.93
A132: 117 | B132: 2013-05-28 | C132: 54.87 | D132: 55.17 | E132: 54.42 | F132: 54.48 | G132: 2262800 | H132: 54.48 | I132: 1 | J132: 54.87 | K132: 55.17 | L132: 54.42 | M132: 54.48
A133: 118 | B133: 2013-05-24 | C133: 54.22 | D133: 54.56 | E133: 54.12 | F133: 54.42 | G133: 1839400 | H133: 54.42 | I133: 1 | J133: 54.22 | K133: 54.56 | L133: 54.12 | M133: 54.42
A134: 119 | B134: 2013-05-23 | C134: 53.64 | D134: 54.81 | E134: 53.46 | F134: 54.45 | G134: 3714100 | H134: 54.45 | I134: 1 | J134: 53.64 | K134: 54.81 | L134: 53.46 | M134: 54.45
A135: 120 | B135: 2013-05-22 | C135: 54.34 | D135: 54.75 | E135: 53.69 | F135: 53.86 | G135: 2634200 | H135: 53.86 | I135: 1 | J135: 54.34 | K135: 54.75 | L135: 53.69 | M135: 53.86
A136: 121 | B136: 2013-05-21 | C136: 53.9 | D136: 54.67 | E136: 53.73 | F136: 54.47 | G136: 2313000 | H136: 54.47 | I136: 1 | J136: 53.9 | K136: 54.67 | L136: 53.73 | M136: 54.47
A137: 122 | B137: 2013-05-20 | C137: 53.98 | D137: 54.25 | E137: 53.59 | F137: 53.84 | G137: 1953600 | H137: 53.84 | I137: 1 | J137: 53.98 | K137: 54.25 | L137: 53.59 | M137: 53.84
A138: 123 | B138: 2013-05-17 | C138: 53.5 | D138: 54.17 | E138: 53.32 | F138: 54.08 | G138: 2350900 | H138: 54.08 | I138: 1 | J138: 53.5 | K138: 54.17 | L138: 53.32 | M138: 54.08
A139: 124 | B139: 2013-05-16 | C139: 53.15 | D139: 53.67 | E139: 52.98 | F139: 53.26 | G139: 2215600 | H139: 53.26 | I139: 1 | J139: 53.15 | K139: 53.67 | L139: 52.98 | M139: 53.26
A140: 125 | B140: 2013-05-15 | C140: 52.85 | D140: 53.61 | E140: 52.42 | F140: 53.32 | G140: 2836400 | H140: 53.32 | I140: 1 | J140: 52.85 | K140: 53.61 | L140: 52.42 | M140: 53.32
A141: 126 | B141: 2013-05-14 | C141: 52.67 | D141: 53.14 | E141: 52.52 | F141: 52.79 | G141: 1390200 | H141: 52.79 | I141: 1 | J141: 52.67 | K141: 53.14 | L141: 52.52 | M141: 52.79
A142: 127 | B142: 2013-05-13 | C142: 52.84 | D142: 53 | E142: 52.46 | F142: 52.59 | G142: 1386600 | H142: 52.59 | I142: 1 | J142: 52.84 | K142: 53 | L142: 52.46 | M142: 52.59
A143: 128 | B143: 2013-05-10 | C143: 52.58 | D143: 53.18 | E143: 52.58 | F143: 52.8 | G143: 1327400 | H143: 52.8 | I143: 1 | J143: 52.58 | K143: 53.18 | L143: 52.58 | M143: 52.8
A144: 129 | B144: 2013-05-09 | C144: 53.53 | D144: 53.55 | E144: 52.51 | F144: 52.68 | G144: 1881000 | H144: 52.68 | I144: 1 | J144: =ROUND($I144*C144,2) -> 53.53 | K144: =ROUND($I144*D144,2) -> 53.55 | L144: =ROUND($I144*E144,2) -> 52.51 | M144: =ROUND($I144*F144,2) -> 52.68
A145: 130 | B145: 2013-05-08 | C145: 53.42 | D145: 53.69 | E145: 53.22 | F145: 53.42 | G145: 1297800 | H145: 53.42 | I145: 1 | J145: 53.42 | K145: 53.69 | L145: 53.22 | M145: 53.42
A146: 131 | B146: 2013-05-07 | C146: 53.43 | D146: 53.52 | E146: 52.98 | F146: 53.44 | G146: 4557600 | H146: 53.44 | I146: =H146/F146 -> 1 | J146: 53.43 | K146: 53.52 | L146: 52.98 | M146: 53.44
A147: 132 | B147: 2013-05-06 | C147: 53.11 | D147: 54.16 | E147: 53.05 | F147: 53.58 | G147: 4635600 | H147: 53.58 | I147: 1 | J147: 53.11 | K147: 54.16 | L147: 53.05 | M147: 53.58
A148: 133 | B148: 2013-05-03 | C148: 52.49 | D148: 53 | E148: 52.08 | F148: 52.49 | G148: 2925200 | H148: 52.49 | I148: 1 | J148: 52.49 | K148: 53 | L148: 52.08 | M148: 52.49
A149: 134 | B149: 2013-05-02 | C149: 52.02 | D149: 52.5 | E149: 51.83 | F149: 52.39 | G149: 1485700 | H149: 52.39 | I149: 1 | J149: 52.02 | K149: 52.5 | L149: 51.83 | M149: 52.39
A150: 135 | B150: 2013-05-01 | C150: 52 | D150: 52.6 | E150: 51.99 | F150: 52.03 | G150: 1579600 | H150: 52.03 | I150: 1 | J150: 52 | K150: 52.6 | L150: 51.99 | M150: 52.03
A151: 136 | B151: 2013-04-30 | C151: 52.24 | D151: 52.31 | E151: 51.7 | F151: 52.09 | G151: 1553400 | H151: 52.09 | I151: 1 | J151: 52.24 | K151: 52.31 | L151: 51.7 | M151: 52.09
A152: 137 | B152: 2013-04-29 | C152: 52.82 | D152: 52.99 | E152: 52.14 | F152: 52.18 | G152: 1231300 | H152: 52.18 | I152: 1 | J152: 52.82 | K152: 52.99 | L152: 52.14 | M152: 52.18
A153: 138 | B153: 2013-04-26 | C153: 52.57 | D153: 52.95 | E153: 52.44 | F153: 52.83 | G153: 2082000 | H153: 52.83 | I153: 1 | J153: 52.57 | K153: 52.95 | L153: 52.44 | M153: 52.83
A154: 139 | B154: 2013-04-25 | C154: 52.24 | D154: 52.9 | E154: 52.2 | F154: 52.71 | G154: 2071000 | H154: 52.71 | I154: 1 | J154: 52.24 | K154: 52.9 | L154: 52.2 | M154: 52.71
A155: 140 | B155: 2013-04-24 | C155: 52.33 | D155: 52.74 | E155: 52.01 | F155: 52.09 | G155: 1604700 | H155: 52.09 | I155: 1 | J155: 52.33 | K155: 52.74 | L155: 52.01 | M155: 52.09
A156: 141 | B156: 2013-04-23 | C156: 51.81 | D156: 52.57 | E156: 51.74 | F156: 52.15 | G156: 2936300 | H156: 52.15 | I156: 1 | J156: 51.81 | K156: 52.57 | L156: 51.74 | M156: 52.15
A157: 142 | B157: 2013-04-22 | C157: 51.74 | D157: 51.89 | E157: 51.38 | F157: 51.63 | G157: 1895800 | H157: 51.63 | I157: 1 | J157: 51.74 | K157: 51.89 | L157: 51.38 | M157: 51.63
A158: 143 | B158: 2013-04-19 | C158: 51.47 | D158: 51.86 | E158: 51.15 | F158: 51.82 | G158: 4407800 | H158: 51.82 | I158: 1 | J158: 51.47 | K158: 51.86 | L158: 51.15 | M158: 51.82
A159: 144 | B159: 2013-04-18 | C159: 51.9 | D159: 51.99 | E159: 50.67 | F159: 51.3 | G159: 4107100 | H159: 51.3 | I159: 1 | J159: 51.9 | K159: 51.99 | L159: 50.67 | M159: 51.3
A160: 145 | B160: 2013-04-17 | C160: 50.18 | D160: 51.92 | E160: 50.17 | F160: 51.9 | G160: 6858300 | H160: 51.9 | I160: 1 | J160: 50.18 | K160: 51.92 | L160: 50.17 | M160: 51.9
A161: 146 | B161: 2013-04-16 | C161: 49.98 | D161: 50.51 | E161: 49.55 | F161: 50.47 | G161: 3536500 | H161: 50.47 | I161: 1 | J161: 49.98 | K161: 50.51 | L161: 49.55 | M161: 50.47
A162: 147 | B162: 2013-04-15 | C162: 50.01 | D162: 50.6 | E162: 49.62 | F162: 49.9 | G162: 3509300 | H162: 49.9 | I162: 1 | J162: 50.01 | K162: 50.6 | L162: 49.62 | M162: 49.9
A163: 148 | B163: 2013-04-12 | C163: 50.24 | D163: 50.84 | E163: 49.86 | F163: 50.31 | G163: 2347800 | H163: 50.31 | I163: 1 | J163: 50.24 | K163: 50.84 | L163: 49.86 | M163: 50.31
A164: 149 | B164: 2013-04-11 | C164: 50.31 | D164: 50.85 | E164: 50.21 | F164: 50.28 | G164: 5470800 | H164: 50.28 | I164: 1 | J164: 50.31 | K164: 50.85 | L164: 50.21 | M164: 50.28
A165: 150 | B165: 2013-04-10 | C165: 49.9 | D165: 51.34 | E165: 49.76 | F165: 50.24 | G165: 6801000 | H165: 50.24 | I165: 1 | J165: 49.9 | K165: 51.34 | L165: 49.76 | M165: 50.24
A166: 151 | B166: 2013-04-09 | C166: 50.48 | D166: 50.58 | E166: 49.76 | F166: 49.85 | G166: 7493300 | H166: 49.85 | I166: 1 | J166: 50.48 | K166: 50.58 | L166: 49.76 | M166: 49.85
A167: 152 | B167: 2013-04-08 | C167: 50.28 | D167: 50.49 | E167: 50.05 | F167: 50.36 | G167: 3150200 | H167: 50.36 | I167: 1 | J167: 50.28 | K167: 50.49 | L167: 50.05 | M167: 50.36
A168: 153 | B168: 2013-04-05 | C168: 50.23 | D168: 50.42 | E168: 49.92 | F168: 50.4 | G168: 3662400 | H168: 50.4 | I168: 1 | J168: 50.23 | K168: 50.42 | L168: 49.92 | M168: 50.4
A169: 154 | B169: 2013-04-04 | C169: 50.22 | D169: 50.74 | E169: 50.13 | F169: 50.73 | G169: 2929400 | H169: 50.73 | I169: 1 | J169: 50.22 | K169: 50.74 | L169: 50.13 | M169: 50.73
A170: 155 | B170: 2013-04-03 | C170: 50.68 | D170: 50.73 | E170: 50.04 | F170: 50.12 | G170: 2804700 | H170: 50.12 | I170: 1 | J170: 50.68 | K170: 50.73 | L170: 50.04 | M170: 50.12
A171: 156 | B171: 2013-04-02 | C171: 50.73 | D171: 50.76 | E171: 50.4 | F171: 50.54 | G171: 2790300 | H171: 50.54 | I171: 1 | J171: 50.73 | K171: 50.76 | L171: 50.4 | M171: 50.54
A172: 157 | B172: 2013-04-01 | C172: 50.77 | D172: 50.87 | E172: 50.25 | F172: 50.62 | G172: 4970100 | H172: 50.62 | I172: 1 | J172: 50.77 | K172: 50.87 | L172: 50.25 | M172: 50.62
A173: 158 | B173: 2013-03-28 | C173: 50.3 | D173: 50.72 | E173: 50.24 | F173: 50.58 | G173: 33355800 | H173: 50.58 | I173: 1 | J173: 50.3 | K173: 50.72 | L173: 50.24 | M173: 50.58
A174: 159 | B174: 2013-03-27 | C174: 50.88 | D174: 51.56 | E174: 50.6 | F174: 50.95 | G174: 7721400 | H174: 50.95 | I174: 1 | J174: 50.88 | K174: 51.56 | L174: 50.6 | M174: 50.95
A175: 160 | B175: 2013-03-26 | C175: 51.23 | D175: 52.3 | E175: 51.17 | F175: 52.22 | G175: 4110500 | H175: 52.22 | I175: 1 | J175: 51.23 | K175: 52.3 | L175: 51.17 | M175: 52.22
A176: 161 | B176: 2013-03-25 | C176: 52.53 | D176: 52.91 | E176: 49.84 | F176: 51.08 | G176: 10543200 | H176: 51.08 | I176: 1 | J176: 52.53 | K176: 52.91 | L176: 49.84 | M176: 51.08
A177: 162 | B177: 2013-03-22 | C177: 50.09 | D177: 50.49 | E177: 49.75 | F177: 50.07 | G177: 6403900 | H177: 50.07 | I177: 1 | J177: 50.09 | K177: 50.49 | L177: 49.75 | M177: 50.07
A178: 163 | B178: 2013-03-21 | C178: 49.41 | D178: 49.91 | E178: 48.92 | F178: 49.81 | G178: 3240000 | H178: 49.81 | I178: 1 | J178: 49.41 | K178: 49.91 | L178: 48.92 | M178: 49.81
A179: 164 | B179: 2013-03-20 | C179: 48.26 | D179: 50.04 | E179: 48.15 | F179: 49.79 | G179: 5946300 | H179: 49.79 | I179: 1 | J179: 48.26 | K179: 50.04 | L179: 48.15 | M179: 49.79
A180: 165 | B180: 2013-03-19 | C180: 48.12 | D180: 48.22 | E180: 47.46 | F180: 47.77 | G180: 5279300 | H180: 47.77 | I180: 1 | J180: 48.12 | K180: 48.22 | L180: 47.46 | M180: 47.77
A181: 166 | B181: 2013-03-18 | C181: 47.74 | D181: 48.38 | E181: 47.63 | F181: 48.11 | G181: 1830700 | H181: 48.11 | I181: 1 | J181: 47.74 | K181: 48.38 | L181: 47.63 | M181: 48.11
A182: 167 | B182: 2013-03-15 | C182: 48.64 | D182: 48.72 | E182: 47.79 | F182: 48.18 | G182: 3069900 | H182: 48.18 | I182: 1 | J182: 48.64 | K182: 48.72 | L182: 47.79 | M182: 48.18
A183: 168 | B183: 2013-03-14 | C183: 48.01 | D183: 48.83 | E183: 47.85 | F183: 48.77 | G183: 3169600 | H183: 48.77 | I183: 1 | J183: 48.01 | K183: 48.83 | L183: 47.85 | M183: 48.77
A184: 169 | B184: 2013-03-13 | C184: 47.71 | D184: 48.1 | E184: 47.53 | F184: 48.03 | G184: 2340700 | H184: 48.03 | I184: 1 | J184: 47.71 | K184: 48.1 | L184: 47.53 | M184: 48.03
A185: 170 | B185: 2013-03-12 | C185: 47.5 | D185: 47.97 | E185: 47.49 | F185: 47.76 | G185: 2714400 | H185: 47.76 | I185: 1 | J185: 47.5 | K185: 47.97 | L185: 47.49 | M185: 47.76
A186: 171 | B186: 2013-03-11 | C186: 47.79 | D186: 48.1 | E186: 47.45 | F186: 47.48 | G186: 2743800 | H186: 47.48 | I186: 1 | J186: 47.79 | K186: 48.1 | L186: 47.45 | M186: 47.48
A187: 172 | B187: 2013-03-08 | C187: 47.72 | D187: 47.97 | E187: 47.39 | F187: 47.79 | G187: 2538600 | H187: 47.79 | I187: 1 | J187: 47.72 | K187: 47.97 | L187: 47.39 | M187: 47.79
A188: 173 | B188: 2013-03-07 | C188: 47.85 | D188: 48.35 | E188: 47.41 | F188: 47.46 | G188: 3482800 | H188: 47.46 | I188: 1 | J188: 47.85 | K188: 48.35 | L188: 47.41 | M188: 47.46
A189: 174 | B189: 2013-03-06 | C189: 49.09 | D189: 49.2 | E189: 48.15 | F189: 48.2 | G189: 3143400 | H189: 48.2 | I189: 1 | J189: 49.09 | K189: 49.2 | L189: 48.15 | M189: 48.2
A190: 175 | B190: 2013-03-05 | C190: 48.75 | D190: 48.99 | E190: 48.32 | F190: 48.92 | G190: 2875000 | H190: 48.92 | I190: 1 | J190: 48.75 | K190: 48.99 | L190: 48.32 | M190: 48.92
A191: 176 | B191: 2013-03-04 | C191: 47.6 | D191: 48.71 | E191: 47.56 | F191: 48.65 | G191: 5396300 | H191: 48.65 | I191: 1 | J191: 47.6 | K191: 48.71 | L191: 47.56 | M191: 48.65
A192: 177 | B192: 2013-03-01 | C192: 46.26 | D192: 47.59 | E192: 45.84 | F192: 47.57 | G192: 4134700 | H192: 47.57 | I192: 1 | J192: 46.26 | K192: 47.59 | L192: 45.84 | M192: 47.57
A193: 178 | B193: 2013-02-28 | C193: 46.37 | D193: 46.68 | E193: 46.08 | F193: 46.34 | G193: 5017900 | H193: 46.34 | I193: 1 | J193: 46.37 | K193: 46.68 | L193: 46.08 | M193: 46.34
A194: 179 | B194: 2013-02-27 | C194: 46.28 | D194: 47.5 | E194: 46.21 | F194: 46.56 | G194: 6093000 | H194: 46.56 | I194: 1 | J194: 46.28 | K194: 47.5 | L194: 46.21 | M194: 46.56
A195: 180 | B195: 2013-02-26 | C195: 45.6 | D195: 45.64 | E195: 44.59 | F195: 44.95 | G195: 4375900 | H195: 44.95 | I195: 1 | J195: 45.6 | K195: 45.64 | L195: 44.59 | M195: 44.95
A196: 181 | B196: 2013-02-25 | C196: 46.17 | D196: 46.38 | E196: 45.4 | F196: 45.45 | G196: 4008000 | H196: 45.45 | I196: 1 | J196: 46.17 | K196: 46.38 | L196: 45.4 | M196: 45.45
A197: 182 | B197: 2013-02-22 | C197: 45.59 | D197: 46.22 | E197: 45.26 | F197: 46.03 | G197: 3691600 | H197: 46.03 | I197: 1 | J197: 45.59 | K197: 46.22 | L197: 45.26 | M197: 46.03
A198: 183 | B198: 2013-02-21 | C198: 43.61 | D198: 46.09 | E198: 43.58 | F198: 45.51 | G198: 6922500 | H198: 45.51 | I198: 1 | J198: 43.61 | K198: 46.09 | L198: 43.58 | M198: 45.51
A199: 184 | B199: 2013-02-20 | C199: 43.9 | D199: 44.37 | E199: 43.54 | F199: 43.8 | G199: 4446700 | H199: 43.8 | I199: 1 | J199: 43.9 | K199: 44.37 | L199: 43.54 | M199: 43.8
A200: 185 | B200: 2013-02-19 | C200: 44.11 | D200: 44.6 | E200: 43.35 | F200: 43.96 | G200: 6584100 | H200: 43.96 | I200: 1 | J200: 44.11 | K200: 44.6 | L200: 43.35 | M200: 43.96
A201: 186 | B201: 2013-02-15 | C201: 45.12 | D201: 46.64 | E201: 43.9 | F201: 44.37 | G201: 14019600 | H201: 44.37 | I201: 1 | J201: 45.12 | K201: 46.64 | L201: 43.9 | M201: 44.37
... 818 more rows

Sheet CalculationsAndCharts
A1: EhlersPredictiveIndicators.xlsm
A2: =InputPriceData!A1&B3 -> Dollar General Co (DG) -NYSE | S2: Chart Controls
A4: User Charting Controls
A5: Data Control | S5: TRUE
A6: =InputPriceData!$B$10 -> 1004 | B6: Available Input Data Rows | E6: Earliest: | F6: =OFFSET(InputPriceData!B15,CalculationsAndCharts!A6,0,1,1) -> 2009-11-13
B7: Use Close Adjusted: | C7: TRUE | E7: Latest: | F7: =OFFSET(InputPriceData!B15,1,0,1,1) -> 2013-11-08 | S7: TRUE
A8: =MIN(A6-A11,COUNTA(B33:B9983)) -> 841 | B8: Logically Available for Calc / Plot
A10: Price Chart Windowing Controls | F10: Y-axis Range
A11: 0 | B11: Input Data Offset (Pan) | E11: Max High+ | F11: =CEILING(MAX(OFFSET($E$33,0,0,$A$12,1))+2*F14,0.1) -> 62
A12: 245 | B12: Data Points to Plot (Zoom) | E12: Min Low- | F12: =FLOOR(MIN(OFFSET($F$33,0,0,$A$12,1))-2*F14,0.1) -> 37.6
B13: First: | C13: =OFFSET(B32,A12,0,1,1) -> 2012-11-20 | E13: White space %: | F13: 0.05
B14: ="Last: "&OFFSET(InputPriceData!N15,1+A11,0,1,1) -> Last: 4:02pm | C14: =B33 -> 2013-11-08 | E14: Allowance: | F14: =FLOOR((CEILING(MAX(OFFSET($E$33,0,0,$A$12,1)),1)-FLOOR(MIN(OFFSET($F$33,0,0,$A$12,1)),1))*F13,0.01) -> 1.05
A15: Controls | C15: Intermediate Calculation Values
A16: 10 | B16: <=SuperSmoothBars | C16: a1 = | D16: =EXP(-1.414*3.14159/A16) -> 0.6413237842 | E16: c1 = | F16: =1-F17-F18 -> 0.2531351773
C17: b1 = | D17: =2*D16*COS(RADIANS(1.414*180/A16)) -> 1.158161019 | E17: c2 = | F17: =D17 -> 1.158161019
E18: c3 = | F18: =-(D16^2) -> -0.4112961962
A19: 48 | B19: <=HiPassBars | C19: Alpha1 = | D19: =(COS(RADIANS(0.707*360 / A19)) + SIN(RADIANS(0.707*360 / A19)) - 1) / COS(RADIANS(0.707*360 / A19)) -> 0.08851347952 | E19: 1-Alpha1 = | F19: =1-D19 -> 0.9114865205
C20: 2*(1-Alpha1) = | D20: =F19*2 -> 1.822973041 | E20: (1-Alpha1)^2 = | F20: =F19^2 -> 0.830807677
C21: (1-Alpha1/2)^2 = | D21: =(1-D19/2)^2 -> 0.9134451795
A22: 20 | B22: <=StochLen
A23: Help! I would like to plot data
A24: From | B24: 2011-10-12 | C24: =OFFSET(InputPriceData!$A$15,MATCH(B24,OFFSET(InputPriceData!B15,1,0,InputPriceData!$B$10,1),0),0,1,1)-C25 -> 245 | E24: 209
A25: To | B25: 2012-10-01 | C25: =OFFSET(InputPriceData!$A$15,MATCH(B25,OFFSET(InputPriceData!$B$15,1,0,InputPriceData!$B$10,1),0),0,1,1)-1 -> 278 | E25: =$A$12-$E$24+1 -> 37
D26: Date at Cursor
D28: =OFFSET($B$32,B28,0,1,1) -> Date | H28: @ Scroll Bar => | I28: =OFFSET(A32,$E$25,0,1,1)&"(RR)" -> 37(RR) | J28: =TEXT(OFFSET(D32,$E$25,0,1,1),"#,##0.00")&"(o)" -> 58.10(o) | K28: =TEXT(OFFSET(E32,$E$25,0,1,1),"#,##0.00")&"(h)" -> 58.71(h) | L28: =TEXT(OFFSET(F32,$E$25,0,1,1),"#,##0.00")&"(l)" -> 57.69(l) | M28: =TEXT(OFFSET(G32,$E$25,0,1,1),"#,##0.00")&"(c)" -> 58.49(c)
D29: =OFFSET($B$32,E25,0,1,1) -> 2013-09-19 | E29: Scroll Price =>
AB30: Buy2 | AC30: Sell2 | AK30: For Charting | AT30: For Charting
A31: Rel Row | D31: Price Sources | H31: $Cursor | I31: Indicator Cursor | K31: ="Super Smooth("&$A$16&")" -> Super Smooth(10) | L31: Display | M31: ="HiPass ("&$A$19&")" -> HiPass (48) | Q31: ="Stoch("&$A$22&")" -> Stoch(20) | R31: ="MyStoch ("&$A$22&")" -> MyStoch (20) | T31: HiClose | U31: LowClose | V31: ="Conv. Stch("&$A$22&")" -> Conv. Stch(20) | W31: Display | X31: Decision Levels | Z31: Price Chart | AB31: Indicator Chart | AD31: Long Signal | AE31: Long Entry | AF31: Long Active | AG31: Long Exit Sig | AH31: Exit Long | AI31: Long Entry | AJ31: Long Exit | AK31: Long Entry | AL31: Long Exit | AM31: Short Signal | AN31: Short Entry | AO31: Short Active | AP31: Short Exit Sig | AR31: Short Entry | AS31: Short Exit | AT31: Short Entry | AU31: Short Exit
B32: Date | C32: Volume | D32: Open | E32: High | F32: Low | G32: Close | H32: =$F$11 -> 62 | I32: 1.2 | J32: 0 | L32: SuperSM | N32: Roofing | O32: HiR | P32: LowR | W32: Conv stch | X32: 0.2 | Y32: 0.8 | Z32: Buy | AA32: Sell | AB32: Buy Signal | AC32: Sell Signal | AQ32: Exit Short
A33: 1 | B33: =OFFSET(InputPriceData!B$15,CalculationsAndCharts!$A33+$A$11,0,1,1) -> 2013-11-08 | C33: =OFFSET(InputPriceData!G$15,CalculationsAndCharts!$A33+$A$11,0,1,1) -> 1920765 | D33: =OFFSET(InputPriceData!C$15,CalculationsAndCharts!$A33+$A$11,IF($C$7,7,0),1,1) -> 57.19 | E33: =OFFSET(InputPriceData!D$15,CalculationsAndCharts!$A33+$A$11,IF($C$7,7,0),1,1) -> 57.41 | F33: =OFFSET(InputPriceData!E$15,CalculationsAndCharts!$A33+$A$11,IF($C$7,7,0),1,1) -> 56.81 | G33: =OFFSET(InputPriceData!F$15,CalculationsAndCharts!$A33+$A$11,IF($C$7,7,0),1,1) -> 57.28 | H33: =IF($A33=$E$25,H$32,NA()) ->  | I33: =IF($A33=$E$25,I$32,NA()) ->  | K33: =$F$16*(G33+G34)/2+$F$17*K34+$F$18*K35 -> 57.59263193 | L33: =IF($S$5,K33,NA()) -> 57.59263193 | M33: =$D$21*(G33 - 2*G34 + G35) + $D$20*M34 - $F$20*M35 -> -1.037547857 | N33: =$F$16*(M33+M34)/2+$F$17*N34+$F$18*N35 -> -1.010534373 | O33: =MAX(OFFSET(N33,0,0,$A$22,1)) -> 0.8123319952 | P33: =MIN(OFFSET(N33,0,0,$A$22,1)) -> -1.13886032 | Q33: =IFERROR(IF($A33>$A$8,0,(N33-P33)/(O33-P33)),1) -> 0.06576796444 | R33: =IF($A33>$A$8,0,$F$16*(Q33+Q34)/2+$F$17*R34+$F$18*R35) -> 0.01020320654 | T33: =MAX(OFFSET(G33,0,0,$A$22,1)) -> 59.75 | U33: =MIN(OFFSET(G33,0,0,$A$22,1)) -> 56.75 | V33: =IFERROR(IF($A33>$A$8,0,(G33-U33)/(T33-U33)),1) -> 0.1766666667 | W33: =IF($S$18,V33,NA()) ->  | X33: =$X$32 -> 0.2 | Y33: =$Y$32 -> 0.8 | Z33: =IF($S$7,AI33,NA()) ->  | AA33: =IF($S$7,AJ33,NA()) ->  | AB33: =IF($S$7,IF(AD33,R33,NA()),NA()) ->  | AC33: =IF($S$7,IF(AG33,R33,NA()),NA()) ->  | AD33: =IF(AND(R34>$X$32,R33<$X$32),TRUE,FALSE) -> FALSE | AE33: =AND(AD34,NOT(AF34)) -> FALSE | AF33: =IF(AF34,IF(AH34,FALSE,AF34),IF(AE33,TRUE,AF34)) -> TRUE | AG33: =IF(AND(AF33,R34<$Y$32,R33>$Y$32),TRUE,FALSE) -> FALSE | AH33: =AND(AG34,AF34) -> FALSE | AI33: =IF(AE33,D33,NA()) ->  | AJ33: =IF(AH33,D33,NA()) ->  | AK33: =IF($S$7,AI33,NA()) ->  | AL33: =IF($S$7,AJ33,NA()) ->  | AM33: =IF(AND(R34<$Y$32,R33>$Y$32),TRUE,FALSE) -> FALSE | AN33: =AND(AM34,NOT(AO34)) -> FALSE | AO33: =IF(AO34,IF(AP34,FALSE,AO34),IF(AN33,TRUE,AO34)) -> FALSE | AP33: =IF(AND(AO34,R34>$X$32,R33<$X$32),TRUE,FALSE) -> FALSE | AQ33: =AND(AP34,AO34) -> FALSE | AR33: =IF(AN33,D33,NA()) ->  | AS33: =IF(AQ33,D33,NA()) ->  | AT33: =IF($S$5,AR33,NA()) ->  | AU33: =IF($S$5,AS33,NA()) -> 
A34: 2 | B34: =OFFSET(InputPriceData!B$15,CalculationsAndCharts!$A34+$A$11,0,1,1) -> 2013-11-07 | C34: =OFFSET(InputPriceData!G$15,CalculationsAndCharts!$A34+$A$11,0,1,1) -> 2247800 | D34: =OFFSET(InputPriceData!C$15,CalculationsAndCharts!$A34+$A$11,IF($C$7,7,0),1,1) -> 58.09 | E34: =OFFSET(InputPriceData!D$15,CalculationsAndCharts!$A34+$A$11,IF($C$7,7,0),1,1) -> 58.59 | F34: =OFFSET(InputPriceData!E$15,CalculationsAndCharts!$A34+$A$11,IF($C$7,7,0),1,1) -> 56.95 | G34: =OFFSET(InputPriceData!F$15,CalculationsAndCharts!$A34+$A$11,IF($C$7,7,0),1,1) -> 57.22 | K34: 57.75023678 | L34: =IF($S$5,K34,NA()) -> 57.75023678 | M34: -1.282197043 | N34: =$F$16*(M34+M35)/2+$F$17*N35+$F$18*N36 -> -0.9928926441 | O34: =MAX(OFFSET(N34,0,0,$A$22,1)) -> 0.8123319952 | P34: =MIN(OFFSET(N34,0,0,$A$22,1)) -> -1.13886032 | Q34: 0.07480947651 | R34: 0.01227820163 | T34: 59.75 | U34: 56.75 | V34: 0.1566666667 | W34: =IF($S$18,V34,NA()) ->  | X34: =$X$32 -> 0.2 | Y34: =$Y$32 -> 0.8 | AD34: FALSE | AE34: FALSE | AF34: =IF(AF35,IF(AH35,FALSE,AF35),IF(AE34,TRUE,AF35)) -> TRUE | AG34: FALSE | AH34: FALSE | AM34: FALSE | AN34: FALSE | AO34: =IF(AO35,IF(AP35,FALSE,AO35),IF(AN34,TRUE,AO35)) -> FALSE | AP34: FALSE | AQ34: FALSE | AT34: =IF($S$5,AR34,NA()) -> 
A35: 3 | B35: =OFFSET(InputPriceData!B$15,CalculationsAndCharts!$A35+$A$11,0,1,1) -> 2013-11-06 | C35: =OFFSET(InputPriceData!G$15,CalculationsAndCharts!$A35+$A$11,0,1,1) -> 1629700 | D35: =OFFSET(InputPriceData!C$15,CalculationsAndCharts!$A35+$A$11,IF($C$7,7,0),1,1) -> 58.11 | E35: =OFFSET(InputPriceData!D$15,CalculationsAndCharts!$A35+$A$11,IF($C$7,7,0),1,1) -> 58.59 | F35: =OFFSET(InputPriceData!E$15,CalculationsAndCharts!$A35+$A$11,IF($C$7,7,0),1,1) -> 57.89 | G35: =OFFSET(InputPriceData!F$15,CalculationsAndCharts!$A35+$A$11,IF($C$7,7,0),1,1) -> 58.01 | K35: 57.82555311 | L35: 57.82555311 | M35: -0.6300307501 | N35: -1.052768554 | O35: 0.8123319952 | P35: -1.13886032 | Q35: 0.0441226451 | R35: 0.05302620322 | T35: 59.75 | U35: 56.75 | V35: 0.42 | X35: 0.2 | Y35: 0.8 | Z35: 58.11 | AD35: FALSE | AE35: TRUE | AF35: TRUE | AG35: FALSE | AH35: FALSE | AI35: 58.11 | AK35: 58.11 | AM35: FALSE | AN35: FALSE | AO35: FALSE | AP35: FALSE | AQ35: TRUE | AS35: 58.11 | AU35: 58.11
A36: 4 | B36: =OFFSET(InputPriceData!B$15,CalculationsAndCharts!$A36+$A$11,0,1,1) -> 2013-11-05 | C36: =OFFSET(InputPriceData!G$15,CalculationsAndCharts!$A36+$A$11,0,1,1) -> 2864800 | D36: =OFFSET(InputPriceData!C$15,CalculationsAndCharts!$A36+$A$11,IF($C$7,7,0),1,1) -> 57.41 | E36: =OFFSET(InputPriceData!D$15,CalculationsAndCharts!$A36+$A$11,IF($C$7,7,0),1,1) -> 58.4 | F36: =OFFSET(InputPriceData!E$15,CalculationsAndCharts!$A36+$A$11,IF($C$7,7,0),1,1) -> 57.2 | G36: =OFFSET(InputPriceData!F$15,CalculationsAndCharts!$A36+$A$11,IF($C$7,7,0),1,1) -> 58.11 | K36: 57.87908615 | L36: 57.87908615 | M36: -0.5977426748 | N36: -1.13886032 | O36: 0.8123319952 | P36: -1.13886032 | Q36: 0 | R36: 0.1560618172 | T36: 59.75 | U36: 56.7 | V36: 0.462295082 | X36: 0.2 | Y36: 0.8 | AB36: 0.1560618172 | AD36: TRUE | AE36: FALSE | AF36: FALSE | AG36: FALSE | AH36: FALSE | AM36: FALSE | AN36: FALSE | AO36: TRUE | AP36: TRUE | AQ36: FALSE
A37: 5 | B37: =OFFSET(InputPriceData!B$15,CalculationsAndCharts!$A37+$A$11,0,1,1) -> 2013-11-04 | C37: =OFFSET(InputPriceData!G$15,CalculationsAndCharts!$A37+$A$11,0,1,1) -> 2516900 | D37: =OFFSET(InputPriceData!C$15,CalculationsAndCharts!$A37+$A$11,IF($C$7,7,0),1,1) -> 57.99 | E37: =OFFSET(InputPriceData!D$15,CalculationsAndCharts!$A37+$A$11,IF($C$7,7,0),1,1) -> 58.23 | F37: =OFFSET(InputPriceData!E$15,CalculationsAndCharts!$A37+$A$11,IF($C$7,7,0),1,1) -> 57.47 | G37: =OFFSET(InputPriceData!F$15,CalculationsAndCharts!$A37+$A$11,IF($C$7,7,0),1,1) -> 57.53 | K37: 58.12058776 | L37: 58.12058776 | M37: -1.300879594 | N37: -1.025079736 | O37: 0.8123319952 | P37: -1.025079736 | Q37: 0 | R37: 0.3241046428 | T37: 59.75 | U37: 56.35 | V37: 0.3470588235 | X37: 0.2 | Y37: 0.8 | AD37: FALSE | AE37: FALSE | AF37: FALSE | AG37: FALSE | AH37: FALSE | AM37: FALSE | AN37: FALSE | AO37: TRUE | AP37: FALSE | AQ37: FALSE
A38: 6 | B38: =OFFSET(InputPriceData!B$15,CalculationsAndCharts!$A38+$A$11,0,1,1) -> 2013-11-01 | C38: =OFFSET(InputPriceData!G$15,CalculationsAndCharts!$A38+$A$11,0,1,1) -> 2128200 | D38: =OFFSET(InputPriceData!C$15,CalculationsAndCharts!$A38+$A$11,IF($C$7,7,0),1,1) -> 57.83 | E38: =OFFSET(InputPriceData!D$15,CalculationsAndCharts!$A38+$A$11,IF($C$7,7,0),1,1) -> 58.14 | F38: =OFFSET(InputPriceData!E$15,CalculationsAndCharts!$A38+$A$11,IF($C$7,7,0),1,1) -> 57.5 | G38: =OFFSET(InputPriceData!F$15,CalculationsAndCharts!$A38+$A$11,IF($C$7,7,0),1,1) -> 57.77 | K38: 58.52276088 | L38: 58.52276088 | M38: -1.233378958 | N38: -0.7018083737 | O38: 0.8123319952 | P38: -0.7825255348 | Q38: 0.05061089125 | R38: 0.5332010074 | T38: 59.75 | U38: 56.35 | V38: 0.4176470588 | X38: 0.2 | Y38: 0.8 | AD38: FALSE | AE38: FALSE | AF38: FALSE | AG38: FALSE | AH38: FALSE | AM38: FALSE | AN38: FALSE | AO38: TRUE | AP38: FALSE | AQ38: FALSE
A39: 7 | B39: =OFFSET(InputPriceData!B$15,CalculationsAndCharts!$A39+$A$11,0,1,1) -> 2013-10-31 | C39: =OFFSET(InputPriceData!G$15,CalculationsAndCharts!$A39+$A$11,0,1,1) -> 2837700 | D39: =OFFSET(InputPriceData!C$15,CalculationsAndCharts!$A39+$A$11,IF($C$7,7,0),1,1) -> 58.5 | E39: =OFFSET(InputPriceData!D$15,CalculationsAndCharts!$A39+$A$11,IF($C$7,7,0),1,1) -> 58.79 | F39: =OFFSET(InputPriceData!E$15,CalculationsAndCharts!$A39+$A$11,IF($C$7,7,0),1,1) -> 57.7 | G39: =OFFSET(InputPriceData!F$15,CalculationsAndCharts!$A39+$A$11,IF($C$7,7,0),1,1) -> 57.78 | K39: 58.96343271 | L39: 58.96343271 | M39: -1.393378299 | N39: -0.2637572623 | O39: 0.8123319952 | P39: -0.7825255348 | Q39: 0.3252756203 | R39: 0.7289969626 | T39: 59.75 | U39: 56.35 | V39: 0.4205882353 | X39: 0.2 | Y39: 0.8 | AD39: FALSE | AE39: FALSE | AF39: FALSE | AG39: FALSE | AH39: FALSE | AM39: FALSE | AN39: FALSE | AO39: TRUE | AP39: FALSE | AQ39: FALSE
A40: 8 | B40: =OFFSET(InputPriceData!B$15,CalculationsAndCharts!$A40+$A$11,0,1,1) -> 2013-10-30 | C40: =OFFSET(InputPriceData!G$15,CalculationsAndCharts!$A40+$A$11,0,1,1) -> 1879600 | D40: =OFFSET(InputPriceData!C$15,CalculationsAndCharts!$A40+$A$11,IF($C$7,7,0),1,1) -> 59.48 | E40: =OFFSET(InputPriceData!D$15,CalculationsAndCharts!$A40+$A$11,IF($C$7,7,0),1,1) -> 59.52 | F40: =OFFSET(InputPriceData!E$15,CalculationsAndCharts!$A40+$A$11,IF($C$7,7,0),1,1) -> 58.13 | G40: =OFFSET(InputPriceData!F$15,CalculationsAndCharts!$A40+$A$11,IF($C$7,7,0),1,1) -> 58.57 | K40: 59.3034254 | L40: 59.3034254 | M40: -0.7152375847 | N40: 0.1552960195 | O40: 0.8123319952 | P40: =MIN(OFFSET(N40,0,0,$A$22,1)) -> -0.7825255348 | Q40: 0.5880284205 | R40: 0.8720477121 | T40: 59.75 | U40: 56.35 | V40: 0.6529411765 | X40: 0.2 | Y40: 0.8 | AD40: FALSE | AE40: FALSE | AF40: FALSE | AG40: FALSE | AH40: FALSE | AM40: FALSE | AN40: FALSE | AO40: TRUE | AP40: FALSE | AQ40: FALSE
A41: 9 | B41: =OFFSET(InputPriceData!B$15,CalculationsAndCharts!$A41+$A$11,0,1,1) -> 2013-10-29 | C41: =OFFSET(InputPriceData!G$15,CalculationsAndCharts!$A41+$A$11,0,1,1) -> 1755800 | D41: =OFFSET(InputPriceData!C$15,CalculationsAndCharts!$A41+$A$11,IF($C$7,7,0),1,1) -> 59.46 | E41: =OFFSET(InputPriceData!D$15,CalculationsAndCharts!$A41+$A$11,IF($C$7,7,0),1,1) -> 59.71 | F41: =OFFSET(InputPriceData!E$15,CalculationsAndCharts!$A41+$A$11,IF($C$7,7,0),1,1) -> 59.17 | G41: =OFFSET(InputPriceData!F$15,CalculationsAndCharts!$A41+$A$11,IF($C$7,7,0),1,1) -> 59.34 | K41: 59.43556503 | L41: 59.43556503 | M41: 0.08576059467 | N41: 0.4296967306 | O41: 0.8123319952 | P41: -0.7825255348 | Q41: 0.7600818522 | R41: 0.9641941697 | T41: 59.75 | U41: 56.35 | V41: 0.8794117647 | X41: 0.2 | Y41: 0.8 | AD41: FALSE | AE41: FALSE | AF41: FALSE | AG41: FALSE | AH41: FALSE | AM41: FALSE | AN41: FALSE | AO41: TRUE | AP41: FALSE | AQ41: FALSE
A42: 10 | B42: =OFFSET(InputPriceData!B$15,CalculationsAndCharts!$A42+$A$11,0,1,1) -> 2013-10-28 | C42: =OFFSET(InputPriceData!G$15,CalculationsAndCharts!$A42+$A$11,0,1,1) -> 1678900 | D42: =OFFSET(InputPriceData!C$15,CalculationsAndCharts!$A42+$A$11,IF($C$7,7,0),1,1) -> 59.4 | E42: =OFFSET(InputPriceData!D$15,CalculationsAndCharts!$A42+$A$11,IF($C$7,7,0),1,1) -> 59.57 | F42: =OFFSET(InputPriceData!E$15,CalculationsAndCharts!$A42+$A$11,IF($C$7,7,0),1,1) -> 58.97 | G42: =OFFSET(InputPriceData!F$15,CalculationsAndCharts!$A42+$A$11,IF($C$7,7,0),1,1) -> 59.17 | K42: 59.46107393 | L42: 59.46107393 | M42: 0.01557324079 | N42: 0.6386895905 | O42: 0.8123319952 | P42: -1.031864339 | Q42: 0.9058438619 | R42: 1.0096652 | T42: 59.75 | U42: 56.35 | V42: 0.8294117647 | X42: 0.2 | Y42: 0.8 | AD42: FALSE | AE42: FALSE | AF42: FALSE | AG42: FALSE | AH42: FALSE | AM42: FALSE | AN42: FALSE | AO42: TRUE | AP42: FALSE | AQ42: FALSE
A43: 11 | B43: =OFFSET(InputPriceData!B$15,CalculationsAndCharts!$A43+$A$11,0,1,1) -> 2013-10-25 | C43: =OFFSET(InputPriceData!G$15,CalculationsAndCharts!$A43+$A$11,0,1,1) -> 1959800 | D43: =OFFSET(InputPriceData!C$15,CalculationsAndCharts!$A43+$A$11,IF($C$7,7,0),1,1) -> 59.74 | E43: =OFFSET(InputPriceData!D$15,CalculationsAndCharts!$A43+$A$11,IF($C$7,7,0),1,1) -> 59.87 | F43: =OFFSET(InputPriceData!E$15,CalculationsAndCharts!$A43+$A$11,IF($C$7,7,0),1,1) -> 59.27 | G43: =OFFSET(InputPriceData!F$15,CalculationsAndCharts!$A43+$A$11,IF($C$7,7,0),1,1) -> 59.5 | K43: 59.39626503 | L43: 59.39626503 | M43: 0.480678747 | N43: 0.7849190886 | O43: 0.8123319952 | P43: -1.031864339 | Q43: 0.9851355812 | R43: 1.01146792 | T43: 59.75 | U43: 56.35 | V43: 0.9264705882 | X43: 0.2 | Y43: 0.8 | AD43: FALSE | AE43: FALSE | AF43: FALSE | AG43: FALSE | AH43: FALSE | AM43: FALSE | AN43: FALSE | AO43: TRUE | AP43: FALSE | AQ43: FALSE
A44: 12 | B44: =OFFSET(InputPriceData!B$15,CalculationsAndCharts!$A44+$A$11,0,1,1) -> 2013-10-24 | C44: =OFFSET(InputPriceData!G$15,CalculationsAndCharts!$A44+$A$11,0,1,1) -> 1930800 | D44: =OFFSET(InputPriceData!C$15,CalculationsAndCharts!$A44+$A$11,IF($C$7,7,0),1,1) -> 59.13 | E44: =OFFSET(InputPriceData!D$15,CalculationsAndCharts!$A44+$A$11,IF($C$7,7,0),1,1) -> 59.84 | F44: =OFFSET(InputPriceData!E$15,CalculationsAndCharts!$A44+$A$11,IF($C$7,7,0),1,1) -> 58.94 | G44: =OFFSET(InputPriceData!F$15,CalculationsAndCharts!$A44+$A$11,IF($C$7,7,0),1,1) -> 59.75 | K44: 59.20098668 | L44: 59.20098668 | M44: 0.9480118731 | N44: 0.8100792604 | O44: 0.8123319952 | P44: -1.031864339 | Q44: 0.9987784734 | R44: 0.9752441873 | T44: 59.75 | U44: 56.35 | V44: 1 | X44: 0.2 | Y44: 0.8 | AA44: 59.13 | AD44: FALSE | AE44: FALSE | AF44: TRUE | AG44: FALSE | AH44: TRUE | AJ44: 59.13 | AL44: 59.13 | AM44: FALSE | AN44: TRUE | AO44: TRUE | AP44: FALSE | AQ44: FALSE | AR44: 59.13 | AT44: 59.13
A45: 13 | B45: =OFFSET(InputPriceData!B$15,CalculationsAndCharts!$A45+$A$11,0,1,1) -> 2013-10-23 | C45: =OFFSET(InputPriceData!G$15,CalculationsAndCharts!$A45+$A$11,0,1,1) -> 1711500 | D45: =OFFSET(InputPriceData!C$15,CalculationsAndCharts!$A45+$A$11,IF($C$7,7,0),1,1) -> 59.38 | E45: =OFFSET(InputPriceData!D$15,CalculationsAndCharts!$A45+$A$11,IF($C$7,7,0),1,1) -> 59.43 | F45: =OFFSET(InputPriceData!E$15,CalculationsAndCharts!$A45+$A$11,IF($C$7,7,0),1,1) -> 58.5 | G45: =OFFSET(InputPriceData!F$15,CalculationsAndCharts!$A45+$A$11,IF($C$7,7,0),1,1) -> 58.98 | K45: 58.98716108 | L45: 58.98716108 | M45: 0.3801207737 | N45: 0.8123319952 | O45: 0.8123319952 | P45: -1.031864339 | Q45: 1 | R45: 0.8974580926 | T45: 59.37 | U45: 56.35 | V45: 0.8708609272 | X45: 0.2 | Y45: 0.8 | AC45: 0.8974580926 | AD45: FALSE | AE45: FALSE | AF45: TRUE | AG45: TRUE | AH45: FALSE | AM45: TRUE | AN45: FALSE | AO45: FALSE | AP45: FALSE | AQ45: FALSE
A46: 14 | B46: =OFFSET(InputPriceData!B$15,CalculationsAndCharts!$A46+$A$11,0,1,1) -> 2013-10-22 | C46: =OFFSET(InputPriceData!G$15,CalculationsAndCharts!$A46+$A$11,0,1,1) -> 1676100 | D46: =OFFSET(InputPriceData!C$15,CalculationsAndCharts!$A46+$A$11,IF($C$7,7,0),1,1) -> 58.98 | E46: =OFFSET(InputPriceData!D$15,CalculationsAndCharts!$A46+$A$11,IF($C$7,7,0),1,1) -> 59.59 | F46: =OFFSET(InputPriceData!E$15,CalculationsAndCharts!$A46+$A$11,IF($C$7,7,0),1,1) -> 58.96 | G46: =OFFSET(InputPriceData!F$15,CalculationsAndCharts!$A46+$A$11,IF($C$7,7,0),1,1) -> 59.37 | K46: 58.69982245 | L46: 58.69982245 | M46: 0.9683762923 | N46: 0.7265579896 | O46: 0.7265579896 | P46: -1.031864339 | Q46: 1 | R46: 0.7710680678 | T46: 59.37 | U46: 56.35 | V46: 1 | X46: 0.2 | Y46: 0.8 | AD46: FALSE | AE46: FALSE | AF46: TRUE | AG46: FALSE | AH46: FALSE | AM46: FALSE | AN46: FALSE | AO46: FALSE | AP46: FALSE | AQ46: FALSE
A47: 15 | B47: =OFFSET(InputPriceData!B$15,CalculationsAndCharts!$A47+$A$11,0,1,1) -> 2013-10-21 | C47: =OFFSET(InputPriceData!G$15,CalculationsAndCharts!$A47+$A$11,0,1,1) -> 968900 | D47: =OFFSET(InputPriceData!C$15,CalculationsAndCharts!$A47+$A$11,IF($C$7,7,0),1,1) -> 58.88 | E47: =OFFSET(InputPriceData!D$15,CalculationsAndCharts!$A47+$A$11,IF($C$7,7,0),1,1) -> 59.04 | F47: =OFFSET(InputPriceData!E$15,CalculationsAndCharts!$A47+$A$11,IF($C$7,7,0),1,1) -> 58.37 | G47: =OFFSET(InputPriceData!F$15,CalculationsAndCharts!$A47+$A$11,IF($C$7,7,0),1,1) -> 58.92 | K47: 58.2936566 | L47: 58.2936566 | M47: 0.7437451134 | N47: 0.485818177 | O47: 0.485818177 | P47: -1.031864339 | Q47: 1 | R47: 0.6046690097 | T47: 58.92 | U47: 56.35 | V47: 1 | X47: 0.2 | Y47: 0.8 | AD47: FALSE | AE47: FALSE | AF47: TRUE | AG47: FALSE | AH47: FALSE | AM47: FALSE | AN47: FALSE | AO47: FALSE | AP47: FALSE | AQ47: FALSE
A48: 16 | B48: =OFFSET(InputPriceData!B$15,CalculationsAndCharts!$A48+$A$11,0,1,1) -> 2013-10-18 | C48: =OFFSET(InputPriceData!G$15,CalculationsAndCharts!$A48+$A$11,0,1,1) -> 2678100 | D48: =OFFSET(InputPriceData!C$15,CalculationsAndCharts!$A48+$A$11,IF($C$7,7,0),1,1) -> 59.13 | E48: =OFFSET(InputPriceData!D$15,CalculationsAndCharts!$A48+$A$11,IF($C$7,7,0),1,1) -> 59.13 | F48: =OFFSET(InputPriceData!E$15,CalculationsAndCharts!$A48+$A$11,IF($C$7,7,0),1,1) -> 57.98 | G48: =OFFSET(InputPriceData!F$15,CalculationsAndCharts!$A48+$A$11,IF($C$7,7,0),1,1) -> 58.89 | K48: 57.83009556 | L48: 57.83009556 | M48: 0.9281305355 | N48: 0.1283667672 | O48: 0.3587447613 | P48: -1.031864339 | Q48: 0.8343330314 | R48: 0.4434059629 | T48: 58.89 | U48: 56.35 | V48: 1 | X48: 0.2 | Y48: 0.8 | AD48: FALSE | AE48: FALSE | AF48: TRUE | AG48: FALSE | AH48: FALSE | AM48: FALSE | AN48: FALSE | AO48: FALSE | AP48: FALSE | AQ48: FALSE
A49: 17 | B49: =OFFSET(InputPriceData!B$15,CalculationsAndCharts!$A49+$A$11,0,1,1) -> 2013-10-17 | C49: =OFFSET(InputPriceData!G$15,CalculationsAndCharts!$A49+$A$11,0,1,1) -> 2379500 | D49: =OFFSET(InputPriceData!C$15,CalculationsAndCharts!$A49+$A$11,IF($C$7,7,0),1,1) -> 57.24 | E49: =OFFSET(InputPriceData!D$15,CalculationsAndCharts!$A49+$A$11,IF($C$7,7,0),1,1) -> 58.93 | F49: =OFFSET(InputPriceData!E$15,CalculationsAndCharts!$A49+$A$11,IF($C$7,7,0),1,1) -> 57.1 | G49: =OFFSET(InputPriceData!F$15,CalculationsAndCharts!$A49+$A$11,IF($C$7,7,0),1,1) -> 58.82 | K49: 57.36457968 | L49: 57.36457968 | M49: 1.097334617 | N49: -0.3052387134 | O49: 0.4028418074 | P49: -1.031864339 | Q49: 0.5064630326 | R49: 0.3429003282 | T49: 58.82 | U49: 56.35 | V49: 1 | X49: 0.2 | Y49: 0.8 | AD49: FALSE | AE49: FALSE | AF49: TRUE | AG49: FALSE | AH49: FALSE | AM49: FALSE | AN49: FALSE | AO49: FALSE | AP49: FALSE | AQ49: FALSE
A50: 18 | B50: =OFFSET(InputPriceData!B$15,CalculationsAndCharts!$A50+$A$11,0,1,1) -> 2013-10-16 | C50: =OFFSET(InputPriceData!G$15,CalculationsAndCharts!$A50+$A$11,0,1,1) -> 2308400 | D50: =OFFSET(InputPriceData!C$15,CalculationsAndCharts!$A50+$A$11,IF($C$7,7,0),1,1) -> 57.19 | E50: =OFFSET(InputPriceData!D$15,CalculationsAndCharts!$A50+$A$11,IF($C$7,7,0),1,1) -> 57.66 | F50: =OFFSET(InputPriceData!E$15,CalculationsAndCharts!$A50+$A$11,IF($C$7,7,0),1,1) -> 57.04 | G50: =OFFSET(InputPriceData!F$15,CalculationsAndCharts!$A50+$A$11,IF($C$7,7,0),1,1) -> 57.37 | K50: 57.15004311 | L50: 57.15004311 | M50: -0.2266149732 | N50: -0.5483252904 | O50: 0.4028418074 | P50: -1.031864339 | Q50: 0.3370300253 | R50: 0.300097974 | T50: 58.77 | U50: 56.35 | V50: 0.4214876033 | X50: 0.2 | Y50: 0.8 | AD50: FALSE | AE50: FALSE | AF50: TRUE | AG50: FALSE | AH50: FALSE | AM50: FALSE | AN50: FALSE | AO50: FALSE | AP50: FALSE | AQ50: FALSE
A51: 19 | B51: =OFFSET(InputPriceData!B$15,CalculationsAndCharts!$A51+$A$11,0,1,1) -> 2013-10-15 | C51: =OFFSET(InputPriceData!G$15,CalculationsAndCharts!$A51+$A$11,0,1,1) -> 2110800 | D51: =OFFSET(InputPriceData!C$15,CalculationsAndCharts!$A51+$A$11,IF($C$7,7,0),1,1) -> 57.03 | E51: =OFFSET(InputPriceData!D$15,CalculationsAndCharts!$A51+$A$11,IF($C$7,7,0),1,1) -> 57.23 | F51: =OFFSET(InputPriceData!E$15,CalculationsAndCharts!$A51+$A$11,IF($C$7,7,0),1,1) -> 56.44 | G51: =OFFSET(InputPriceData!F$15,CalculationsAndCharts!$A51+$A$11,IF($C$7,7,0),1,1) -> 56.75 | K51: 57.21001271 | L51: 57.21001271 | M51: -0.9054900739 | N51: -0.5339348626 | O51: 0.4028418074 | P51: -1.031864339 | Q51: 0.3470602519 | R51: 0.2709004619 | T51: 58.77 | U51: 56.35 | V51: 0.1652892562 | X51: 0.2 | Y51: 0.8 | AD51: FALSE | AE51: FALSE | AF51: TRUE | AG51: FALSE | AH51: FALSE | AM51: FALSE | AN51: FALSE | AO51: FALSE | AP51: FALSE | AQ51: FALSE
A52: 20 | B52: =OFFSET(InputPriceData!B$15,CalculationsAndCharts!$A52+$A$11,0,1,1) -> 2013-10-14 | C52: =OFFSET(InputPriceData!G$15,CalculationsAndCharts!$A52+$A$11,0,1,1) -> 3449400 | D52: =OFFSET(InputPriceData!C$15,CalculationsAndCharts!$A52+$A$11,IF($C$7,7,0),1,1) -> 57.52 | E52: =OFFSET(InputPriceData!D$15,CalculationsAndCharts!$A52+$A$11,IF($C$7,7,0),1,1) -> 57.8 | F52: =OFFSET(InputPriceData!E$15,CalculationsAndCharts!$A52+$A$11,IF($C$7,7,0),1,1) -> 56.76 | G52: =OFFSET(InputPriceData!F$15,CalculationsAndCharts!$A52+$A$11,IF($C$7,7,0),1,1) -> 57.05 | K52: 57.26349266 | L52: 57.26349266 | M52: -0.7025686827 | N52: -0.5187139146 | O52: 0.4028418074 | P52: -1.031864339 | Q52: 0.3576693568 | R52: 0.2436979449 | T52: 58.77 | U52: 56.35 | V52: 0.2892561983 | X52: 0.2 | Y52: 0.8 | AD52: FALSE | AE52: FALSE | AF52: TRUE | AG52: FALSE | AH52: FALSE | AM52: FALSE | AN52: FALSE | AO52: FALSE | AP52: FALSE | AQ52: FALSE
A53: 21 | B53: =OFFSET(InputPriceData!B$15,CalculationsAndCharts!$A53+$A$11,0,1,1) -> 2013-10-11 | C53: =OFFSET(InputPriceData!G$15,CalculationsAndCharts!$A53+$A$11,0,1,1) -> 2580800 | D53: =OFFSET(InputPriceData!C$15,CalculationsAndCharts!$A53+$A$11,IF($C$7,7,0),1,1) -> 57.4 | E53: =OFFSET(InputPriceData!D$15,CalculationsAndCharts!$A53+$A$11,IF($C$7,7,0),1,1) -> 57.95 | F53: =OFFSET(InputPriceData!E$15,CalculationsAndCharts!$A53+$A$11,IF($C$7,7,0),1,1) -> 57.15 | G53: =OFFSET(InputPriceData!F$15,CalculationsAndCharts!$A53+$A$11,IF($C$7,7,0),1,1) -> 57.83 | I53: =IF($A53=$E$25,I$32,NA()) ->  | K53: 57.16980634 | L53: 57.16980634 | M53: 0.07604647119 | N53: -0.6573060848 | O53: 0.4968070702 | P53: -1.031864339 | Q53: 0.245022084 | R53: 0.2444392301 | T53: 58.77 | U53: 56.35 | V53: 0.6115702479 | X53: 0.2 | Y53: 0.8 | AD53: FALSE | AE53: FALSE | AF53: TRUE | AG53: FALSE | AH53: FALSE | AM53: FALSE | AN53: FALSE | AO53: FALSE | AP53: FALSE | AQ53: FALSE
A54: 22 | B54: =OFFSET(InputPriceData!B$15,CalculationsAndCharts!$A54+$A$11,0,1,1) -> 2013-10-10 | C54: =OFFSET(InputPriceData!G$15,CalculationsAndCharts!$A54+$A$11,0,1,1) -> 2483900 | D54: =OFFSET(InputPriceData!C$15,CalculationsAndCharts!$A54+$A$11,IF($C$7,7,0),1,1) -> 57.1 | E54: =OFFSET(InputPriceData!D$15,CalculationsAndCharts!$A54+$A$11,IF($C$7,7,0),1,1) -> 57.63 | F54: =OFFSET(InputPriceData!E$15,CalculationsAndCharts!$A54+$A$11,IF($C$7,7,0),1,1) -> 57.04 | G54: =OFFSET(InputPriceData!F$15,CalculationsAndCharts!$A54+$A$11,IF($C$7,7,0),1,1) -> 57.54 | K54: 57.10831586 | L54: 57.10831586 | M54: -0.1639212014 | N54: -0.7825255348 | O54: 0.8598051013 | P54: -1.031864339 | Q54: 0.1318088664 | R54: 0.2812650502 | T54: 58.77 | U54: 56.35 | V54: 0.4917355372 | X54: 0.2 | Y54: 0.8 | AD54: FALSE | AE54: FALSE | AF54: TRUE | AG54: FALSE | AH54: FALSE | AM54: FALSE | AN54: FALSE | AO54: FALSE | AP54: FALSE | AQ54: FALSE
A55: 23 | B55: =OFFSET(InputPriceData!B$15,CalculationsAndCharts!$A55+$A$11,0,1,1) -> 2013-10-09 | C55: =OFFSET(InputPriceData!G$15,CalculationsAndCharts!$A55+$A$11,0,1,1) -> 4153900 | D55: =OFFSET(InputPriceData!C$15,CalculationsAndCharts!$A55+$A$11,IF($C$7,7,0),1,1) -> 56.35 | E55: =OFFSET(InputPriceData!D$15,CalculationsAndCharts!$A55+$A$11,IF($C$7,7,0),1,1) -> 56.78 | F55: =OFFSET(InputPriceData!E$15,CalculationsAndCharts!$A55+$A$11,IF($C$7,7,0),1,1) -> 55.96 | G55: =OFFSET(InputPriceData!F$15,CalculationsAndCharts!$A55+$A$11,IF($C$7,7,0),1,1) -> 56.7 | K55: 57.3137361 | L55: 57.3137361 | M55: -1.055918566 | N55: -0.6324069636 | O55: 1.21293891 | P55: -1.031864339 | Q55: 0.1779476112 | R55: 0.3136561263 | T55: 58.77 | U55: 56.35 | V55: 0.1446280992 | X55: 0.2 | Y55: 0.8 | AD55: FALSE | AE55: FALSE | AF55: TRUE | AG55: FALSE | AH55: FALSE | AM55: FALSE | AN55: FALSE | AO55: FALSE | AP55: FALSE | AQ55: FALSE
A56: 24 | B56: =OFFSET(InputPriceData!B$15,CalculationsAndCharts!$A56+$A$11,0,1,1) -> 2013-10-08 | C56: =OFFSET(InputPriceData!G$15,CalculationsAndCharts!$A56+$A$11,0,1,1) -> 2762100 | D56: =OFFSET(InputPriceData!C$15,CalculationsAndCharts!$A56+$A$11,IF($C$7,7,0),1,1) -> 57 | E56: =OFFSET(InputPriceData!D$15,CalculationsAndCharts!$A56+$A$11,IF($C$7,7,0),1,1) -> 57.28 | F56: =OFFSET(InputPriceData!E$15,CalculationsAndCharts!$A56+$A$11,IF($C$7,7,0),1,1) -> 56.27 | G56: =OFFSET(InputPriceData!F$15,CalculationsAndCharts!$A56+$A$11,IF($C$7,7,0),1,1) -> 56.35 | K56: 57.69394583 | L56: 57.69394583 | M56: -1.580873379 | N56: -0.2535781693 | O56: 1.443660513 | P56: -1.031864339 | Q56: 0.3143923881 | R56: 0.2946887917 | T56: 58.77 | U56: 56.35 | V56: 0 | X56: 0.2 | Y56: 0.8 | AD56: FALSE | AE56: FALSE | AF56: TRUE | AG56: FALSE | AH56: FALSE | AM56: FALSE | AN56: FALSE | AO56: FALSE | AP56: FALSE | AQ56: FALSE
A57: 25 | B57: =OFFSET(InputPriceData!B$15,CalculationsAndCharts!$A57+$A$11,0,1,1) -> 2013-10-07 | C57: =OFFSET(InputPriceData!G$15,CalculationsAndCharts!$A57+$A$11,0,1,1) -> 2790100 | D57: =OFFSET(InputPriceData!C$15,CalculationsAndCharts!$A57+$A$11,IF($C$7,7,0),1,1) -> 58.36 | E57: =OFFSET(InputPriceData!D$15,CalculationsAndCharts!$A57+$A$11,IF($C$7,7,0),1,1) -> 58.36 | F57: =OFFSET(InputPriceData!E$15,CalculationsAndCharts!$A57+$A$11,IF($C$7,7,0),1,1) -> 57.13 | G57: =OFFSET(InputPriceData!F$15,CalculationsAndCharts!$A57+$A$11,IF($C$7,7,0),1,1) -> 57.14 | K57: 57.89892809 | L57: 57.89892809 | M57: -0.9444345576 | N57: 0.01213289715 | O57: 1.50871562 | P57: -1.031864339 | Q57: 0.4109287065 | R57: 0.2187115571 | T57: 58.77 | U57: 56.46 | V57: 0.2943722944 | X57: 0.2 | Y57: 0.8 | AD57: FALSE | AE57: FALSE | AF57: TRUE | AG57: FALSE | AH57: FALSE | AM57: FALSE | AN57: FALSE | AO57: FALSE | AP57: FALSE | AQ57: FALSE
A58: 26 | B58: =OFFSET(InputPriceData!B$15,CalculationsAndCharts!$A58+$A$11,0,1,1) -> 2013-10-04 | C58: =OFFSET(InputPriceData!G$15,CalculationsAndCharts!$A58+$A$11,0,1,1) -> 2513700 | D58: =OFFSET(InputPriceData!C$15,CalculationsAndCharts!$A58+$A$11,IF($C$7,7,0),1,1) -> 57.66 | E58: =OFFSET(InputPriceData!D$15,CalculationsAndCharts!$A58+$A$11,IF($C$7,7,0),1,1) -> 58.82 | F58: =OFFSET(InputPriceData!E$15,CalculationsAndCharts!$A58+$A$11,IF($C$7,7,0),1,1) -> 57.54 | G58: =OFFSET(InputPriceData!F$15,CalculationsAndCharts!$A58+$A$11,IF($C$7,7,0),1,1) -> 58.77 | K58: 57.68711593 | L58: 57.68711593 | M58: 0.7540717423 | N58: -0.1264104039 | O58: 1.50871562 | P58: -1.031864339 | Q58: 0.3563965511 | R58: 0.1225796652 | T58: 58.77 | U58: 56.46 | V58: 1 | X58: 0.2 | Y58: 0.8 | AD58: FALSE | AE58: FALSE | AF58: TRUE | AG58: FALSE | AH58: FALSE | AM58: FALSE | AN58: FALSE | AO58: FALSE | AP58: FALSE | AQ58: FALSE
A59: 27 | B59: =OFFSET(InputPriceData!B$15,CalculationsAndCharts!$A59+$A$11,0,1,1) -> 2013-10-03 | C59: =OFFSET(InputPriceData!G$15,CalculationsAndCharts!$A59+$A$11,0,1,1) -> 2609500 | D59: =OFFSET(InputPriceData!C$15,CalculationsAndCharts!$A59+$A$11,IF($C$7,7,0),1,1) -> 57.9 | E59: =OFFSET(InputPriceData!D$15,CalculationsAndCharts!$A59+$A$11,IF($C$7,7,0),1,1) -> 58.02 | F59: =OFFSET(InputPriceData!E$15,CalculationsAndCharts!$A59+$A$11,IF($C$7,7,0),1,1) -> 57.45 | G59: =OFFSET(InputPriceData!F$15,CalculationsAndCharts!$A59+$A$11,IF($C$7,7,0),1,1) -> 57.75 | K59: 57.33700018 | L59: 57.33700018 | M59: -0.122221681 | N59: -0.4440358639 | O59: 1.50871562 | P59: -1.031864339 | Q59: 0.2313757035 | R59: 0.04953593192 | T59: 58.49 | U59: 56.46 | V59: 0.6354679803 | X59: 0.2 | Y59: 0.8 | AD59: FALSE | AE59: FALSE | AF59: TRUE | AG59: FALSE | AH59: FALSE | AM59: FALSE | AN59: FALSE | AO59: FALSE | AP59: FALSE | AQ59: FALSE
A60: 28 | B60: =OFFSET(InputPriceData!B$15,CalculationsAndCharts!$A60+$A$11,0,1,1) -> 2013-10-02 | C60: =OFFSET(InputPriceData!G$15,CalculationsAndCharts!$A60+$A$11,0,1,1) -> 2206400 | D60: =OFFSET(InputPriceData!C$15,CalculationsAndCharts!$A60+$A$11,IF($C$7,7,0),1,1) -> 57.44 | E60: =OFFSET(InputPriceData!D$15,CalculationsAndCharts!$A60+$A$11,IF($C$7,7,0),1,1) -> 57.94 | F60: =OFFSET(InputPriceData!E$15,CalculationsAndCharts!$A60+$A$11,IF($C$7,7,0),1,1) -> 57.25 | G60: =OFFSET(InputPriceData!F$15,CalculationsAndCharts!$A60+$A$11,IF($C$7,7,0),1,1) -> 57.9 | K60: 57.05381734 | L60: 57.05381734 | M60: 0.1105578232 | N60: -0.7485673073 | O60: 1.50871562 | P60: -1.031864339 | Q60: 0.1115088037 | R60: 0.02232901062 | T60: 58.49 | U60: 56.46 | V60: 0.7093596059 | X60: 0.2 | Y60: 0.8 | AD60: FALSE | AE60: FALSE | AF60: TRUE | AG60: FALSE | AH60: FALSE | AM60: FALSE | AN60: FALSE | AO60: FALSE | AP60: FALSE | AQ60: FALSE
A61: 29 | B61: =OFFSET(InputPriceData!B$15,CalculationsAndCharts!$A61+$A$11,0,1,1) -> 2013-10-01 | C61: =OFFSET(InputPriceData!G$15,CalculationsAndCharts!$A61+$A$11,0,1,1) -> 3575200 | D61: =OFFSET(InputPriceData!C$15,CalculationsAndCharts!$A61+$A$11,IF($C$7,7,0),1,1) -> 56.59 | E61: =OFFSET(InputPriceData!D$15,CalculationsAndCharts!$A61+$A$11,IF($C$7,7,0),1,1) -> 57.98 | F61: =OFFSET(InputPriceData!E$15,CalculationsAndCharts!$A61+$A$11,IF($C$7,7,0),1,1) -> 56.32 | G61: =OFFSET(InputPriceData!F$15,CalculationsAndCharts!$A61+$A$11,IF($C$7,7,0),1,1) -> 57.78 | K61: 56.83993405 | L61: 56.83993405 | M61: 0.09284388647 | N61: -1.031864339 | O61: 1.50871562 | P61: -1.031864339 | Q61: 0 | R61: 0.04795260256 | T61: 58.49 | U61: 56.39 | V61: 0.6619047619 | X61: 0.2 | Y61: 0.8 | Z61: 56.59 | AD61: FALSE | AE61: TRUE | AF61: TRUE | AG61: FALSE | AH61: FALSE | AI61: 56.59 | AK61: 56.59 | AM61: FALSE | AN61: FALSE | AO61: FALSE | AP61: FALSE | AQ61: TRUE | AS61: 56.59 | AU61: 56.59
A62: 30 | B62: =OFFSET(InputPriceData!B$15,CalculationsAndCharts!$A62+$A$11,0,1,1) -> 2013-09-30 | C62: =OFFSET(InputPriceData!G$15,CalculationsAndCharts!$A62+$A$11,0,1,1) -> 1860400 | D62: =OFFSET(InputPriceData!C$15,CalculationsAndCharts!$A62+$A$11,IF($C$7,7,0),1,1) -> 56.23 | E62: =OFFSET(InputPriceData!D$15,CalculationsAndCharts!$A62+$A$11,IF($C$7,7,0),1,1) -> 56.76 | F62: =OFFSET(InputPriceData!E$15,CalculationsAndCharts!$A62+$A$11,IF($C$7,7,0),1,1) -> 55.71 | G62: =OFFSET(InputPriceData!F$15,CalculationsAndCharts!$A62+$A$11,IF($C$7,7,0),1,1) -> 56.46 | K62: 56.93540924 | L62: 56.93540924 | M62: -1.248712747 | N62: -1.022994346 | O62: 1.50871562 | P62: -1.022994346 | Q62: 0 | R62: 0.1150538839 | T62: 58.49 | U62: 53.88 | V62: 0.5596529284 | X62: 0.2 | Y62: 0.8 | AB62: 0.1150538839 | AD62: TRUE | AE62: FALSE | AF62: FALSE | AG62: FALSE | AH62: FALSE | AM62: FALSE | AN62: FALSE | AO62: TRUE | AP62: TRUE | AQ62: FALSE
A63: 31 | B63: =OFFSET(InputPriceData!B$15,CalculationsAndCharts!$A63+$A$11,0,1,1) -> 2013-09-27 | C63: =OFFSET(InputPriceData!G$15,CalculationsAndCharts!$A63+$A$11,0,1,1) -> 2568700 | D63: =OFFSET(InputPriceData!C$15,CalculationsAndCharts!$A63+$A$11,IF($C$7,7,0),1,1) -> 56.7 | E63: =OFFSET(InputPriceData!D$15,CalculationsAndCharts!$A63+$A$11,IF($C$7,7,0),1,1) -> 57.08 | F63: =OFFSET(InputPriceData!E$15,CalculationsAndCharts!$A63+$A$11,IF($C$7,7,0),1,1) -> 56.51 | G63: =OFFSET(InputPriceData!F$15,CalculationsAndCharts!$A63+$A$11,IF($C$7,7,0),1,1) -> 56.59 | K63: 57.28114937 | L63: 57.28114937 | M63: -1.257472793 | N63: -0.7275130976 | O63: 1.50871562 | P63: -0.7275130976 | Q63: 0 | R63: 0.2073890341 | T63: 58.49 | U63: 53.88 | V63: 0.5878524946 | X63: 0.2 | Y63: 0.8 | AD63: FALSE | AE63: FALSE | AF63: FALSE | AG63: FALSE | AH63: FALSE | AM63: FALSE | AN63: FALSE | AO63: TRUE | AP63: FALSE | AQ63: FALSE
A64: 32 | B64: =OFFSET(InputPriceData!B$15,CalculationsAndCharts!$A64+$A$11,0,1,1) -> 2013-09-26 | C64: =OFFSET(InputPriceData!G$15,CalculationsAndCharts!$A64+$A$11,0,1,1) -> 2741900 | D64: =OFFSET(InputPriceData!C$15,CalculationsAndCharts!$A64+$A$11,IF($C$7,7,0),1,1) -> 57.15 | E64: =OFFSET(InputPriceData!D$15,CalculationsAndCharts!$A64+$A$11,IF($C$7,7,0),1,1) -> 57.55 | F64: =OFFSET(InputPriceData!E$15,CalculationsAndCharts!$A64+$A$11,IF($C$7,7,0),1,1) -> 56.71 | G64: =OFFSET(InputPriceData!F$15,CalculationsAndCharts!$A64+$A$11,IF($C$7,7,0),1,1) -> 56.75 | K64: 57.65638291 | L64: 57.65638291 | M64: -1.223174661 | N64: -0.3325701178 | O64: 1.50871562 | P64: -0.4438276497 | Q64: 0.05698082784 | R64: 0.3042479175 | T64: 58.49 | U64: 53.88 | V64: 0.6225596529 | X64: 0.2 | Y64: 0.8 | AD64: FALSE | AE64: FALSE | AF64: FALSE | AG64: FALSE | AH64: FALSE | AM64: FALSE | AN64: FALSE | AO64: TRUE | AP64: FALSE | AQ64: FALSE
A65: 33 | B65: =OFFSET(InputPriceData!B$15,CalculationsAndCharts!$A65+$A$11,0,1,1) -> 2013-09-25 | C65: =OFFSET(InputPriceData!G$15,CalculationsAndCharts!$A65+$A$11,0,1,1) -> 2844400 | D65: =OFFSET(InputPriceData!C$15,CalculationsAndCharts!$A65+$A$11,IF($C$7,7,0),1,1) -> 58.09 | E65: =OFFSET(InputPriceData!D$15,CalculationsAndCharts!$A65+$A$11,IF($C$7,7,0),1,1) -> 58.11 | F65: =OFFSET(InputPriceData!E$15,CalculationsAndCharts!$A65+$A$11,IF($C$7,7,0),1,1) -> 56.96 | G65: =OFFSET(InputPriceData!F$15,CalculationsAndCharts!$A65+$A$11,IF($C$7,7,0),1,1) -> 57 | K65: 57.96162601 | L65: 57.96162601 | M65: -1.071405088 | N65: 0.06898625593 | O65: 1.50871562 | P65: -0.4438276497 | Q65: 0.2626389456 | R65: 0.3700276623 | T65: 58.49 | U65: 53.88 | V65: 0.6767895879 | X65: 0.2 | Y65: 0.8 | AD65: FALSE | AE65: FALSE | AF65: FALSE | AG65: FALSE | AH65: FALSE | AM65: FALSE | AN65: FALSE | AO65: TRUE | AP65: FALSE | AQ65: FALSE
A66: 34 | B66: =OFFSET(InputPriceData!B$15,CalculationsAndCharts!$A66+$A$11,0,1,1) -> 2013-09-24 | C66: =OFFSET(InputPriceData!G$15,CalculationsAndCharts!$A66+$A$11,0,1,1) -> 1923600 | D66: =OFFSET(InputPriceData!C$15,CalculationsAndCharts!$A66+$A$11,IF($C$7,7,0),1,1) -> 58.22 | E66: =OFFSET(InputPriceData!D$15,CalculationsAndCharts!$A66+$A$11,IF($C$7,7,0),1,1) -> 58.29 | F66: =OFFSET(InputPriceData!E$15,CalculationsAndCharts!$A66+$A$11,IF($C$7,7,0),1,1) -> 58 | G66: =OFFSET(InputPriceData!F$15,CalculationsAndCharts!$A66+$A$11,IF($C$7,7,0),1,1) -> 58.11 | K66: 58.03500338 | L66: 58.03500338 | M66: 0.06691671961 | N66: 0.2967396386 | O66: 1.50871562 | P66: -0.4438276497 | Q66: 0.3792834196 | R66: 0.4005804148 | T66: 58.49 | U66: 53.88 | V66: 0.9175704989 | X66: 0.2 | Y66: 0.8 | AD66: FALSE | AE66: FALSE | AF66: FALSE | AG66: FALSE | AH66: FALSE | AM66: FALSE | AN66: FALSE | AO66: TRUE | AP66: FALSE | AQ66: FALSE
A67: 35 | B67: =OFFSET(InputPriceData!B$15,CalculationsAndCharts!$A67+$A$11,0,1,1) -> 2013-09-23 | C67: =OFFSET(InputPriceData!G$15,CalculationsAndCharts!$A67+$A$11,0,1,1) -> 2416700 | D67: =OFFSET(InputPriceData!C$15,CalculationsAndCharts!$A67+$A$11,IF($C$7,7,0),1,1) -> 57.68 | E67: =OFFSET(InputPriceData!D$15,CalculationsAndCharts!$A67+$A$11,IF($C$7,7,0),1,1) -> 58.29 | F67: =OFFSET(InputPriceData!E$15,CalculationsAndCharts!$A67+$A$11,IF($C$7,7,0),1,1) -> 57.61 | G67: =OFFSET(InputPriceData!F$15,CalculationsAndCharts!$A67+$A$11,IF($C$7,7,0),1,1) -> 58.19 | K67: 57.91798706 | L67: 57.91798706 | M67: 0.3039739949 | N67: 0.3587447613 | O67: 1.50871562 | P67: -0.4438276497 | Q67: 0.4110395009 | R67: 0.4258622535 | T67: 58.49 | U67: 53.88 | V67: 0.9349240781 | X67: 0.2 | Y67: 0.8 | AD67: FALSE | AE67: FALSE | AF67: FALSE | AG67: FALSE | AH67: FALSE | AM67: FALSE | AN67: FALSE | AO67: TRUE | AP67: FALSE | AQ67: FALSE
A68: 36 | B68: =OFFSET(InputPriceData!B$15,CalculationsAndCharts!$A68+$A$11,0,1,1) -> 2013-09-20 | C68: =OFFSET(InputPriceData!G$15,CalculationsAndCharts!$A68+$A$11,0,1,1) -> 4398300 | D68: =OFFSET(InputPriceData!C$15,CalculationsAndCharts!$A68+$A$11,IF($C$7,7,0),1,1) -> 58.42 | E68: =OFFSET(InputPriceData!D$15,CalculationsAndCharts!$A68+$A$11,IF($C$7,7,0),1,1) -> 58.44 | F68: =OFFSET(InputPriceData!E$15,CalculationsAndCharts!$A68+$A$11,IF($C$7,7,0),1,1) -> 57.65 | G68: =OFFSET(InputPriceData!F$15,CalculationsAndCharts!$A68+$A$11,IF($C$7,7,0),1,1) -> 57.65 | K68: 57.77627486 | L68: 57.77627486 | M68: -0.09522821613 | N68: 0.4028418074 | O68: 1.50871562 | P68: -0.4438276497 | Q68: 0.4336239152 | R68: 0.4684359221 | T68: 58.49 | U68: 53.88 | V68: 0.8177874187 | X68: 0.2 | Y68: 0.8 | AD68: FALSE | AE68: FALSE | AF68: FALSE | AG68: FALSE | AH68: FALSE | AM68: FALSE | AN68: FALSE | AO68: TRUE | AP68: FALSE | AQ68: =AND(AP69,AO69) -> FALSE
A69: 37 | B69: =OFFSET(InputPriceData!B$15,CalculationsAndCharts!$A69+$A$11,0,1,1) -> 2013-09-19 | C69: =OFFSET(InputPriceData!G$15,CalculationsAndCharts!$A69+$A$11,0,1,1) -> 3267900 | D69: =OFFSET(InputPriceData!C$15,CalculationsAndCharts!$A69+$A$11,IF($C$7,7,0),1,1) -> 58.1 | E69: =OFFSET(InputPriceData!D$15,CalculationsAndCharts!$A69+$A$11,IF($C$7,7,0),1,1) -> 58.71 | F69: =OFFSET(InputPriceData!E$15,CalculationsAndCharts!$A69+$A$11,IF($C$7,7,0),1,1) -> 57.69 | G69: =OFFSET(InputPriceData!F$15,CalculationsAndCharts!$A69+$A$11,IF($C$7,7,0),1,1) -> 58.49 | H69: 62 | I69: 1.2 | J69: 0 | K69: 57.52018131 | L69: 57.52018131 | M69: 0.9424345775 | N69: 0.3263617994 | O69: 1.50871562 | P69: -0.4438276497 | Q69: 0.3944544846 | R69: 0.5435717257 | T69: 58.49 | U69: 53.88 | V69: 1 | X69: 0.2 | Y69: 0.8 | AD69: FALSE | AE69: FALSE | AF69: FALSE | AG69: FALSE | AH69: =AND(AG70,AF70) -> FALSE | AM69: FALSE | AN69: =AND(AM70,NOT(AO70)) -> FALSE | AO69: TRUE | AP69: FALSE | AQ69: =AND(AP70,AO70) -> FALSE
A70: 38 | B70: =OFFSET(InputPriceData!B$15,CalculationsAndCharts!$A70+$A$11,0,1,1) -> 2013-09-18 | C70: =OFFSET(InputPriceData!G$15,CalculationsAndCharts!$A70+$A$11,0,1,1) -> 2848800 | D70: =OFFSET(InputPriceData!C$15,CalculationsAndCharts!$A70+$A$11,IF($C$7,7,0),1,1) -> 57.35 | E70: =OFFSET(InputPriceData!D$15,CalculationsAndCharts!$A70+$A$11,IF($C$7,7,0),1,1) -> 58.14 | F70: =OFFSET(InputPriceData!E$15,CalculationsAndCharts!$A70+$A$11,IF($C$7,7,0),1,1) -> 57.27 | G70: =OFFSET(InputPriceData!F$15,CalculationsAndCharts!$A70+$A$11,IF($C$7,7,0),1,1) -> 57.92 | K70: 57.23592119 | L70: 57.23592119 | M70: 0.6322803161 | N70: 0.2002609647 | O70: 1.50871562 | P70: -0.8942412371 | Q70: 0.4554814201 | R70: 0.6465305303 | T70: 57.92 | U70: 53.88 | V70: 1 | X70: 0.2 | Y70: 0.8 | AD70: FALSE | AE70: FALSE | AF70: FALSE | AG70: FALSE | AH70: =AND(AG71,AF71) -> FALSE | AM70: FALSE | AN70: =AND(AM71,NOT(AO71)) -> FALSE | AO70: TRUE | AP70: FALSE | AQ70: =AND(AP71,AO71) -> FALSE
A71: 39 | B71: =OFFSET(InputPriceData!B$15,CalculationsAndCharts!$A71+$A$11,0,1,1) -> 2013-09-17 | C71: =OFFSET(InputPriceData!G$15,CalculationsAndCharts!$A71+$A$11,0,1,1) -> 2038300 | D71: =OFFSET(InputPriceData!C$15,CalculationsAndCharts!$A71+$A$11,IF($C$7,7,0),1,1) -> 57.07 | E71: =OFFSET(InputPriceData!D$15,CalculationsAndCharts!$A71+$A$11,IF($C$7,7,0),1,1) -> 57.57 | F71: =OFFSET(InputPriceData!E$15,CalculationsAndCharts!$A71+$A$11,IF($C$7,7,0),1,1) -> 57.04 | G71: =OFFSET(InputPriceData!F$15,CalculationsAndCharts!$A71+$A$11,IF($C$7,7,0),1,1) -> 57.33 | K71: 57.14121528 | L71: 57.14121528 | M71: 0.2310119356 | N71: 0.2549999521 | O71: 1.50871562 | P71: -1.087575157 | Q71: 0.5171127676 | R71: 0.7604958977 | T71: 57.47 | U71: 53.37 | V71: 0.9658536585 | X71: 0.2 | Y71: 0.8 | AD71: FALSE | AE71: FALSE | AF71: FALSE | AG71: FALSE | AH71: FALSE | AM71: FALSE | AN71: FALSE | AO71: TRUE | AP71: FALSE | AQ71: =AND(AP72,AO72) -> FALSE
A72: 40 | B72: =OFFSET(InputPriceData!B$15,CalculationsAndCharts!$A72+$A$11,0,1,1) -> 2013-09-16 | C72: =OFFSET(InputPriceData!G$15,CalculationsAndCharts!$A72+$A$11,0,1,1) -> 2618500 | D72: =OFFSET(InputPriceData!C$15,CalculationsAndCharts!$A72+$A$11,IF($C$7,7,0),1,1) -> 57.4 | E72: =OFFSET(InputPriceData!D$15,CalculationsAndCharts!$A72+$A$11,IF($C$7,7,0),1,1) -> 57.57 | F72: =OFFSET(InputPriceData!E$15,CalculationsAndCharts!$A72+$A$11,IF($C$7,7,0),1,1) -> 56.57 | G72: =OFFSET(InputPriceData!F$15,CalculationsAndCharts!$A72+$A$11,IF($C$7,7,0),1,1) -> 57 | K72: 57.20870198 | L72: 57.20870198 | M72: 0.03170885625 | N72: 0.4968070702 | O72: 1.50871562 | P72: -1.139025392 | Q72: 0.6178219301 | R72: 0.8688265973 | T72: 57.47 | U72: 53.37 | V72: 0.8853658537 | X72: 0.2 | Y72: 0.8 | AD72: FALSE | AE72: FALSE | AF72: FALSE | AG72: FALSE | AH72: FALSE | AM72: FALSE | AN72: FALSE | AO72: TRUE | AP72: FALSE | AQ72: FALSE
A73: 41 | B73: =OFFSET(InputPriceData!B$15,CalculationsAndCharts!$A73+$A$11,0,1,1) -> 2013-09-13 | C73: =OFFSET(InputPriceData!G$15,CalculationsAndCharts!$A73+$A$11,0,1,1) -> 1366800 | D73: =OFFSET(InputPriceData!C$15,CalculationsAndCharts!$A73+$A$11,IF($C$7,7,0),1,1) -> 57.25 | E73: =OFFSET(InputPriceData!D$15,CalculationsAndCharts!$A73+$A$11,IF($C$7,7,0),1,1) -> 57.35 | F73: =OFFSET(InputPriceData!E$15,CalculationsAndCharts!$A73+$A$11,IF($C$7,7,0),1,1) -> 56.64 | G73: =OFFSET(InputPriceData!F$15,CalculationsAndCharts!$A73+$A$11,IF($C$7,7,0),1,1) -> 56.83 | I73: =IF($A73=$E$25,I$32,NA()) ->  | K73: 57.34588825 | L73: 57.34588825 | M73: -0.03256628156 | N73: 0.8598051013 | O73: 1.50871562 | P73: -1.139025392 | Q73: 0.7549191875 | R73: 0.9467414262 | T73: 57.47 | U73: 52.47 | V73: 0.872 | X73: 0.2 | Y73: 0.8 | AD73: FALSE | AE73: FALSE | AF73: FALSE | AG73: FALSE | AH73: FALSE | AM73: FALSE | AN73: FALSE | AO73: TRUE | AP73: FALSE | AQ73: FALSE
A74: 42 | B74: =OFFSET(InputPriceData!B$15,CalculationsAndCharts!$A74+$A$11,0,1,1) -> 2013-09-12 | C74: =OFFSET(InputPriceData!G$15,CalculationsAndCharts!$A74+$A$11,0,1,1) -> 1261100 | D74: =OFFSET(InputPriceData!C$15,CalculationsAndCharts!$A74+$A$11,IF($C$7,7,0),1,1) -> 57.46 | E74: =OFFSET(InputPriceData!D$15,CalculationsAndCharts!$A74+$A$11,IF($C$7,7,0),1,1) -> 57.5 | F74: =OFFSET(InputPriceData!E$15,CalculationsAndCharts!$A74+$A$11,IF($C$7,7,0),1,1) -> 56.77 | G74: =OFFSET(InputPriceData!F$15,CalculationsAndCharts!$A74+$A$11,IF($C$7,7,0),1,1) -> 57.14 | K74: 57.41424116 | L74: 57.41424116 | M74: 0.4181200851 | N74: 1.21293891 | O74: 1.50871562 | P74: -1.139025392 | Q74: 0.8882909209 | R74: 0.9759315898 | T74: 57.47 | U74: 52.47 | V74: 0.934 | X74: 0.2 | Y74: 0.8 | AD74: FALSE | AE74: FALSE | AF74: FALSE | AG74: FALSE | AH74: FALSE | AM74: FALSE | AN74: FALSE | AO74: TRUE | AP74: FALSE | AQ74: FALSE
A75: 43 | B75: =OFFSET(InputPriceData!B$15,CalculationsAndCharts!$A75+$A$11,0,1,1) -> 2013-09-11 | C75: =OFFSET(InputPriceData!G$15,CalculationsAndCharts!$A75+$A$11,0,1,1) -> 1579500 | D75: =OFFSET(InputPriceData!C$15,CalculationsAndCharts!$A75+$A$11,IF($C$7,7,0),1,1) -> 57.4 | E75: =OFFSET(InputPriceData!D$15,CalculationsAndCharts!$A75+$A$11,IF($C$7,7,0),1,1) -> 57.42 | F75: =OFFSET(InputPriceData!E$15,CalculationsAndCharts!$A75+$A$11,IF($C$7,7,0),1,1) -> 56.88 | G75: =OFFSET(InputPriceData!F$15,CalculationsAndCharts!$A75+$A$11,IF($C$7,7,0),1,1) -> 57.36 | K75: 57.31625066 | L75: 57.31625066 | M75: 0.857692915 | N75: 1.443660513 | O75: 1.50871562 | P75: -1.139025392 | Q75: 0.9754299582 | R75: 0.9519213717 | T75: 57.47 | U75: 52.47 | V75: 0.978 | X75: 0.2 | Y75: 0.8 | AD75: FALSE | AE75: FALSE | AF75: FALSE | AG75: FALSE | AH75: FALSE | AM75: FALSE | AN75: FALSE | AO75: TRUE | AP75: FALSE | AQ75: FALSE
A76: 44 | B76: =OFFSET(InputPriceData!B$15,CalculationsAndCharts!$A76+$A$11,0,1,1) -> 2013-09-10 | C76: =OFFSET(InputPriceData!G$15,CalculationsAndCharts!$A76+$A$11,0,1,1) -> 2373900 | D76: =OFFSET(InputPriceData!C$15,CalculationsAndCharts!$A76+$A$11,IF($C$7,7,0),1,1) -> 57.24 | E76: =OFFSET(InputPriceData!D$15,CalculationsAndCharts!$A76+$A$11,IF($C$7,7,0),1,1) -> 57.36 | F76: =OFFSET(InputPriceData!E$15,CalculationsAndCharts!$A76+$A$11,IF($C$7,7,0),1,1) -> 56.54 | G76: =OFFSET(InputPriceData!F$15,CalculationsAndCharts!$A76+$A$11,IF($C$7,7,0),1,1) -> 57.33 | K76: 57.0372282 | L76: 57.0372282 | M76: 1.103829089 | N76: 1.50871562 | O76: 1.50871562 | P76: -1.139025392 | Q76: 1 | R76: 0.8811977765 | T76: 57.47 | U76: 52.47 | V76: 0.972 | X76: 0.2 | Y76: 0.8 | AD76: FALSE | AE76: FALSE | AF76: FALSE | AG76: FALSE | AH76: FALSE | AM76: TRUE | AN76: FALSE | AO76: TRUE | AP76: FALSE | AQ76: FALSE
A77: 45 | B77: =OFFSET(InputPriceData!B$15,CalculationsAndCharts!$A77+$A$11,0,1,1) -> 2013-09-09 | C77: =OFFSET(InputPriceData!G$15,CalculationsAndCharts!$A77+$A$11,0,1,1) -> 3070700 | D77: =OFFSET(InputPriceData!C$15,CalculationsAndCharts!$A77+$A$11,IF($C$7,7,0),1,1) -> 57.2 | E77: =OFFSET(InputPriceData!D$15,CalculationsAndCharts!$A77+$A$11,IF($C$7,7,0),1,1) -> 57.52 | F77: =OFFSET(InputPriceData!E$15,CalculationsAndCharts!$A77+$A$11,IF($C$7,7,0),1,1) -> 57 | G77: =OFFSET(InputPriceData!F$15,CalculationsAndCharts!$A77+$A$11,IF($C$7,7,0),1,1) -> 57.47 | K77: 56.5482507 | L77: 56.5482507 | M77: 1.576590436 | N77: 1.341953128 | O77: 1.341953128 | P77: -1.139025392 | Q77: 1 | R77: 0.7748015963 | T77: 57.47 | U77: 52.47 | V77: 1 | X77: 0.2 | Y77: 0.8 | AD77: FALSE | AE77: FALSE | AF77: FALSE | AG77: FALSE | AH77: FALSE | AM77: FALSE | AN77: FALSE | AO77: TRUE | AP77: FALSE | AQ77: FALSE
A78: 46 | B78: =OFFSET(InputPriceData!B$15,CalculationsAndCharts!$A78+$A$11,0,1,1) -> 2013-09-06 | C78: =OFFSET(InputPriceData!G$15,CalculationsAndCharts!$A78+$A$11,0,1,1) -> 2302300 | D78: =OFFSET(InputPriceData!C$15,CalculationsAndCharts!$A78+$A$11,IF($C$7,7,0),1,1) -> 57.61 | E78: =OFFSET(InputPriceData!D$15,CalculationsAndCharts!$A78+$A$11,IF($C$7,7,0),1,1) -> 57.71 | F78: =OFFSET(InputPriceData!E$15,CalculationsAndCharts!$A78+$A$11,IF($C$7,7,0),1,1) -> 56.72 | G78: =OFFSET(InputPriceData!F$15,CalculationsAndCharts!$A78+$A$11,IF($C$7,7,0),1,1) -> 56.96 | K78: 55.88359637 | L78: 55.88359637 | M78: 1.416108008 | N78: 0.9354242071 | O78: 0.9354242071 | P78: -1.139025392 | Q78: 1 | R78: 0.6547165023 | T78: 57.38 | U78: 52.47 | V78: 0.9144602851 | X78: 0.2 | Y78: 0.8 | AD78: FALSE | AE78: FALSE | AF78: FALSE | AG78: FALSE | AH78: FALSE | AM78: FALSE | AN78: FALSE | AO78: TRUE | AP78: FALSE | AQ78: FALSE
A79: 47 | B79: =OFFSET(InputPriceData!B$15,CalculationsAndCharts!$A79+$A$11,0,1,1) -> 2013-09-05 | C79: =OFFSET(InputPriceData!G$15,CalculationsAndCharts!$A79+$A$11,0,1,1) -> 4013800 | D79: =OFFSET(InputPriceData!C$15,CalculationsAndCharts!$A79+$A$11,IF($C$7,7,0),1,1) -> 56.58 | E79: =OFFSET(InputPriceData!D$15,CalculationsAndCharts!$A79+$A$11,IF($C$7,7,0),1,1) -> 57.8 | F79: =OFFSET(InputPriceData!E$15,CalculationsAndCharts!$A79+$A$11,IF($C$7,7,0),1,1) -> 56.41 | G79: =OFFSET(InputPriceData!F$15,CalculationsAndCharts!$A79+$A$11,IF($C$7,7,0),1,1) -> 57.38 | K79: 55.08701903 | L79: 55.08701903 | M79: 2.232093364 | N79: 0.2922403639 | O79: 0.5282712888 | P79: -1.139025392 | Q79: 0.8584349579 | R79: 0.575256262 | T79: 57.38 | U79: 52.47 | V79: 1 | X79: 0.2 | Y79: 0.8 | AD79: FALSE | AE79: FALSE | AF79: FALSE | AG79: FALSE | AH79: FALSE | AM79: FALSE | AN79: FALSE | AO79: TRUE | AP79: FALSE | AQ79: FALSE
A80: 48 | B80: =OFFSET(InputPriceData!B$15,CalculationsAndCharts!$A80+$A$11,0,1,1) -> 2013-09-04 | C80: =OFFSET(InputPriceData!G$15,CalculationsAndCharts!$A80+$A$11,0,1,1) -> 9699000 | D80: =OFFSET(InputPriceData!C$15,CalculationsAndCharts!$A80+$A$11,IF($C$7,7,0),1,1) -> 56.06 | E80: =OFFSET(InputPriceData!D$15,CalculationsAndCharts!$A80+$A$11,IF($C$7,7,0),1,1) -> 57.42 | F80: =OFFSET(InputPriceData!E$15,CalculationsAndCharts!$A80+$A$11,IF($C$7,7,0),1,1) -> 55.29 | G80: =OFFSET(InputPriceData!F$15,CalculationsAndCharts!$A80+$A$11,IF($C$7,7,0),1,1) -> 56.39 | K80: 54.4322559 | L80: 54.4322559 | M80: 1.642955831 | N80: -0.3287624833 | O80: 0.5282712888 | P80: -1.139025392 | Q80: 0.4859740431 | R80: 0.5999095293 | T80: 56.39 | U80: 52.47 | V80: 1 | X80: 0.2 | Y80: 0.8 | AD80: FALSE | AE80: FALSE | AF80: FALSE | AG80: FALSE | AH80: FALSE | AM80: FALSE | AN80: FALSE | AO80: TRUE | AP80: FALSE | AQ80: FALSE
A81: 49 | B81: =OFFSET(InputPriceData!B$15,CalculationsAndCharts!$A81+$A$11,0,1,1) -> 2013-09-03 | C81: =OFFSET(InputPriceData!G$15,CalculationsAndCharts!$A81+$A$11,0,1,1) -> 4268700 | D81: =OFFSET(InputPriceData!C$15,CalculationsAndCharts!$A81+$A$11,IF($C$7,7,0),1,1) -> 54.47 | E81: =OFFSET(InputPriceData!D$15,CalculationsAndCharts!$A81+$A$11,IF($C$7,7,0),1,1) -> 54.74 | F81: =OFFSET(InputPriceData!E$15,CalculationsAndCharts!$A81+$A$11,IF($C$7,7,0),1,1) -> 53.4 | G81: =OFFSET(InputPriceData!F$15,CalculationsAndCharts!$A81+$A$11,IF($C$7,7,0),1,1) -> 53.88 | K81: 54.34986438 | L81: 54.34986438 | M81: -0.7528407205 | N81: -0.4438276497 | O81: 0.5716300088 | P81: -1.139025392 | Q81: 0.4063926272 | R81: 0.7043444062 | T81: 55.59 | U81: 52.47 | V81: 0.4519230769 | X81: 0.2 | Y81: 0.8 | AD81: FALSE | AE81: FALSE | AF81: FALSE | AG81: FALSE | AH81: FALSE | AM81: FALSE | AN81: FALSE | AO81: TRUE | AP81: FALSE | AQ81: FALSE
A82: 50 | B82: =OFFSET(InputPriceData!B$15,CalculationsAndCharts!$A82+$A$11,0,1,1) -> 2013-08-30 | C82: =OFFSET(InputPriceData!G$15,CalculationsAndCharts!$A82+$A$11,0,1,1) -> 1887400 | D82: =OFFSET(InputPriceData!C$15,CalculationsAndCharts!$A82+$A$11,IF($C$7,7,0),1,1) -> 54.61 | E82: =OFFSET(InputPriceData!D$15,CalculationsAndCharts!$A82+$A$11,IF($C$7,7,0),1,1) -> 54.87 | F82: =OFFSET(InputPriceData!E$15,CalculationsAndCharts!$A82+$A$11,IF($C$7,7,0),1,1) -> 53.86 | G82: =OFFSET(InputPriceData!F$15,CalculationsAndCharts!$A82+$A$11,IF($C$7,7,0),1,1) -> 53.97 | K82: 54.63276008 | L82: 54.63276008 | M82: -0.7708242467 | N82: -0.1765192027 | O82: 0.6610214198 | P82: -1.139025392 | Q82: 0.5347117549 | R82: 0.7993738007 | T82: 55.59 | U82: 52.47 | V82: 0.4807692308 | X82: 0.2 | Y82: 0.8 | AA82: 54.61 | AD82: FALSE | AE82: FALSE | AF82: TRUE | AG82: FALSE | AH82: TRUE | AJ82: 54.61 | AL82: 54.61 | AM82: FALSE | AN82: TRUE | AO82: TRUE | AP82: FALSE | AQ82: FALSE | AR82: 54.61 | AT82: 54.61
A83: 51 | B83: =OFFSET(InputPriceData!B$15,CalculationsAndCharts!$A83+$A$11,0,1,1) -> 2013-08-29 | C83: =OFFSET(InputPriceData!G$15,CalculationsAndCharts!$A83+$A$11,0,1,1) -> 1346300 | D83: =OFFSET(InputPriceData!C$15,CalculationsAndCharts!$A83+$A$11,IF($C$7,7,0),1,1) -> 54.4 | E83: =OFFSET(InputPriceData!D$15,CalculationsAndCharts!$A83+$A$11,IF($C$7,7,0),1,1) -> 54.75 | F83: =OFFSET(InputPriceData!E$15,CalculationsAndCharts!$A83+$A$11,IF($C$7,7,0),1,1) -> 54.24 | G83: =OFFSET(InputPriceData!F$15,CalculationsAndCharts!$A83+$A$11,IF($C$7,7,0),1,1) -> 54.37 | K83: 54.8849791 | L83: 54.8849791 | M83: -0.4443664944 | N83: 0.113162703 | O83: 0.6610214198 | P83: -1.139025392 | Q83: 0.6956419616 | R83: 0.8280467573 | T83: 55.79 | U83: 52.47 | V83: 0.5722891566 | X83: 0.2 | Y83: 0.8 | AC83: 0.8280467573 | AD83: FALSE | AE83: FALSE | AF83: TRUE | AG83: TRUE | AH83: FALSE | AM83: TRUE | AN83: FALSE | AO83: FALSE | AP83: FALSE | AQ83: FALSE
A84: 52 | B84: =OFFSET(InputPriceData!B$15,CalculationsAndCharts!$A84+$A$11,0,1,1) -> 2013-08-28 | C84: =OFFSET(InputPriceData!G$15,CalculationsAndCharts!$A84+$A$11,0,1,1) -> 1777200 | D84: =OFFSET(InputPriceData!C$15,CalculationsAndCharts!$A84+$A$11,IF($C$7,7,0),1,1) -> 54.65 | E84: =OFFSET(InputPriceData!D$15,CalculationsAndCharts!$A84+$A$11,IF($C$7,7,0),1,1) -> 54.9 | F84: =OFFSET(InputPriceData!E$15,CalculationsAndCharts!$A84+$A$11,IF($C$7,7,0),1,1) -> 54.21 | G84: =OFFSET(InputPriceData!F$15,CalculationsAndCharts!$A84+$A$11,IF($C$7,7,0),1,1) -> 54.48 | K84: 55.05816977 | L84: 55.05816977 | M84: -0.3660811079 | N84: 0.3738815815 | O84: 0.6610214198 | P84: -1.139025392 | Q84: 0.8404820162 | R84: 0.7667481039 | T84: 55.79 | U84: 52.47 | V84: 0.6054216867 | X84: 0.2 | Y84: 0.8 | AD84: FALSE | AE84: FALSE | AF84: TRUE | AG84: FALSE | AH84: FALSE | AM84: FALSE | AN84: FALSE | AO84: FALSE | AP84: FALSE | AQ84: FALSE
A85: 53 | B85: =OFFSET(InputPriceData!B$15,CalculationsAndCharts!$A85+$A$11,0,1,1) -> 2013-08-27 | C85: =OFFSET(InputPriceData!G$15,CalculationsAndCharts!$A85+$A$11,0,1,1) -> 1908400 | D85: =OFFSET(InputPriceData!C$15,CalculationsAndCharts!$A85+$A$11,IF($C$7,7,0),1,1) -> 55 | E85: =OFFSET(InputPriceData!D$15,CalculationsAndCharts!$A85+$A$11,IF($C$7,7,0),1,1) -> 55.33 | F85: =OFFSET(InputPriceData!E$15,CalculationsAndCharts!$A85+$A$11,IF($C$7,7,0),1,1) -> 54.62 | G85: =OFFSET(InputPriceData!F$15,CalculationsAndCharts!$A85+$A$11,IF($C$7,7,0),1,1) -> 54.65 | K85: 55.08956594 | L85: 55.08956594 | M85: -0.2024328736 | N85: 0.5282712888 | O85: 0.6610214198 | P85: -1.139025392 | Q85: 0.9262518452 | R85: 0.6185190089 | T85: 55.79 | U85: 52.47 | V85: 0.656626506 | X85: 0.2 | Y85: 0.8 | AD85: FALSE | AE85: FALSE | AF85: TRUE | AG85: FALSE | AH85: FALSE | AM85: FALSE | AN85: FALSE | AO85: FALSE | AP85: FALSE | AQ85: FALSE
A86: 54 | B86: =OFFSET(InputPriceData!B$15,CalculationsAndCharts!$A86+$A$11,0,1,1) -> 2013-08-26 | C86: =OFFSET(InputPriceData!G$15,CalculationsAndCharts!$A86+$A$11,0,1,1) -> 1744600 | D86: =OFFSET(InputPriceData!C$15,CalculationsAndCharts!$A86+$A$11,IF($C$7,7,0),1,1) -> 55.43 | E86: =OFFSET(InputPriceData!D$15,CalculationsAndCharts!$A86+$A$11,IF($C$7,7,0),1,1) -> 56.1 | F86: =OFFSET(InputPriceData!E$15,CalculationsAndCharts!$A86+$A$11,IF($C$7,7,0),1,1) -> 55.16 | G86: =OFFSET(InputPriceData!F$15,CalculationsAndCharts!$A86+$A$11,IF($C$7,7,0),1,1) -> 55.59 | K86: 54.84305279 | L86: 54.84305279 | M86: 0.8430401456 | N86: 0.4035684997 | O86: 0.6610214198 | P86: -1.139025392 | Q86: 0.8569743196 | R86: 0.4211265455 | T86: 55.79 | U86: 52.47 | V86: 0.9397590361 | X86: 0.2 | Y86: 0.8 | AD86: FALSE | AE86: FALSE | AF86: TRUE | AG86: FALSE | AH86: FALSE | AM86: FALSE | AN86: FALSE | AO86: FALSE | AP86: FALSE | AQ86: FALSE
A87: 55 | B87: =OFFSET(InputPriceData!B$15,CalculationsAndCharts!$A87+$A$11,0,1,1) -> 2013-08-23 | C87: =OFFSET(InputPriceData!G$15,CalculationsAndCharts!$A87+$A$11,0,1,1) -> 2263300 | D87: =OFFSET(InputPriceData!C$15,CalculationsAndCharts!$A87+$A$11,IF($C$7,7,0),1,1) -> 55.51 | E87: =OFFSET(InputPriceData!D$15,CalculationsAndCharts!$A87+$A$11,IF($C$7,7,0),1,1) -> 55.6 | F87: =OFFSET(InputPriceData!E$15,CalculationsAndCharts!$A87+$A$11,IF($C$7,7,0),1,1) -> 54.79 | G87: =OFFSET(InputPriceData!F$15,CalculationsAndCharts!$A87+$A$11,IF($C$7,7,0),1,1) -> 55.05 | K87: 54.41414518 | L87: 54.41414518 | M87: 0.466261298 | N87: 0.04912793719 | O87: 0.6610214198 | P87: -1.139025392 | Q87: 0.6600680169 | R87: 0.2307630771 | T87: 55.79 | U87: 52.47 | V87: 0.7771084337 | X87: 0.2 | Y87: 0.8 | AD87: FALSE | AE87: FALSE | AF87: TRUE | AG87: FALSE | AH87: FALSE | AM87: FALSE | AN87: FALSE | AO87: FALSE | AP87: FALSE | AQ87: FALSE
A88: 56 | B88: =OFFSET(InputPriceData!B$15,CalculationsAndCharts!$A88+$A$11,0,1,1) -> 2013-08-22 | C88: =OFFSET(InputPriceData!G$15,CalculationsAndCharts!$A88+$A$11,0,1,1) -> 3108500 | D88: =OFFSET(InputPriceData!C$15,CalculationsAndCharts!$A88+$A$11,IF($C$7,7,0),1,1) -> 54.34 | E88: =OFFSET(InputPriceData!D$15,CalculationsAndCharts!$A88+$A$11,IF($C$7,7,0),1,1) -> 55.6 | F88: =OFFSET(InputPriceData!E$15,CalculationsAndCharts!$A88+$A$11,IF($C$7,7,0),1,1) -> 54 | G88: =OFFSET(InputPriceData!F$15,CalculationsAndCharts!$A88+$A$11,IF($C$7,7,0),1,1) -> 55.45 | K88: 53.9288407 | L88: 53.9288407 | M88: 1.041853757 | N88: -0.4399634935 | O88: 0.6610214198 | P88: -1.139025392 | Q88: 0.3883576217 | R88: 0.09273765636 | T88: 55.79 | U88: 52.47 | V88: 0.8975903614 | X88: 0.2 | Y88: 0.8 | AD88: FALSE | AE88: FALSE | AF88: TRUE | AG88: FALSE | AH88: FALSE | AM88: FALSE | AN88: FALSE | AO88: FALSE | AP88: FALSE | AQ88: FALSE
A89: 57 | B89: =OFFSET(InputPriceData!B$15,CalculationsAndCharts!$A89+$A$11,0,1,1) -> 2013-08-21 | C89: =OFFSET(InputPriceData!G$15,CalculationsAndCharts!$A89+$A$11,0,1,1) -> 3274300 | D89: =OFFSET(InputPriceData!C$15,CalculationsAndCharts!$A89+$A$11,IF($C$7,7,0),1,1) -> 53.4 | E89: =OFFSET(InputPriceData!D$15,CalculationsAndCharts!$A89+$A$11,IF($C$7,7,0),1,1) -> 54.5 | F89: =OFFSET(InputPriceData!E$15,CalculationsAndCharts!$A89+$A$11,IF($C$7,7,0),1,1) -> 53.1 | G89: =OFFSET(InputPriceData!F$15,CalculationsAndCharts!$A89+$A$11,IF($C$7,7,0),1,1) -> 54.4 | K89: 53.56201847 | L89: 53.56201847 | M89: 0.1306132644 | N89: -0.8942412371 | O89: 0.6610214198 | P89: -1.139025392 | Q89: 0.1359876608 | R89: 0.02270569616 | T89: 55.79 | U89: 52.47 | V89: 0.5813253012 | X89: 0.2 | Y89: 0.8 | AD89: FALSE | AE89: FALSE | AF89: TRUE | AG89: FALSE | AH89: FALSE | AM89: FALSE | AN89: FALSE | AO89: FALSE | AP89: FALSE | AQ89: FALSE
A90: 58 | B90: =OFFSET(InputPriceData!B$15,CalculationsAndCharts!$A90+$A$11,0,1,1) -> 2013-08-20 | C90: =OFFSET(InputPriceData!G$15,CalculationsAndCharts!$A90+$A$11,0,1,1) -> 2663400 | D90: =OFFSET(InputPriceData!C$15,CalculationsAndCharts!$A90+$A$11,IF($C$7,7,0),1,1) -> 54.16 | E90: =OFFSET(InputPriceData!D$15,CalculationsAndCharts!$A90+$A$11,IF($C$7,7,0),1,1) -> 54.23 | F90: =OFFSET(InputPriceData!E$15,CalculationsAndCharts!$A90+$A$11,IF($C$7,7,0),1,1) -> 53.3 | G90: =OFFSET(InputPriceData!F$15,CalculationsAndCharts!$A90+$A$11,IF($C$7,7,0),1,1) -> 53.37 | K90: 53.50900641 | L90: 53.50900641 | M90: -0.9454419055 | N90: -1.087575157 | O90: 0.6610214198 | P90: -1.139025392 | Q90: 0.02858272072 | R90: -0.0001840185746 | T90: 55.79 | U90: 52.47 | V90: 0.2710843373 | X90: 0.2 | Y90: 0.8 | AD90: FALSE | AE90: FALSE | AF90: TRUE | AG90: FALSE | AH90: FALSE | AM90: FALSE | AN90: FALSE | AO90: FALSE | AP90: FALSE | AQ90: FALSE
A91: 59 | B91: =OFFSET(InputPriceData!B$15,CalculationsAndCharts!$A91+$A$11,0,1,1) -> 2013-08-19 | C91: =OFFSET(InputPriceData!G$15,CalculationsAndCharts!$A91+$A$11,0,1,1) -> 4538700 | D91: =OFFSET(InputPriceData!C$15,CalculationsAndCharts!$A91+$A$11,IF($C$7,7,0),1,1) -> 53.5 | E91: =OFFSET(InputPriceData!D$15,CalculationsAndCharts!$A91+$A$11,IF($C$7,7,0),1,1) -> 54.47 | F91: =OFFSET(InputPriceData!E$15,CalculationsAndCharts!$A91+$A$11,IF($C$7,7,0),1,1) -> 53.2 | G91: =OFFSET(InputPriceData!F$15,CalculationsAndCharts!$A91+$A$11,IF($C$7,7,0),1,1) -> 54.09 | K91: 53.61152411 | L91: 53.61152411 | M91: -0.3076515937 | N91: -1.139025392 | O91: 0.6610214198 | P91: -1.139025392 | Q91: 0 | R91: -0.005080384827 | T91: 55.79 | U91: 52.47 | V91: 0.4879518072 | X91: 0.2 | Y91: 0.8 | AD91: FALSE | AE91: =AND(AD92,NOT(AF92)) -> FALSE | AF91: TRUE | AG91: FALSE | AH91: FALSE | AM91: FALSE | AN91: FALSE | AO91: FALSE | AP91: FALSE | AQ91: FALSE
A92: 60 | B92: =OFFSET(InputPriceData!B$15,CalculationsAndCharts!$A92+$A$11,0,1,1) -> 2013-08-16 | C92: =OFFSET(InputPriceData!G$15,CalculationsAndCharts!$A92+$A$11,0,1,1) -> 3489900 | D92: =OFFSET(InputPriceData!C$15,CalculationsAndCharts!$A92+$A$11,IF($C$7,7,0),1,1) -> 53.23 | E92: =OFFSET(InputPriceData!D$15,CalculationsAndCharts!$A92+$A$11,IF($C$7,7,0),1,1) -> 53.32 | F92: =OFFSET(InputPriceData!E$15,CalculationsAndCharts!$A92+$A$11,IF($C$7,7,0),1,1) -> 52.4 | G92: =OFFSET(InputPriceData!F$15,CalculationsAndCharts!$A92+$A$11,IF($C$7,7,0),1,1) -> 52.47 | K92: 53.9336961 | L92: 53.9336961 | M92: -2.109826888 | N92: -0.9487096601 | O92: 0.6610214198 | P92: -0.9487096601 | Q92: 0 | R92: -0.005062626581 | T92: 55.79 | U92: 52.47 | V92: 0 | X92: 0.2 | Y92: 0.8 | AD92: FALSE | AE92: =AND(AD93,NOT(AF93)) -> FALSE | AF92: TRUE | AG92: FALSE | AH92: FALSE | AM92: FALSE | AN92: FALSE | AO92: FALSE | AP92: FALSE | AQ92: FALSE
A93: 61 | B93: =OFFSET(InputPriceData!B$15,CalculationsAndCharts!$A93+$A$11,0,1,1) -> 2013-08-15 | C93: =OFFSET(InputPriceData!G$15,CalculationsAndCharts!$A93+$A$11,0,1,1) -> 2987200 | D93: =OFFSET(InputPriceData!C$15,CalculationsAndCharts!$A93+$A$11,IF($C$7,7,0),1,1) -> 54.19 | E93: =OFFSET(InputPriceData!D$15,CalculationsAndCharts!$A93+$A$11,IF($C$7,7,0),1,1) -> 54.49 | F93: =OFFSET(InputPriceData!E$15,CalculationsAndCharts!$A93+$A$11,IF($C$7,7,0),1,1) -> 53.37 | G93: =OFFSET(InputPriceData!F$15,CalculationsAndCharts!$A93+$A$11,IF($C$7,7,0),1,1) -> 53.5 | I93: =IF($A93=$E$25,I$32,NA()) ->  | K93: 54.31468313 | L93: 54.31468313 | M93: -1.345529476 | N93: -0.646024881 | O93: 0.6610214198 | P93: -0.646024881 | Q93: 0 | R93: -0.00190362065 | T93: 55.79 | U93: 53.3 | V93: 0.08032128514 | X93: 0.2 | Y93: 0.8 | AD93: FALSE | AE93: FALSE | AF93: TRUE | AG93: FALSE | AH93: FALSE | AM93: FALSE | AN93: FALSE | AO93: FALSE | AP93: FALSE | AQ93: FALSE
A94: 62 | B94: =OFFSET(InputPriceData!B$15,CalculationsAndCharts!$A94+$A$11,0,1,1) -> 2013-08-14 | C94: =OFFSET(InputPriceData!G$15,CalculationsAndCharts!$A94+$A$11,0,1,1) -> 1792300 | D94: =OFFSET(InputPriceData!C$15,CalculationsAndCharts!$A94+$A$11,IF($C$7,7,0),1,1) -> 54.41 | E94: =OFFSET(InputPriceData!D$15,CalculationsAndCharts!$A94+$A$11,IF($C$7,7,0),1,1) -> 54.82 | F94: =OFFSET(InputPriceData!E$15,CalculationsAndCharts!$A94+$A$11,IF($C$7,7,0),1,1) -> 54.08 | G94: =OFFSET(InputPriceData!F$15,CalculationsAndCharts!$A94+$A$11,IF($C$7,7,0),1,1) -> 54.5 | K94: 54.42262835 | L94: 54.42262835 | M94: -0.4458798817 | N94: -0.5758071663 | O94: 0.8148690857 | P94: -0.6019673861 | Q94: 0.01846382439 | R94: 0.006948586871 | T94: 55.79 | U94: 53.3 | V94: 0.4819277108 | X94: 0.2 | Y94: 0.8 | AD94: FALSE | AE94: FALSE | AF94: TRUE | AG94: FALSE | AH94: FALSE | AM94: FALSE | AN94: FALSE | AO94: FALSE | AP94: FALSE | AQ94: FALSE
A95: 63 | B95: =OFFSET(InputPriceData!B$15,CalculationsAndCharts!$A95+$A$11,0,1,1) -> 2013-08-13 | C95: =OFFSET(InputPriceData!G$15,CalculationsAndCharts!$A95+$A$11,0,1,1) -> 2171300 | D95: =OFFSET(InputPriceData!C$15,CalculationsAndCharts!$A95+$A$11,IF($C$7,7,0),1,1) -> 54.36 | E95: =OFFSET(InputPriceData!D$15,CalculationsAndCharts!$A95+$A$11,IF($C$7,7,0),1,1) -> 54.83 | F95: =OFFSET(InputPriceData!E$15,CalculationsAndCharts!$A95+$A$11,IF($C$7,7,0),1,1) -> 54.2 | G95: =OFFSET(InputPriceData!F$15,CalculationsAndCharts!$A95+$A$11,IF($C$7,7,0),1,1) -> 54.6 | K95: 54.42497 | L95: 54.42497 | M95: -0.3483335517 | N95: -0.6019673861 | O95: 1.26823883 | P95: -0.6019673861 | Q95: 0 | R95: 0.02987658272 | T95: 55.79 | U95: 53.3 | V95: 0.5220883534 | X95: 0.2 | Y95: 0.8 | AD95: FALSE | AE95: FALSE | AF95: TRUE | AG95: FALSE | AH95: FALSE | AM95: FALSE | AN95: FALSE | AO95: FALSE | AP95: FALSE | AQ95: FALSE
A96: 64 | B96: =OFFSET(InputPriceData!B$15,CalculationsAndCharts!$A96+$A$11,0,1,1) -> 2013-08-12 | C96: =OFFSET(InputPriceData!G$15,CalculationsAndCharts!$A96+$A$11,0,1,1) -> 2295500 | D96: =OFFSET(InputPriceData!C$15,CalculationsAndCharts!$A96+$A$11,IF($C$7,7,0),1,1) -> 54.14 | E96: =OFFSET(InputPriceData!D$15,CalculationsAndCharts!$A96+$A$11,IF($C$7,7,0),1,1) -> 54.58 | F96: =OFFSET(InputPriceData!E$15,CalculationsAndCharts!$A96+$A$11,IF($C$7,7,0),1,1) -> 53.99 | G96: =OFFSET(InputPriceData!F$15,CalculationsAndCharts!$A96+$A$11,IF($C$7,7,0),1,1) -> 54.35 | K96: 54.50761395 | L96: 54.50761395 | M96: -0.6124505336 | N96: -0.539488758 | O96: 1.700536962 | P96: -0.539488758 | Q96: 0 | R96: 0.07291637663 | T96: 55.79 | U96: 53.3 | V96: 0.421686747 | X96: 0.2 | Y96: 0.8 | AD96: FALSE | AE96: FALSE | AF96: TRUE | AG96: FALSE | AH96: FALSE | AM96: FALSE | AN96: FALSE | AO96: FALSE | AP96: FALSE | AQ96: FALSE
A97: 65 | B97: =OFFSET(InputPriceData!B$15,CalculationsAndCharts!$A97+$A$11,0,1,1) -> 2013-08-09 | C97: =OFFSET(InputPriceData!G$15,CalculationsAndCharts!$A97+$A$11,0,1,1) -> 1201100 | D97: =OFFSET(InputPriceData!C$15,CalculationsAndCharts!$A97+$A$11,IF($C$7,7,0),1,1) -> 54.7 | E97: =OFFSET(InputPriceData!D$15,CalculationsAndCharts!$A97+$A$11,IF($C$7,7,0),1,1) -> 54.82 | F97: =OFFSET(InputPriceData!E$15,CalculationsAndCharts!$A97+$A$11,IF($C$7,7,0),1,1) -> 54.22 | G97: =OFFSET(InputPriceData!F$15,CalculationsAndCharts!$A97+$A$11,IF($C$7,7,0),1,1) -> 54.25 | H97: =IF($A97=$E$25,H$32,NA()) ->  | K97: =$F$16*(G97+G98)/2+$F$17*K98+$F$18*K99 -> 54.68847682 | L97: 54.68847682 | M97: =$D$21*(G97 - 2*G98 + G99) + $D$20*M98 - $F$20*M99 -> -0.7596589446 | N97: -0.3512106114 | O97: 2.035229854 | P97: -0.3512106114 | Q97: =IFERROR(IF($A97>$A$8,0,(N97-P97)/(O97-P97)),1) -> 0 | R97: =IF($A97>$A$8,0,$F$16*(Q97+Q98)/2+$F$17*R98+$F$18*R99) -> 0.1326837516 | T97: =MAX(OFFSET(G97,0,0,$A$22,1)) -> 55.79 | U97: =MIN(OFFSET(G97,0,0,$A$22,1)) -> 53.3 | V97: =IFERROR(IF($A97>$A$8,0,(G97-U97)/(T97-U97)),1) -> 0.3815261044 | X97: 0.2 | Y97: 0.8 | Z97: =IF($S$7,AI97,NA()) ->  | AA97: =IF($S$7,AJ97,NA()) ->  | AB97: =IF($S$7,IF(AD97,R97,NA()),NA()) ->  | AC97: =IF($S$7,IF(AG97,R97,NA()),NA()) ->  | AD97: =IF(AND(R98>$X$32,R97<$X$32),TRUE,FALSE) -> FALSE | AE97: FALSE | AF97: TRUE | AG97: =IF(AND(AF97,R98<$Y$32,R97>$Y$32),TRUE,FALSE) -> FALSE | AH97: FALSE | AI97: =IF(AE97,D97,NA()) ->  | AJ97: =IF(AH97,D97,NA()) ->  | AK97: =IF($S$7,AI97,NA()) ->  | AL97: =IF($S$7,AJ97,NA()) ->  | AM97: =IF(AND(R98<$Y$32,R97>$Y$32),TRUE,FALSE) -> FALSE | AN97: FALSE | AO97: FALSE | AP97: =IF(AND(AO98,R98>$X$32,R97<$X$32),TRUE,FALSE) -> FALSE | AQ97: FALSE | AR97: =IF(AN97,D97,NA()) ->  | AS97: =IF(AQ97,D97,NA()) -> 
A98: 66 | B98: =OFFSET(InputPriceData!B$15,CalculationsAndCharts!$A98+$A$11,0,1,1) -> 2013-08-08 | C98: =OFFSET(InputPriceData!G$15,CalculationsAndCharts!$A98+$A$11,0,1,1) -> 2739700 | D98: =OFFSET(InputPriceData!C$15,CalculationsAndCharts!$A98+$A$11,IF($C$7,7,0),1,1) -> 54.36 | E98: =OFFSET(InputPriceData!D$15,CalculationsAndCharts!$A98+$A$11,IF($C$7,7,0),1,1) -> 54.91 | F98: =OFFSET(InputPriceData!E$15,CalculationsAndCharts!$A98+$A$11,IF($C$7,7,0),1,1) -> 54.27 | G98: =OFFSET(InputPriceData!F$15,CalculationsAndCharts!$A98+$A$11,IF($C$7,7,0),1,1) -> 54.73 | K98: 54.88912474 | L98: =IF($S$5,K98,NA()) -> 54.88912474 | M98: -0.2919918114 | N98: =$F$16*(M98+M99)/2+$F$17*N99+$F$18*N100 -> -0.09952503781 | O98: =MAX(OFFSET(N98,0,0,$A$22,1)) -> 2.140567853 | P98: -0.09952503781 | Q98: 0 | R98: 0.19633727 | T98: 55.79 | U98: 53.3 | V98: 0.5742971888 | W98: =IF($S$18,V98,NA()) ->  | X98: =$X$32 -> 0.2 | Y98: =$Y$32 -> 0.8 | AB98: 0.19633727 | AD98: TRUE | AE98: FALSE | AF98: =IF(AF99,IF(AH99,FALSE,AF99),IF(AE98,TRUE,AF99)) -> TRUE | AG98: FALSE | AH98: FALSE | AM98: FALSE | AN98: FALSE | AO98: =IF(AO99,IF(AP99,FALSE,AO99),IF(AN98,TRUE,AO99)) -> FALSE | AP98: FALSE | AQ98: FALSE | AT98: =IF($S$5,AR98,NA()) -> 
A99: 67 | B99: =OFFSET(InputPriceData!B$15,CalculationsAndCharts!$A99+$A$11,0,1,1) -> 2013-08-07 | C99: =OFFSET(InputPriceData!G$15,CalculationsAndCharts!$A99+$A$11,0,1,1) -> 3007200 | D99: =OFFSET(InputPriceData!C$15,CalculationsAndCharts!$A99+$A$11,IF($C$7,7,0),1,1) -> 54.76 | E99: =OFFSET(InputPriceData!D$15,CalculationsAndCharts!$A99+$A$11,IF($C$7,7,0),1,1) -> 54.79 | F99: =OFFSET(InputPriceData!E$15,CalculationsAndCharts!$A99+$A$11,IF($C$7,7,0),1,1) -> 54.12 | G99: =OFFSET(InputPriceData!F$15,CalculationsAndCharts!$A99+$A$11,IF($C$7,7,0),1,1) -> 54.12 | K99: 55.13132345 | L99: 55.13132345 | M99: -0.924750123 | N99: 0.250038033 | O99: 2.140567853 | P99: -0.008612658517 | Q99: 0.1203485189 | R99: 0.230263304 | T99: 55.79 | U99: 53.3 | V99: 0.3293172691 | X99: 0.2 | Y99: 0.8 | AD99: FALSE | AE99: FALSE | AF99: TRUE | AG99: FALSE | AH99: FALSE | AM99: FALSE | AN99: FALSE | AO99: FALSE | AP99: FALSE | AQ99: FALSE
A100: 68 | B100: =OFFSET(InputPriceData!B$15,CalculationsAndCharts!$A100+$A$11,0,1,1) -> 2013-08-06 | C100: =OFFSET(InputPriceData!G$15,CalculationsAndCharts!$A100+$A$11,0,1,1) -> 2533700 | D100: =OFFSET(InputPriceData!C$15,CalculationsAndCharts!$A100+$A$11,IF($C$7,7,0),1,1) -> 55.04 | E100: =OFFSET(InputPriceData!D$15,CalculationsAndCharts!$A100+$A$11,IF($C$7,7,0),1,1) -> 55.18 | F100: =OFFSET(InputPriceData!E$15,CalculationsAndCharts!$A100+$A$11,IF($C$7,7,0),1,1) -> 54.31 | G100: =OFFSET(InputPriceData!F$15,CalculationsAndCharts!$A100+$A$11,IF($C$7,7,0),1,1) -> 54.87 | K100: 55.28547852 | L100: 55.28547852 | M100: -0.1823734813 | N100: 0.5716300088 | O100: 2.140567853 | P100: -0.008612658517 | Q100: 0.2699832165 | R100: 0.2080664383 | T100: 55.79 | U100: 53.3 | V100: 0.6305220884 | X100: 0.2 | Y100: 0.8 | AD100: FALSE | AE100: FALSE | AF100: TRUE | AG100: FALSE | AH100: FALSE | AM100: FALSE | AN100: FALSE | AO100: FALSE | AP100: FALSE | AQ100: FALSE
A101: 69 | B101: =OFFSET(InputPriceData!B$15,CalculationsAndCharts!$A101+$A$11,0,1,1) -> 2013-08-05 | C101: =OFFSET(InputPriceData!G$15,CalculationsAndCharts!$A101+$A$11,0,1,1) -> 1875900 | D101: =OFFSET(InputPriceData!C$15,CalculationsAndCharts!$A101+$A$11,IF($C$7,7,0),1,1) -> 55.52 | E101: =OFFSET(InputPriceData!D$15,CalculationsAndCharts!$A101+$A$11,IF($C$7,7,0),1,1) -> 55.64 | F101: =OFFSET(InputPriceData!E$15,CalculationsAndCharts!$A101+$A$11,IF($C$7,7,0),1,1) -> 55.02 | G101: =OFFSET(InputPriceData!F$15,CalculationsAndCharts!$A101+$A$11,IF($C$7,7,0),1,1) -> 55.25 | K101: 55.17377594 | L101: 55.17377594 | M101: 0.3061038962 | N101: 0.6610214198 | O101: 2.140567853 | P101: -0.008612658517 | Q101: 0.3115764705 | R101: 0.146158611 | T101: 55.79 | U101: 51.8 | V101: 0.8646616541 | X101: 0.2 | Y101: 0.8 | AD101: FALSE | AE101: FALSE | AF101: TRUE | AG101: FALSE | AH101: FALSE | AM101: FALSE | AN101: FALSE | AO101: FALSE | AP101: FALSE | AQ101: FALSE
A102: 70 | B102: =OFFSET(InputPriceData!B$15,CalculationsAndCharts!$A102+$A$11,0,1,1) -> 2013-08-02 | C102: =OFFSET(InputPriceData!G$15,CalculationsAndCharts!$A102+$A$11,0,1,1) -> 3049700 | D102: =OFFSET(InputPriceData!C$15,CalculationsAndCharts!$A102+$A$11,IF($C$7,7,0),1,1) -> 55.4 | E102: =OFFSET(InputPriceData!D$15,CalculationsAndCharts!$A102+$A$11,IF($C$7,7,0),1,1) -> 55.82 | F102: =OFFSET(InputPriceData!E$15,CalculationsAndCharts!$A102+$A$11,IF($C$7,7,0),1,1) -> 54.55 | G102: =OFFSET(InputPriceData!F$15,CalculationsAndCharts!$A102+$A$11,IF($C$7,7,0),1,1) -> 55.79 | K102: 54.83216502 | L102: 54.83216502 | M102: 1.067086746 | N102: 0.5096071746 | O102: 2.140567853 | P102: -0.008612658517 | Q102: 0.2411243868 | R102: 0.0846479375 | T102: 55.79 | U102: 51.8 | V102: 1 | X102: 0.2 | Y102: 0.8 | AD102: FALSE | AE102: FALSE | AF102: TRUE | AG102: FALSE | AH102: FALSE | AM102: FALSE | AN102: FALSE | AO102: FALSE | AP102: FALSE | AQ102: FALSE
A103: 71 | B103: =OFFSET(InputPriceData!B$15,CalculationsAndCharts!$A103+$A$11,0,1,1) -> 2013-08-01 | C103: =OFFSET(InputPriceData!G$15,CalculationsAndCharts!$A103+$A$11,0,1,1) -> 4140100 | D103: =OFFSET(InputPriceData!C$15,CalculationsAndCharts!$A103+$A$11,IF($C$7,7,0),1,1) -> 54.97 | E103: =OFFSET(InputPriceData!D$15,CalculationsAndCharts!$A103+$A$11,IF($C$7,7,0),1,1) -> 55.6 | F103: =OFFSET(InputPriceData!E$15,CalculationsAndCharts!$A103+$A$11,IF($C$7,7,0),1,1) -> 54.4 | G103: =OFFSET(InputPriceData!F$15,CalculationsAndCharts!$A103+$A$11,IF($C$7,7,0),1,1) -> 55.42 | K103: 54.42492641 | L103: 54.42492641 | M103: 0.9724649672 | N103: 0.2503966097 | O103: 2.140567853 | P103: -0.008612658517 | Q103: 0.1205153624 | R103: 0.05307937568 | T103: 55.65 | U103: 51.8 | V103: 0.9402597403 | X103: 0.2 | Y103: 0.8 | AD103: FALSE | AE103: FALSE | AF103: TRUE | AG103: FALSE | AH103: FALSE | AM103: FALSE | AN103: FALSE | AO103: FALSE | AP103: FALSE | AQ103: FALSE
A104: 72 | B104: =OFFSET(InputPriceData!B$15,CalculationsAndCharts!$A104+$A$11,0,1,1) -> 2013-07-31 | C104: =OFFSET(InputPriceData!G$15,CalculationsAndCharts!$A104+$A$11,0,1,1) -> 2868800 | D104: =OFFSET(InputPriceData!C$15,CalculationsAndCharts!$A104+$A$11,IF($C$7,7,0),1,1) -> 54.2 | E104: =OFFSET(InputPriceData!D$15,CalculationsAndCharts!$A104+$A$11,IF($C$7,7,0),1,1) -> 54.84 | F104: =OFFSET(InputPriceData!E$15,CalculationsAndCharts!$A104+$A$11,IF($C$7,7,0),1,1) -> 54.17 | G104: =OFFSET(InputPriceData!F$15,CalculationsAndCharts!$A104+$A$11,IF($C$7,7,0),1,1) -> 54.67 | K104: 54.16107648 | L104: 54.16107648 | M104: 0.4316059112 | N104: 0.09368810266 | O104: 2.140567853 | P104: =MIN(OFFSET(N104,0,0,$A$22,1)) -> -0.008612658517 | Q104: 0.04759989243 | R104: 0.05494433828 | T104: 55.65 | U104: 51.11 | V104: 0.7841409692 | X104: 0.2 | Y104: 0.8 | AD104: FALSE | AE104: FALSE | AF104: TRUE | AG104: FALSE | AH104: FALSE | AM104: FALSE | AN104: FALSE | AO104: FALSE | AP104: FALSE | AQ104: FALSE
A105: 73 | B105: =OFFSET(InputPriceData!B$15,CalculationsAndCharts!$A105+$A$11,0,1,1) -> 2013-07-30 | C105: =OFFSET(InputPriceData!G$15,CalculationsAndCharts!$A105+$A$11,0,1,1) -> 2051100 | D105: =OFFSET(InputPriceData!C$15,CalculationsAndCharts!$A105+$A$11,IF($C$7,7,0),1,1) -> 54.15 | E105: =OFFSET(InputPriceData!D$15,CalculationsAndCharts!$A105+$A$11,IF($C$7,7,0),1,1) -> 54.44 | F105: =OFFSET(InputPriceData!E$15,CalculationsAndCharts!$A105+$A$11,IF($C$7,7,0),1,1) -> 53.86 | G105: =OFFSET(InputPriceData!F$15,CalculationsAndCharts!$A105+$A$11,IF($C$7,7,0),1,1) -> 54.06 | K105: 54.06358521 | L105: 54.06358521 | M105: -0.06954281139 | N105: 0.08708848847 | O105: 2.140567853 | P105: -0.008612658517 | Q105: 0.04452913399 | R105: 0.07739667383 | T105: 55.65 | U105: 51.11 | V105: 0.6497797357 | X105: 0.2 | Y105: 0.8 | AD105: FALSE | AE105: FALSE | AF105: TRUE | AG105: FALSE | AH105: FALSE | AM105: FALSE | AN105: FALSE | AO105: FALSE | AP105: FALSE | AQ105: FALSE
A106: 74 | B106: =OFFSET(InputPriceData!B$15,CalculationsAndCharts!$A106+$A$11,0,1,1) -> 2013-07-29 | C106: =OFFSET(InputPriceData!G$15,CalculationsAndCharts!$A106+$A$11,0,1,1) -> 2497900 | D106: =OFFSET(InputPriceData!C$15,CalculationsAndCharts!$A106+$A$11,IF($C$7,7,0),1,1) -> 53.81 | E106: =OFFSET(InputPriceData!D$15,CalculationsAndCharts!$A106+$A$11,IF($C$7,7,0),1,1) -> 54.2 | F106: =OFFSET(InputPriceData!E$15,CalculationsAndCharts!$A106+$A$11,IF($C$7,7,0),1,1) -> 53.44 | G106: =OFFSET(InputPriceData!F$15,CalculationsAndCharts!$A106+$A$11,IF($C$7,7,0),1,1) -> 54.18 | K106: 54.01205887 | L106: 54.01205887 | M106: 0.1305168482 | N106: 0.128860524 | O106: 2.140567853 | P106: -0.008612658517 | Q106: 0.063965396 | R106: 0.1127022849 | T106: 55.65 | U106: 51.11 | V106: 0.6762114537 | X106: 0.2 | Y106: 0.8 | Z106: 53.81 | AD106: FALSE | AE106: TRUE | AF106: TRUE | AG106: FALSE | AH106: FALSE | AI106: 53.81 | AK106: 53.81 | AM106: FALSE | AN106: FALSE | AO106: FALSE | AP106: FALSE | AQ106: TRUE | AS106: 53.81 | AU106: 53.81
A107: 75 | B107: =OFFSET(InputPriceData!B$15,CalculationsAndCharts!$A107+$A$11,0,1,1) -> 2013-07-26 | C107: =OFFSET(InputPriceData!G$15,CalculationsAndCharts!$A107+$A$11,0,1,1) -> 2808400 | D107: =OFFSET(InputPriceData!C$15,CalculationsAndCharts!$A107+$A$11,IF($C$7,7,0),1,1) -> 54.03 | E107: =OFFSET(InputPriceData!D$15,CalculationsAndCharts!$A107+$A$11,IF($C$7,7,0),1,1) -> 54.05 | F107: =OFFSET(InputPriceData!E$15,CalculationsAndCharts!$A107+$A$11,IF($C$7,7,0),1,1) -> 53.25 | G107: =OFFSET(InputPriceData!F$15,CalculationsAndCharts!$A107+$A$11,IF($C$7,7,0),1,1) -> 53.78 | K107: 53.95321407 | L107: 53.95321407 | M107: -0.2016350967 | N107: 0.1698777785 | O107: 2.140567853 | P107: -0.008612658517 | Q107: 0.0830504632 | R107: 0.1625655936 | T107: 55.65 | U107: 50.43 | V107: 0.6417624521 | X107: 0.2 | Y107: 0.8 | AB107: 0.1625655936 | AD107: TRUE | AE107: FALSE | AF107: FALSE | AG107: FALSE | AH107: FALSE | AM107: FALSE | AN107: FALSE | AO107: TRUE | AP107: TRUE | AQ107: FALSE
A108: 76 | B108: =OFFSET(InputPriceData!B$15,CalculationsAndCharts!$A108+$A$11,0,1,1) -> 2013-07-25 | C108: =OFFSET(InputPriceData!G$15,CalculationsAndCharts!$A108+$A$11,0,1,1) -> 2688000 | D108: =OFFSET(InputPriceData!C$15,CalculationsAndCharts!$A108+$A$11,IF($C$7,7,0),1,1) -> 54.1 | E108: =OFFSET(InputPriceData!D$15,CalculationsAndCharts!$A108+$A$11,IF($C$7,7,0),1,1) -> 54.37 | F108: =OFFSET(InputPriceData!E$15,CalculationsAndCharts!$A108+$A$11,IF($C$7,7,0),1,1) -> 53.72 | G108: =OFFSET(InputPriceData!F$15,CalculationsAndCharts!$A108+$A$11,IF($C$7,7,0),1,1) -> 54.23 | K108: 53.82662808 | L108: 53.82662808 | M108: 0.3350188216 | N108: 0.143166974 | O108: 2.140567853 | P108: -0.1067390457 | Q108: 0.111202444 | R108: 0.2289889678 | T108: 55.65 | U108: 50.43 | V108: 0.7279693487 | X108: 0.2 | Y108: 0.8 | AD108: FALSE | AE108: FALSE | AF108: FALSE | AG108: FALSE | AH108: FALSE | AM108: FALSE | AN108: FALSE | AO108: TRUE | AP108: FALSE | AQ108: FALSE
A109: 77 | B109: =OFFSET(InputPriceData!B$15,CalculationsAndCharts!$A109+$A$11,0,1,1) -> 2013-07-24 | C109: =OFFSET(InputPriceData!G$15,CalculationsAndCharts!$A109+$A$11,0,1,1) -> 2924700 | D109: =OFFSET(InputPriceData!C$15,CalculationsAndCharts!$A109+$A$11,IF($C$7,7,0),1,1) -> 53.76 | E109: =OFFSET(InputPriceData!D$15,CalculationsAndCharts!$A109+$A$11,IF($C$7,7,0),1,1) -> 54.25 | F109: =OFFSET(InputPriceData!E$15,CalculationsAndCharts!$A109+$A$11,IF($C$7,7,0),1,1) -> 53.67 | G109: =OFFSET(InputPriceData!F$15,CalculationsAndCharts!$A109+$A$11,IF($C$7,7,0),1,1) -> 54.23 | K109: 53.62863504 | L109: 53.62863504 | M109: 0.4830420531 | N109: 0.03115683176 | O109: 2.140567853 | P109: -0.4951296519 | Q109: 0.1996763599 | R109: 0.3093309054 | T109: 55.65 | U109: 50.43 | V109: 0.7279693487 | X109: 0.2 | Y109: 0.8 | AD109: FALSE | AE109: FALSE | AF109: FALSE | AG109: FALSE | AH109: FALSE | AM109: FALSE | AN109: FALSE | AO109: TRUE | AP109: FALSE | AQ109: FALSE
A110: 78 | B110: =OFFSET(InputPriceData!B$15,CalculationsAndCharts!$A110+$A$11,0,1,1) -> 2013-07-23 | C110: =OFFSET(InputPriceData!G$15,CalculationsAndCharts!$A110+$A$11,0,1,1) -> 2915400 | D110: =OFFSET(InputPriceData!C$15,CalculationsAndCharts!$A110+$A$11,IF($C$7,7,0),1,1) -> 53.63 | E110: =OFFSET(InputPriceData!D$15,CalculationsAndCharts!$A110+$A$11,IF($C$7,7,0),1,1) -> 53.95 | F110: =OFFSET(InputPriceData!E$15,CalculationsAndCharts!$A110+$A$11,IF($C$7,7,0),1,1) -> 53.31 | G110: =OFFSET(InputPriceData!F$15,CalculationsAndCharts!$A110+$A$11,IF($C$7,7,0),1,1) -> 53.82 | K110: 53.51736144 | L110: 53.51736144 | M110: 0.2058735131 | N110: -0.008612658517 | O110: 2.140567853 | P110: -0.6875252264 | Q110: 0.240060192 | R110: 0.4099556741 | T110: 55.65 | U110: 50.43 | V110: 0.6494252874 | X110: 0.2 | Y110: 0.8 | AD110: FALSE | AE110: FALSE | AF110: FALSE | AG110: FALSE | AH110: FALSE | AM110: FALSE | AN110: FALSE | AO110: TRUE | AP110: FALSE | AQ110: FALSE
A111: 79 | B111: =OFFSET(InputPriceData!B$15,CalculationsAndCharts!$A111+$A$11,0,1,1) -> 2013-07-22 | C111: =OFFSET(InputPriceData!G$15,CalculationsAndCharts!$A111+$A$11,0,1,1) -> 2225000 | D111: =OFFSET(InputPriceData!C$15,CalculationsAndCharts!$A111+$A$11,IF($C$7,7,0),1,1) -> 53.37 | E111: =OFFSET(InputPriceData!D$15,CalculationsAndCharts!$A111+$A$11,IF($C$7,7,0),1,1) -> 53.69 | F111: =OFFSET(InputPriceData!E$15,CalculationsAndCharts!$A111+$A$11,IF($C$7,7,0),1,1) -> 53.04 | G111: =OFFSET(InputPriceData!F$15,CalculationsAndCharts!$A111+$A$11,IF($C$7,7,0),1,1) -> 53.54 | K111: 53.55924749 | L111: 53.55924749 | M111: 0.01324937737 | N111: 0.1119939967 | O111: 2.140567853 | P111: -0.6875252264 | Q111: 0.2827061205 | R111: 0.5376178357 | T111: 55.65 | U111: 50 | V111: 0.6265486726 | X111: 0.2 | Y111: 0.8 | AD111: FALSE | AE111: FALSE | AF111: FALSE | AG111: FALSE | AH111: FALSE | AM111: FALSE | AN111: FALSE | AO111: TRUE | AP111: FALSE | AQ111: FALSE
A112: 80 | B112: =OFFSET(InputPriceData!B$15,CalculationsAndCharts!$A112+$A$11,0,1,1) -> 2013-07-19 | C112: =OFFSET(InputPriceData!G$15,CalculationsAndCharts!$A112+$A$11,0,1,1) -> 2474400 | D112: =OFFSET(InputPriceData!C$15,CalculationsAndCharts!$A112+$A$11,IF($C$7,7,0),1,1) -> 53.51 | E112: =OFFSET(InputPriceData!D$15,CalculationsAndCharts!$A112+$A$11,IF($C$7,7,0),1,1) -> 53.94 | F112: =OFFSET(InputPriceData!E$15,CalculationsAndCharts!$A112+$A$11,IF($C$7,7,0),1,1) -> 53.06 | G112: =OFFSET(InputPriceData!F$15,CalculationsAndCharts!$A112+$A$11,IF($C$7,7,0),1,1) -> 53.3 | K112: 53.73540463 | L112: 53.73540463 | M112: -0.1747485635 | N112: 0.4037323887 | O112: 2.140567853 | P112: -0.6875252264 | Q112: 0.3858634013 | R112: 0.6779970748 | T112: 55.65 | U112: 50 | V112: 0.5840707965 | X112: 0.2 | Y112: 0.8 | AD112: FALSE | AE112: FALSE | AF112: FALSE | AG112: FALSE | AH112: FALSE | AM112: FALSE | AN112: FALSE | AO112: TRUE | AP112: FALSE | AQ112: FALSE
A113: 81 | B113: =OFFSET(InputPriceData!B$15,CalculationsAndCharts!$A113+$A$11,0,1,1) -> 2013-07-18 | C113: =OFFSET(InputPriceData!G$15,CalculationsAndCharts!$A113+$A$11,0,1,1) -> 2050400 | D113: =OFFSET(InputPriceData!C$15,CalculationsAndCharts!$A113+$A$11,IF($C$7,7,0),1,1) -> 53.71 | E113: =OFFSET(InputPriceData!D$15,CalculationsAndCharts!$A113+$A$11,IF($C$7,7,0),1,1) -> 53.91 | F113: =OFFSET(InputPriceData!E$15,CalculationsAndCharts!$A113+$A$11,IF($C$7,7,0),1,1) -> 53.29 | G113: =OFFSET(InputPriceData!F$15,CalculationsAndCharts!$A113+$A$11,IF($C$7,7,0),1,1) -> 53.45 | I113: =IF($A113=$E$25,I$32,NA()) ->  | K113: 53.9695841 | L113: 53.9695841 | M113: 0.02940791598 | N113: 0.8148690857 | O113: 2.140567853 | P113: -0.6875252264 | Q113: 0.5312393438 | R113: 0.807766234 | T113: 55.65 | U113: 49.88 | V113: 0.6187175043 | X113: 0.2 | Y113: 0.8 | AD113: FALSE | AE113: FALSE | AF113: FALSE | AG113: FALSE | AH113: FALSE | AM113: FALSE | AN113: FALSE | AO113: TRUE | AP113: FALSE | AQ113: FALSE
A114: 82 | B114: =OFFSET(InputPriceData!B$15,CalculationsAndCharts!$A114+$A$11,0,1,1) -> 2013-07-17 | C114: =OFFSET(InputPriceData!G$15,CalculationsAndCharts!$A114+$A$11,0,1,1) -> 1784300 | D114: =OFFSET(InputPriceData!C$15,CalculationsAndCharts!$A114+$A$11,IF($C$7,7,0),1,1) -> 54.15 | E114: =OFFSET(InputPriceData!D$15,CalculationsAndCharts!$A114+$A$11,IF($C$7,7,0),1,1) -> 54.2 | F114: =OFFSET(InputPriceData!E$15,CalculationsAndCharts!$A114+$A$11,IF($C$7,7,0),1,1) -> 53.6 | G114: =OFFSET(InputPriceData!F$15,CalculationsAndCharts!$A114+$A$11,IF($C$7,7,0),1,1) -> 53.65 | K114: 54.1730125 | L114: 54.1730125 | M114: 0.3298364569 | N114: 1.26823883 | O114: 2.140567853 | P114: -0.6875252264 | Q114: 0.6915486871 | R114: 0.9083521225 | T114: 55.65 | U114: 49.88 | V114: 0.6533795494 | X114: 0.2 | Y114: 0.8 | AD114: FALSE | AE114: FALSE | AF114: FALSE | AG114: FALSE | AH114: FALSE | AM114: FALSE | AN114: FALSE | AO114: TRUE | AP114: FALSE | AQ114: FALSE
A115: 83 | B115: =OFFSET(InputPriceData!B$15,CalculationsAndCharts!$A115+$A$11,0,1,1) -> 2013-07-16 | C115: =OFFSET(InputPriceData!G$15,CalculationsAndCharts!$A115+$A$11,0,1,1) -> 2169100 | D115: =OFFSET(InputPriceData!C$15,CalculationsAndCharts!$A115+$A$11,IF($C$7,7,0),1,1) -> 53.71 | E115: =OFFSET(InputPriceData!D$15,CalculationsAndCharts!$A115+$A$11,IF($C$7,7,0),1,1) -> 54.03 | F115: =OFFSET(InputPriceData!E$15,CalculationsAndCharts!$A115+$A$11,IF($C$7,7,0),1,1) -> 53.5 | G115: =OFFSET(InputPriceData!F$15,CalculationsAndCharts!$A115+$A$11,IF($C$7,7,0),1,1) -> 53.9 | K115: 54.28417816 | L115: 54.28417816 | M115: 0.7433095876 | N115: 1.700536962 | O115: 2.140567853 | P115: -0.6875252264 | Q115: 0.8444072103 | R115: 0.9701454133 | T115: 55.65 | U115: 49.88 | V115: 0.6967071057 | X115: 0.2 | Y115: 0.8 | AD115: FALSE | AE115: FALSE | AF115: FALSE | AG115: FALSE | AH115: FALSE | AM115: FALSE | AN115: FALSE | AO115: TRUE | AP115: FALSE | AQ115: FALSE
A116: 84 | B116: =OFFSET(InputPriceData!B$15,CalculationsAndCharts!$A116+$A$11,0,1,1) -> 2013-07-15 | C116: =OFFSET(InputPriceData!G$15,CalculationsAndCharts!$A116+$A$11,0,1,1) -> 2538100 | D116: =OFFSET(InputPriceData!C$15,CalculationsAndCharts!$A116+$A$11,IF($C$7,7,0),1,1) -> 53.93 | E116: =OFFSET(InputPriceData!D$15,CalculationsAndCharts!$A116+$A$11,IF($C$7,7,0),1,1) -> 54.2 | F116: =OFFSET(InputPriceData!E$15,CalculationsAndCharts!$A116+$A$11,IF($C$7,7,0),1,1) -> 53.76 | G116: =OFFSET(InputPriceData!F$15,CalculationsAndCharts!$A116+$A$11,IF($C$7,7,0),1,1) -> 53.96 | K116: 54.2410821 | L116: 54.2410821 | M116: 1.02507755 | N116: 2.035229854 | O116: 2.140567853 | P116: -0.6875252264 | Q116: 0.9627529942 | R116: 0.9959603708 | T116: 55.65 | U116: 49.88 | V116: 0.7071057192 | X116: 0.2 | Y116: 0.8 | AD116: FALSE | AE116: FALSE | AF116: FALSE | AG116: FALSE | AH116: FALSE | AM116: FALSE | AN116: FALSE | AO116: TRUE | AP116: FALSE | AQ116: FALSE
A117: 85 | B117: =OFFSET(InputPriceData!B$15,CalculationsAndCharts!$A117+$A$11,0,1,1) -> 2013-07-12 | C117: =OFFSET(InputPriceData!G$15,CalculationsAndCharts!$A117+$A$11,0,1,1) -> 7579900 | D117: =OFFSET(InputPriceData!C$15,CalculationsAndCharts!$A117+$A$11,IF($C$7,7,0),1,1) -> 54.14 | E117: =OFFSET(InputPriceData!D$15,CalculationsAndCharts!$A117+$A$11,IF($C$7,7,0),1,1) -> 54.4 | F117: =OFFSET(InputPriceData!E$15,CalculationsAndCharts!$A117+$A$11,IF($C$7,7,0),1,1) -> 53.45 | G117: =OFFSET(InputPriceData!F$15,CalculationsAndCharts!$A117+$A$11,IF($C$7,7,0),1,1) -> 53.77 | K117: 53.94484334 | L117: 53.94484334 | M117: 1.07969375 | N117: 2.140567853 | O117: 2.140567853 | P117: -0.6875252264 | Q117: 1 | R117: 1.001869158 | T117: 55.65 | U117: 49.88 | V117: 0.6741767764 | X117: 0.2 | Y117: 0.8 | AD117: FALSE | AE117: FALSE | AF117: FALSE | AG117: FALSE | AH117: FALSE | AM117: FALSE | AN117: FALSE | AO117: TRUE | AP117: FALSE | AQ117: FALSE
A118: 86 | B118: =OFFSET(InputPriceData!B$15,CalculationsAndCharts!$A118+$A$11,0,1,1) -> 2013-07-11 | C118: =OFFSET(InputPriceData!G$15,CalculationsAndCharts!$A118+$A$11,0,1,1) -> 4215300 | D118: =OFFSET(InputPriceData!C$15,CalculationsAndCharts!$A118+$A$11,IF($C$7,7,0),1,1) -> 55.05 | E118: =OFFSET(InputPriceData!D$15,CalculationsAndCharts!$A118+$A$11,IF($C$7,7,0),1,1) -> 55.8 | F118: =OFFSET(InputPriceData!E$15,CalculationsAndCharts!$A118+$A$11,IF($C$7,7,0),1,1) -> 54.58 | G118: =OFFSET(InputPriceData!F$15,CalculationsAndCharts!$A118+$A$11,IF($C$7,7,0),1,1) -> 55.65 | K118: 53.17544667 | L118: 53.17544667 | M118: 3.411146345 | N118: 1.726950618 | O118: 1.726950618 | P118: -0.8883943766 | Q118: 1 | R118: 1.003623062 | T118: 55.65 | U118: 49.88 | V118: 1 | X118: 0.2 | Y118: 0.8 | AD118: FALSE | AE118: FALSE | AF118: FALSE | AG118: FALSE | AH118: FALSE | AM118: FALSE | AN118: FALSE | AO118: TRUE | AP118: FALSE | AQ118: FALSE
A119: 87 | B119: =OFFSET(InputPriceData!B$15,CalculationsAndCharts!$A119+$A$11,0,1,1) -> 2013-07-10 | C119: =OFFSET(InputPriceData!G$15,CalculationsAndCharts!$A119+$A$11,0,1,1) -> 8237500 | D119: =OFFSET(InputPriceData!C$15,CalculationsAndCharts!$A119+$A$11,IF($C$7,7,0),1,1) -> 52.87 | E119: =OFFSET(InputPriceData!D$15,CalculationsAndCharts!$A119+$A$11,IF($C$7,7,0),1,1) -> 55.01 | F119: =OFFSET(InputPriceData!E$15,CalculationsAndCharts!$A119+$A$11,IF($C$7,7,0),1,1) -> 52.83 | G119: =OFFSET(InputPriceData!F$15,CalculationsAndCharts!$A119+$A$11,IF($C$7,7,0),1,1) -> 54.78 | K119: 52.24923524 | L119: 52.24923524 | M119: 3.161694221 | N119: 1.040403096 | O119: 1.040403096 | P119: -1.258649141 | Q119: 1 | R119: 1.005657556 | T119: 54.78 | U119: 49.88 | V119: 1 | X119: 0.2 | Y119: 0.8 | AD119: FALSE | AE119: FALSE | AF119: FALSE | AG119: FALSE | AH119: FALSE | AM119: FALSE | AN119: FALSE | AO119: TRUE | AP119: FALSE | AQ119: FALSE
A120: 88 | B120: =OFFSET(InputPriceData!B$15,CalculationsAndCharts!$A120+$A$11,0,1,1) -> 2013-07-09 | C120: =OFFSET(InputPriceData!G$15,CalculationsAndCharts!$A120+$A$11,0,1,1) -> 2370100 | D120: =OFFSET(InputPriceData!C$15,CalculationsAndCharts!$A120+$A$11,IF($C$7,7,0),1,1) -> 52.32 | E120: =OFFSET(InputPriceData!D$15,CalculationsAndCharts!$A120+$A$11,IF($C$7,7,0),1,1) -> 52.82 | F120: =OFFSET(InputPriceData!E$15,CalculationsAndCharts!$A120+$A$11,IF($C$7,7,0),1,1) -> 51.77 | G120: =OFFSET(InputPriceData!F$15,CalculationsAndCharts!$A120+$A$11,IF($C$7,7,0),1,1) -> 51.8 | K120: 51.82260344 | L120: 51.82260344 | M120: 0.5117521988 | N120: 0.7535014324 | O120: 0.7535014324 | P120: -1.749941679 | Q120: 1 | R120: 1.007122114 | T120: 52.43 | U120: 49.88 | V120: 0.7529411765 | X120: 0.2 | Y120: 0.8 | AD120: FALSE | AE120: FALSE | AF120: FALSE | AG120: FALSE | AH120: FALSE | AM120: FALSE | AN120: FALSE | AO120: TRUE | AP120: FALSE | AQ120: FALSE
A121: 89 | B121: =OFFSET(InputPriceData!B$15,CalculationsAndCharts!$A121+$A$11,0,1,1) -> 2013-07-08 | C121: =OFFSET(InputPriceData!G$15,CalculationsAndCharts!$A121+$A$11,0,1,1) -> 2309500 | D121: =OFFSET(InputPriceData!C$15,CalculationsAndCharts!$A121+$A$11,IF($C$7,7,0),1,1) -> 52 | E121: =OFFSET(InputPriceData!D$15,CalculationsAndCharts!$A121+$A$11,IF($C$7,7,0),1,1) -> 52.36 | F121: =OFFSET(InputPriceData!E$15,CalculationsAndCharts!$A121+$A$11,IF($C$7,7,0),1,1) -> 51.49 | G121: =OFFSET(InputPriceData!F$15,CalculationsAndCharts!$A121+$A$11,IF($C$7,7,0),1,1) -> 52.12 | K121: 51.68843707 | L121: 51.68843707 | M121: 0.9455682162 | N121: 0.7226231323 | O121: 0.7226231323 | P121: -2.169591152 | Q121: 1 | R121: 1.006299594 | T121: 52.43 | U121: 49.88 | V121: 0.8784313725 | X121: 0.2 | Y121: 0.8 | AD121: FALSE | AE121: FALSE | AF121: FALSE | AG121: FALSE | AH121: FALSE | AM121: FALSE | AN121: FALSE | AO121: TRUE | AP121: FALSE | AQ121: FALSE
A122: 90 | B122: =OFFSET(InputPriceData!B$15,CalculationsAndCharts!$A122+$A$11,0,1,1) -> 2013-07-05 | C122: =OFFSET(InputPriceData!G$15,CalculationsAndCharts!$A122+$A$11,0,1,1) -> 1673500 | D122: =OFFSET(InputPriceData!C$15,CalculationsAndCharts!$A122+$A$11,IF($C$7,7,0),1,1) -> 51.46 | E122: =OFFSET(InputPriceData!D$15,CalculationsAndCharts!$A122+$A$11,IF($C$7,7,0),1,1) -> 52.05 | F122: =OFFSET(InputPriceData!E$15,CalculationsAndCharts!$A122+$A$11,IF($C$7,7,0),1,1) -> 51.26 | G122: =OFFSET(InputPriceData!F$15,CalculationsAndCharts!$A122+$A$11,IF($C$7,7,0),1,1) -> 52.01 | K122: 51.52936865 | L122: 51.52936865 | M122: 0.9860425743 | N122: 0.6512631143 | O122: 0.6713500932 | P122: -2.486813866 | Q122: 0.9936396656 | R122: 1.00042264 | T122: 52.43 | U122: 49.88 | V122: 0.8352941176 | X122: 0.2 | Y122: 0.8 | AD122: FALSE | AE122: FALSE | AF122: FALSE | AG122: FALSE | AH122: FALSE | AM122: FALSE | AN122: FALSE | AO122: TRUE | AP122: FALSE | AQ122: FALSE
A123: 91 | B123: =OFFSET(InputPriceData!B$15,CalculationsAndCharts!$A123+$A$11,0,1,1) -> 2013-07-03 | C123: =OFFSET(InputPriceData!G$15,CalculationsAndCharts!$A123+$A$11,0,1,1) -> 1860000 | D123: =OFFSET(InputPriceData!C$15,CalculationsAndCharts!$A123+$A$11,IF($C$7,7,0),1,1) -> 51.25 | E123: =OFFSET(InputPriceData!D$15,CalculationsAndCharts!$A123+$A$11,IF($C$7,7,0),1,1) -> 51.38 | F123: =OFFSET(InputPriceData!E$15,CalculationsAndCharts!$A123+$A$11,IF($C$7,7,0),1,1) -> 50.53 | G123: =OFFSET(InputPriceData!F$15,CalculationsAndCharts!$A123+$A$11,IF($C$7,7,0),1,1) -> 51.11 | K123: 51.47227771 | L123: 51.47227771 | M123: 0.1568824238 | N123: 0.6713500932 | O123: 0.6713500932 | P123: -2.696919388 | Q123: 1 | R123: 0.9839164055 | T123: 52.43 | U123: 49.88 | V123: 0.4823529412 | X123: 0.2 | Y123: 0.8 | AD123: FALSE | AE123: FALSE | AF123: FALSE | AG123: FALSE | AH123: FALSE | AM123: FALSE | AN123: FALSE | AO123: TRUE | AP123: FALSE | AQ123: FALSE
A124: 92 | B124: =OFFSET(InputPriceData!B$15,CalculationsAndCharts!$A124+$A$11,0,1,1) -> 2013-07-02 | C124: =OFFSET(InputPriceData!G$15,CalculationsAndCharts!$A124+$A$11,0,1,1) -> 3334300 | D124: =OFFSET(InputPriceData!C$15,CalculationsAndCharts!$A124+$A$11,IF($C$7,7,0),1,1) -> 52.19 | E124: =OFFSET(InputPriceData!D$15,CalculationsAndCharts!$A124+$A$11,IF($C$7,7,0),1,1) -> 52.43 | F124: =OFFSET(InputPriceData!E$15,CalculationsAndCharts!$A124+$A$11,IF($C$7,7,0),1,1) -> 51.23 | G124: =OFFSET(InputPriceData!F$15,CalculationsAndCharts!$A124+$A$11,IF($C$7,7,0),1,1) -> 51.36 | K124: 51.38745967 | L124: 51.38745967 | M124: 0.4217724764 | N124: 0.6587117927 | O124: 0.6587117927 | P124: -2.696919388 | Q124: 1 | R124: 0.9517256801 | T124: 52.43 | U124: 49.88 | V124: 0.5803921569 | X124: 0.2 | Y124: 0.8 | AD124: FALSE | AE124: FALSE | AF124: FALSE | AG124: FALSE | AH124: FALSE | AM124: FALSE | AN124: FALSE | AO124: TRUE | AP124: FALSE | AQ124: FALSE
A125: 93 | B125: =OFFSET(InputPriceData!B$15,CalculationsAndCharts!$A125+$A$11,0,1,1) -> 2013-07-01 | C125: =OFFSET(InputPriceData!G$15,CalculationsAndCharts!$A125+$A$11,0,1,1) -> 4290300 | D125: =OFFSET(InputPriceData!C$15,CalculationsAndCharts!$A125+$A$11,IF($C$7,7,0),1,1) -> 51.03 | E125: =OFFSET(InputPriceData!D$15,CalculationsAndCharts!$A125+$A$11,IF($C$7,7,0),1,1) -> 52.84 | F125: =OFFSET(InputPriceData!E$15,CalculationsAndCharts!$A125+$A$11,IF($C$7,7,0),1,1) -> 50.97 | G125: =OFFSET(InputPriceData!F$15,CalculationsAndCharts!$A125+$A$11,IF($C$7,7,0),1,1) -> 52.43 | K125: 51.08740596 | L125: 51.08740596 | M125: 1.638191985 | N125: 0.4006435866 | O125: 0.4006435866 | P125: -2.696919388 | Q125: 1 | R125: 0.9031699262 | T125: 52.43 | U125: 48.64 | V125: 1 | X125: 0.2 | Y125: 0.8 | AD125: FALSE | AE125: FALSE | AF125: FALSE | AG125: FALSE | AH125: FALSE | AM125: FALSE | AN125: FALSE | AO125: TRUE | AP125: FALSE | AQ125: FALSE
A126: 94 | B126: =OFFSET(InputPriceData!B$15,CalculationsAndCharts!$A126+$A$11,0,1,1) -> 2013-06-28 | C126: =OFFSET(InputPriceData!G$15,CalculationsAndCharts!$A126+$A$11,0,1,1) -> 8498100 | D126: =OFFSET(InputPriceData!C$15,CalculationsAndCharts!$A126+$A$11,IF($C$7,7,0),1,1) -> 51.45 | E126: =OFFSET(InputPriceData!D$15,CalculationsAndCharts!$A126+$A$11,IF($C$7,7,0),1,1) -> 51.59 | F126: =OFFSET(InputPriceData!E$15,CalculationsAndCharts!$A126+$A$11,IF($C$7,7,0),1,1) -> 50.43 | G126: =OFFSET(InputPriceData!F$15,CalculationsAndCharts!$A126+$A$11,IF($C$7,7,0),1,1) -> 50.43 | K126: 50.85491355 | L126: 50.85491355 | M126: -0.2884775384 | N126: 0.1605235518 | O126: 0.1605235518 | P126: -2.696919388 | Q126: 1 | R126: 0.8447092445 | T126: 53.55 | U126: 48.64 | V126: 0.3645621181 | X126: 0.2 | Y126: 0.8 | AD126: FALSE | AE126: FALSE | AF126: FALSE | AG126: FALSE | AH126: FALSE | AM126: TRUE | AN126: FALSE | AO126: TRUE | AP126: FALSE | AQ126: FALSE
A127: 95 | B127: =OFFSET(InputPriceData!B$15,CalculationsAndCharts!$A127+$A$11,0,1,1) -> 2013-06-27 | C127: =OFFSET(InputPriceData!G$15,CalculationsAndCharts!$A127+$A$11,0,1,1) -> 2268900 | D127: =OFFSET(InputPriceData!C$15,CalculationsAndCharts!$A127+$A$11,IF($C$7,7,0),1,1) -> 51.28 | E127: =OFFSET(InputPriceData!D$15,CalculationsAndCharts!$A127+$A$11,IF($C$7,7,0),1,1) -> 51.93 | F127: =OFFSET(InputPriceData!E$15,CalculationsAndCharts!$A127+$A$11,IF($C$7,7,0),1,1) -> 51.16 | G127: =OFFSET(InputPriceData!F$15,CalculationsAndCharts!$A127+$A$11,IF($C$7,7,0),1,1) -> 51.64 | K127: 50.643587 | L127: 50.643587 | M127: 0.9244982773 | N127: -0.1067390457 | O127: 0.05112486175 | P127: -2.696919388 | Q127: 0.9425540883 | R127: 0.7981463805 | T127: 53.55 | U127: 48.64 | V127: 0.6109979633 | X127: 0.2 | Y127: 0.8 | AD127: FALSE | AE127: FALSE | AF127: FALSE | AG127: FALSE | AH127: FALSE | AM127: FALSE | AN127: FALSE | AO127: TRUE | AP127: FALSE | AQ127: FALSE
A128: 96 | B128: =OFFSET(InputPriceData!B$15,CalculationsAndCharts!$A128+$A$11,0,1,1) -> 2013-06-26 | C128: =OFFSET(InputPriceData!G$15,CalculationsAndCharts!$A128+$A$11,0,1,1) -> 1980700 | D128: =OFFSET(InputPriceData!C$15,CalculationsAndCharts!$A128+$A$11,IF($C$7,7,0),1,1) -> 50.54 | E128: =OFFSET(InputPriceData!D$15,CalculationsAndCharts!$A128+$A$11,IF($C$7,7,0),1,1) -> 51.27 | F128: =OFFSET(InputPriceData!E$15,CalculationsAndCharts!$A128+$A$11,IF($C$7,7,0),1,1) -> 50.54 | G128: =OFFSET(InputPriceData!F$15,CalculationsAndCharts!$A128+$A$11,IF($C$7,7,0),1,1) -> 51.17 | K128: 50.3706787 | L128: 50.3706787 | M128: 0.5286723809 | N128: -0.4951296519 | O128: 0.05112486175 | P128: -2.696919388 | Q128: 0.8012206268 | R128: 0.7914908298 | T128: 53.67 | U128: 48.64 | V128: 0.5029821074 | X128: 0.2 | Y128: 0.8 | AD128: FALSE | AE128: FALSE | AF128: FALSE | AG128: FALSE | AH128: FALSE | AM128: FALSE | AN128: FALSE | AO128: TRUE | AP128: FALSE | AQ128: FALSE
A129: 97 | B129: =OFFSET(InputPriceData!B$15,CalculationsAndCharts!$A129+$A$11,0,1,1) -> 2013-06-25 | C129: =OFFSET(InputPriceData!G$15,CalculationsAndCharts!$A129+$A$11,0,1,1) -> 2966100 | D129: =OFFSET(InputPriceData!C$15,CalculationsAndCharts!$A129+$A$11,IF($C$7,7,0),1,1) -> 50.16 | E129: =OFFSET(InputPriceData!D$15,CalculationsAndCharts!$A129+$A$11,IF($C$7,7,0),1,1) -> 50.81 | F129: =OFFSET(InputPriceData!E$15,CalculationsAndCharts!$A129+$A$11,IF($C$7,7,0),1,1) -> 50.03 | G129: =OFFSET(InputPriceData!F$15,CalculationsAndCharts!$A129+$A$11,IF($C$7,7,0),1,1) -> 50.51 | K129: 50.34372683 | L129: 50.34372683 | M129: -0.1616467531 | N129: -0.6875252264 | O129: 0.05112486175 | P129: -2.696919388 | Q129: 0.7312088086 | R129: 0.8247895538 | T129: 53.93 | U129: 48.64 | V129: 0.3534971645 | X129: 0.2 | Y129: 0.8 | AD129: FALSE | AE129: FALSE | AF129: FALSE | AG129: FALSE | AH129: FALSE | AM129: FALSE | AN129: FALSE | AO129: TRUE | AP129: FALSE | AQ129: FALSE
A130: 98 | B130: =OFFSET(InputPriceData!B$15,CalculationsAndCharts!$A130+$A$11,0,1,1) -> 2013-06-24 | C130: =OFFSET(InputPriceData!G$15,CalculationsAndCharts!$A130+$A$11,0,1,1) -> 3669000 | D130: =OFFSET(InputPriceData!C$15,CalculationsAndCharts!$A130+$A$11,IF($C$7,7,0),1,1) -> 49.78 | E130: =OFFSET(InputPriceData!D$15,CalculationsAndCharts!$A130+$A$11,IF($C$7,7,0),1,1) -> 50.42 | F130: =OFFSET(InputPriceData!E$15,CalculationsAndCharts!$A130+$A$11,IF($C$7,7,0),1,1) -> 49.5 | G130: =OFFSET(InputPriceData!F$15,CalculationsAndCharts!$A130+$A$11,IF($C$7,7,0),1,1) -> 50 | K130: 50.5836326 | L130: 50.5836326 | M130: -0.8261036772 | N130: -0.6192172902 | O130: 0.1641313054 | P130: -2.696919388 | Q130: 0.7262024761 | R130: 0.8696997005 | T130: 54.48 | U130: 48.64 | V130: 0.2328767123 | X130: 0.2 | Y130: 0.8 | AD130: FALSE | AE130: FALSE | AF130: FALSE | AG130: FALSE | AH130: FALSE | AM130: FALSE | AN130: FALSE | AO130: TRUE | AP130: FALSE | AQ130: FALSE
A131: 99 | B131: =OFFSET(InputPriceData!B$15,CalculationsAndCharts!$A131+$A$11,0,1,1) -> 2013-06-21 | C131: =OFFSET(InputPriceData!G$15,CalculationsAndCharts!$A131+$A$11,0,1,1) -> 4118300 | D131: =OFFSET(InputPriceData!C$15,CalculationsAndCharts!$A131+$A$11,IF($C$7,7,0),1,1) -> 50.3 | E131: =OFFSET(InputPriceData!D$15,CalculationsAndCharts!$A131+$A$11,IF($C$7,7,0),1,1) -> 50.33 | F131: =OFFSET(InputPriceData!E$15,CalculationsAndCharts!$A131+$A$11,IF($C$7,7,0),1,1) -> 49.47 | G131: =OFFSET(InputPriceData!F$15,CalculationsAndCharts!$A131+$A$11,IF($C$7,7,0),1,1) -> 50.21 | K131: 50.9646653 | L131: 50.9646653 | M131: -0.8264697947 | N131: -0.3759949471 | O131: 0.2034849472 | P131: -2.696919388 | Q131: 0.8002072031 | R131: 0.8921156403 | T131: 54.48 | U131: 48.64 | V131: 0.2688356164 | X131: 0.2 | Y131: 0.8 | AA131: 50.3 | AD131: FALSE | AE131: FALSE | AF131: TRUE | AG131: FALSE | AH131: TRUE | AJ131: 50.3 | AL131: 50.3 | AM131: FALSE | AN131: TRUE | AO131: TRUE | AP131: FALSE | AQ131: FALSE | AR131: 50.3 | AT131: 50.3
A132: 100 | B132: =OFFSET(InputPriceData!B$15,CalculationsAndCharts!$A132+$A$11,0,1,1) -> 2013-06-20 | C132: =OFFSET(InputPriceData!G$15,CalculationsAndCharts!$A132+$A$11,0,1,1) -> 4553000 | D132: =OFFSET(InputPriceData!C$15,CalculationsAndCharts!$A132+$A$11,IF($C$7,7,0),1,1) -> 51.17 | E132: =OFFSET(InputPriceData!D$15,CalculationsAndCharts!$A132+$A$11,IF($C$7,7,0),1,1) -> 51.19 | F132: =OFFSET(InputPriceData!E$15,CalculationsAndCharts!$A132+$A$11,IF($C$7,7,0),1,1) -> 49.72 | G132: =OFFSET(InputPriceData!F$15,CalculationsAndCharts!$A132+$A$11,IF($C$7,7,0),1,1) -> 49.88 | K132: 51.36199737 | L132: 51.36199737 | M132: -1.412828633 | N132: -0.06177455686 | O132: 0.2160186402 | P132: -2.696919388 | Q132: 0.9046347041 | R132: 0.8672772911 | T132: 54.48 | U132: 48.64 | V132: 0.2123287671 | X132: 0.2 | Y132: 0.8 | AC132: 0.8672772911 | AD132: FALSE | AE132: FALSE | AF132: TRUE | AG132: TRUE | AH132: FALSE | AM132: TRUE | AN132: FALSE | AO132: FALSE | AP132: FALSE | AQ132: FALSE
A133: 101 | B133: =OFFSET(InputPriceData!B$15,CalculationsAndCharts!$A133+$A$11,0,1,1) -> 2013-06-19 | C133: =OFFSET(InputPriceData!G$15,CalculationsAndCharts!$A133+$A$11,0,1,1) -> 2913500 | D133: =OFFSET(InputPriceData!C$15,CalculationsAndCharts!$A133+$A$11,IF($C$7,7,0),1,1) -> 52.36 | E133: =OFFSET(InputPriceData!D$15,CalculationsAndCharts!$A133+$A$11,IF($C$7,7,0),1,1) -> 52.47 | F133: =OFFSET(InputPriceData!E$15,CalculationsAndCharts!$A133+$A$11,IF($C$7,7,0),1,1) -> 51.3 | G133: =OFFSET(InputPriceData!F$15,CalculationsAndCharts!$A133+$A$11,IF($C$7,7,0),1,1) -> 51.33 | I133: =IF($A133=$E$25,I$32,NA()) ->  | K133: 51.51749045 | L133: 51.51749045 | M133: -0.1482247923 | N133: 0.05112486175 | O133: 0.2302220286 | P133: -2.696919388 | Q133: 0.9388149934 | R133: 0.7977434342 | T133: 54.48 | U133: 48.64 | V133: 0.4606164384 | X133: 0.2 | Y133: 0.8 | AD133: FALSE | AE133: FALSE | AF133: TRUE | AG133: FALSE | AH133: FALSE | AM133: FALSE | AN133: FALSE | AO133: FALSE | AP133: FALSE | AQ133: FALSE
A134: 102 | B134: =OFFSET(InputPriceData!B$15,CalculationsAndCharts!$A134+$A$11,0,1,1) -> 2013-06-18 | C134: =OFFSET(InputPriceData!G$15,CalculationsAndCharts!$A134+$A$11,0,1,1) -> 2988500 | D134: =OFFSET(InputPriceData!C$15,CalculationsAndCharts!$A134+$A$11,IF($C$7,7,0),1,1) -> 51.1 | E134: =OFFSET(InputPriceData!D$15,CalculationsAndCharts!$A134+$A$11,IF($C$7,7,0),1,1) -> 52.3 | F134: =OFFSET(InputPriceData!E$15,CalculationsAndCharts!$A134+$A$11,IF($C$7,7,0),1,1) -> 50.81 | G134: =OFFSET(InputPriceData!F$15,CalculationsAndCharts!$A134+$A$11,IF($C$7,7,0),1,1) -> 52.29 | K134: 51.33394789 | L134: 51.33394789 | M134: 0.8365723066 | N134: -0.1862244039 | O134: 0.2302220286 | P134: -2.696919388 | Q134: 0.8577293089 | R134: 0.7049883834 | T134: 54.48 | U134: 48.64 | V134: 0.625 | X134: 0.2 | Y134: 0.8 | AD134: FALSE | AE134: FALSE | AF134: TRUE | AG134: FALSE | AH134: =AND(AG135,AF135) -> FALSE | AM134: FALSE | AN134: =AND(AM135,NOT(AO135)) -> FALSE | AO134: FALSE | AP134: FALSE | AQ134: FALSE
A135: 103 | B135: =OFFSET(InputPriceData!B$15,CalculationsAndCharts!$A135+$A$11,0,1,1) -> 2013-06-17 | C135: =OFFSET(InputPriceData!G$15,CalculationsAndCharts!$A135+$A$11,0,1,1) -> 2745200 | D135: =OFFSET(InputPriceData!C$15,CalculationsAndCharts!$A135+$A$11,IF($C$7,7,0),1,1) -> 51.37 | E135: =OFFSET(InputPriceData!D$15,CalculationsAndCharts!$A135+$A$11,IF($C$7,7,0),1,1) -> 51.8 | F135: =OFFSET(InputPriceData!E$15,CalculationsAndCharts!$A135+$A$11,IF($C$7,7,0),1,1) -> 50.73 | G135: =OFFSET(InputPriceData!F$15,CalculationsAndCharts!$A135+$A$11,IF($C$7,7,0),1,1) -> 51.13 | K135: 51.18068359 | L135: 51.18068359 | M135: -0.3168365359 | N135: -0.4368633207 | O135: 0.2302220286 | P135: -2.696919388 | Q135: 0.7721034777 | R135: 0.598427393 | T135: 54.48 | U135: 48.64 | V135: 0.426369863 | X135: 0.2 | Y135: 0.8 | AD135: FALSE | AE135: FALSE | AF135: TRUE | AG135: FALSE | AH135: FALSE | AM135: FALSE | AN135: FALSE | AO135: FALSE | AP135: FALSE | AQ135: =AND(AP136,AO136) -> FALSE
A136: 104 | B136: =OFFSET(InputPriceData!B$15,CalculationsAndCharts!$A136+$A$11,0,1,1) -> 2013-06-14 | C136: =OFFSET(InputPriceData!G$15,CalculationsAndCharts!$A136+$A$11,0,1,1) -> 1600000 | D136: =OFFSET(InputPriceData!C$15,CalculationsAndCharts!$A136+$A$11,IF($C$7,7,0),1,1) -> 51.15 | E136: =OFFSET(InputPriceData!D$15,CalculationsAndCharts!$A136+$A$11,IF($C$7,7,0),1,1) -> 51.58 | F136: =OFFSET(InputPriceData!E$15,CalculationsAndCharts!$A136+$A$11,IF($C$7,7,0),1,1) -> 50.96 | G136: =OFFSET(InputPriceData!F$15,CalculationsAndCharts!$A136+$A$11,IF($C$7,7,0),1,1) -> 51.18 | K136: 51.13381786 | L136: 51.13381786 | M136: -0.3717925476 | N136: -0.6174430103 | O136: 0.2302220286 | P136: -2.696919388 | Q136: 0.7104119965 | R136: 0.4725813255 | T136: 54.48 | U136: 48.64 | V136: 0.4349315068 | X136: 0.2 | Y136: 0.8 | AD136: FALSE | AE136: FALSE | AF136: TRUE | AG136: FALSE | AH136: FALSE | AM136: FALSE | AN136: FALSE | AO136: FALSE | AP136: FALSE | AQ136: FALSE
A137: 105 | B137: =OFFSET(InputPriceData!B$15,CalculationsAndCharts!$A137+$A$11,0,1,1) -> 2013-06-13 | C137: =OFFSET(InputPriceData!G$15,CalculationsAndCharts!$A137+$A$11,0,1,1) -> 2163900 | D137: =OFFSET(InputPriceData!C$15,CalculationsAndCharts!$A137+$A$11,IF($C$7,7,0),1,1) -> 51.18 | E137: =OFFSET(InputPriceData!D$15,CalculationsAndCharts!$A137+$A$11,IF($C$7,7,0),1,1) -> 51.5 | F137: =OFFSET(InputPriceData!E$15,CalculationsAndCharts!$A137+$A$11,IF($C$7,7,0),1,1) -> 50.85 | G137: =OFFSET(InputPriceData!F$15,CalculationsAndCharts!$A137+$A$11,IF($C$7,7,0),1,1) -> 51.2 | K137: 51.03290813 | L137: 51.03290813 | M137: -0.4674181779 | N137: -0.8883943766 | O137: 0.2302220286 | P137: -2.696919388 | Q137: 0.6178468185 | R137: 0.3319658347 | T137: 54.48 | U137: 48.64 | V137: 0.4383561644 | X137: 0.2 | Y137: 0.8 | AD137: FALSE | AE137: FALSE | AF137: TRUE | AG137: FALSE | AH137: FALSE | AM137: FALSE | AN137: FALSE | AO137: FALSE | AP137: FALSE | AQ137: FALSE
A138: 106 | B138: =OFFSET(InputPriceData!B$15,CalculationsAndCharts!$A138+$A$11,0,1,1) -> 2013-06-12 | C138: =OFFSET(InputPriceData!G$15,CalculationsAndCharts!$A138+$A$11,0,1,1) -> 3171300 | D138: =OFFSET(InputPriceData!C$15,CalculationsAndCharts!$A138+$A$11,IF($C$7,7,0),1,1) -> 51.75 | E138: =OFFSET(InputPriceData!D$15,CalculationsAndCharts!$A138+$A$11,IF($C$7,7,0),1,1) -> 52 | F138: =OFFSET(InputPriceData!E$15,CalculationsAndCharts!$A138+$A$11,IF($C$7,7,0),1,1) -> 50.78 | G138: =OFFSET(InputPriceData!F$15,CalculationsAndCharts!$A138+$A$11,IF($C$7,7,0),1,1) -> 51.09 | K138: 50.8842458 | L138: 50.8842458 | M138: -0.7210405963 | N138: -1.258649141 | O138: 0.2302220286 | P138: -2.696919388 | Q138: 0.4913565977 | R138: 0.1945145127 | T138: 54.48 | U138: 48.64 | V138: 0.4195205479 | X138: 0.2 | Y138: 0.8 | AD138: FALSE | AE138: FALSE | AF138: TRUE | AG138: FALSE | AH138: FALSE | AM138: FALSE | AN138: FALSE | AO138: FALSE | AP138: FALSE | AQ138: FALSE
A139: 107 | B139: =OFFSET(InputPriceData!B$15,CalculationsAndCharts!$A139+$A$11,0,1,1) -> 2013-06-11 | C139: =OFFSET(InputPriceData!G$15,CalculationsAndCharts!$A139+$A$11,0,1,1) -> 4824900 | D139: =OFFSET(InputPriceData!C$15,CalculationsAndCharts!$A139+$A$11,IF($C$7,7,0),1,1) -> 50.33 | E139: =OFFSET(InputPriceData!D$15,CalculationsAndCharts!$A139+$A$11,IF($C$7,7,0),1,1) -> 52 | F139: =OFFSET(InputPriceData!E$15,CalculationsAndCharts!$A139+$A$11,IF($C$7,7,0),1,1) -> 50.16 | G139: =OFFSET(InputPriceData!F$15,CalculationsAndCharts!$A139+$A$11,IF($C$7,7,0),1,1) -> 51.67 | K139: 50.6832805 | L139: 50.6832805 | M139: -0.2608813361 | N139: -1.749941679 | O139: 0.2302220286 | P139: -2.696919388 | Q139: 0.3235162141 | R139: 0.08194214676 | T139: 54.48 | U139: 48.64 | V139: 0.5188356164 | X139: 0.2 | Y139: 0.8 | AD139: FALSE | AE139: FALSE | AF139: TRUE | AG139: FALSE | AH139: FALSE | AM139: FALSE | AN139: FALSE | AO139: FALSE | AP139: FALSE | AQ139: FALSE
A140: 108 | B140: =OFFSET(InputPriceData!B$15,CalculationsAndCharts!$A140+$A$11,0,1,1) -> 2013-06-10 | C140: =OFFSET(InputPriceData!G$15,CalculationsAndCharts!$A140+$A$11,0,1,1) -> 5033200 | D140: =OFFSET(InputPriceData!C$15,CalculationsAndCharts!$A140+$A$11,IF($C$7,7,0),1,1) -> 51.11 | E140: =OFFSET(InputPriceData!D$15,CalculationsAndCharts!$A140+$A$11,IF($C$7,7,0),1,1) -> 51.33 | F140: =OFFSET(InputPriceData!E$15,CalculationsAndCharts!$A140+$A$11,IF($C$7,7,0),1,1) -> 50.31 | G140: =OFFSET(InputPriceData!F$15,CalculationsAndCharts!$A140+$A$11,IF($C$7,7,0),1,1) -> 50.35 | K140: 50.62346693 | L140: 50.62346693 | M140: -1.793537697 | N140: -2.169591152 | O140: 0.2302220286 | P140: -2.696919388 | Q140: 0.1801512673 | R140: 0.008568458215 | T140: 54.48 | U140: 48.64 | V140: 0.2928082192 | X140: 0.2 | Y140: 0.8 | AD140: FALSE | AE140: FALSE | AF140: TRUE | AG140: FALSE | AH140: FALSE | AM140: FALSE | AN140: FALSE | AO140: FALSE | AP140: FALSE | AQ140: FALSE
A141: 109 | B141: =OFFSET(InputPriceData!B$15,CalculationsAndCharts!$A141+$A$11,0,1,1) -> 2013-06-07 | C141: =OFFSET(InputPriceData!G$15,CalculationsAndCharts!$A141+$A$11,0,1,1) -> 4334600 | D141: =OFFSET(InputPriceData!C$15,CalculationsAndCharts!$A141+$A$11,IF($C$7,7,0),1,1) -> 51.49 | E141: =OFFSET(InputPriceData!D$15,CalculationsAndCharts!$A141+$A$11,IF($C$7,7,0),1,1) -> 52.3 | F141: =OFFSET(InputPriceData!E$15,CalculationsAndCharts!$A141+$A$11,IF($C$7,7,0),1,1) -> 50.87 | G141: =OFFSET(InputPriceData!F$15,CalculationsAndCharts!$A141+$A$11,IF($C$7,7,0),1,1) -> 51.09 | K141: 50.71593448 | L141: 50.71593448 | M141: -1.356502226 | N141: -2.486813866 | O141: 0.2302220286 | P141: -2.696919388 | Q141: 0.07177839814 | R141: -0.02010841322 | T141: 54.48 | U141: 48.64 | V141: 0.4195205479 | X141: 0.2 | Y141: 0.8 | AD141: FALSE | AE141: FALSE | AF141: TRUE | AG141: FALSE | AH141: FALSE | AM141: FALSE | AN141: FALSE | AO141: FALSE | AP141: FALSE | AQ141: FALSE
A142: 110 | B142: =OFFSET(InputPriceData!B$15,CalculationsAndCharts!$A142+$A$11,0,1,1) -> 2013-06-06 | C142: =OFFSET(InputPriceData!G$15,CalculationsAndCharts!$A142+$A$11,0,1,1) -> 5672300 | D142: =OFFSET(InputPriceData!C$15,CalculationsAndCharts!$A142+$A$11,IF($C$7,7,0),1,1) -> 50.43 | E142: =OFFSET(InputPriceData!D$15,CalculationsAndCharts!$A142+$A$11,IF($C$7,7,0),1,1) -> 51.49 | F142: =OFFSET(InputPriceData!E$15,CalculationsAndCharts!$A142+$A$11,IF($C$7,7,0),1,1) -> 49.83 | G142: =OFFSET(InputPriceData!F$15,CalculationsAndCharts!$A142+$A$11,IF($C$7,7,0),1,1) -> 51.32 | K142: 50.94325648 | L142: 50.94325648 | M142: -1.37840124 | N142: -2.696919388 | O142: 0.2302220286 | P142: -2.696919388 | Q142: 0 | R142: 7.024549633e-05 | T142: 54.48 | U142: 48.64 | V142: 0.4589041096 | X142: 0.2 | Y142: 0.8 | Z142: 50.43 | AD142: FALSE | AE142: TRUE | AF142: TRUE | AG142: FALSE | AH142: FALSE | AI142: 50.43 | AK142: 50.43 | AM142: FALSE | AN142: FALSE | AO142: FALSE | AP142: FALSE | AQ142: TRUE | AS142: 50.43 | AU142: 50.43
A143: 111 | B143: =OFFSET(InputPriceData!B$15,CalculationsAndCharts!$A143+$A$11,0,1,1) -> 2013-06-05 | C143: =OFFSET(InputPriceData!G$15,CalculationsAndCharts!$A143+$A$11,0,1,1) -> 8192600 | D143: =OFFSET(InputPriceData!C$15,CalculationsAndCharts!$A143+$A$11,IF($C$7,7,0),1,1) -> 49.3 | E143: =OFFSET(InputPriceData!D$15,CalculationsAndCharts!$A143+$A$11,IF($C$7,7,0),1,1) -> 51.2 | F143: =OFFSET(InputPriceData!E$15,CalculationsAndCharts!$A143+$A$11,IF($C$7,7,0),1,1) -> 49.22 | G143: =OFFSET(InputPriceData!F$15,CalculationsAndCharts!$A143+$A$11,IF($C$7,7,0),1,1) -> 50.19 | K143: 51.65704498 | L143: 51.65704498 | M143: -2.887035815 | N143: -2.389526542 | O143: 0.2302220286 | P143: -2.389526542 | Q143: 0 | R143: 0.07117641216 | T143: 54.48 | U143: 48.64 | V143: 0.2654109589 | X143: 0.2 | Y143: 0.8 | AB143: 0.07117641216 | AD143: TRUE | AE143: FALSE | AF143: FALSE | AG143: FALSE | AH143: FALSE | AM143: FALSE | AN143: FALSE | AO143: TRUE | AP143: TRUE | AQ143: FALSE
A144: 112 | B144: =OFFSET(InputPriceData!B$15,CalculationsAndCharts!$A144+$A$11,0,1,1) -> 2013-06-04 | C144: =OFFSET(InputPriceData!G$15,CalculationsAndCharts!$A144+$A$11,0,1,1) -> 16091900 | D144: =OFFSET(InputPriceData!C$15,CalculationsAndCharts!$A144+$A$11,IF($C$7,7,0),1,1) -> 50 | E144: =OFFSET(InputPriceData!D$15,CalculationsAndCharts!$A144+$A$11,IF($C$7,7,0),1,1) -> 50.22 | F144: =OFFSET(InputPriceData!E$15,CalculationsAndCharts!$A144+$A$11,IF($C$7,7,0),1,1) -> 48.61 | G144: =OFFSET(InputPriceData!F$15,CalculationsAndCharts!$A144+$A$11,IF($C$7,7,0),1,1) -> 48.64 | K144: 52.83733595 | L144: 52.83733595 | M144: -5.137451557 | N144: -1.484096362 | O144: 0.2302220286 | P144: -1.484096362 | Q144: 0 | R144: 0.2002534944 | T144: 54.48 | U144: 48.64 | V144: 0 | X144: 0.2 | Y144: 0.8 | AD144: FALSE | AE144: FALSE | AF144: FALSE | AG144: FALSE | AH144: FALSE | AM144: FALSE | AN144: FALSE | AO144: TRUE | AP144: FALSE | AQ144: FALSE
A145: 113 | B145: =OFFSET(InputPriceData!B$15,CalculationsAndCharts!$A145+$A$11,0,1,1) -> 2013-06-03 | C145: =OFFSET(InputPriceData!G$15,CalculationsAndCharts!$A145+$A$11,0,1,1) -> 4486900 | D145: =OFFSET(InputPriceData!C$15,CalculationsAndCharts!$A145+$A$11,IF($C$7,7,0),1,1) -> 53.06 | E145: =OFFSET(InputPriceData!D$15,CalculationsAndCharts!$A145+$A$11,IF($C$7,7,0),1,1) -> 53.99 | F145: =OFFSET(InputPriceData!E$15,CalculationsAndCharts!$A145+$A$11,IF($C$7,7,0),1,1) -> 52.65 | G145: =OFFSET(InputPriceData!F$15,CalculationsAndCharts!$A145+$A$11,IF($C$7,7,0),1,1) -> 53.55 | K145: 53.60072095 | L145: 53.60072095 | M145: -0.6951596978 | N145: -0.8386560165 | O145: 0.2302220286 | P145: -0.8386560165 | Q145: 0 | R145: 0.3908360459 | T145: 54.48 | U145: 52.59 | V145: 0.5079365079 | X145: 0.2 | Y145: 0.8 | AD145: FALSE | AE145: FALSE | AF145: FALSE | AG145: FALSE | AH145: FALSE | AM145: FALSE | AN145: FALSE | AO145: TRUE | AP145: FALSE | AQ145: FALSE
A146: 114 | B146: =OFFSET(InputPriceData!B$15,CalculationsAndCharts!$A146+$A$11,0,1,1) -> 2013-05-31 | C146: =OFFSET(InputPriceData!G$15,CalculationsAndCharts!$A146+$A$11,0,1,1) -> 3723900 | D146: =OFFSET(InputPriceData!C$15,CalculationsAndCharts!$A146+$A$11,IF($C$7,7,0),1,1) -> 53.7 | E146: =OFFSET(InputPriceData!D$15,CalculationsAndCharts!$A146+$A$11,IF($C$7,7,0),1,1) -> 54.06 | F146: =OFFSET(InputPriceData!E$15,CalculationsAndCharts!$A146+$A$11,IF($C$7,7,0),1,1) -> 52.72 | G146: =OFFSET(InputPriceData!F$15,CalculationsAndCharts!$A146+$A$11,IF($C$7,7,0),1,1) -> 52.8 | K146: 53.91460396 | L146: 53.91460396 | M146: -1.564628714 | N146: -0.5480767606 | O146: 0.2302220286 | P146: -0.5480767606 | Q146: 0 | R146: 0.6136637805 | T146: 54.48 | U146: 52.49 | V146: 0.1557788945 | X146: 0.2 | Y146: 0.8 | AD146: FALSE | AE146: FALSE | AF146: FALSE | AG146: FALSE | AH146: FALSE | AM146: FALSE | AN146: FALSE | AO146: TRUE | AP146: FALSE | AQ146: FALSE
A147: 115 | B147: =OFFSET(InputPriceData!B$15,CalculationsAndCharts!$A147+$A$11,0,1,1) -> 2013-05-30 | C147: =OFFSET(InputPriceData!G$15,CalculationsAndCharts!$A147+$A$11,0,1,1) -> 1145400 | D147: =OFFSET(InputPriceData!C$15,CalculationsAndCharts!$A147+$A$11,IF($C$7,7,0),1,1) -> 53.94 | E147: =OFFSET(InputPriceData!D$15,CalculationsAndCharts!$A147+$A$11,IF($C$7,7,0),1,1) -> 54.21 | F147: =OFFSET(InputPriceData!E$15,CalculationsAndCharts!$A147+$A$11,IF($C$7,7,0),1,1) -> 53.66 | G147: =OFFSET(InputPriceData!F$15,CalculationsAndCharts!$A147+$A$11,IF($C$7,7,0),1,1) -> 53.67 | K147: 54.22256505 | L147: 54.22256505 | M147: -0.8152730098 | N147: -0.1996641199 | O147: 0.2302220286 | P147: -0.4959921016 | Q147: 0.4080449131 | R147: 0.7777495304 | T147: 54.48 | U147: 52.39 | V147: 0.6124401914 | X147: 0.2 | Y147: 0.8 | AA147: 53.94 | AD147: FALSE | AE147: FALSE | AF147: TRUE | AG147: FALSE | AH147: TRUE | AJ147: 53.94 | AL147: 53.94 | AM147: FALSE | AN147: TRUE | AO147: TRUE | AP147: FALSE | AQ147: FALSE | AR147: 53.94 | AT147: 53.94
A148: 116 | B148: =OFFSET(InputPriceData!B$15,CalculationsAndCharts!$A148+$A$11,0,1,1) -> 2013-05-29 | C148: =OFFSET(InputPriceData!G$15,CalculationsAndCharts!$A148+$A$11,0,1,1) -> 2206800 | D148: =OFFSET(InputPriceData!C$15,CalculationsAndCharts!$A148+$A$11,IF($C$7,7,0),1,1) -> 54.23 | E148: =OFFSET(InputPriceData!D$15,CalculationsAndCharts!$A148+$A$11,IF($C$7,7,0),1,1) -> 54.51 | F148: =OFFSET(InputPriceData!E$15,CalculationsAndCharts!$A148+$A$11,IF($C$7,7,0),1,1) -> 53.65 | G148: =OFFSET(InputPriceData!F$15,CalculationsAndCharts!$A148+$A$11,IF($C$7,7,0),1,1) -> 53.93 | K148: 54.36351855 | L148: 54.36351855 | M148: -0.5762989161 | N148: 0.03796567491 | O148: 0.2302220286 | P148: -0.4959921016 | Q148: 0.735262169 | R148: 0.8235930017 | T148: 54.48 | U148: 52.03 | V148: 0.7755102041 | X148: 0.2 | Y148: 0.8 | AC148: 0.8235930017 | AD148: FALSE | AE148: FALSE | AF148: TRUE | AG148: TRUE | AH148: FALSE | AM148: TRUE | AN148: FALSE | AO148: FALSE | AP148: FALSE | AQ148: FALSE
A149: 117 | B149: =OFFSET(InputPriceData!B$15,CalculationsAndCharts!$A149+$A$11,0,1,1) -> 2013-05-28 | C149: =OFFSET(InputPriceData!G$15,CalculationsAndCharts!$A149+$A$11,0,1,1) -> 2262800 | D149: =OFFSET(InputPriceData!C$15,CalculationsAndCharts!$A149+$A$11,IF($C$7,7,0),1,1) -> 54.87 | E149: =OFFSET(InputPriceData!D$15,CalculationsAndCharts!$A149+$A$11,IF($C$7,7,0),1,1) -> 55.17 | F149: =OFFSET(InputPriceData!E$15,CalculationsAndCharts!$A149+$A$11,IF($C$7,7,0),1,1) -> 54.42 | G149: =OFFSET(InputPriceData!F$15,CalculationsAndCharts!$A149+$A$11,IF($C$7,7,0),1,1) -> 54.48 | K149: 54.35940263 | L149: 54.35940263 | M149: 0.03562163064 | N149: 0.1641313054 | O149: 0.2302220286 | P149: -0.4959921016 | Q149: 0.9089927882 | R149: 0.7799960297 | T149: 54.48 | U149: 52.03 | V149: 1 | X149: 0.2 | Y149: 0.8 | AD149: FALSE | AE149: FALSE | AF149: TRUE | AG149: FALSE | AH149: FALSE | AM149: FALSE | AN149: FALSE | AO149: FALSE | AP149: FALSE | AQ149: FALSE
A150: 118 | B150: =OFFSET(InputPriceData!B$15,CalculationsAndCharts!$A150+$A$11,0,1,1) -> 2013-05-24 | C150: =OFFSET(InputPriceData!G$15,CalculationsAndCharts!$A150+$A$11,0,1,1) -> 1839400 | D150: =OFFSET(InputPriceData!C$15,CalculationsAndCharts!$A150+$A$11,IF($C$7,7,0),1,1) -> 54.22 | E150: =OFFSET(InputPriceData!D$15,CalculationsAndCharts!$A150+$A$11,IF($C$7,7,0),1,1) -> 54.56 | F150: =OFFSET(InputPriceData!E$15,CalculationsAndCharts!$A150+$A$11,IF($C$7,7,0),1,1) -> 54.12 | G150: =OFFSET(InputPriceData!F$15,CalculationsAndCharts!$A150+$A$11,IF($C$7,7,0),1,1) -> 54.42 | K150: 54.25436722 | L150: 54.25436722 | M150: 0.1011481132 | N150: 0.2034849472 | O150: 0.3934685163 | P150: -0.4959921016 | Q150: 0.7864058674 | R150: 0.6999271632 | T150: 54.47 | U150: 52.03 | V150: 0.9795081967 | X150: 0.2 | Y150: 0.8 | AD150: FALSE | AE150: FALSE | AF150: TRUE | AG150: FALSE | AH150: FALSE | AM150: FALSE | AN150: FALSE | AO150: FALSE | AP150: FALSE | AQ150: FALSE
A151: 119 | B151: =OFFSET(InputPriceData!B$15,CalculationsAndCharts!$A151+$A$11,0,1,1) -> 2013-05-23 | C151: =OFFSET(InputPriceData!G$15,CalculationsAndCharts!$A151+$A$11,0,1,1) -> 3714100 | D151: =OFFSET(InputPriceData!C$15,CalculationsAndCharts!$A151+$A$11,IF($C$7,7,0),1,1) -> 53.64 | E151: =OFFSET(InputPriceData!D$15,CalculationsAndCharts!$A151+$A$11,IF($C$7,7,0),1,1) -> 54.81 | F151: =OFFSET(InputPriceData!E$15,CalculationsAndCharts!$A151+$A$11,IF($C$7,7,0),1,1) -> 53.46 | G151: =OFFSET(InputPriceData!F$15,CalculationsAndCharts!$A151+$A$11,IF($C$7,7,0),1,1) -> 54.45 | K151: 54.11939424 | L151: 54.11939424 | M151: 0.2780170735 | N151: 0.2160186402 | O151: 0.4468292378 | P151: -0.4959921016 | Q151: 0.7551915852 | R151: 0.596200132 | T151: 54.47 | U151: 52.03 | V151: 0.9918032787 | X151: 0.2 | Y151: 0.8 | AD151: FALSE | AE151: FALSE | AF151: TRUE | AG151: FALSE | AH151: FALSE | AM151: FALSE | AN151: FALSE | AO151: FALSE | AP151: FALSE | AQ151: FALSE
A152: 120 | B152: =OFFSET(InputPriceData!B$15,CalculationsAndCharts!$A152+$A$11,0,1,1) -> 2013-05-22 | C152: =OFFSET(InputPriceData!G$15,CalculationsAndCharts!$A152+$A$11,0,1,1) -> 2634200 | D152: =OFFSET(InputPriceData!C$15,CalculationsAndCharts!$A152+$A$11,IF($C$7,7,0),1,1) -> 54.34 | E152: =OFFSET(InputPriceData!D$15,CalculationsAndCharts!$A152+$A$11,IF($C$7,7,0),1,1) -> 54.75 | F152: =OFFSET(InputPriceData!E$15,CalculationsAndCharts!$A152+$A$11,IF($C$7,7,0),1,1) -> 53.69 | G152: =OFFSET(InputPriceData!F$15,CalculationsAndCharts!$A152+$A$11,IF($C$7,7,0),1,1) -> 53.86 | K152: 53.98547116 | L152: 53.98547116 | M152: -0.193385905 | N152: 0.2302220286 | O152: 0.4468292378 | P152: -0.4959921016 | Q152: 0.770256357 | R152: 0.4514626273 | T152: 54.47 | U152: 52.03 | V152: 0.75 | X152: 0.2 | Y152: 0.8 | AD152: FALSE | AE152: FALSE | AF152: TRUE | AG152: FALSE | AH152: FALSE | AM152: FALSE | AN152: FALSE | AO152: FALSE | AP152: FALSE | AQ152: FALSE
A153: 121 | B153: =OFFSET(InputPriceData!B$15,CalculationsAndCharts!$A153+$A$11,0,1,1) -> 2013-05-21 | C153: =OFFSET(InputPriceData!G$15,CalculationsAndCharts!$A153+$A$11,0,1,1) -> 2313000 | D153: =OFFSET(InputPriceData!C$15,CalculationsAndCharts!$A153+$A$11,IF($C$7,7,0),1,1) -> 53.9 | E153: =OFFSET(InputPriceData!D$15,CalculationsAndCharts!$A153+$A$11,IF($C$7,7,0),1,1) -> 54.67 | F153: =OFFSET(InputPriceData!E$15,CalculationsAndCharts!$A153+$A$11,IF($C$7,7,0),1,1) -> 53.73 | G153: =OFFSET(InputPriceData!F$15,CalculationsAndCharts!$A153+$A$11,IF($C$7,7,0),1,1) -> 54.47 | I153: =IF($A153=$E$25,I$32,NA()) ->  | K153: 53.76419664 | L153: 53.76419664 | M153: 0.5603942566 | N153: 0.1491069028 | O153: 0.4468292378 | P153: -0.4959921016 | Q153: 0.6842218959 | R153: 0.291124871 | T153: 54.47 | U153: 52.03 | V153: 1 | X153: 0.2 | Y153: 0.8 | AD153: FALSE | AE153: FALSE | AF153: TRUE | AG153: FALSE | AH153: FALSE | AM153: FALSE | AN153: FALSE | AO153: FALSE | AP153: FALSE | AQ153: FALSE
A154: 122 | B154: =OFFSET(InputPriceData!B$15,CalculationsAndCharts!$A154+$A$11,0,1,1) -> 2013-05-20 | C154: =OFFSET(InputPriceData!G$15,CalculationsAndCharts!$A154+$A$11,0,1,1) -> 1953600 | D154: =OFFSET(InputPriceData!C$15,CalculationsAndCharts!$A154+$A$11,IF($C$7,7,0),1,1) -> 53.98 | E154: =OFFSET(InputPriceData!D$15,CalculationsAndCharts!$A154+$A$11,IF($C$7,7,0),1,1) -> 54.25 | F154: =OFFSET(InputPriceData!E$15,CalculationsAndCharts!$A154+$A$11,IF($C$7,7,0),1,1) -> 53.59 | G154: =OFFSET(InputPriceData!F$15,CalculationsAndCharts!$A154+$A$11,IF($C$7,7,0),1,1) -> 53.84 | K154: 53.47288081 | L154: 53.47288081 | M154: 0.09905722677 | N154: -0.02694132408 | O154: 0.4468292378 | P154: -0.4959921016 | Q154: 0.497496989 | R154: 0.1696992479 | T154: 54.08 | U154: 52.03 | V154: 0.8829268293 | X154: 0.2 | Y154: 0.8 | AD154: FALSE | AE154: FALSE | AF154: TRUE | AG154: FALSE | AH154: FALSE | AM154: FALSE | AN154: FALSE | AO154: FALSE | AP154: FALSE | AQ154: FALSE
A155: 123 | B155: =OFFSET(InputPriceData!B$15,CalculationsAndCharts!$A155+$A$11,0,1,1) -> 2013-05-17 | C155: =OFFSET(InputPriceData!G$15,CalculationsAndCharts!$A155+$A$11,0,1,1) -> 2350900 | D155: =OFFSET(InputPriceData!C$15,CalculationsAndCharts!$A155+$A$11,IF($C$7,7,0),1,1) -> 53.5 | E155: =OFFSET(InputPriceData!D$15,CalculationsAndCharts!$A155+$A$11,IF($C$7,7,0),1,1) -> 54.17 | F155: =OFFSET(InputPriceData!E$15,CalculationsAndCharts!$A155+$A$11,IF($C$7,7,0),1,1) -> 53.32 | G155: =OFFSET(InputPriceData!F$15,CalculationsAndCharts!$A155+$A$11,IF($C$7,7,0),1,1) -> 54.08 | K155: 53.18440874 | L155: 53.18440874 | M155: 0.4993715333 | N155: -0.2354607481 | O155: 0.4468292378 | P155: -0.4959921016 | Q155: 0.2763316257 | R155: 0.1336785826 | T155: 54.08 | U155: 51.63 | V155: 1 | X155: 0.2 | Y155: 0.8 | AB155: 0.1336785826 | AD155: TRUE | AE155: FALSE | AF155: TRUE | AG155: FALSE | AH155: FALSE | AM155: FALSE | AN155: FALSE | AO155: FALSE | AP155: FALSE | AQ155: FALSE
A156: 124 | B156: =OFFSET(InputPriceData!B$15,CalculationsAndCharts!$A156+$A$11,0,1,1) -> 2013-05-16 | C156: =OFFSET(InputPriceData!G$15,CalculationsAndCharts!$A156+$A$11,0,1,1) -> 2215600 | D156: =OFFSET(InputPriceData!C$15,CalculationsAndCharts!$A156+$A$11,IF($C$7,7,0),1,1) -> 53.15 | E156: =OFFSET(InputPriceData!D$15,CalculationsAndCharts!$A156+$A$11,IF($C$7,7,0),1,1) -> 53.67 | F156: =OFFSET(InputPriceData!E$15,CalculationsAndCharts!$A156+$A$11,IF($C$7,7,0),1,1) -> 52.98 | G156: =OFFSET(InputPriceData!F$15,CalculationsAndCharts!$A156+$A$11,IF($C$7,7,0),1,1) -> 53.26 | K156: 52.96037884 | L156: 52.96037884 | M156: -0.1889345499 | N156: -0.4133722905 | O156: 0.4468292378 | P156: -0.4959921016 | Q156: 0.08763039993 | R156: 0.2019559095 | T156: 53.58 | U156: 51.63 | V156: 0.8358974359 | X156: 0.2 | Y156: 0.8 | AD156: FALSE | AE156: =AND(AD157,NOT(AF157)) -> FALSE | AF156: TRUE | AG156: FALSE | AH156: FALSE | AM156: FALSE | AN156: FALSE | AO156: FALSE | AP156: FALSE | AQ156: FALSE
A157: 125 | B157: =OFFSET(InputPriceData!B$15,CalculationsAndCharts!$A157+$A$11,0,1,1) -> 2013-05-15 | C157: =OFFSET(InputPriceData!G$15,CalculationsAndCharts!$A157+$A$11,0,1,1) -> 2836400 | D157: =OFFSET(InputPriceData!C$15,CalculationsAndCharts!$A157+$A$11,IF($C$7,7,0),1,1) -> 52.85 | E157: =OFFSET(InputPriceData!D$15,CalculationsAndCharts!$A157+$A$11,IF($C$7,7,0),1,1) -> 53.61 | F157: =OFFSET(InputPriceData!E$15,CalculationsAndCharts!$A157+$A$11,IF($C$7,7,0),1,1) -> 52.42 | G157: =OFFSET(InputPriceData!F$15,CalculationsAndCharts!$A157+$A$11,IF($C$7,7,0),1,1) -> 53.32 | K157: 52.85242789 | L157: 52.85242789 | M157: -0.04810062222 | N157: -0.4959921016 | O157: 0.4468292378 | P157: -0.4959921016 | Q157: 0 | R157: 0.3556674645 | T157: 53.58 | U157: 51.3 | V157: 0.8859649123 | X157: 0.2 | Y157: 0.8 | AD157: FALSE | AE157: FALSE | AF157: TRUE | AG157: FALSE | AH157: FALSE | AM157: FALSE | AN157: FALSE | AO157: FALSE | AP157: FALSE | AQ157: FALSE
A158: 126 | B158: =OFFSET(InputPriceData!B$15,CalculationsAndCharts!$A158+$A$11,0,1,1) -> 2013-05-14 | C158: =OFFSET(InputPriceData!G$15,CalculationsAndCharts!$A158+$A$11,0,1,1) -> 1390200 | D158: =OFFSET(InputPriceData!C$15,CalculationsAndCharts!$A158+$A$11,IF($C$7,7,0),1,1) -> 52.67 | E158: =OFFSET(InputPriceData!D$15,CalculationsAndCharts!$A158+$A$11,IF($C$7,7,0),1,1) -> 53.14 | F158: =OFFSET(InputPriceData!E$15,CalculationsAndCharts!$A158+$A$11,IF($C$7,7,0),1,1) -> 52.52 | G158: =OFFSET(InputPriceData!F$15,CalculationsAndCharts!$A158+$A$11,IF($C$7,7,0),1,1) -> 52.79 | K158: 52.85926953 | L158: 52.85926953 | M158: -0.5268177651 | N158: -0.4645493907 | O158: 0.4468292378 | P158: -0.5053096186 | Q158: 0.04280912139 | R158: 0.5374604824 | T158: 53.58 | U158: 51.3 | V158: 0.6535087719 | X158: 0.2 | Y158: 0.8 | AD158: FALSE | AE158: FALSE | AF158: TRUE | AG158: FALSE | AH158: FALSE | AM158: FALSE | AN158: FALSE | AO158: FALSE | AP158: FALSE | AQ158: FALSE
A159: 127 | B159: =OFFSET(InputPriceData!B$15,CalculationsAndCharts!$A159+$A$11,0,1,1) -> 2013-05-13 | C159: =OFFSET(InputPriceData!G$15,CalculationsAndCharts!$A159+$A$11,0,1,1) -> 1386600 | D159: =OFFSET(InputPriceData!C$15,CalculationsAndCharts!$A159+$A$11,IF($C$7,7,0),1,1) -> 52.84 | E159: =OFFSET(InputPriceData!D$15,CalculationsAndCharts!$A159+$A$11,IF($C$7,7,0),1,1) -> 53 | F159: =OFFSET(InputPriceData!E$15,CalculationsAndCharts!$A159+$A$11,IF($C$7,7,0),1,1) -> 52.46 | G159: =OFFSET(InputPriceData!F$15,CalculationsAndCharts!$A159+$A$11,IF($C$7,7,0),1,1) -> 52.59 | K159: 52.99636757 | L159: 52.99636757 | M159: -0.7352327965 | N159: -0.2791101137 | O159: 0.4468292378 | P159: -0.7689114408 | Q159: 0.4028830619 | R159: 0.6618504259 | T159: 53.58 | U159: 50.47 | V159: 0.6816720257 | X159: 0.2 | Y159: 0.8 | AD159: FALSE | AE159: FALSE | AF159: TRUE | AG159: FALSE | AH159: FALSE | AM159: FALSE | AN159: FALSE | AO159: FALSE | AP159: FALSE | AQ159: FALSE
A160: 128 | B160: =OFFSET(InputPriceData!B$15,CalculationsAndCharts!$A160+$A$11,0,1,1) -> 2013-05-10 | C160: =OFFSET(InputPriceData!G$15,CalculationsAndCharts!$A160+$A$11,0,1,1) -> 1327400 | D160: =OFFSET(InputPriceData!C$15,CalculationsAndCharts!$A160+$A$11,IF($C$7,7,0),1,1) -> 52.58 | E160: =OFFSET(InputPriceData!D$15,CalculationsAndCharts!$A160+$A$11,IF($C$7,7,0),1,1) -> 53.18 | F160: =OFFSET(InputPriceData!E$15,CalculationsAndCharts!$A160+$A$11,IF($C$7,7,0),1,1) -> 52.58 | G160: =OFFSET(InputPriceData!F$15,CalculationsAndCharts!$A160+$A$11,IF($C$7,7,0),1,1) -> 52.8 | K160: 53.14114313 | L160: 53.14114313 | M160: -0.5283765309 | N160: -0.04483328417 | O160: 0.4468292378 | P160: -0.7942098726 | Q160: 0.6038299536 | R160: 0.6940960526 | T160: 53.58 | U160: 49.9 | V160: 0.7880434783 | X160: 0.2 | Y160: 0.8 | AD160: FALSE | AE160: FALSE | AF160: TRUE | AG160: FALSE | AH160: FALSE | AM160: FALSE | AN160: FALSE | AO160: FALSE | AP160: FALSE | AQ160: FALSE
A161: 129 | B161: =OFFSET(InputPriceData!B$15,CalculationsAndCharts!$A161+$A$11,0,1,1) -> 2013-05-09 | C161: =OFFSET(InputPriceData!G$15,CalculationsAndCharts!$A161+$A$11,0,1,1) -> 1881000 | D161: =OFFSET(InputPriceData!C$15,CalculationsAndCharts!$A161+$A$11,IF($C$7,7,0),1,1) -> 53.53 | E161: =OFFSET(InputPriceData!D$15,CalculationsAndCharts!$A161+$A$11,IF($C$7,7,0),1,1) -> 53.55 | F161: =OFFSET(InputPriceData!E$15,CalculationsAndCharts!$A161+$A$11,IF($C$7,7,0),1,1) -> 52.51 | G161: =OFFSET(InputPriceData!F$15,CalculationsAndCharts!$A161+$A$11,IF($C$7,7,0),1,1) -> 52.68 | H161: =IF($A161=$E$25,H$32,NA()) ->  | K161: =$F$16*(G161+G162)/2+$F$17*K162+$F$18*K163 -> 53.21855945 | L161: 53.21855945 | M161: =$D$21*(G161 - 2*G162 + G163) + $D$20*M162 - $F$20*M163 -> -0.6372356668 | N161: 0.1635171117 | O161: 0.4468292378 | P161: -0.8045839677 | Q161: =IFERROR(IF($A161>$A$8,0,(N161-P161)/(O161-P161)),1) -> 0.7736062518 | R161: =IF($A161>$A$8,0,$F$16*(Q161+Q162)/2+$F$17*R162+$F$18*R163) -> 0.6551040513 | T161: =MAX(OFFSET(G161,0,0,$A$22,1)) -> 53.58 | U161: =MIN(OFFSET(G161,0,0,$A$22,1)) -> 49.9 | V161: =IFERROR(IF($A161>$A$8,0,(G161-U161)/(T161-U161)),1) -> 0.7554347826 | X161: 0.2 | Y161: 0.8 | Z161: =IF($S$7,AI161,NA()) ->  | AA161: =IF($S$7,AJ161,NA()) ->  | AB161: =IF($S$7,IF(AD161,R161,NA()),NA()) ->  | AC161: =IF($S$7,IF(AG161,R161,NA()),NA()) ->  | AD161: =IF(AND(R162>$X$32,R161<$X$32),TRUE,FALSE) -> FALSE | AE161: FALSE | AF161: TRUE | AG161: =IF(AND(AF161,R162<$Y$32,R161>$Y$32),TRUE,FALSE) -> FALSE | AH161: FALSE | AI161: =IF(AE161,D161,NA()) ->  | AJ161: =IF(AH161,D161,NA()) ->  | AK161: =IF($S$7,AI161,NA()) ->  | AL161: =IF($S$7,AJ161,NA()) ->  | AM161: =IF(AND(R162<$Y$32,R161>$Y$32),TRUE,FALSE) -> FALSE | AN161: FALSE | AO161: FALSE | AP161: =IF(AND(AO162,R162>$X$32,R161<$X$32),TRUE,FALSE) -> FALSE | AQ161: FALSE | AR161: =IF(AN161,D161,NA()) ->  | AS161: =IF(AQ161,D161,NA()) -> 
A162: 130 | B162: =OFFSET(InputPriceData!B$15,CalculationsAndCharts!$A162+$A$11,0,1,1) -> 2013-05-08 | C162: =OFFSET(InputPriceData!G$15,CalculationsAndCharts!$A162+$A$11,0,1,1) -> 1297800 | D162: =OFFSET(InputPriceData!C$15,CalculationsAndCharts!$A162+$A$11,IF($C$7,7,0),1,1) -> 53.42 | E162: =OFFSET(InputPriceData!D$15,CalculationsAndCharts!$A162+$A$11,IF($C$7,7,0),1,1) -> 53.69 | F162: =OFFSET(InputPriceData!E$15,CalculationsAndCharts!$A162+$A$11,IF($C$7,7,0),1,1) -> 53.22 | G162: =OFFSET(InputPriceData!F$15,CalculationsAndCharts!$A162+$A$11,IF($C$7,7,0),1,1) -> 53.42 | K162: 53.11225184 | L162: =IF($S$5,K162,NA()) -> 53.11225184 | M162: 0.1832866356 | N162: =$F$16*(M162+M163)/2+$F$17*N163+$F$18*N164 -> 0.2107573678 | O162: =MAX(OFFSET(N162,0,0,$A$22,1)) -> 0.4468292378 | P162: -0.8437855304 | Q162: 0.8170857209 | R162: 0.5809893312 | T162: 53.58 | U162: 49.9 | V162: 0.9565217391 | W162: =IF($S$18,V162,NA()) ->  | X162: =$X$32 -> 0.2 | Y162: =$Y$32 -> 0.8 | AD162: FALSE | AE162: FALSE | AF162: =IF(AF163,IF(AH163,FALSE,AF163),IF(AE162,TRUE,AF163)) -> TRUE | AG162: FALSE | AH162: FALSE | AM162: FALSE | AN162: FALSE | AO162: =IF(AO163,IF(AP163,FALSE,AO163),IF(AN162,TRUE,AO163)) -> FALSE | AP162: FALSE | AQ162: FALSE | AT162: =IF($S$5,AR162,NA()) -> 
A163: 131 | B163: =OFFSET(InputPriceData!B$15,CalculationsAndCharts!$A163+$A$11,0,1,1) -> 2013-05-07 | C163: =OFFSET(InputPriceData!G$15,CalculationsAndCharts!$A163+$A$11,0,1,1) -> 4557600 | D163: =OFFSET(InputPriceData!C$15,CalculationsAndCharts!$A163+$A$11,IF($C$7,7,0),1,1) -> 53.43 | E163: =OFFSET(InputPriceData!D$15,CalculationsAndCharts!$A163+$A$11,IF($C$7,7,0),1,1) -> 53.52 | F163: =OFFSET(InputPriceData!E$15,CalculationsAndCharts!$A163+$A$11,IF($C$7,7,0),1,1) -> 52.98 | G163: =OFFSET(InputPriceData!F$15,CalculationsAndCharts!$A163+$A$11,IF($C$7,7,0),1,1) -> 53.44 | K163: 52.8154688 | L163: 52.8154688 | M163: 0.377562391 | N163: 0.05620917998 | O163: 0.4468292378 | P163: -0.8437855304 | Q163: 0.6973379916 | R163: 0.532718741 | T163: 53.58 | U163: 49.9 | V163: 0.9619565217 | X163: 0.2 | Y163: 0.8 | AD163: FALSE | AE163: FALSE | AF163: TRUE | AG163: FALSE | AH163: FALSE | AM163: FALSE | AN163: FALSE | AO163: FALSE | AP163: FALSE | AQ163: FALSE
A164: 132 | B164: =OFFSET(InputPriceData!B$15,CalculationsAndCharts!$A164+$A$11,0,1,1) -> 2013-05-06 | C164: =OFFSET(InputPriceData!G$15,CalculationsAndCharts!$A164+$A$11,0,1,1) -> 4635600 | D164: =OFFSET(InputPriceData!C$15,CalculationsAndCharts!$A164+$A$11,IF($C$7,7,0),1,1) -> 53.11 | E164: =OFFSET(InputPriceData!D$15,CalculationsAndCharts!$A164+$A$11,IF($C$7,7,0),1,1) -> 54.16 | F164: =OFFSET(InputPriceData!E$15,CalculationsAndCharts!$A164+$A$11,IF($C$7,7,0),1,1) -> 53.05 | G164: =OFFSET(InputPriceData!F$15,CalculationsAndCharts!$A164+$A$11,IF($C$7,7,0),1,1) -> 53.58 | K164: 52.47210657 | L164: 52.47210657 | M164: 0.7397775239 | N164: -0.1815547492 | O164: 0.4468292378 | P164: -0.8437855304 | Q164: 0.5131126634 | R164: 0.5535225178 | T164: 53.58 | U164: 49.85 | V164: 1 | X164: 0.2 | Y164: 0.8 | AD164: FALSE | AE164: FALSE | AF164: TRUE | AG164: FALSE | AH164: FALSE | AM164: FALSE | AN164: FALSE | AO164: FALSE | AP164: FALSE | AQ164: FALSE
A165: 133 | B165: =OFFSET(InputPriceData!B$15,CalculationsAndCharts!$A165+$A$11,0,1,1) -> 2013-05-03 | C165: =OFFSET(InputPriceData!G$15,CalculationsAndCharts!$A165+$A$11,0,1,1) -> 2925200 | D165: =OFFSET(InputPriceData!C$15,CalculationsAndCharts!$A165+$A$11,IF($C$7,7,0),1,1) -> 52.49 | E165: =OFFSET(InputPriceData!D$15,CalculationsAndCharts!$A165+$A$11,IF($C$7,7,0),1,1) -> 53 | F165: =OFFSET(InputPriceData!E$15,CalculationsAndCharts!$A165+$A$11,IF($C$7,7,0),1,1) -> 52.08 | G165: =OFFSET(InputPriceData!F$15,CalculationsAndCharts!$A165+$A$11,IF($C$7,7,0),1,1) -> 52.49 | K165: 52.27605591 | L165: 52.27605591 | M165: -0.1835629156 | N165: -0.3040626094 | O165: 0.4468292378 | P165: -0.8437855304 | Q165: 0.4181905665 | R165: 0.6359243902 | T165: 52.83 | U165: 49.85 | V165: 0.8859060403 | X165: 0.2 | Y165: 0.8 | AD165: FALSE | AE165: FALSE | AF165: TRUE | AG165: FALSE | AH165: FALSE | AM165: FALSE | AN165: FALSE | AO165: FALSE | AP165: FALSE | AQ165: FALSE
A166: 134 | B166: =OFFSET(InputPriceData!B$15,CalculationsAndCharts!$A166+$A$11,0,1,1) -> 2013-05-02 | C166: =OFFSET(InputPriceData!G$15,CalculationsAndCharts!$A166+$A$11,0,1,1) -> 1485700 | D166: =OFFSET(InputPriceData!C$15,CalculationsAndCharts!$A166+$A$11,IF($C$7,7,0),1,1) -> 52.02 | E166: =OFFSET(InputPriceData!D$15,CalculationsAndCharts!$A166+$A$11,IF($C$7,7,0),1,1) -> 52.5 | F166: =OFFSET(InputPriceData!E$15,CalculationsAndCharts!$A166+$A$11,IF($C$7,7,0),1,1) -> 51.83 | G166: =OFFSET(InputPriceData!F$15,CalculationsAndCharts!$A166+$A$11,IF($C$7,7,0),1,1) -> 52.39 | K166: 52.26648808 | L166: 52.26648808 | M166: -0.2047369654 | N166: -0.2436199786 | O166: 0.4468292378 | P166: -0.8437855304 | Q166: 0.4650230003 | R166: 0.7314755859 | T166: 52.83 | U166: 49.85 | V166: 0.8523489933 | X166: 0.2 | Y166: 0.8 | AD166: FALSE | AE166: FALSE | AF166: TRUE | AG166: FALSE | AH166: FALSE | AM166: FALSE | AN166: FALSE | AO166: FALSE | AP166: FALSE | AQ166: FALSE
A167: 135 | B167: =OFFSET(InputPriceData!B$15,CalculationsAndCharts!$A167+$A$11,0,1,1) -> 2013-05-01 | C167: =OFFSET(InputPriceData!G$15,CalculationsAndCharts!$A167+$A$11,0,1,1) -> 1579600 | D167: =OFFSET(InputPriceData!C$15,CalculationsAndCharts!$A167+$A$11,IF($C$7,7,0),1,1) -> 52 | E167: =OFFSET(InputPriceData!D$15,CalculationsAndCharts!$A167+$A$11,IF($C$7,7,0),1,1) -> 52.6 | F167: =OFFSET(InputPriceData!E$15,CalculationsAndCharts!$A167+$A$11,IF($C$7,7,0),1,1) -> 51.99 | G167: =OFFSET(InputPriceData!F$15,CalculationsAndCharts!$A167+$A$11,IF($C$7,7,0),1,1) -> 52.03 | K167: 52.35001461 | L167: 52.35001461 | M167: -0.5141536499 | N167: -0.06621683634 | O167: 0.4468292378 | P167: -0.8437855304 | Q167: 0.6024793093 | R167: 0.7853910005 | T167: 52.83 | U167: 49.85 | V167: 0.7315436242 | X167: 0.2 | Y167: 0.8 | AD167: FALSE | AE167: FALSE | AF167: TRUE | AG167: FALSE | AH167: FALSE | AM167: FALSE | AN167: FALSE | AO167: FALSE | AP167: FALSE | AQ167: FALSE
A168: 136 | B168: =OFFSET(InputPriceData!B$15,CalculationsAndCharts!$A168+$A$11,0,1,1) -> 2013-04-30 | C168: =OFFSET(InputPriceData!G$15,CalculationsAndCharts!$A168+$A$11,0,1,1) -> 1553400 | D168: =OFFSET(InputPriceData!C$15,CalculationsAndCharts!$A168+$A$11,IF($C$7,7,0),1,1) -> 52.24 | E168: =OFFSET(InputPriceData!D$15,CalculationsAndCharts!$A168+$A$11,IF($C$7,7,0),1,1) -> 52.31 | F168: =OFFSET(InputPriceData!E$15,CalculationsAndCharts!$A168+$A$11,IF($C$7,7,0),1,1) -> 51.7 | G168: =OFFSET(InputPriceData!F$15,CalculationsAndCharts!$A168+$A$11,IF($C$7,7,0),1,1) -> 52.09 | K168: 52.46692282 | L168: 52.46692282 | M168: -0.4199579657 | N168: 0.1846405802 | O168: 0.4468292378 | P168: =MIN(OFFSET(N168,0,0,$A$22,1)) -> -0.8437855304 | Q168: 0.7968497928 | R168: 0.7616040498 | T168: 52.83 | U168: 49.85 | V168: 0.7516778523 | X168: 0.2 | Y168: 0.8 | AD168: FALSE | AE168: FALSE | AF168: TRUE | AG168: FALSE | AH168: FALSE | AM168: FALSE | AN168: FALSE | AO168: FALSE | AP168: FALSE | AQ168: FALSE
A169: 137 | B169: =OFFSET(InputPriceData!B$15,CalculationsAndCharts!$A169+$A$11,0,1,1) -> 2013-04-29 | C169: =OFFSET(InputPriceData!G$15,CalculationsAndCharts!$A169+$A$11,0,1,1) -> 1231300 | D169: =OFFSET(InputPriceData!C$15,CalculationsAndCharts!$A169+$A$11,IF($C$7,7,0),1,1) -> 52.82 | E169: =OFFSET(InputPriceData!D$15,CalculationsAndCharts!$A169+$A$11,IF($C$7,7,0),1,1) -> 52.99 | F169: =OFFSET(InputPriceData!E$15,CalculationsAndCharts!$A169+$A$11,IF($C$7,7,0),1,1) -> 52.14 | G169: =OFFSET(InputPriceData!F$15,CalculationsAndCharts!$A169+$A$11,IF($C$7,7,0),1,1) -> 52.18 | K169: 52.50072262 | L169: 52.50072262 | M169: -0.2696352606 | N169: 0.3934685163 | O169: 0.4468292378 | P169: -0.8437855304 | Q169: 0.9586548033 | R169: 0.6656488306 | T169: 52.83 | U169: 49.85 | V169: 0.7818791946 | X169: 0.2 | Y169: 0.8 | AD169: FALSE | AE169: FALSE | AF169: TRUE | AG169: FALSE | AH169: FALSE | AM169: FALSE | AN169: FALSE | AO169: FALSE | AP169: FALSE | AQ169: FALSE
A170: 138 | B170: =OFFSET(InputPriceData!B$15,CalculationsAndCharts!$A170+$A$11,0,1,1) -> 2013-04-26 | C170: =OFFSET(InputPriceData!G$15,CalculationsAndCharts!$A170+$A$11,0,1,1) -> 2082000 | D170: =OFFSET(InputPriceData!C$15,CalculationsAndCharts!$A170+$A$11,IF($C$7,7,0),1,1) -> 52.57 | E170: =OFFSET(InputPriceData!D$15,CalculationsAndCharts!$A170+$A$11,IF($C$7,7,0),1,1) -> 52.95 | F170: =OFFSET(InputPriceData!E$15,CalculationsAndCharts!$A170+$A$11,IF($C$7,7,0),1,1) -> 52.44 | G170: =OFFSET(InputPriceData!F$15,CalculationsAndCharts!$A170+$A$11,IF($C$7,7,0),1,1) -> 52.83 | K170: 52.35781477 | L170: 52.35781477 | M170: 0.5295442826 | N170: 0.4468292378 | O170: 0.8464889795 | P170: -0.8437855304 | Q170: 0.7635533522 | R170: 0.5628898682 | T170: 52.83 | U170: 49.85 | V170: 1 | X170: 0.2 | Y170: 0.8 | AD170: FALSE | AE170: FALSE | AF170: TRUE | AG170: FALSE | AH170: FALSE | AM170: FALSE | AN170: FALSE | AO170: FALSE | AP170: FALSE | AQ170: FALSE
A171: 139 | B171: =OFFSET(InputPriceData!B$15,CalculationsAndCharts!$A171+$A$11,0,1,1) -> 2013-04-25 | C171: =OFFSET(InputPriceData!G$15,CalculationsAndCharts!$A171+$A$11,0,1,1) -> 2071000 | D171: =OFFSET(InputPriceData!C$15,CalculationsAndCharts!$A171+$A$11,IF($C$7,7,0),1,1) -> 52.24 | E171: =OFFSET(InputPriceData!D$15,CalculationsAndCharts!$A171+$A$11,IF($C$7,7,0),1,1) -> 52.9 | F171: =OFFSET(InputPriceData!E$15,CalculationsAndCharts!$A171+$A$11,IF($C$7,7,0),1,1) -> 52.2 | G171: =OFFSET(InputPriceData!F$15,CalculationsAndCharts!$A171+$A$11,IF($C$7,7,0),1,1) -> 52.71 | K171: 52.10094371 | L171: 52.10094371 | M171: 0.6398922858 | N171: 0.3815443678 | O171: 1.276440497 | P171: -0.8437855304 | Q171: 0.5779241847 | R171: 0.4965861778 | T171: 52.71 | U171: 49.85 | V171: 1 | X171: 0.2 | Y171: 0.8 | AD171: FALSE | AE171: FALSE | AF171: TRUE | AG171: FALSE | AH171: FALSE | AM171: FALSE | AN171: FALSE | AO171: FALSE | AP171: FALSE | AQ171: FALSE
A172: 140 | B172: =OFFSET(InputPriceData!B$15,CalculationsAndCharts!$A172+$A$11,0,1,1) -> 2013-04-24 | C172: =OFFSET(InputPriceData!G$15,CalculationsAndCharts!$A172+$A$11,0,1,1) -> 1604700 | D172: =OFFSET(InputPriceData!C$15,CalculationsAndCharts!$A172+$A$11,IF($C$7,7,0),1,1) -> 52.33 | E172: =OFFSET(InputPriceData!D$15,CalculationsAndCharts!$A172+$A$11,IF($C$7,7,0),1,1) -> 52.74 | F172: =OFFSET(InputPriceData!E$15,CalculationsAndCharts!$A172+$A$11,IF($C$7,7,0),1,1) -> 52.01 | G172: =OFFSET(InputPriceData!F$15,CalculationsAndCharts!$A172+$A$11,IF($C$7,7,0),1,1) -> 52.09 | K172: 51.88817884 | L172: 51.88817884 | M172: 0.2169449306 | N172: 0.3478596297 | O172: 1.506888866 | P172: -0.8437855304 | Q172: 0.5069375674 | R172: 0.4425629612 | T172: 52.15 | U172: 49.85 | V172: 0.9739130435 | X172: 0.2 | Y172: 0.8 | AD172: FALSE | AE172: FALSE | AF172: TRUE | AG172: FALSE | AH172: FALSE | AM172: FALSE | AN172: FALSE | AO172: FALSE | AP172: FALSE | AQ172: FALSE
A173: 141 | B173: =OFFSET(InputPriceData!B$15,CalculationsAndCharts!$A173+$A$11,0,1,1) -> 2013-04-23 | C173: =OFFSET(InputPriceData!G$15,CalculationsAndCharts!$A173+$A$11,0,1,1) -> 2936300 | D173: =OFFSET(InputPriceData!C$15,CalculationsAndCharts!$A173+$A$11,IF($C$7,7,0),1,1) -> 51.81 | E173: =OFFSET(InputPriceData!D$15,CalculationsAndCharts!$A173+$A$11,IF($C$7,7,0),1,1) -> 52.57 | F173: =OFFSET(InputPriceData!E$15,CalculationsAndCharts!$A173+$A$11,IF($C$7,7,0),1,1) -> 51.74 | G173: =OFFSET(InputPriceData!F$15,CalculationsAndCharts!$A173+$A$11,IF($C$7,7,0),1,1) -> 52.15 | I173: =IF($A173=$E$25,I$32,NA()) ->  | K173: 51.68587955 | L173: 51.68587955 | M173: 0.4534565658 | N173: 0.3155412497 | O173: 1.506888866 | P173: -0.8437855304 | Q173: 0.4931890108 | R173: 0.3726786918 | T173: 52.22 | U173: 49.85 | V173: 0.970464135 | X173: 0.2 | Y173: 0.8 | AD173: FALSE | AE173: FALSE | AF173: TRUE | AG173: FALSE | AH173: FALSE | AM173: FALSE | AN173: FALSE | AO173: FALSE | AP173: FALSE | AQ173: FALSE
A174: 142 | B174: =OFFSET(InputPriceData!B$15,CalculationsAndCharts!$A174+$A$11,0,1,1) -> 2013-04-22 | C174: =OFFSET(InputPriceData!G$15,CalculationsAndCharts!$A174+$A$11,0,1,1) -> 1895800 | D174: =OFFSET(InputPriceData!C$15,CalculationsAndCharts!$A174+$A$11,IF($C$7,7,0),1,1) -> 51.74 | E174: =OFFSET(InputPriceData!D$15,CalculationsAndCharts!$A174+$A$11,IF($C$7,7,0),1,1) -> 51.89 | F174: =OFFSET(InputPriceData!E$15,CalculationsAndCharts!$A174+$A$11,IF($C$7,7,0),1,1) -> 51.38 | G174: =OFFSET(InputPriceData!F$15,CalculationsAndCharts!$A174+$A$11,IF($C$7,7,0),1,1) -> 51.63 | K174: 51.46120417 | L174: 51.46120417 | M174: 0.09616661266 | N174: 0.2490639284 | O174: 1.506888866 | P174: -0.8437855304 | Q174: 0.4649089047 | R174: 0.2811661828 | T174: 52.22 | U174: 49.85 | V174: 0.7510548523 | X174: 0.2 | Y174: 0.8 | AD174: FALSE | AE174: FALSE | AF174: TRUE | AG174: FALSE | AH174: FALSE | AM174: FALSE | AN174: FALSE | AO174: FALSE | AP174: FALSE | AQ174: FALSE
A175: 143 | B175: =OFFSET(InputPriceData!B$15,CalculationsAndCharts!$A175+$A$11,0,1,1) -> 2013-04-19 | C175: =OFFSET(InputPriceData!G$15,CalculationsAndCharts!$A175+$A$11,0,1,1) -> 4407800 | D175: =OFFSET(InputPriceData!C$15,CalculationsAndCharts!$A175+$A$11,IF($C$7,7,0),1,1) -> 51.47 | E175: =OFFSET(InputPriceData!D$15,CalculationsAndCharts!$A175+$A$11,IF($C$7,7,0),1,1) -> 51.86 | F175: =OFFSET(InputPriceData!E$15,CalculationsAndCharts!$A175+$A$11,IF($C$7,7,0),1,1) -> 51.15 | G175: =OFFSET(InputPriceData!F$15,CalculationsAndCharts!$A175+$A$11,IF($C$7,7,0),1,1) -> 51.82 | K175: 51.17884786 | L175: 51.17884786 | M175: 0.4458295995 | N175: 0.103281684 | O175: 1.506888866 | P175: -0.8437855304 | Q175: 0.4028917046 | R175: 0.1804567232 | T175: 52.22 | U175: 49.85 | V175: 0.8312236287 | X175: 0.2 | Y175: 0.8 | AD175: FALSE | AE175: FALSE | AF175: TRUE | AG175: FALSE | AH175: FALSE | AM175: FALSE | AN175: FALSE | AO175: FALSE | AP175: FALSE | AQ175: FALSE
A176: 144 | B176: =OFFSET(InputPriceData!B$15,CalculationsAndCharts!$A176+$A$11,0,1,1) -> 2013-04-18 | C176: =OFFSET(InputPriceData!G$15,CalculationsAndCharts!$A176+$A$11,0,1,1) -> 4107100 | D176: =OFFSET(InputPriceData!C$15,CalculationsAndCharts!$A176+$A$11,IF($C$7,7,0),1,1) -> 51.9 | E176: =OFFSET(InputPriceData!D$15,CalculationsAndCharts!$A176+$A$11,IF($C$7,7,0),1,1) -> 51.99 | F176: =OFFSET(InputPriceData!E$15,CalculationsAndCharts!$A176+$A$11,IF($C$7,7,0),1,1) -> 50.67 | G176: =OFFSET(InputPriceData!F$15,CalculationsAndCharts!$A176+$A$11,IF($C$7,7,0),1,1) -> 51.3 | K176: 50.82847751 | L176: 50.82847751 | M176: 0.08187532753 | N176: -0.1479419332 | O176: 1.506888866 | P176: -0.8437855304 | Q176: 0.2960187078 | R176: 0.09158166437 | T176: 52.22 | U176: 49.81 | V176: 0.6182572614 | X176: 0.2 | Y176: 0.8 | AD176: FALSE | AE176: FALSE | AF176: TRUE | AG176: FALSE | AH176: FALSE | AM176: FALSE | AN176: FALSE | AO176: FALSE | AP176: FALSE | AQ176: FALSE
A177: 145 | B177: =OFFSET(InputPriceData!B$15,CalculationsAndCharts!$A177+$A$11,0,1,1) -> 2013-04-17 | C177: =OFFSET(InputPriceData!G$15,CalculationsAndCharts!$A177+$A$11,0,1,1) -> 6858300 | D177: =OFFSET(InputPriceData!C$15,CalculationsAndCharts!$A177+$A$11,IF($C$7,7,0),1,1) -> 50.18 | E177: =OFFSET(InputPriceData!D$15,CalculationsAndCharts!$A177+$A$11,IF($C$7,7,0),1,1) -> 51.92 | F177: =OFFSET(InputPriceData!E$15,CalculationsAndCharts!$A177+$A$11,IF($C$7,7,0),1,1) -> 50.17 | G177: =OFFSET(InputPriceData!F$15,CalculationsAndCharts!$A177+$A$11,IF($C$7,7,0),1,1) -> 51.9 | K177: 50.42682958 | L177: 50.42682958 | M177: 0.8744328398 | N177: -0.5053096186 | O177: 1.506888866 | P177: -0.8437855304 | Q177: 0.1439909808 | R177: 0.03420648234 | T177: 52.22 | U177: 49.79 | V177: 0.8683127572 | X177: 0.2 | Y177: 0.8 | AD177: FALSE | AE177: FALSE | AF177: TRUE | AG177: FALSE | AH177: FALSE | AM177: FALSE | AN177: FALSE | AO177: FALSE | AP177: FALSE | AQ177: FALSE
A178: 146 | B178: =OFFSET(InputPriceData!B$15,CalculationsAndCharts!$A178+$A$11,0,1,1) -> 2013-04-16 | C178: =OFFSET(InputPriceData!G$15,CalculationsAndCharts!$A178+$A$11,0,1,1) -> 3536500 | D178: =OFFSET(InputPriceData!C$15,CalculationsAndCharts!$A178+$A$11,IF($C$7,7,0),1,1) -> 49.98 | E178: =OFFSET(InputPriceData!D$15,CalculationsAndCharts!$A178+$A$11,IF($C$7,7,0),1,1) -> 50.51 | F178: =OFFSET(InputPriceData!E$15,CalculationsAndCharts!$A178+$A$11,IF($C$7,7,0),1,1) -> 49.55 | G178: =OFFSET(InputPriceData!F$15,CalculationsAndCharts!$A178+$A$11,IF($C$7,7,0),1,1) -> 50.47 | K178: 50.17232386 | L178: 50.17232386 | M178: -0.4117698456 | N178: -0.7689114408 | O178: 1.506888866 | P178: -0.8437855304 | Q178: 0.0318521739 | R178: 0.009058958874 | T178: 52.22 | U178: 47.77 | V178: 0.606741573 | X178: 0.2 | Y178: 0.8 | AD178: FALSE | AE178: FALSE | AF178: TRUE | AG178: FALSE | AH178: FALSE | AM178: FALSE | AN178: FALSE | AO178: FALSE | AP178: FALSE | AQ178: FALSE
A179: 147 | B179: =OFFSET(InputPriceData!B$15,CalculationsAndCharts!$A179+$A$11,0,1,1) -> 2013-04-15 | C179: =OFFSET(InputPriceData!G$15,CalculationsAndCharts!$A179+$A$11,0,1,1) -> 3509300 | D179: =OFFSET(InputPriceData!C$15,CalculationsAndCharts!$A179+$A$11,IF($C$7,7,0),1,1) -> 50.01 | E179: =OFFSET(InputPriceData!D$15,CalculationsAndCharts!$A179+$A$11,IF($C$7,7,0),1,1) -> 50.6 | F179: =OFFSET(InputPriceData!E$15,CalculationsAndCharts!$A179+$A$11,IF($C$7,7,0),1,1) -> 49.62 | G179: =OFFSET(InputPriceData!F$15,CalculationsAndCharts!$A179+$A$11,IF($C$7,7,0),1,1) -> 49.9 | K179: 50.17679324 | L179: 50.17679324 | M179: -1.010480929 | N179: -0.7942098726 | O179: 1.506888866 | P179: -0.8437855304 | Q179: 0.02108997227 | R179: -0.003546605199 | T179: 52.22 | U179: 47.77 | V179: 0.4786516854 | X179: 0.2 | Y179: 0.8 | AD179: FALSE | AE179: FALSE | AF179: TRUE | AG179: FALSE | AH179: FALSE | AM179: FALSE | AN179: FALSE | AO179: FALSE | AP179: FALSE | AQ179: FALSE
A180: 148 | B180: =OFFSET(InputPriceData!B$15,CalculationsAndCharts!$A180+$A$11,0,1,1) -> 2013-04-12 | C180: =OFFSET(InputPriceData!G$15,CalculationsAndCharts!$A180+$A$11,0,1,1) -> 2347800 | D180: =OFFSET(InputPriceData!C$15,CalculationsAndCharts!$A180+$A$11,IF($C$7,7,0),1,1) -> 50.24 | E180: =OFFSET(InputPriceData!D$15,CalculationsAndCharts!$A180+$A$11,IF($C$7,7,0),1,1) -> 50.84 | F180: =OFFSET(InputPriceData!E$15,CalculationsAndCharts!$A180+$A$11,IF($C$7,7,0),1,1) -> 49.86 | G180: =OFFSET(InputPriceData!F$15,CalculationsAndCharts!$A180+$A$11,IF($C$7,7,0),1,1) -> 50.31 | K180: 50.19271071 | L180: 50.19271071 | M180: -0.644112211 | N180: -0.8045839677 | O180: 1.506888866 | P180: -0.8437855304 | Q180: 0.01667673023 | R180: -0.01572039578 | T180: 52.22 | U180: 47.77 | V180: 0.5707865169 | X180: 0.2 | Y180: 0.8 | AD180: FALSE | AE180: FALSE | AF180: TRUE | AG180: FALSE | AH180: FALSE | AM180: FALSE | AN180: FALSE | AO180: FALSE | AP180: FALSE | AQ180: FALSE
A181: 149 | B181: =OFFSET(InputPriceData!B$15,CalculationsAndCharts!$A181+$A$11,0,1,1) -> 2013-04-11 | C181: =OFFSET(InputPriceData!G$15,CalculationsAndCharts!$A181+$A$11,0,1,1) -> 5470800 | D181: =OFFSET(InputPriceData!C$15,CalculationsAndCharts!$A181+$A$11,IF($C$7,7,0),1,1) -> 50.31 | E181: =OFFSET(InputPriceData!D$15,CalculationsAndCharts!$A181+$A$11,IF($C$7,7,0),1,1) -> 50.85 | F181: =OFFSET(InputPriceData!E$15,CalculationsAndCharts!$A181+$A$11,IF($C$7,7,0),1,1) -> 50.21 | G181: =OFFSET(InputPriceData!F$15,CalculationsAndCharts!$A181+$A$11,IF($C$7,7,0),1,1) -> 50.28 | K181: 50.17742928 | L181: 50.17742928 | M181: -0.6808244098 | N181: -0.8437855304 | O181: 1.506888866 | P181: -0.8437855304 | Q181: 0 | R181: -0.02402187042 | T181: 52.22 | U181: 47.77 | V181: 0.5640449438 | X181: 0.2 | Y181: 0.8 | AD181: FALSE | AE181: FALSE | AF181: TRUE | AG181: FALSE | AH181: FALSE | AM181: FALSE | AN181: FALSE | AO181: FALSE | AP181: FALSE | AQ181: FALSE
A182: 150 | B182: =OFFSET(InputPriceData!B$15,CalculationsAndCharts!$A182+$A$11,0,1,1) -> 2013-04-10 | C182: =OFFSET(InputPriceData!G$15,CalculationsAndCharts!$A182+$A$11,0,1,1) -> 6801000 | D182: =OFFSET(InputPriceData!C$15,CalculationsAndCharts!$A182+$A$11,IF($C$7,7,0),1,1) -> 49.9 | E182: =OFFSET(InputPriceData!D$15,CalculationsAndCharts!$A182+$A$11,IF($C$7,7,0),1,1) -> 51.34 | F182: =OFFSET(InputPriceData!E$15,CalculationsAndCharts!$A182+$A$11,IF($C$7,7,0),1,1) -> 49.76 | G182: =OFFSET(InputPriceData!F$15,CalculationsAndCharts!$A182+$A$11,IF($C$7,7,0),1,1) -> 50.24 | K182: 50.2126347 | L182: 50.2126347 | M182: -0.729587367 | N182: -0.8275047967 | O182: 1.506888866 | P182: -0.8275047967 | Q182: 0 | R182: -0.02428922198 | T182: 52.22 | U182: 47.77 | V182: 0.5550561798 | X182: 0.2 | Y182: 0.8 | AD182: FALSE | AE182: FALSE | AF182: TRUE | AG182: FALSE | AH182: FALSE | AM182: FALSE | AN182: FALSE | AO182: FALSE | AP182: FALSE | AQ182: FALSE
A183: 151 | B183: =OFFSET(InputPriceData!B$15,CalculationsAndCharts!$A183+$A$11,0,1,1) -> 2013-04-09 | C183: =OFFSET(InputPriceData!G$15,CalculationsAndCharts!$A183+$A$11,0,1,1) -> 7493300 | D183: =OFFSET(InputPriceData!C$15,CalculationsAndCharts!$A183+$A$11,IF($C$7,7,0),1,1) -> 50.48 | E183: =OFFSET(InputPriceData!D$15,CalculationsAndCharts!$A183+$A$11,IF($C$7,7,0),1,1) -> 50.58 | F183: =OFFSET(InputPriceData!E$15,CalculationsAndCharts!$A183+$A$11,IF($C$7,7,0),1,1) -> 49.76 | G183: =OFFSET(InputPriceData!F$15,CalculationsAndCharts!$A183+$A$11,IF($C$7,7,0),1,1) -> 49.85 | K183: 50.32738228 | L183: 50.32738228 | M183: -1.166213952 | N183: -0.7126510975 | O183: 1.506888866 | P183: -0.7126510975 | Q183: 0 | R183: -0.00999026905 | T183: 52.22 | U183: 47.76 | V183: 0.4686098655 | X183: 0.2 | Y183: 0.8 | AD183: FALSE | AE183: FALSE | AF183: TRUE | AG183: FALSE | AH183: FALSE | AM183: FALSE | AN183: FALSE | AO183: FALSE | AP183: FALSE | AQ183: FALSE
A184: 152 | B184: =OFFSET(InputPriceData!B$15,CalculationsAndCharts!$A184+$A$11,0,1,1) -> 2013-04-08 | C184: =OFFSET(InputPriceData!G$15,CalculationsAndCharts!$A184+$A$11,0,1,1) -> 3150200 | D184: =OFFSET(InputPriceData!C$15,CalculationsAndCharts!$A184+$A$11,IF($C$7,7,0),1,1) -> 50.28 | E184: =OFFSET(InputPriceData!D$15,CalculationsAndCharts!$A184+$A$11,IF($C$7,7,0),1,1) -> 50.49 | F184: =OFFSET(InputPriceData!E$15,CalculationsAndCharts!$A184+$A$11,IF($C$7,7,0),1,1) -> 50.05 | G184: =OFFSET(InputPriceData!F$15,CalculationsAndCharts!$A184+$A$11,IF($C$7,7,0),1,1) -> 50.36 | K184: 50.43257822 | L184: 50.43257822 | M184: -0.6912412838 | N184: -0.5781889748 | O184: 1.506888866 | P184: -0.5781889748 | Q184: 0 | R184: 0.03092389843 | T184: 52.22 | U184: 47.48 | V184: 0.6075949367 | X184: 0.2 | Y184: 0.8 | Z184: 50.28 | AD184: FALSE | AE184: TRUE | AF184: TRUE | AG184: FALSE | AH184: FALSE | AI184: 50.28 | AK184: 50.28 | AM184: FALSE | AN184: FALSE | AO184: FALSE | AP184: FALSE | AQ184: TRUE | AS184: 50.28 | AU184: 50.28
A185: 153 | B185: =OFFSET(InputPriceData!B$15,CalculationsAndCharts!$A185+$A$11,0,1,1) -> 2013-04-05 | C185: =OFFSET(InputPriceData!G$15,CalculationsAndCharts!$A185+$A$11,0,1,1) -> 3662400 | D185: =OFFSET(InputPriceData!C$15,CalculationsAndCharts!$A185+$A$11,IF($C$7,7,0),1,1) -> 50.23 | E185: =OFFSET(InputPriceData!D$15,CalculationsAndCharts!$A185+$A$11,IF($C$7,7,0),1,1) -> 50.42 | F185: =OFFSET(InputPriceData!E$15,CalculationsAndCharts!$A185+$A$11,IF($C$7,7,0),1,1) -> 49.92 | G185: =OFFSET(InputPriceData!F$15,CalculationsAndCharts!$A185+$A$11,IF($C$7,7,0),1,1) -> 50.4 | K185: 50.48673474 | L185: 50.48673474 | M185: -0.629772115 | N185: -0.4670076373 | O185: 1.506888866 | P185: -0.4670076373 | Q185: 0 | R185: 0.1113677276 | T185: 52.22 | U185: 47.48 | V185: 0.6160337553 | X185: 0.2 | Y185: 0.8 | AB185: 0.1113677276 | AD185: TRUE | AE185: FALSE | AF185: FALSE | AG185: FALSE | AH185: FALSE | AM185: FALSE | AN185: FALSE | AO185: TRUE | AP185: TRUE | AQ185: FALSE
A186: 154 | B186: =OFFSET(InputPriceData!B$15,CalculationsAndCharts!$A186+$A$11,0,1,1) -> 2013-04-04 | C186: =OFFSET(InputPriceData!G$15,CalculationsAndCharts!$A186+$A$11,0,1,1) -> 2929400 | D186: =OFFSET(InputPriceData!C$15,CalculationsAndCharts!$A186+$A$11,IF($C$7,7,0),1,1) -> 50.22 | E186: =OFFSET(InputPriceData!D$15,CalculationsAndCharts!$A186+$A$11,IF($C$7,7,0),1,1) -> 50.74 | F186: =OFFSET(InputPriceData!E$15,CalculationsAndCharts!$A186+$A$11,IF($C$7,7,0),1,1) -> 50.13 | G186: =OFFSET(InputPriceData!F$15,CalculationsAndCharts!$A186+$A$11,IF($C$7,7,0),1,1) -> 50.73 | K186: 50.55271688 | L186: 50.55271688 | M186: -0.2310007563 | N186: -0.3157786235 | O186: 1.681793438 | P186: -0.3157786235 | Q186: 0 | R186: 0.2384117904 | T186: 52.22 | U186: 47.46 | V186: 0.6869747899 | X186: 0.2 | Y186: 0.8 | AD186: FALSE | AE186: FALSE | AF186: FALSE | AG186: FALSE | AH186: FALSE | AM186: FALSE | AN186: FALSE | AO186: TRUE | AP186: FALSE | AQ186: FALSE
A187: 155 | B187: =OFFSET(InputPriceData!B$15,CalculationsAndCharts!$A187+$A$11,0,1,1) -> 2013-04-03 | C187: =OFFSET(InputPriceData!G$15,CalculationsAndCharts!$A187+$A$11,0,1,1) -> 2804700 | D187: =OFFSET(InputPriceData!C$15,CalculationsAndCharts!$A187+$A$11,IF($C$7,7,0),1,1) -> 50.68 | E187: =OFFSET(InputPriceData!D$15,CalculationsAndCharts!$A187+$A$11,IF($C$7,7,0),1,1) -> 50.73 | F187: =OFFSET(InputPriceData!E$15,CalculationsAndCharts!$A187+$A$11,IF($C$7,7,0),1,1) -> 50.04 | G187: =OFFSET(InputPriceData!F$15,CalculationsAndCharts!$A187+$A$11,IF($C$7,7,0),1,1) -> 50.12 | K187: 50.72070148 | L187: 50.72070148 | M187: -0.7823405138 | N187: -0.01862599721 | O187: 1.933788001 | P187: -0.01862599721 | Q187: 0 | R187: 0.400566589 | T187: 52.22 | U187: 47.46 | V187: 0.5588235294 | X187: 0.2 | Y187: 0.8 | AD187: FALSE | AE187: FALSE | AF187: FALSE | AG187: FALSE | AH187: FALSE | AM187: FALSE | AN187: FALSE | AO187: TRUE | AP187: FALSE | AQ187: FALSE
A188: 156 | B188: =OFFSET(InputPriceData!B$15,CalculationsAndCharts!$A188+$A$11,0,1,1) -> 2013-04-02 | C188: =OFFSET(InputPriceData!G$15,CalculationsAndCharts!$A188+$A$11,0,1,1) -> 2790300 | D188: =OFFSET(InputPriceData!C$15,CalculationsAndCharts!$A188+$A$11,IF($C$7,7,0),1,1) -> 50.73 | E188: =OFFSET(InputPriceData!D$15,CalculationsAndCharts!$A188+$A$11,IF($C$7,7,0),1,1) -> 50.76 | F188: =OFFSET(InputPriceData!E$15,CalculationsAndCharts!$A188+$A$11,IF($C$7,7,0),1,1) -> 50.4 | G188: =OFFSET(InputPriceData!F$15,CalculationsAndCharts!$A188+$A$11,IF($C$7,7,0),1,1) -> 50.54 | K188: 50.94713721 | L188: 50.94713721 | M188: -0.3061314687 | N188: 0.4034818706 | O188: 1.933788001 | P188: 0.07495065015 | Q188: 0.1767401652 | R188: 0.5482881209 | T188: 52.22 | U188: 47.46 | V188: 0.6470588235 | X188: 0.2 | Y188: 0.8 | AD188: FALSE | AE188: FALSE | AF188: FALSE | AG188: FALSE | AH188: FALSE | AM188: FALSE | AN188: FALSE | AO188: TRUE | AP188: FALSE | AQ188: FALSE
A189: 157 | B189: =OFFSET(InputPriceData!B$15,CalculationsAndCharts!$A189+$A$11,0,1,1) -> 2013-04-01 | C189: =OFFSET(InputPriceData!G$15,CalculationsAndCharts!$A189+$A$11,0,1,1) -> 4970100 | D189: =OFFSET(InputPriceData!C$15,CalculationsAndCharts!$A189+$A$11,IF($C$7,7,0),1,1) -> 50.77 | E189: =OFFSET(InputPriceData!D$15,CalculationsAndCharts!$A189+$A$11,IF($C$7,7,0),1,1) -> 50.87 | F189: =OFFSET(InputPriceData!E$15,CalculationsAndCharts!$A189+$A$11,IF($C$7,7,0),1,1) -> 50.25 | G189: =OFFSET(InputPriceData!F$15,CalculationsAndCharts!$A189+$A$11,IF($C$7,7,0),1,1) -> 50.62 | K189: 51.11785747 | L189: 51.11785747 | M189: -0.1038751374 | N189: 0.8464889795 | O189: 1.933788001 | P189: 0.07495065015 | Q189: 0.4150650024 | R189: 0.6243892325 | T189: 52.22 | U189: 47.46 | V189: 0.6638655462 | X189: 0.2 | Y189: 0.8 | AD189: FALSE | AE189: FALSE | AF189: FALSE | AG189: FALSE | AH189: FALSE | AM189: FALSE | AN189: FALSE | AO189: TRUE | AP189: FALSE | AQ189: FALSE
A190: 158 | B190: =OFFSET(InputPriceData!B$15,CalculationsAndCharts!$A190+$A$11,0,1,1) -> 2013-03-28 | C190: =OFFSET(InputPriceData!G$15,CalculationsAndCharts!$A190+$A$11,0,1,1) -> 33355800 | D190: =OFFSET(InputPriceData!C$15,CalculationsAndCharts!$A190+$A$11,IF($C$7,7,0),1,1) -> 50.3 | E190: =OFFSET(InputPriceData!D$15,CalculationsAndCharts!$A190+$A$11,IF($C$7,7,0),1,1) -> 50.72 | F190: =OFFSET(InputPriceData!E$15,CalculationsAndCharts!$A190+$A$11,IF($C$7,7,0),1,1) -> 50.24 | G190: =OFFSET(InputPriceData!F$15,CalculationsAndCharts!$A190+$A$11,IF($C$7,7,0),1,1) -> 50.58 | K190: 51.20190788 | L190: 51.20190788 | M190: 0.008613873326 | N190: 1.276440497 | O190: 1.933788001 | P190: 0.07495065015 | Q190: 0.6463663141 | R190: 0.6072472931 | T190: 52.22 | U190: 47.46 | V190: 0.6554621849 | X190: 0.2 | Y190: 0.8 | AD190: FALSE | AE190: FALSE | AF190: FALSE | AG190: FALSE | AH190: FALSE | AM190: FALSE | AN190: FALSE | AO190: TRUE | AP190: FALSE | AQ190: FALSE
A191: 159 | B191: =OFFSET(InputPriceData!B$15,CalculationsAndCharts!$A191+$A$11,0,1,1) -> 2013-03-27 | C191: =OFFSET(InputPriceData!G$15,CalculationsAndCharts!$A191+$A$11,0,1,1) -> 7721400 | D191: =OFFSET(InputPriceData!C$15,CalculationsAndCharts!$A191+$A$11,IF($C$7,7,0),1,1) -> 50.88 | E191: =OFFSET(InputPriceData!D$15,CalculationsAndCharts!$A191+$A$11,IF($C$7,7,0),1,1) -> 51.56 | F191: =OFFSET(InputPriceData!E$15,CalculationsAndCharts!$A191+$A$11,IF($C$7,7,0),1,1) -> 50.6 | G191: =OFFSET(InputPriceData!F$15,CalculationsAndCharts!$A191+$A$11,IF($C$7,7,0),1,1) -> 50.95 | K191: 51.03581433 | L191: 51.03581433 | M191: 0.5947110667 | N191: 1.506888866 | O191: 1.933788001 | P191: 0.07495065015 | Q191: 0.7703407805 | R191: 0.518467507 | T191: 52.22 | U191: 46.34 | V191: 0.7840136054 | X191: 0.2 | Y191: 0.8 | AD191: FALSE | AE191: FALSE | AF191: FALSE | AG191: FALSE | AH191: FALSE | AM191: FALSE | AN191: FALSE | AO191: TRUE | AP191: FALSE | AQ191: FALSE
A192: 160 | B192: =OFFSET(InputPriceData!B$15,CalculationsAndCharts!$A192+$A$11,0,1,1) -> 2013-03-26 | C192: =OFFSET(InputPriceData!G$15,CalculationsAndCharts!$A192+$A$11,0,1,1) -> 4110500 | D192: =OFFSET(InputPriceData!C$15,CalculationsAndCharts!$A192+$A$11,IF($C$7,7,0),1,1) -> 51.23 | E192: =OFFSET(InputPriceData!D$15,CalculationsAndCharts!$A192+$A$11,IF($C$7,7,0),1,1) -> 52.3 | F192: =OFFSET(InputPriceData!E$15,CalculationsAndCharts!$A192+$A$11,IF($C$7,7,0),1,1) -> 51.17 | G192: =OFFSET(InputPriceData!F$15,CalculationsAndCharts!$A192+$A$11,IF($C$7,7,0),1,1) -> 52.22 | K192: 50.46531019 | L192: 50.46531019 | M192: 2.284077389 | N192: 1.325421521 | O192: 1.933788001 | P192: 0.07495065015 | Q192: 0.672716669 | R192: 0.4194805725 | T192: 52.22 | U192: 46.34 | V192: 1 | X192: 0.2 | Y192: 0.8 | AD192: FALSE | AE192: FALSE | AF192: FALSE | AG192: FALSE | AH192: FALSE | AM192: FALSE | AN192: FALSE | AO192: TRUE | AP192: FALSE | AQ192: FALSE
A193: 161 | B193: =OFFSET(InputPriceData!B$15,CalculationsAndCharts!$A193+$A$11,0,1,1) -> 2013-03-25 | C193: =OFFSET(InputPriceData!G$15,CalculationsAndCharts!$A193+$A$11,0,1,1) -> 10543200 | D193: =OFFSET(InputPriceData!C$15,CalculationsAndCharts!$A193+$A$11,IF($C$7,7,0),1,1) -> 52.53 | E193: =OFFSET(InputPriceData!D$15,CalculationsAndCharts!$A193+$A$11,IF($C$7,7,0),1,1) -> 52.91 | F193: =OFFSET(InputPriceData!E$15,CalculationsAndCharts!$A193+$A$11,IF($C$7,7,0),1,1) -> 49.84 | G193: =OFFSET(InputPriceData!F$15,CalculationsAndCharts!$A193+$A$11,IF($C$7,7,0),1,1) -> 51.08 | I193: =IF($A193=$E$25,I$32,NA()) ->  | K193: 49.76734297 | L193: 49.76734297 | M193: 1.646226429 | N193: 0.9543584165 | O193: 1.933788001 | P193: 0.07495065015 | Q193: 0.4730955972 | R193: 0.3647075837 | T193: 51.08 | U193: 44.95 | V193: 1 | X193: 0.2 | Y193: 0.8 | AD193: FALSE | AE193: FALSE | AF193: FALSE | AG193: FALSE | AH193: FALSE | AM193: FALSE | AN193: FALSE | AO193: TRUE | AP193: FALSE | AQ193: FALSE
A194: 162 | B194: =OFFSET(InputPriceData!B$15,CalculationsAndCharts!$A194+$A$11,0,1,1) -> 2013-03-22 | C194: =OFFSET(InputPriceData!G$15,CalculationsAndCharts!$A194+$A$11,0,1,1) -> 6403900 | D194: =OFFSET(InputPriceData!C$15,CalculationsAndCharts!$A194+$A$11,IF($C$7,7,0),1,1) -> 50.09 | E194: =OFFSET(InputPriceData!D$15,CalculationsAndCharts!$A194+$A$11,IF($C$7,7,0),1,1) -> 50.49 | F194: =OFFSET(InputPriceData!E$15,CalculationsAndCharts!$A194+$A$11,IF($C$7,7,0),1,1) -> 49.75 | G194: =OFFSET(InputPriceData!F$15,CalculationsAndCharts!$A194+$A$11,IF($C$7,7,0),1,1) -> 50.07 | K194: 49.22904356 | L194: 49.22904356 | M194: 1.005884883 | N194: 0.6742787187 | O194: 1.933788001 | P194: 0.03794014291 | Q194: 0.3356485454 | R194: 0.3596732263 | T194: 50.07 | U194: 44.95 | V194: 1 | X194: 0.2 | Y194: 0.8 | AD194: FALSE | AE194: FALSE | AF194: FALSE | AG194: FALSE | AH194: FALSE | AM194: FALSE | AN194: FALSE | AO194: TRUE | AP194: FALSE | AQ194: FALSE
A195: 163 | B195: =OFFSET(InputPriceData!B$15,CalculationsAndCharts!$A195+$A$11,0,1,1) -> 2013-03-21 | C195: =OFFSET(InputPriceData!G$15,CalculationsAndCharts!$A195+$A$11,0,1,1) -> 3240000 | D195: =OFFSET(InputPriceData!C$15,CalculationsAndCharts!$A195+$A$11,IF($C$7,7,0),1,1) -> 49.41 | E195: =OFFSET(InputPriceData!D$15,CalculationsAndCharts!$A195+$A$11,IF($C$7,7,0),1,1) -> 49.91 | F195: =OFFSET(InputPriceData!E$15,CalculationsAndCharts!$A195+$A$11,IF($C$7,7,0),1,1) -> 48.92 | G195: =OFFSET(InputPriceData!F$15,CalculationsAndCharts!$A195+$A$11,IF($C$7,7,0),1,1) -> 49.81 | K195: 48.74863433 | L195: 48.74863433 | M195: 1.05025327 | N195: 0.394451119 | O195: 1.933788001 | P195: -0.4332772883 | Q195: 0.3496854992 | R195: 0.3749432257 | T195: 49.81 | U195: 44.95 | V195: 1 | X195: 0.2 | Y195: 0.8 | AD195: FALSE | AE195: FALSE | AF195: FALSE | AG195: FALSE | AH195: FALSE | AM195: FALSE | AN195: FALSE | AO195: TRUE | AP195: FALSE | AQ195: FALSE
A196: 164 | B196: =OFFSET(InputPriceData!B$15,CalculationsAndCharts!$A196+$A$11,0,1,1) -> 2013-03-20 | C196: =OFFSET(InputPriceData!G$15,CalculationsAndCharts!$A196+$A$11,0,1,1) -> 5946300 | D196: =OFFSET(InputPriceData!C$15,CalculationsAndCharts!$A196+$A$11,IF($C$7,7,0),1,1) -> 48.26 | E196: =OFFSET(InputPriceData!D$15,CalculationsAndCharts!$A196+$A$11,IF($C$7,7,0),1,1) -> 50.04 | F196: =OFFSET(InputPriceData!E$15,CalculationsAndCharts!$A196+$A$11,IF($C$7,7,0),1,1) -> 48.15 | G196: =OFFSET(InputPriceData!F$15,CalculationsAndCharts!$A196+$A$11,IF($C$7,7,0),1,1) -> 49.79 | K196: 48.3138317 | L196: 48.3138317 | M196: 1.357625102 | N196: 0.1040603812 | O196: 1.933788001 | P196: -0.9252715203 | Q196: 0.3600246493 | R196: 0.3922051332 | T196: 49.79 | U196: 44.95 | V196: 1 | X196: 0.2 | Y196: 0.8 | AD196: FALSE | AE196: FALSE | AF196: FALSE | AG196: FALSE | AH196: FALSE | AM196: FALSE | AN196: FALSE | AO196: TRUE | AP196: FALSE | AQ196: FALSE
A197: 165 | B197: =OFFSET(InputPriceData!B$15,CalculationsAndCharts!$A197+$A$11,0,1,1) -> 2013-03-19 | C197: =OFFSET(InputPriceData!G$15,CalculationsAndCharts!$A197+$A$11,0,1,1) -> 5279300 | D197: =OFFSET(InputPriceData!C$15,CalculationsAndCharts!$A197+$A$11,IF($C$7,7,0),1,1) -> 48.12 | E197: =OFFSET(InputPriceData!D$15,CalculationsAndCharts!$A197+$A$11,IF($C$7,7,0),1,1) -> 48.22 | F197: =OFFSET(InputPriceData!E$15,CalculationsAndCharts!$A197+$A$11,IF($C$7,7,0),1,1) -> 47.46 | G197: =OFFSET(InputPriceData!F$15,CalculationsAndCharts!$A197+$A$11,IF($C$7,7,0),1,1) -> 47.77 | K197: 48.1713525 | L197: 48.1713525 | M197: -0.484142936 | N197: 0.07495065015 | O197: 1.933788001 | P197: -1.070575847 | Q197: 0.3812875388 | R197: 0.4111873017 | T197: 48.92 | U197: 43.8 | V197: 0.775390625 | X197: 0.2 | Y197: 0.8 | AD197: FALSE | AE197: FALSE | AF197: FALSE | AG197: FALSE | AH197: FALSE | AM197: FALSE | AN197: FALSE | AO197: TRUE | AP197: FALSE | AQ197: FALSE
A198: 166 | B198: =OFFSET(InputPriceData!B$15,CalculationsAndCharts!$A198+$A$11,0,1,1) -> 2013-03-18 | C198: =OFFSET(InputPriceData!G$15,CalculationsAndCharts!$A198+$A$11,0,1,1) -> 1830700 | D198: =OFFSET(InputPriceData!C$15,CalculationsAndCharts!$A198+$A$11,IF($C$7,7,0),1,1) -> 47.74 | E198: =OFFSET(InputPriceData!D$15,CalculationsAndCharts!$A198+$A$11,IF($C$7,7,0),1,1) -> 48.38 | F198: =OFFSET(InputPriceData!E$15,CalculationsAndCharts!$A198+$A$11,IF($C$7,7,0),1,1) -> 47.63 | G198: =OFFSET(InputPriceData!F$15,CalculationsAndCharts!$A198+$A$11,IF($C$7,7,0),1,1) -> 48.11 | K198: 48.19953386 | L198: 48.19953386 | M198: -0.1016769597 | N198: 0.2268415622 | O198: 1.933788001 | P198: -1.070575847 | Q198: 0.4318443021 | R198: 0.4323941454 | T198: 48.92 | U198: 43.8 | V198: 0.841796875 | X198: 0.2 | Y198: 0.8 | AD198: FALSE | AE198: FALSE | AF198: FALSE | AG198: FALSE | AH198: =AND(AG199,AF199) -> FALSE | AM198: FALSE | AN198: =AND(AM199,NOT(AO199)) -> FALSE | AO198: TRUE | AP198: FALSE | AQ198: FALSE
A199: 167 | B199: =OFFSET(InputPriceData!B$15,CalculationsAndCharts!$A199+$A$11,0,1,1) -> 2013-03-15 | C199: =OFFSET(InputPriceData!G$15,CalculationsAndCharts!$A199+$A$11,0,1,1) -> 3069900 | D199: =OFFSET(InputPriceData!C$15,CalculationsAndCharts!$A199+$A$11,IF($C$7,7,0),1,1) -> 48.64 | E199: =OFFSET(InputPriceData!D$15,CalculationsAndCharts!$A199+$A$11,IF($C$7,7,0),1,1) -> 48.72 | F199: =OFFSET(InputPriceData!E$15,CalculationsAndCharts!$A199+$A$11,IF($C$7,7,0),1,1) -> 47.79 | G199: =OFFSET(InputPriceData!F$15,CalculationsAndCharts!$A199+$A$11,IF($C$7,7,0),1,1) -> 48.18 | K199: 48.10832032 | L199: 48.10832032 | M199: 0.06278033128 | N199: 0.2762549085 | O199: 1.933788001 | P199: -1.070575847 | Q199: 0.4482914932 | R199: 0.4680589813 | T199: 48.92 | U199: 43.8 | V199: 0.85546875 | X199: 0.2 | Y199: 0.8 | AD199: FALSE | AE199: FALSE | AF199: FALSE | AG199: FALSE | AH199: FALSE | AM199: FALSE | AN199: FALSE | AO199: TRUE | AP199: FALSE | AQ199: =AND(AP200,AO200) -> FALSE
A200: 168 | B200: =OFFSET(InputPriceData!B$15,CalculationsAndCharts!$A200+$A$11,0,1,1) -> 2013-03-14 | C200: =OFFSET(InputPriceData!G$15,CalculationsAndCharts!$A200+$A$11,0,1,1) -> 3169600 | D200: =OFFSET(InputPriceData!C$15,CalculationsAndCharts!$A200+$A$11,IF($C$7,7,0),1,1) -> 48.01 | E200: =OFFSET(InputPriceData!D$15,CalculationsAndCharts!$A200+$A$11,IF($C$7,7,0),1,1) -> 48.83 | F200: =OFFSET(InputPriceData!E$15,CalculationsAndCharts!$A200+$A$11,IF($C$7,7,0),1,1) -> 47.85 | G200: =OFFSET(InputPriceData!F$15,CalculationsAndCharts!$A200+$A$11,IF($C$7,7,0),1,1) -> 48.77 | K200: 47.90912416 | L200: 47.90912416 | M200: 0.8318595549 | N200: 0.2144027893 | O200: 1.933788001 | P200: -1.070575847 | Q200: 0.427704067 | R200: 0.5375449339 | T200: 48.92 | U200: 43.8 | V200: 0.970703125 | X200: 0.2 | Y200: 0.8 | AD200: FALSE | AE200: FALSE | AF200: FALSE | AG200: FALSE | AH200: FALSE | AM200: FALSE | AN200: FALSE | AO200: TRUE | AP200: FALSE | AQ200: FALSE
A201: 169 | B201: =OFFSET(InputPriceData!B$15,CalculationsAndCharts!$A201+$A$11,0,1,1) -> 2013-03-13 | C201: =OFFSET(InputPriceData!G$15,CalculationsAndCharts!$A201+$A$11,0,1,1) -> 2340700 | D201: =OFFSET(InputPriceData!C$15,CalculationsAndCharts!$A201+$A$11,IF($C$7,7,0),1,1) -> 47.71 | E201: =OFFSET(InputPriceData!D$15,CalculationsAndCharts!$A201+$A$11,IF($C$7,7,0),1,1) -> 48.1 | F201: =OFFSET(InputPriceData!E$15,CalculationsAndCharts!$A201+$A$11,IF($C$7,7,0),1,1) -> 47.53 | G201: =OFFSET(InputPriceData!F$15,CalculationsAndCharts!$A201+$A$11,IF($C$7,7,0),1,1) -> 48.03 | K201: 47.77308332 | L201: 47.77308332 | M201: 0.2874252719 | N201: 0.2073699156 | O201: 1.933788001 | P201: -1.070575847 | Q201: 0.4253631808 | R201: 0.6452217532 | T201: 48.92 | U201: 43.8 | V201: 0.826171875 | X201: 0.2 | Y201: 0.8 | AD201: FALSE | AE201: FALSE | AF201: FALSE | AG201: FALSE | AH201: FALSE | AM201: FALSE | AN201: FALSE | AO201: TRUE | AP201: FALSE | AQ201: FALSE
A202: 170 | B202: =OFFSET(InputPriceData!B$15,CalculationsAndCharts!$A202+$A$11,0,1,1) -> 2013-03-12 | C202: =OFFSET(InputPriceData!G$15,CalculationsAndCharts!$A202+$A$11,0,1,1) -> 2714400 | D202: =OFFSET(InputPriceData!C$15,CalculationsAndCharts!$A202+$A$11,IF($C$7,7,0),1,1) -> 47.5 | E202: =OFFSET(InputPriceData!D$15,CalculationsAndCharts!$A202+$A$11,IF($C$7,7,0),1,1) -> 47.97 | F202: =OFFSET(InputPriceData!E$15,CalculationsAndCharts!$A202+$A$11,IF($C$7,7,0),1,1) -> 47.49 | G202: =OFFSET(InputPriceData!F$15,CalculationsAndCharts!$A202+$A$11,IF($C$7,7,0),1,1) -> 47.76 | K202: 47.82816242 | L202: 47.82816242 | M202: 0.146156812 | N202: 0.407079245 | O202: 1.933788001 | P202: -1.070575847 | Q202: 0.4918362645 | R202: 0.7724273082 | T202: 48.92 | U202: 43.8 | V202: 0.7734375 | X202: 0.2 | Y202: 0.8 | AD202: FALSE | AE202: FALSE | AF202: FALSE | AG202: FALSE | AH202: FALSE | AM202: FALSE | AN202: FALSE | AO202: TRUE | AP202: FALSE | AQ202: FALSE
A203: 171 | B203: =OFFSET(InputPriceData!B$15,CalculationsAndCharts!$A203+$A$11,0,1,1) -> 2013-03-11 | C203: =OFFSET(InputPriceData!G$15,CalculationsAndCharts!$A203+$A$11,0,1,1) -> 2743800 | D203: =OFFSET(InputPriceData!C$15,CalculationsAndCharts!$A203+$A$11,IF($C$7,7,0),1,1) -> 47.79 | E203: =OFFSET(InputPriceData!D$15,CalculationsAndCharts!$A203+$A$11,IF($C$7,7,0),1,1) -> 48.1 | F203: =OFFSET(InputPriceData!E$15,CalculationsAndCharts!$A203+$A$11,IF($C$7,7,0),1,1) -> 47.45 | G203: =OFFSET(InputPriceData!F$15,CalculationsAndCharts!$A203+$A$11,IF($C$7,7,0),1,1) -> 47.48 | K203: 48.00321397 | L203: 48.00321397 | M203: -0.03625363193 | N203: 0.7755258602 | O203: 1.933788001 | P203: -1.070575847 | Q203: 0.6144734129 | R203: 0.8885595601 | T203: 48.92 | U203: 43.8 | V203: 0.71875 | X203: 0.2 | Y203: 0.8 | AD203: FALSE | AE203: FALSE | AF203: FALSE | AG203: FALSE | AH203: FALSE | AM203: FALSE | AN203: FALSE | AO203: TRUE | AP203: FALSE | AQ203: FALSE
... 670 more rows

Sheet Transaction Summary
B1: Transaction Summary (using trade size of 1 share)
C2: =CalculationsAndCharts!$A$8 -> 841 | D2: Logically Available Bars on the "CalculationsAndCharts" tab constitute a
D3: ="Transaction reporting period extending from " & TEXT(OFFSET(CalculationsAndCharts!$B$32,CalculationsAndCharts!$A$8,0,1,1),"mm/dd/yyyy") & " to "& TEXT(CalculationsAndCharts!$B$33,"mm/dd/yyyy") -> Transaction reporting period extending from 07/12/2010 to 11/08/2013
B4: Summary for LONG trades | K4: Summary for SHORT trades
B5: =COUNT(OFFSET(B15,0,0,C2,1)) -> 21 | C5: LONG trades opened in this time period | K5: =COUNT(OFFSET(K15,0,0,$C$2,1)) -> 21 | L5: Short trades opened in this time period
B6: =COUNTIF(OFFSET(H15,0,0,B5,1),">0") -> 12 | C6: Winners | D6: Biggest Win | E6: =MAX(OFFSET(H15,0,0,B5,1)) -> 3.66 | H6: Sum of Gains | I6: =SUMIF(OFFSET(H15,0,0,B5,1),">0") -> 20.19 | K6: =COUNTIF(OFFSET(Q15,0,0,K5,1),">0") -> 7 | L6: Winners | M6: Biggest Win | N6: =MAX(OFFSET(Q15,0,0,K5,1)) -> 3.51 | Q6: Sum of Gains | R6: =SUMIF(OFFSET(Q15,0,0,K5,1),">0") -> 8.92
B7: =COUNTIF(OFFSET(H15,0,0,B5,1),"<0") -> 9 | C7: Losers | D7: Biggest Loss | E7: =MIN(OFFSET(H15,0,0,B5,1)) -> -3.89 | H7: Sum of Losses | I7: =SUMIF(OFFSET(H15,0,0,B5,1),"<0") -> -14.36 | K7: =COUNTIF(OFFSET(Q15,0,0,K5,1),"<0") -> 14 | L7: Losers | M7: Biggest Loss | N7: =MIN(OFFSET(Q15,0,0,K5,1)) -> -6.62 | Q7: Sum of Losses | R7: =SUMIF(OFFSET(Q15,0,0,K5,1),"<0") -> -30.59
H8: NET change for Period | I8: =SUM(OFFSET(H15,0,0,B5,1)) -> 5.83 | Q8: NET change for Period | R8: =SUM(OFFSET(Q15,0,0,K5,1)) -> -21.67
H10: Largest Negative Account Balance | I10: =MIN(OFFSET(I15,0,0,B5,1)) -> -3.81 | Q10: Largest Negative Account Balance | R10: =MIN(OFFSET(R15,0,0,K5,1)) -> -22.69
E12: =MATCH(TRUE,OFFSET(CalculationsAndCharts!$AH$33,0,0,'Transaction Summary'!C2,1),0) -> 12 | F12: =IF($E$12>$B$15,"Open Trade Marked to Close","") -> Open Trade Marked to Close | N12: =MATCH(TRUE,OFFSET(CalculationsAndCharts!$AQ$33,0,0,'Transaction Summary'!$C$2,1),0) -> 3 | O12: =IF($N$12>$K$15,"Open Trade Marked to Close","") -> 
C13: Enter Long | F13: Exit Long | H13: Trade Result | I13: Running Balance | L13: Enter Short | O13: Exit Short | Q13: Trade Result | R13: Running Balance
B14: Rel Row | C14: Date | D14: $ | E14: Rel Row | F14: Date | G14: $ | K14: Rel Row | L14: Date | M14: $ | N14: Rel Row | O14: Date | P14: $
B15: =MATCH(TRUE,OFFSET(CalculationsAndCharts!$AE$33,0,0,'Transaction Summary'!$C$2,1),0) -> 3 | C15: =OFFSET(CalculationsAndCharts!$B$32,'Transaction Summary'!B15,0,1,1) -> 2013-11-06 | D15: =OFFSET(CalculationsAndCharts!$AI$32,'Transaction Summary'!B15,0,1,1) -> 58.11 | E15: =IF($E$12>$B$15,"OPEN",$E$12) -> OPEN | F15: =IF($E$12>$B$15,CalculationsAndCharts!B33,OFFSET(CalculationsAndCharts!$B$32,'Transaction Summary'!E15,0,1,1)) -> 2013-11-08 | G15: =IF($E$12>$B$15,CalculationsAndCharts!G33,OFFSET(CalculationsAndCharts!$AJ$32,'Transaction Summary'!E15,0,1,1)) -> 57.28 | H15: =G15-D15 -> -0.83 | I15: =H15+IF(ISNA(I16),0,I16) -> 5.83 | K15: =MATCH(TRUE,OFFSET(CalculationsAndCharts!$AN$33,0,0,'Transaction Summary'!$C$2,1),0) -> 12 | L15: =OFFSET(CalculationsAndCharts!$B$32,'Transaction Summary'!K15,0,1,1) -> 2013-10-24 | M15: =OFFSET(CalculationsAndCharts!$AR$32,'Transaction Summary'!K15,0,1,1) -> 59.13 | N15: =IF($N$12>$K$15,"OPEN",$N$12) -> 3 | O15: =IF($N$12>$K$15,CalculationsAndCharts!B33,OFFSET(CalculationsAndCharts!$B$32,'Transaction Summary'!N15,0,1,1)) -> 2013-11-06 | P15: =IF($N$12>$K$15,CalculationsAndCharts!G33,OFFSET(CalculationsAndCharts!$AS$32,'Transaction Summary'!N15,0,1,1)) -> 58.11 | Q15: =M15-P15 -> 1.02 | R15: =Q15+IF(ISNA(R16),0,R16) -> -21.67
B16: =IFERROR(MATCH(TRUE,OFFSET(CalculationsAndCharts!$AE$33,B15,0,'Transaction Summary'!$C$2-B15,1),0)+B15,"") -> 29 | C16: =IFERROR(OFFSET(CalculationsAndCharts!$B$32,'Transaction Summary'!B16,0,1,1),"") -> 2013-10-01 | D16: =IFERROR(OFFSET(CalculationsAndCharts!$AI$32,'Transaction Summary'!B16,0,1,1),"") -> 56.59 | E16: =IFERROR(IF($E$12>$B$15,$E$12,(MATCH(TRUE,OFFSET(CalculationsAndCharts!$AH$33,E15,0,'Transaction Summary'!$C$2-E15,1),0)+E15)),"") -> 12 | F16: =IFERROR(OFFSET(CalculationsAndCharts!$B$32,'Transaction Summary'!E16,0,1,1),"") -> 2013-10-24 | G16: =IFERROR(OFFSET(CalculationsAndCharts!$AJ$32,'Transaction Summary'!E16,0,1,1),"") -> 59.13 | H16: =IFERROR(G16-D16,"") -> 2.54 | I16: =IFERROR(H16+IF(""=I17,0,I17),"") -> 6.66 | K16: =IFERROR(MATCH(TRUE,OFFSET(CalculationsAndCharts!$AN$33,K15,0,'Transaction Summary'!$C$2-K15,1),0)+K15,"") -> 50 | L16: =IFERROR(OFFSET(CalculationsAndCharts!$B$32,'Transaction Summary'!K16,0,1,1),"") -> 2013-08-30 | M16: =IFERROR(OFFSET(CalculationsAndCharts!$AR$32,'Transaction Summary'!K16,0,1,1),"") -> 54.61 | N16: =IFERROR(IF($N$12>$K$15,$N$12,MATCH(TRUE,OFFSET(CalculationsAndCharts!$AQ$33,N15,0,'Transaction Summary'!$C$2-N15,1),0)+N15),"") -> 29 | O16: =IFERROR(OFFSET(CalculationsAndCharts!$B$32,'Transaction Summary'!N16,0,1,1),"") -> 2013-10-01 | P16: =IFERROR(OFFSET(CalculationsAndCharts!$AS$32,'Transaction Summary'!N16,0,1,1),"") -> 56.59 | Q16: =IFERROR(M16-P16,"") -> -1.98 | R16: =IFERROR(Q16+IF(""=R17,0,R17),"") -> -22.69
B17: =IFERROR(MATCH(TRUE,OFFSET(CalculationsAndCharts!$AE$33,B16,0,'Transaction Summary'!$C$2-B16,1),0)+B16,"") -> 74 | C17: =IFERROR(OFFSET(CalculationsAndCharts!$B$32,'Transaction Summary'!B17,0,1,1),"") -> 2013-07-29 | D17: =IFERROR(OFFSET(CalculationsAndCharts!$AI$32,'Transaction Summary'!B17,0,1,1),"") -> 53.81 | E17: =IFERROR(MATCH(TRUE,OFFSET(CalculationsAndCharts!$AH$33,E16,0,'Transaction Summary'!$C$2-E16,1),0)+E16,"") -> 50 | F17: =IFERROR(OFFSET(CalculationsAndCharts!$B$32,'Transaction Summary'!E17,0,1,1),"") -> 2013-08-30 | G17: =IFERROR(OFFSET(CalculationsAndCharts!$AJ$32,'Transaction Summary'!E17,0,1,1),"") -> 54.61 | H17: 0.8 | I17: 4.12 | K17: =IFERROR(MATCH(TRUE,OFFSET(CalculationsAndCharts!$AN$33,K16,0,'Transaction Summary'!$C$2-K16,1),0)+K16,"") -> 99 | L17: =IFERROR(OFFSET(CalculationsAndCharts!$B$32,'Transaction Summary'!K17,0,1,1),"") -> 2013-06-21 | M17: =IFERROR(OFFSET(CalculationsAndCharts!$AR$32,'Transaction Summary'!K17,0,1,1),"") -> 50.3 | N17: =IFERROR(MATCH(TRUE,OFFSET(CalculationsAndCharts!$AQ$33,N16,0,'Transaction Summary'!$C$2-N16,1),0)+N16,"") -> 74 | O17: =IFERROR(OFFSET(CalculationsAndCharts!$B$32,'Transaction Summary'!N17,0,1,1),"") -> 2013-07-29 | P17: =IFERROR(OFFSET(CalculationsAndCharts!$AS$32,'Transaction Summary'!N17,0,1,1),"") -> 53.81 | Q17: =IFERROR(M17-P17,"") -> -3.51 | R17: =IFERROR(Q17+IF(""=R18,0,R18),"") -> -20.71
B18: =IFERROR(MATCH(TRUE,OFFSET(CalculationsAndCharts!$AE$33,B17,0,'Transaction Summary'!$C$2-B17,1),0)+B17,"") -> 110 | C18: =IFERROR(OFFSET(CalculationsAndCharts!$B$32,'Transaction Summary'!B18,0,1,1),"") -> 2013-06-06 | D18: =IFERROR(OFFSET(CalculationsAndCharts!$AI$32,'Transaction Summary'!B18,0,1,1),"") -> 50.43 | E18: =IFERROR(MATCH(TRUE,OFFSET(CalculationsAndCharts!$AH$33,E17,0,'Transaction Summary'!$C$2-E17,1),0)+E17,"") -> 99 | F18: =IFERROR(OFFSET(CalculationsAndCharts!$B$32,'Transaction Summary'!E18,0,1,1),"") -> 2013-06-21 | G18: =IFERROR(OFFSET(CalculationsAndCharts!$AJ$32,'Transaction Summary'!E18,0,1,1),"") -> 50.3 | H18: -0.13 | I18: 3.32 | K18: =IFERROR(MATCH(TRUE,OFFSET(CalculationsAndCharts!$AN$33,K17,0,'Transaction Summary'!$C$2-K17,1),0)+K17,"") -> 115 | L18: =IFERROR(OFFSET(CalculationsAndCharts!$B$32,'Transaction Summary'!K18,0,1,1),"") -> 2013-05-30 | M18: =IFERROR(OFFSET(CalculationsAndCharts!$AR$32,'Transaction Summary'!K18,0,1,1),"") -> 53.94 | N18: =IFERROR(MATCH(TRUE,OFFSET(CalculationsAndCharts!$AQ$33,N17,0,'Transaction Summary'!$C$2-N17,1),0)+N17,"") -> 110 | O18: =IFERROR(OFFSET(CalculationsAndCharts!$B$32,'Transaction Summary'!N18,0,1,1),"") -> 2013-06-06 | P18: =IFERROR(OFFSET(CalculationsAndCharts!$AS$32,'Transaction Summary'!N18,0,1,1),"") -> 50.43 | Q18: =IFERROR(M18-P18,"") -> 3.51 | R18: =IFERROR(Q18+IF(""=R19,0,R19),"") -> -17.2
B19: =IFERROR(MATCH(TRUE,OFFSET(CalculationsAndCharts!$AE$33,B18,0,'Transaction Summary'!$C$2-B18,1),0)+B18,"") -> 152 | C19: =IFERROR(OFFSET(CalculationsAndCharts!$B$32,'Transaction Summary'!B19,0,1,1),"") -> 2013-04-08 | D19: =IFERROR(OFFSET(CalculationsAndCharts!$AI$32,'Transaction Summary'!B19,0,1,1),"") -> 50.28 | E19: =IFERROR(MATCH(TRUE,OFFSET(CalculationsAndCharts!$AH$33,E18,0,'Transaction Summary'!$C$2-E18,1),0)+E18,"") -> 115 | F19: =IFERROR(OFFSET(CalculationsAndCharts!$B$32,'Transaction Summary'!E19,0,1,1),"") -> 2013-05-30 | G19: =IFERROR(OFFSET(CalculationsAndCharts!$AJ$32,'Transaction Summary'!E19,0,1,1),"") -> 53.94 | H19: 3.66 | I19: 3.45 | K19: =IFERROR(MATCH(TRUE,OFFSET(CalculationsAndCharts!$AN$33,K18,0,'Transaction Summary'!$C$2-K18,1),0)+K18,"") -> 174 | L19: =IFERROR(OFFSET(CalculationsAndCharts!$B$32,'Transaction Summary'!K19,0,1,1),"") -> 2013-03-06 | M19: =IFERROR(OFFSET(CalculationsAndCharts!$AR$32,'Transaction Summary'!K19,0,1,1),"") -> 49.09 | N19: =IFERROR(MATCH(TRUE,OFFSET(CalculationsAndCharts!$AQ$33,N18,0,'Transaction Summary'!$C$2-N18,1),0)+N18,"") -> 152 | O19: =IFERROR(OFFSET(CalculationsAndCharts!$B$32,'Transaction Summary'!N19,0,1,1),"") -> 2013-04-08 | P19: =IFERROR(OFFSET(CalculationsAndCharts!$AS$32,'Transaction Summary'!N19,0,1,1),"") -> 50.28 | Q19: =IFERROR(M19-P19,"") -> -1.19 | R19: =IFERROR(Q19+IF(""=R20,0,R20),"") -> -20.71
B20: =IFERROR(MATCH(TRUE,OFFSET(CalculationsAndCharts!$AE$33,B19,0,'Transaction Summary'!$C$2-B19,1),0)+B19,"") -> 191 | C20: =IFERROR(OFFSET(CalculationsAndCharts!$B$32,'Transaction Summary'!B20,0,1,1),"") -> 2013-02-08 | D20: =IFERROR(OFFSET(CalculationsAndCharts!$AI$32,'Transaction Summary'!B20,0,1,1),"") -> 45.49 | E20: =IFERROR(MATCH(TRUE,OFFSET(CalculationsAndCharts!$AH$33,E19,0,'Transaction Summary'!$C$2-E19,1),0)+E19,"") -> 174 | F20: =IFERROR(OFFSET(CalculationsAndCharts!$B$32,'Transaction Summary'!E20,0,1,1),"") -> 2013-03-06 | G20: =IFERROR(OFFSET(CalculationsAndCharts!$AJ$32,'Transaction Summary'!E20,0,1,1),"") -> 49.09 | H20: 3.6 | I20: -0.21 | K20: =IFERROR(MATCH(TRUE,OFFSET(CalculationsAndCharts!$AN$33,K19,0,'Transaction Summary'!$C$2-K19,1),0)+K19,"") -> 214 | L20: =IFERROR(OFFSET(CalculationsAndCharts!$B$32,'Transaction Summary'!K20,0,1,1),"") -> 2013-01-07 | M20: =IFERROR(OFFSET(CalculationsAndCharts!$AR$32,'Transaction Summary'!K20,0,1,1),"") -> 44.44 | N20: =IFERROR(MATCH(TRUE,OFFSET(CalculationsAndCharts!$AQ$33,N19,0,'Transaction Summary'!$C$2-N19,1),0)+N19,"") -> 191 | O20: =IFERROR(OFFSET(CalculationsAndCharts!$B$32,'Transaction Summary'!N20,0,1,1),"") -> 2013-02-08 | P20: =IFERROR(OFFSET(CalculationsAndCharts!$AS$32,'Transaction Summary'!N20,0,1,1),"") -> 45.49 | Q20: -1.05 | R20: -19.52
B21: =IFERROR(MATCH(TRUE,OFFSET(CalculationsAndCharts!$AE$33,B20,0,'Transaction Summary'!$C$2-B20,1),0)+B20,"") -> 231 | C21: =IFERROR(OFFSET(CalculationsAndCharts!$B$32,'Transaction Summary'!B21,0,1,1),"") -> 2012-12-11 | D21: =IFERROR(OFFSET(CalculationsAndCharts!$AI$32,'Transaction Summary'!B21,0,1,1),"") -> 45.65 | E21: =IFERROR(MATCH(TRUE,OFFSET(CalculationsAndCharts!$AH$33,E20,0,'Transaction Summary'!$C$2-E20,1),0)+E20,"") -> 214 | F21: =IFERROR(OFFSET(CalculationsAndCharts!$B$32,'Transaction Summary'!E21,0,1,1),"") -> 2013-01-07 | G21: =IFERROR(OFFSET(CalculationsAndCharts!$AJ$32,'Transaction Summary'!E21,0,1,1),"") -> 44.44 | H21: -1.21 | I21: -3.81 | K21: =IFERROR(MATCH(TRUE,OFFSET(CalculationsAndCharts!$AN$33,K20,0,'Transaction Summary'!$C$2-K20,1),0)+K20,"") -> 255 | L21: =IFERROR(OFFSET(CalculationsAndCharts!$B$32,'Transaction Summary'!K21,0,1,1),"") -> 2012-11-06 | M21: =IFERROR(OFFSET(CalculationsAndCharts!$AR$32,'Transaction Summary'!K21,0,1,1),"") -> 47.89 | N21: =IFERROR(MATCH(TRUE,OFFSET(CalculationsAndCharts!$AQ$33,N20,0,'Transaction Summary'!$C$2-N20,1),0)+N20,"") -> 231 | O21: =IFERROR(OFFSET(CalculationsAndCharts!$B$32,'Transaction Summary'!N21,0,1,1),"") -> 2012-12-11 | P21: =IFERROR(OFFSET(CalculationsAndCharts!$AS$32,'Transaction Summary'!N21,0,1,1),"") -> 45.65 | Q21: =IFERROR(M21-P21,"") -> 2.24 | R21: =IFERROR(Q21+IF(""=R22,0,R22),"") -> -18.47
B22: =IFERROR(MATCH(TRUE,OFFSET(CalculationsAndCharts!$AE$33,B21,0,'Transaction Summary'!$C$2-B21,1),0)+B21,"") -> 274 | C22: =IFERROR(OFFSET(CalculationsAndCharts!$B$32,'Transaction Summary'!B22,0,1,1),"") -> 2012-10-08 | D22: =IFERROR(OFFSET(CalculationsAndCharts!$AI$32,'Transaction Summary'!B22,0,1,1),"") -> 51.78 | E22: =IFERROR(MATCH(TRUE,OFFSET(CalculationsAndCharts!$AH$33,E21,0,'Transaction Summary'!$C$2-E21,1),0)+E21,"") -> 255 | F22: =IFERROR(OFFSET(CalculationsAndCharts!$B$32,'Transaction Summary'!E22,0,1,1),"") -> 2012-11-06 | G22: =IFERROR(OFFSET(CalculationsAndCharts!$AJ$32,'Transaction Summary'!E22,0,1,1),"") -> 47.89 | H22: -3.89 | I22: -2.6 | K22: =IFERROR(MATCH(TRUE,OFFSET(CalculationsAndCharts!$AN$33,K21,0,'Transaction Summary'!$C$2-K21,1),0)+K21,"") -> 314 | L22: =IFERROR(OFFSET(CalculationsAndCharts!$B$32,'Transaction Summary'!K22,0,1,1),"") -> 2012-08-10 | M22: =IFERROR(OFFSET(CalculationsAndCharts!$AR$32,'Transaction Summary'!K22,0,1,1),"") -> 51.16 | N22: =IFERROR(MATCH(TRUE,OFFSET(CalculationsAndCharts!$AQ$33,N21,0,'Transaction Summary'!$C$2-N21,1),0)+N21,"") -> 274 | O22: =IFERROR(OFFSET(CalculationsAndCharts!$B$32,'Transaction Summary'!N22,0,1,1),"") -> 2012-10-08 | P22: =IFERROR(OFFSET(CalculationsAndCharts!$AS$32,'Transaction Summary'!N22,0,1,1),"") -> 51.78 | Q22: -0.62 | R22: -20.71
B23: =IFERROR(MATCH(TRUE,OFFSET(CalculationsAndCharts!$AE$33,B22,0,'Transaction Summary'!$C$2-B22,1),0)+B22,"") -> 337 | C23: =IFERROR(OFFSET(CalculationsAndCharts!$B$32,'Transaction Summary'!B23,0,1,1),"") -> 2012-07-10 | D23: =IFERROR(OFFSET(CalculationsAndCharts!$AI$32,'Transaction Summary'!B23,0,1,1),"") -> 55.04 | E23: =IFERROR(MATCH(TRUE,OFFSET(CalculationsAndCharts!$AH$33,E22,0,'Transaction Summary'!$C$2-E22,1),0)+E22,"") -> 314 | F23: =IFERROR(OFFSET(CalculationsAndCharts!$B$32,'Transaction Summary'!E23,0,1,1),"") -> 2012-08-10 | G23: =IFERROR(OFFSET(CalculationsAndCharts!$AJ$32,'Transaction Summary'!E23,0,1,1),"") -> 51.16 | H23: -3.88 | I23: 1.29 | K23: =IFERROR(MATCH(TRUE,OFFSET(CalculationsAndCharts!$AN$33,K22,0,'Transaction Summary'!$C$2-K22,1),0)+K22,"") -> 363 | L23: =IFERROR(OFFSET(CalculationsAndCharts!$B$32,'Transaction Summary'!K23,0,1,1),"") -> 2012-06-01 | M23: =IFERROR(OFFSET(CalculationsAndCharts!$AR$32,'Transaction Summary'!K23,0,1,1),"") -> 48.42 | N23: =IFERROR(MATCH(TRUE,OFFSET(CalculationsAndCharts!$AQ$33,N22,0,'Transaction Summary'!$C$2-N22,1),0)+N22,"") -> 337 | O23: =IFERROR(OFFSET(CalculationsAndCharts!$B$32,'Transaction Summary'!N23,0,1,1),"") -> 2012-07-10 | P23: =IFERROR(OFFSET(CalculationsAndCharts!$AS$32,'Transaction Summary'!N23,0,1,1),"") -> 55.04 | Q23: -6.62 | R23: -20.09
B24: =IFERROR(MATCH(TRUE,OFFSET(CalculationsAndCharts!$AE$33,B23,0,'Transaction Summary'!$C$2-B23,1),0)+B23,"") -> 374 | C24: =IFERROR(OFFSET(CalculationsAndCharts!$B$32,'Transaction Summary'!B24,0,1,1),"") -> 2012-05-16 | D24: =IFERROR(OFFSET(CalculationsAndCharts!$AI$32,'Transaction Summary'!B24,0,1,1),"") -> 47 | E24: =IFERROR(MATCH(TRUE,OFFSET(CalculationsAndCharts!$AH$33,E23,0,'Transaction Summary'!$C$2-E23,1),0)+E23,"") -> 363 | F24: =IFERROR(OFFSET(CalculationsAndCharts!$B$32,'Transaction Summary'!E24,0,1,1),"") -> 2012-06-01 | G24: =IFERROR(OFFSET(CalculationsAndCharts!$AJ$32,'Transaction Summary'!E24,0,1,1),"") -> 48.42 | H24: 1.42 | I24: 5.17 | K24: =IFERROR(MATCH(TRUE,OFFSET(CalculationsAndCharts!$AN$33,K23,0,'Transaction Summary'!$C$2-K23,1),0)+K23,"") -> 382 | L24: =IFERROR(OFFSET(CalculationsAndCharts!$B$32,'Transaction Summary'!K24,0,1,1),"") -> 2012-05-04 | M24: =IFERROR(OFFSET(CalculationsAndCharts!$AR$32,'Transaction Summary'!K24,0,1,1),"") -> 48 | N24: =IFERROR(MATCH(TRUE,OFFSET(CalculationsAndCharts!$AQ$33,N23,0,'Transaction Summary'!$C$2-N23,1),0)+N23,"") -> 374 | O24: =IFERROR(OFFSET(CalculationsAndCharts!$B$32,'Transaction Summary'!N24,0,1,1),"") -> 2012-05-16 | P24: =IFERROR(OFFSET(CalculationsAndCharts!$AS$32,'Transaction Summary'!N24,0,1,1),"") -> 47 | Q24: 1 | R24: -13.47
B25: =IFERROR(MATCH(TRUE,OFFSET(CalculationsAndCharts!$AE$33,B24,0,'Transaction Summary'!$C$2-B24,1),0)+B24,"") -> 403 | C25: =IFERROR(OFFSET(CalculationsAndCharts!$B$32,'Transaction Summary'!B25,0,1,1),"") -> 2012-04-04 | D25: =IFERROR(OFFSET(CalculationsAndCharts!$AI$32,'Transaction Summary'!B25,0,1,1),"") -> 46.81 | E25: =IFERROR(MATCH(TRUE,OFFSET(CalculationsAndCharts!$AH$33,E24,0,'Transaction Summary'!$C$2-E24,1),0)+E24,"") -> 382 | F25: =IFERROR(OFFSET(CalculationsAndCharts!$B$32,'Transaction Summary'!E25,0,1,1),"") -> 2012-05-04 | G25: =IFERROR(OFFSET(CalculationsAndCharts!$AJ$32,'Transaction Summary'!E25,0,1,1),"") -> 48 | H25: 1.19 | I25: 3.75 | K25: =IFERROR(MATCH(TRUE,OFFSET(CalculationsAndCharts!$AN$33,K24,0,'Transaction Summary'!$C$2-K24,1),0)+K24,"") -> 422 | L25: =IFERROR(OFFSET(CalculationsAndCharts!$B$32,'Transaction Summary'!K25,0,1,1),"") -> 2012-03-08 | M25: =IFERROR(OFFSET(CalculationsAndCharts!$AR$32,'Transaction Summary'!K25,0,1,1),"") -> 42.6 | N25: =IFERROR(MATCH(TRUE,OFFSET(CalculationsAndCharts!$AQ$33,N24,0,'Transaction Summary'!$C$2-N24,1),0)+N24,"") -> 403 | O25: =IFERROR(OFFSET(CalculationsAndCharts!$B$32,'Transaction Summary'!N25,0,1,1),"") -> 2012-04-04 | P25: =IFERROR(OFFSET(CalculationsAndCharts!$AS$32,'Transaction Summary'!N25,0,1,1),"") -> 46.81 | Q25: =IFERROR(M25-P25,"") -> -4.21 | R25: =IFERROR(Q25+IF(""=R26,0,R26),"") -> -14.47
B26: =IFERROR(MATCH(TRUE,OFFSET(CalculationsAndCharts!$AE$33,B25,0,'Transaction Summary'!$C$2-B25,1),0)+B25,"") -> 435 | C26: =IFERROR(OFFSET(CalculationsAndCharts!$B$32,'Transaction Summary'!B26,0,1,1),"") -> 2012-02-17 | D26: =IFERROR(OFFSET(CalculationsAndCharts!$AI$32,'Transaction Summary'!B26,0,1,1),"") -> 42.05 | E26: =IFERROR(MATCH(TRUE,OFFSET(CalculationsAndCharts!$AH$33,E25,0,'Transaction Summary'!$C$2-E25,1),0)+E25,"") -> 422 | F26: =IFERROR(OFFSET(CalculationsAndCharts!$B$32,'Transaction Summary'!E26,0,1,1),"") -> 2012-03-08 | G26: =IFERROR(OFFSET(CalculationsAndCharts!$AJ$32,'Transaction Summary'!E26,0,1,1),"") -> 42.6 | H26: 0.55 | I26: 2.56 | K26: =IFERROR(MATCH(TRUE,OFFSET(CalculationsAndCharts!$AN$33,K25,0,'Transaction Summary'!$C$2-K25,1),0)+K25,"") -> 452 | L26: =IFERROR(OFFSET(CalculationsAndCharts!$B$32,'Transaction Summary'!K26,0,1,1),"") -> 2012-01-25 | M26: =IFERROR(OFFSET(CalculationsAndCharts!$AR$32,'Transaction Summary'!K26,0,1,1),"") -> 41.87 | N26: =IFERROR(MATCH(TRUE,OFFSET(CalculationsAndCharts!$AQ$33,N25,0,'Transaction Summary'!$C$2-N25,1),0)+N25,"") -> 435 | O26: =IFERROR(OFFSET(CalculationsAndCharts!$B$32,'Transaction Summary'!N26,0,1,1),"") -> 2012-02-17 | P26: =IFERROR(OFFSET(CalculationsAndCharts!$AS$32,'Transaction Summary'!N26,0,1,1),"") -> 42.05 | Q26: -0.18 | R26: -10.26
B27: =IFERROR(MATCH(TRUE,OFFSET(CalculationsAndCharts!$AE$33,B26,0,'Transaction Summary'!$C$2-B26,1),0)+B26,"") -> 464 | C27: =IFERROR(OFFSET(CalculationsAndCharts!$B$32,'Transaction Summary'!B27,0,1,1),"") -> 2012-01-06 | D27: =IFERROR(OFFSET(CalculationsAndCharts!$AI$32,'Transaction Summary'!B27,0,1,1),"") -> 41.22 | E27: =IFERROR(MATCH(TRUE,OFFSET(CalculationsAndCharts!$AH$33,E26,0,'Transaction Summary'!$C$2-E26,1),0)+E26,"") -> 452 | F27: =IFERROR(OFFSET(CalculationsAndCharts!$B$32,'Transaction Summary'!E27,0,1,1),"") -> 2012-01-25 | G27: =IFERROR(OFFSET(CalculationsAndCharts!$AJ$32,'Transaction Summary'!E27,0,1,1),"") -> 41.87 | H27: 0.65 | I27: 2.01 | K27: =IFERROR(MATCH(TRUE,OFFSET(CalculationsAndCharts!$AN$33,K26,0,'Transaction Summary'!$C$2-K26,1),0)+K26,"") -> 485 | L27: =IFERROR(OFFSET(CalculationsAndCharts!$B$32,'Transaction Summary'!K27,0,1,1),"") -> 2011-12-06 | M27: =IFERROR(OFFSET(CalculationsAndCharts!$AR$32,'Transaction Summary'!K27,0,1,1),"") -> 40.25 | N27: =IFERROR(MATCH(TRUE,OFFSET(CalculationsAndCharts!$AQ$33,N26,0,'Transaction Summary'!$C$2-N26,1),0)+N26,"") -> 464 | O27: =IFERROR(OFFSET(CalculationsAndCharts!$B$32,'Transaction Summary'!N27,0,1,1),"") -> 2012-01-06 | P27: =IFERROR(OFFSET(CalculationsAndCharts!$AS$32,'Transaction Summary'!N27,0,1,1),"") -> 41.22 | Q27: -0.97 | R27: -10.08
B28: =IFERROR(MATCH(TRUE,OFFSET(CalculationsAndCharts!$AE$33,B27,0,'Transaction Summary'!$C$2-B27,1),0)+B27,"") -> 508 | C28: =IFERROR(OFFSET(CalculationsAndCharts!$B$32,'Transaction Summary'!B28,0,1,1),"") -> 2011-11-02 | D28: =IFERROR(OFFSET(CalculationsAndCharts!$AI$32,'Transaction Summary'!B28,0,1,1),"") -> 39.39 | E28: =IFERROR(MATCH(TRUE,OFFSET(CalculationsAndCharts!$AH$33,E27,0,'Transaction Summary'!$C$2-E27,1),0)+E27,"") -> 485 | F28: =IFERROR(OFFSET(CalculationsAndCharts!$B$32,'Transaction Summary'!E28,0,1,1),"") -> 2011-12-06 | G28: =IFERROR(OFFSET(CalculationsAndCharts!$AJ$32,'Transaction Summary'!E28,0,1,1),"") -> 40.25 | H28: 0.86 | I28: 1.36 | K28: =IFERROR(MATCH(TRUE,OFFSET(CalculationsAndCharts!$AN$33,K27,0,'Transaction Summary'!$C$2-K27,1),0)+K27,"") -> 516 | L28: =IFERROR(OFFSET(CalculationsAndCharts!$B$32,'Transaction Summary'!K28,0,1,1),"") -> 2011-10-21 | M28: =IFERROR(OFFSET(CalculationsAndCharts!$AR$32,'Transaction Summary'!K28,0,1,1),"") -> 40.11 | N28: =IFERROR(MATCH(TRUE,OFFSET(CalculationsAndCharts!$AQ$33,N27,0,'Transaction Summary'!$C$2-N27,1),0)+N27,"") -> 508 | O28: =IFERROR(OFFSET(CalculationsAndCharts!$B$32,'Transaction Summary'!N28,0,1,1),"") -> 2011-11-02 | P28: =IFERROR(OFFSET(CalculationsAndCharts!$AS$32,'Transaction Summary'!N28,0,1,1),"") -> 39.39 | Q28: =IFERROR(M28-P28,"") -> 0.72 | R28: =IFERROR(Q28+IF(""=R29,0,R29),"") -> -9.11
B29: =IFERROR(MATCH(TRUE,OFFSET(CalculationsAndCharts!$AE$33,B28,0,'Transaction Summary'!$C$2-B28,1),0)+B28,"") -> 542 | C29: =IFERROR(OFFSET(CalculationsAndCharts!$B$32,'Transaction Summary'!B29,0,1,1),"") -> 2011-09-15 | D29: =IFERROR(OFFSET(CalculationsAndCharts!$AI$32,'Transaction Summary'!B29,0,1,1),"") -> 37.25 | E29: =IFERROR(MATCH(TRUE,OFFSET(CalculationsAndCharts!$AH$33,E28,0,'Transaction Summary'!$C$2-E28,1),0)+E28,"") -> 516 | F29: =IFERROR(OFFSET(CalculationsAndCharts!$B$32,'Transaction Summary'!E29,0,1,1),"") -> 2011-10-21 | G29: =IFERROR(OFFSET(CalculationsAndCharts!$AJ$32,'Transaction Summary'!E29,0,1,1),"") -> 40.11 | H29: 2.86 | I29: 0.5 | K29: =IFERROR(MATCH(TRUE,OFFSET(CalculationsAndCharts!$AN$33,K28,0,'Transaction Summary'!$C$2-K28,1),0)+K28,"") -> 564 | L29: =IFERROR(OFFSET(CalculationsAndCharts!$B$32,'Transaction Summary'!K29,0,1,1),"") -> 2011-08-15 | M29: =IFERROR(OFFSET(CalculationsAndCharts!$AR$32,'Transaction Summary'!K29,0,1,1),"") -> 31.87 | N29: =IFERROR(MATCH(TRUE,OFFSET(CalculationsAndCharts!$AQ$33,N28,0,'Transaction Summary'!$C$2-N28,1),0)+N28,"") -> 542 | O29: =IFERROR(OFFSET(CalculationsAndCharts!$B$32,'Transaction Summary'!N29,0,1,1),"") -> 2011-09-15 | P29: =IFERROR(OFFSET(CalculationsAndCharts!$AS$32,'Transaction Summary'!N29,0,1,1),"") -> 37.25 | Q29: -5.38 | R29: -9.83
B30: =IFERROR(MATCH(TRUE,OFFSET(CalculationsAndCharts!$AE$33,B29,0,'Transaction Summary'!$C$2-B29,1),0)+B29,"") -> 585 | C30: =IFERROR(OFFSET(CalculationsAndCharts!$B$32,'Transaction Summary'!B30,0,1,1),"") -> 2011-07-15 | D30: =IFERROR(OFFSET(CalculationsAndCharts!$AI$32,'Transaction Summary'!B30,0,1,1),"") -> 33.41 | E30: =IFERROR(MATCH(TRUE,OFFSET(CalculationsAndCharts!$AH$33,E29,0,'Transaction Summary'!$C$2-E29,1),0)+E29,"") -> 564 | F30: =IFERROR(OFFSET(CalculationsAndCharts!$B$32,'Transaction Summary'!E30,0,1,1),"") -> 2011-08-15 | G30: =IFERROR(OFFSET(CalculationsAndCharts!$AJ$32,'Transaction Summary'!E30,0,1,1),"") -> 31.87 | H30: -1.54 | I30: -2.36 | K30: =IFERROR(MATCH(TRUE,OFFSET(CalculationsAndCharts!$AN$33,K29,0,'Transaction Summary'!$C$2-K29,1),0)+K29,"") -> 604 | L30: =IFERROR(OFFSET(CalculationsAndCharts!$B$32,'Transaction Summary'!K30,0,1,1),"") -> 2011-06-17 | M30: =IFERROR(OFFSET(CalculationsAndCharts!$AR$32,'Transaction Summary'!K30,0,1,1),"") -> 33.28 | N30: =IFERROR(MATCH(TRUE,OFFSET(CalculationsAndCharts!$AQ$33,N29,0,'Transaction Summary'!$C$2-N29,1),0)+N29,"") -> 585 | O30: =IFERROR(OFFSET(CalculationsAndCharts!$B$32,'Transaction Summary'!N30,0,1,1),"") -> 2011-07-15 | P30: =IFERROR(OFFSET(CalculationsAndCharts!$AS$32,'Transaction Summary'!N30,0,1,1),"") -> 33.41 | Q30: -0.13 | R30: -4.45
B31: =IFERROR(MATCH(TRUE,OFFSET(CalculationsAndCharts!$AE$33,B30,0,'Transaction Summary'!$C$2-B30,1),0)+B30,"") -> 618 | C31: =IFERROR(OFFSET(CalculationsAndCharts!$B$32,'Transaction Summary'!B31,0,1,1),"") -> 2011-05-27 | D31: =IFERROR(OFFSET(CalculationsAndCharts!$AI$32,'Transaction Summary'!B31,0,1,1),"") -> 34 | E31: =IFERROR(MATCH(TRUE,OFFSET(CalculationsAndCharts!$AH$33,E30,0,'Transaction Summary'!$C$2-E30,1),0)+E30,"") -> 604 | F31: =IFERROR(OFFSET(CalculationsAndCharts!$B$32,'Transaction Summary'!E31,0,1,1),"") -> 2011-06-17 | G31: =IFERROR(OFFSET(CalculationsAndCharts!$AJ$32,'Transaction Summary'!E31,0,1,1),"") -> 33.28 | H31: -0.72 | I31: -0.82 | K31: =IFERROR(MATCH(TRUE,OFFSET(CalculationsAndCharts!$AN$33,K30,0,'Transaction Summary'!$C$2-K30,1),0)+K30,"") -> 635 | L31: =IFERROR(OFFSET(CalculationsAndCharts!$B$32,'Transaction Summary'!K31,0,1,1),"") -> 2011-05-04 | M31: =IFERROR(OFFSET(CalculationsAndCharts!$AR$32,'Transaction Summary'!K31,0,1,1),"") -> 33.06 | N31: =IFERROR(MATCH(TRUE,OFFSET(CalculationsAndCharts!$AQ$33,N30,0,'Transaction Summary'!$C$2-N30,1),0)+N30,"") -> 618 | O31: =IFERROR(OFFSET(CalculationsAndCharts!$B$32,'Transaction Summary'!N31,0,1,1),"") -> 2011-05-27 | P31: =IFERROR(OFFSET(CalculationsAndCharts!$AS$32,'Transaction Summary'!N31,0,1,1),"") -> 34 | Q31: -0.94 | R31: -4.32
B32: =IFERROR(MATCH(TRUE,OFFSET(CalculationsAndCharts!$AE$33,B31,0,'Transaction Summary'!$C$2-B31,1),0)+B31,"") -> 650 | C32: =IFERROR(OFFSET(CalculationsAndCharts!$B$32,'Transaction Summary'!B32,0,1,1),"") -> 2011-04-12 | D32: =IFERROR(OFFSET(CalculationsAndCharts!$AI$32,'Transaction Summary'!B32,0,1,1),"") -> 31.6 | E32: =IFERROR(MATCH(TRUE,OFFSET(CalculationsAndCharts!$AH$33,E31,0,'Transaction Summary'!$C$2-E31,1),0)+E31,"") -> 635 | F32: =IFERROR(OFFSET(CalculationsAndCharts!$B$32,'Transaction Summary'!E32,0,1,1),"") -> 2011-05-04 | G32: =IFERROR(OFFSET(CalculationsAndCharts!$AJ$32,'Transaction Summary'!E32,0,1,1),"") -> 33.06 | H32: 1.46 | I32: -0.1 | K32: =IFERROR(MATCH(TRUE,OFFSET(CalculationsAndCharts!$AN$33,K31,0,'Transaction Summary'!$C$2-K31,1),0)+K31,"") -> 715 | L32: =IFERROR(OFFSET(CalculationsAndCharts!$B$32,'Transaction Summary'!K32,0,1,1),"") -> 2011-01-07 | M32: =IFERROR(OFFSET(CalculationsAndCharts!$AR$32,'Transaction Summary'!K32,0,1,1),"") -> 30.2 | N32: =IFERROR(MATCH(TRUE,OFFSET(CalculationsAndCharts!$AQ$33,N31,0,'Transaction Summary'!$C$2-N31,1),0)+N31,"") -> 650 | O32: =IFERROR(OFFSET(CalculationsAndCharts!$B$32,'Transaction Summary'!N32,0,1,1),"") -> 2011-04-12 | P32: =IFERROR(OFFSET(CalculationsAndCharts!$AS$32,'Transaction Summary'!N32,0,1,1),"") -> 31.6 | Q32: -1.4 | R32: -3.38
B33: =IFERROR(MATCH(TRUE,OFFSET(CalculationsAndCharts!$AE$33,B32,0,'Transaction Summary'!$C$2-B32,1),0)+B32,"") -> 735 | C33: =IFERROR(OFFSET(CalculationsAndCharts!$B$32,'Transaction Summary'!B33,0,1,1),"") -> 2010-12-09 | D33: =IFERROR(OFFSET(CalculationsAndCharts!$AI$32,'Transaction Summary'!B33,0,1,1),"") -> 31.01 | E33: =IFERROR(MATCH(TRUE,OFFSET(CalculationsAndCharts!$AH$33,E32,0,'Transaction Summary'!$C$2-E32,1),0)+E32,"") -> 715 | F33: =IFERROR(OFFSET(CalculationsAndCharts!$B$32,'Transaction Summary'!E33,0,1,1),"") -> 2011-01-07 | G33: =IFERROR(OFFSET(CalculationsAndCharts!$AJ$32,'Transaction Summary'!E33,0,1,1),"") -> 30.2 | H33: =IFERROR(G33-D33,"") -> -0.81 | I33: =IFERROR(H33+IF(""=I34,0,I34),"") -> -1.56 | K33: =IFERROR(MATCH(TRUE,OFFSET(CalculationsAndCharts!$AN$33,K32,0,'Transaction Summary'!$C$2-K32,1),0)+K32,"") -> 755 | L33: =IFERROR(OFFSET(CalculationsAndCharts!$B$32,'Transaction Summary'!K33,0,1,1),"") -> 2010-11-10 | M33: =IFERROR(OFFSET(CalculationsAndCharts!$AR$32,'Transaction Summary'!K33,0,1,1),"") -> 28.6 | N33: =IFERROR(MATCH(TRUE,OFFSET(CalculationsAndCharts!$AQ$33,N32,0,'Transaction Summary'!$C$2-N32,1),0)+N32,"") -> 735 | O33: =IFERROR(OFFSET(CalculationsAndCharts!$B$32,'Transaction Summary'!N33,0,1,1),"") -> 2010-12-09 | P33: =IFERROR(OFFSET(CalculationsAndCharts!$AS$32,'Transaction Summary'!N33,0,1,1),"") -> 31.01 | Q33: -2.41 | R33: -1.98
B34: =IFERROR(MATCH(TRUE,OFFSET(CalculationsAndCharts!$AE$33,B33,0,'Transaction Summary'!$C$2-B33,1),0)+B33,"") -> 768 | C34: =IFERROR(OFFSET(CalculationsAndCharts!$B$32,'Transaction Summary'!B34,0,1,1),"") -> 2010-10-22 | D34: =IFERROR(OFFSET(CalculationsAndCharts!$AI$32,'Transaction Summary'!B34,0,1,1),"") -> 28 | E34: =IFERROR(MATCH(TRUE,OFFSET(CalculationsAndCharts!$AH$33,E33,0,'Transaction Summary'!$C$2-E33,1),0)+E33,"") -> 755 | F34: =IFERROR(OFFSET(CalculationsAndCharts!$B$32,'Transaction Summary'!E34,0,1,1),"") -> 2010-11-10 | G34: =IFERROR(OFFSET(CalculationsAndCharts!$AJ$32,'Transaction Summary'!E34,0,1,1),"") -> 28.6 | H34: =IFERROR(G34-D34,"") -> 0.6 | I34: =IFERROR(H34+IF(""=I35,0,I35),"") -> -0.75 | K34: =IFERROR(MATCH(TRUE,OFFSET(CalculationsAndCharts!$AN$33,K33,0,'Transaction Summary'!$C$2-K33,1),0)+K33,"") -> 801 | L34: =IFERROR(OFFSET(CalculationsAndCharts!$B$32,'Transaction Summary'!K34,0,1,1),"") -> 2010-09-07 | M34: =IFERROR(OFFSET(CalculationsAndCharts!$AR$32,'Transaction Summary'!K34,0,1,1),"") -> 28.04 | N34: =IFERROR(MATCH(TRUE,OFFSET(CalculationsAndCharts!$AQ$33,N33,0,'Transaction Summary'!$C$2-N33,1),0)+N33,"") -> 768 | O34: =IFERROR(OFFSET(CalculationsAndCharts!$B$32,'Transaction Summary'!N34,0,1,1),"") -> 2010-10-22 | P34: =IFERROR(OFFSET(CalculationsAndCharts!$AS$32,'Transaction Summary'!N34,0,1,1),"") -> 28 | Q34: =IFERROR(M34-P34,"") -> 0.04 | R34: =IFERROR(Q34+IF(""=R35,0,R35),"") -> 0.43
B35: =IFERROR(MATCH(TRUE,OFFSET(CalculationsAndCharts!$AE$33,B34,0,'Transaction Summary'!$C$2-B34,1),0)+B34,"") -> 829 | C35: =IFERROR(OFFSET(CalculationsAndCharts!$B$32,'Transaction Summary'!B35,0,1,1),"") -> 2010-07-28 | D35: =IFERROR(OFFSET(CalculationsAndCharts!$AI$32,'Transaction Summary'!B35,0,1,1),"") -> 29.39 | E35: =IFERROR(MATCH(TRUE,OFFSET(CalculationsAndCharts!$AH$33,E34,0,'Transaction Summary'!$C$2-E34,1),0)+E34,"") -> 801 | F35: =IFERROR(OFFSET(CalculationsAndCharts!$B$32,'Transaction Summary'!E35,0,1,1),"") -> 2010-09-07 | G35: =IFERROR(OFFSET(CalculationsAndCharts!$AJ$32,'Transaction Summary'!E35,0,1,1),"") -> 28.04 | H35: -1.35 | I35: -1.35 | K35: =IFERROR(MATCH(TRUE,OFFSET(CalculationsAndCharts!$AN$33,K34,0,'Transaction Summary'!$C$2-K34,1),0)+K34,"") -> 837 | L35: =IFERROR(OFFSET(CalculationsAndCharts!$B$32,'Transaction Summary'!K35,0,1,1),"") -> 2010-07-16 | M35: =IFERROR(OFFSET(CalculationsAndCharts!$AR$32,'Transaction Summary'!K35,0,1,1),"") -> 29.78 | N35: =IFERROR(MATCH(TRUE,OFFSET(CalculationsAndCharts!$AQ$33,N34,0,'Transaction Summary'!$C$2-N34,1),0)+N34,"") -> 829 | O35: =IFERROR(OFFSET(CalculationsAndCharts!$B$32,'Transaction Summary'!N35,0,1,1),"") -> 2010-07-28 | P35: =IFERROR(OFFSET(CalculationsAndCharts!$AS$32,'Transaction Summary'!N35,0,1,1),"") -> 29.39 | Q35: =IFERROR(M35-P35,"") -> 0.39 | R35: =IFERROR(Q35+IF(""=R36,0,R36),"") -> 0.39
B36: =IFERROR(MATCH(TRUE,OFFSET(CalculationsAndCharts!$AE$33,B35,0,'Transaction Summary'!$C$2-B35,1),0)+B35,"") ->  | C36: =IFERROR(OFFSET(CalculationsAndCharts!$B$32,'Transaction Summary'!B36,0,1,1),"") ->  | D36: =IFERROR(OFFSET(CalculationsAndCharts!$AI$32,'Transaction Summary'!B36,0,1,1),"") ->  | E36: =IFERROR(MATCH(TRUE,OFFSET(CalculationsAndCharts!$AH$33,E35,0,'Transaction Summary'!$C$2-E35,1),0)+E35,"") ->  | F36: =IFERROR(OFFSET(CalculationsAndCharts!$B$32,'Transaction Summary'!E36,0,1,1),"") ->  | G36: =IFERROR(OFFSET(CalculationsAndCharts!$AJ$32,'Transaction Summary'!E36,0,1,1),"") ->  | K36: =IFERROR(MATCH(TRUE,OFFSET(CalculationsAndCharts!$AN$33,K35,0,'Transaction Summary'!$C$2-K35,1),0)+K35,"") ->  | L36: =IFERROR(OFFSET(CalculationsAndCharts!$B$32,'Transaction Summary'!K36,0,1,1),"") ->  | M36: =IFERROR(OFFSET(CalculationsAndCharts!$AR$32,'Transaction Summary'!K36,0,1,1),"") ->  | N36: =IFERROR(MATCH(TRUE,OFFSET(CalculationsAndCharts!$AQ$33,N35,0,'Transaction Summary'!$C$2-N35,1),0)+N35,"") ->  | O36: =IFERROR(OFFSET(CalculationsAndCharts!$B$32,'Transaction Summary'!N36,0,1,1),"") ->  | P36: =IFERROR(OFFSET(CalculationsAndCharts!$AS$32,'Transaction Summary'!N36,0,1,1),"") -> 
B37: =IFERROR(MATCH(TRUE,OFFSET(CalculationsAndCharts!$AE$33,B36,0,'Transaction Summary'!$C$2-B36,1),0)+B36,"") ->  | C37: =IFERROR(OFFSET(CalculationsAndCharts!$B$32,'Transaction Summary'!B37,0,1,1),"") ->  | D37: =IFERROR(OFFSET(CalculationsAndCharts!$AI$32,'Transaction Summary'!B37,0,1,1),"") ->  | E37: =IFERROR(MATCH(TRUE,OFFSET(CalculationsAndCharts!$AH$33,E36,0,'Transaction Summary'!$C$2-E36,1),0)+E36,"") ->  | F37: =IFERROR(OFFSET(CalculationsAndCharts!$B$32,'Transaction Summary'!E37,0,1,1),"") ->  | G37: =IFERROR(OFFSET(CalculationsAndCharts!$AJ$32,'Transaction Summary'!E37,0,1,1),"") ->  | K37: =IFERROR(MATCH(TRUE,OFFSET(CalculationsAndCharts!$AN$33,K36,0,'Transaction Summary'!$C$2-K36,1),0)+K36,"") ->  | L37: =IFERROR(OFFSET(CalculationsAndCharts!$B$32,'Transaction Summary'!K37,0,1,1),"") ->  | M37: =IFERROR(OFFSET(CalculationsAndCharts!$AR$32,'Transaction Summary'!K37,0,1,1),"") ->  | N37: =IFERROR(MATCH(TRUE,OFFSET(CalculationsAndCharts!$AQ$33,N36,0,'Transaction Summary'!$C$2-N36,1),0)+N36,"") ->  | O37: =IFERROR(OFFSET(CalculationsAndCharts!$B$32,'Transaction Summary'!N37,0,1,1),"") ->  | P37: =IFERROR(OFFSET(CalculationsAndCharts!$AS$32,'Transaction Summary'!N37,0,1,1),"") -> 
B38: =IFERROR(MATCH(TRUE,OFFSET(CalculationsAndCharts!$AE$33,B37,0,'Transaction Summary'!$C$2-B37,1),0)+B37,"") ->  | C38: =IFERROR(OFFSET(CalculationsAndCharts!$B$32,'Transaction Summary'!B38,0,1,1),"") ->  | D38: =IFERROR(OFFSET(CalculationsAndCharts!$AI$32,'Transaction Summary'!B38,0,1,1),"") ->  | E38: =IFERROR(MATCH(TRUE,OFFSET(CalculationsAndCharts!$AH$33,E37,0,'Transaction Summary'!$C$2-E37,1),0)+E37,"") ->  | F38: =IFERROR(OFFSET(CalculationsAndCharts!$B$32,'Transaction Summary'!E38,0,1,1),"") ->  | G38: =IFERROR(OFFSET(CalculationsAndCharts!$AJ$32,'Transaction Summary'!E38,0,1,1),"") ->  | K38: =IFERROR(MATCH(TRUE,OFFSET(CalculationsAndCharts!$AN$33,K37,0,'Transaction Summary'!$C$2-K37,1),0)+K37,"") ->  | L38: =IFERROR(OFFSET(CalculationsAndCharts!$B$32,'Transaction Summary'!K38,0,1,1),"") ->  | M38: =IFERROR(OFFSET(CalculationsAndCharts!$AR$32,'Transaction Summary'!K38,0,1,1),"") ->  | N38: =IFERROR(MATCH(TRUE,OFFSET(CalculationsAndCharts!$AQ$33,N37,0,'Transaction Summary'!$C$2-N37,1),0)+N37,"") ->  | O38: =IFERROR(OFFSET(CalculationsAndCharts!$B$32,'Transaction Summary'!N38,0,1,1),"") ->  | P38: =IFERROR(OFFSET(CalculationsAndCharts!$AS$32,'Transaction Summary'!N38,0,1,1),"") -> 
B39: =IFERROR(MATCH(TRUE,OFFSET(CalculationsAndCharts!$AE$33,B38,0,'Transaction Summary'!$C$2-B38,1),0)+B38,"") ->  | C39: =IFERROR(OFFSET(CalculationsAndCharts!$B$32,'Transaction Summary'!B39,0,1,1),"") ->  | D39: =IFERROR(OFFSET(CalculationsAndCharts!$AI$32,'Transaction Summary'!B39,0,1,1),"") ->  | E39: =IFERROR(MATCH(TRUE,OFFSET(CalculationsAndCharts!$AH$33,E38,0,'Transaction Summary'!$C$2-E38,1),0)+E38,"") ->  | F39: =IFERROR(OFFSET(CalculationsAndCharts!$B$32,'Transaction Summary'!E39,0,1,1),"") ->  | G39: =IFERROR(OFFSET(CalculationsAndCharts!$AJ$32,'Transaction Summary'!E39,0,1,1),"") ->  | K39: =IFERROR(MATCH(TRUE,OFFSET(CalculationsAndCharts!$AN$33,K38,0,'Transaction Summary'!$C$2-K38,1),0)+K38,"") ->  | L39: =IFERROR(OFFSET(CalculationsAndCharts!$B$32,'Transaction Summary'!K39,0,1,1),"") ->  | M39: =IFERROR(OFFSET(CalculationsAndCharts!$AR$32,'Transaction Summary'!K39,0,1,1),"") ->  | N39: =IFERROR(MATCH(TRUE,OFFSET(CalculationsAndCharts!$AQ$33,N38,0,'Transaction Summary'!$C$2-N38,1),0)+N38,"") ->  | O39: =IFERROR(OFFSET(CalculationsAndCharts!$B$32,'Transaction Summary'!N39,0,1,1),"") ->  | P39: =IFERROR(OFFSET(CalculationsAndCharts!$AS$32,'Transaction Summary'!N39,0,1,1),"") -> 
B40: =IFERROR(MATCH(TRUE,OFFSET(CalculationsAndCharts!$AE$33,B39,0,'Transaction Summary'!$C$2-B39,1),0)+B39,"") ->  | C40: =IFERROR(OFFSET(CalculationsAndCharts!$B$32,'Transaction Summary'!B40,0,1,1),"") ->  | D40: =IFERROR(OFFSET(CalculationsAndCharts!$AI$32,'Transaction Summary'!B40,0,1,1),"") ->  | E40: =IFERROR(MATCH(TRUE,OFFSET(CalculationsAndCharts!$AH$33,E39,0,'Transaction Summary'!$C$2-E39,1),0)+E39,"") ->  | F40: =IFERROR(OFFSET(CalculationsAndCharts!$B$32,'Transaction Summary'!E40,0,1,1),"") ->  | G40: =IFERROR(OFFSET(CalculationsAndCharts!$AJ$32,'Transaction Summary'!E40,0,1,1),"") ->  | K40: =IFERROR(MATCH(TRUE,OFFSET(CalculationsAndCharts!$AN$33,K39,0,'Transaction Summary'!$C$2-K39,1),0)+K39,"") ->  | L40: =IFERROR(OFFSET(CalculationsAndCharts!$B$32,'Transaction Summary'!K40,0,1,1),"") ->  | M40: =IFERROR(OFFSET(CalculationsAndCharts!$AR$32,'Transaction Summary'!K40,0,1,1),"") ->  | N40: =IFERROR(MATCH(TRUE,OFFSET(CalculationsAndCharts!$AQ$33,N39,0,'Transaction Summary'!$C$2-N39,1),0)+N39,"") ->  | O40: =IFERROR(OFFSET(CalculationsAndCharts!$B$32,'Transaction Summary'!N40,0,1,1),"") ->  | P40: =IFERROR(OFFSET(CalculationsAndCharts!$AS$32,'Transaction Summary'!N40,0,1,1),"") -> 
B41: =IFERROR(MATCH(TRUE,OFFSET(CalculationsAndCharts!$AE$33,B40,0,'Transaction Summary'!$C$2-B40,1),0)+B40,"") ->  | C41: =IFERROR(OFFSET(CalculationsAndCharts!$B$32,'Transaction Summary'!B41,0,1,1),"") ->  | D41: =IFERROR(OFFSET(CalculationsAndCharts!$AI$32,'Transaction Summary'!B41,0,1,1),"") ->  | E41: =IFERROR(MATCH(TRUE,OFFSET(CalculationsAndCharts!$AH$33,E40,0,'Transaction Summary'!$C$2-E40,1),0)+E40,"") ->  | F41: =IFERROR(OFFSET(CalculationsAndCharts!$B$32,'Transaction Summary'!E41,0,1,1),"") ->  | G41: =IFERROR(OFFSET(CalculationsAndCharts!$AJ$32,'Transaction Summary'!E41,0,1,1),"") ->  | K41: =IFERROR(MATCH(TRUE,OFFSET(CalculationsAndCharts!$AN$33,K40,0,'Transaction Summary'!$C$2-K40,1),0)+K40,"") ->  | L41: =IFERROR(OFFSET(CalculationsAndCharts!$B$32,'Transaction Summary'!K41,0,1,1),"") ->  | M41: =IFERROR(OFFSET(CalculationsAndCharts!$AR$32,'Transaction Summary'!K41,0,1,1),"") ->  | N41: =IFERROR(MATCH(TRUE,OFFSET(CalculationsAndCharts!$AQ$33,N40,0,'Transaction Summary'!$C$2-N40,1),0)+N40,"") ->  | O41: =IFERROR(OFFSET(CalculationsAndCharts!$B$32,'Transaction Summary'!N41,0,1,1),"") ->  | P41: =IFERROR(OFFSET(CalculationsAndCharts!$AS$32,'Transaction Summary'!N41,0,1,1),"") -> 
B42: =IFERROR(MATCH(TRUE,OFFSET(CalculationsAndCharts!$AE$33,B41,0,'Transaction Summary'!$C$2-B41,1),0)+B41,"") ->  | C42: =IFERROR(OFFSET(CalculationsAndCharts!$B$32,'Transaction Summary'!B42,0,1,1),"") ->  | D42: =IFERROR(OFFSET(CalculationsAndCharts!$AI$32,'Transaction Summary'!B42,0,1,1),"") ->  | E42: =IFERROR(MATCH(TRUE,OFFSET(CalculationsAndCharts!$AH$33,E41,0,'Transaction Summary'!$C$2-E41,1),0)+E41,"") ->  | F42: =IFERROR(OFFSET(CalculationsAndCharts!$B$32,'Transaction Summary'!E42,0,1,1),"") ->  | G42: =IFERROR(OFFSET(CalculationsAndCharts!$AJ$32,'Transaction Summary'!E42,0,1,1),"") ->  | K42: =IFERROR(MATCH(TRUE,OFFSET(CalculationsAndCharts!$AN$33,K41,0,'Transaction Summary'!$C$2-K41,1),0)+K41,"") ->  | L42: =IFERROR(OFFSET(CalculationsAndCharts!$B$32,'Transaction Summary'!K42,0,1,1),"") ->  | M42: =IFERROR(OFFSET(CalculationsAndCharts!$AR$32,'Transaction Summary'!K42,0,1,1),"") ->  | N42: =IFERROR(MATCH(TRUE,OFFSET(CalculationsAndCharts!$AQ$33,N41,0,'Transaction Summary'!$C$2-N41,1),0)+N41,"") ->  | O42: =IFERROR(OFFSET(CalculationsAndCharts!$B$32,'Transaction Summary'!N42,0,1,1),"") ->  | P42: =IFERROR(OFFSET(CalculationsAndCharts!$AS$32,'Transaction Summary'!N42,0,1,1),"") -> 
B43: =IFERROR(MATCH(TRUE,OFFSET(CalculationsAndCharts!$AE$33,B42,0,'Transaction Summary'!$C$2-B42,1),0)+B42,"") ->  | C43: =IFERROR(OFFSET(CalculationsAndCharts!$B$32,'Transaction Summary'!B43,0,1,1),"") ->  | D43: =IFERROR(OFFSET(CalculationsAndCharts!$AI$32,'Transaction Summary'!B43,0,1,1),"") ->  | E43: =IFERROR(MATCH(TRUE,OFFSET(CalculationsAndCharts!$AH$33,E42,0,'Transaction Summary'!$C$2-E42,1),0)+E42,"") ->  | F43: =IFERROR(OFFSET(CalculationsAndCharts!$B$32,'Transaction Summary'!E43,0,1,1),"") ->  | G43: =IFERROR(OFFSET(CalculationsAndCharts!$AJ$32,'Transaction Summary'!E43,0,1,1),"") ->  | K43: =IFERROR(MATCH(TRUE,OFFSET(CalculationsAndCharts!$AN$33,K42,0,'Transaction Summary'!$C$2-K42,1),0)+K42,"") ->  | L43: =IFERROR(OFFSET(CalculationsAndCharts!$B$32,'Transaction Summary'!K43,0,1,1),"") ->  | M43: =IFERROR(OFFSET(CalculationsAndCharts!$AR$32,'Transaction Summary'!K43,0,1,1),"") ->  | N43: =IFERROR(MATCH(TRUE,OFFSET(CalculationsAndCharts!$AQ$33,N42,0,'Transaction Summary'!$C$2-N42,1),0)+N42,"") ->  | O43: =IFERROR(OFFSET(CalculationsAndCharts!$B$32,'Transaction Summary'!N43,0,1,1),"") ->  | P43: =IFERROR(OFFSET(CalculationsAndCharts!$AS$32,'Transaction Summary'!N43,0,1,1),"") -> 
B44: =IFERROR(MATCH(TRUE,OFFSET(CalculationsAndCharts!$AE$33,B43,0,'Transaction Summary'!$C$2-B43,1),0)+B43,"") ->  | C44: =IFERROR(OFFSET(CalculationsAndCharts!$B$32,'Transaction Summary'!B44,0,1,1),"") ->  | D44: =IFERROR(OFFSET(CalculationsAndCharts!$AI$32,'Transaction Summary'!B44,0,1,1),"") ->  | E44: =IFERROR(MATCH(TRUE,OFFSET(CalculationsAndCharts!$AH$33,E43,0,'Transaction Summary'!$C$2-E43,1),0)+E43,"") ->  | F44: =IFERROR(OFFSET(CalculationsAndCharts!$B$32,'Transaction Summary'!E44,0,1,1),"") ->  | G44: =IFERROR(OFFSET(CalculationsAndCharts!$AJ$32,'Transaction Summary'!E44,0,1,1),"") ->  | K44: =IFERROR(MATCH(TRUE,OFFSET(CalculationsAndCharts!$AN$33,K43,0,'Transaction Summary'!$C$2-K43,1),0)+K43,"") ->  | L44: =IFERROR(OFFSET(CalculationsAndCharts!$B$32,'Transaction Summary'!K44,0,1,1),"") ->  | M44: =IFERROR(OFFSET(CalculationsAndCharts!$AR$32,'Transaction Summary'!K44,0,1,1),"") ->  | N44: =IFERROR(MATCH(TRUE,OFFSET(CalculationsAndCharts!$AQ$33,N43,0,'Transaction Summary'!$C$2-N43,1),0)+N43,"") ->  | O44: =IFERROR(OFFSET(CalculationsAndCharts!$B$32,'Transaction Summary'!N44,0,1,1),"") ->  | P44: =IFERROR(OFFSET(CalculationsAndCharts!$AS$32,'Transaction Summary'!N44,0,1,1),"") -> 
B45: =IFERROR(MATCH(TRUE,OFFSET(CalculationsAndCharts!$AE$33,B44,0,'Transaction Summary'!$C$2-B44,1),0)+B44,"") ->  | C45: =IFERROR(OFFSET(CalculationsAndCharts!$B$32,'Transaction Summary'!B45,0,1,1),"") ->  | D45: =IFERROR(OFFSET(CalculationsAndCharts!$AI$32,'Transaction Summary'!B45,0,1,1),"") ->  | E45: =IFERROR(MATCH(TRUE,OFFSET(CalculationsAndCharts!$AH$33,E44,0,'Transaction Summary'!$C$2-E44,1),0)+E44,"") ->  | F45: =IFERROR(OFFSET(CalculationsAndCharts!$B$32,'Transaction Summary'!E45,0,1,1),"") ->  | G45: =IFERROR(OFFSET(CalculationsAndCharts!$AJ$32,'Transaction Summary'!E45,0,1,1),"") ->  | K45: =IFERROR(MATCH(TRUE,OFFSET(CalculationsAndCharts!$AN$33,K44,0,'Transaction Summary'!$C$2-K44,1),0)+K44,"") ->  | L45: =IFERROR(OFFSET(CalculationsAndCharts!$B$32,'Transaction Summary'!K45,0,1,1),"") ->  | M45: =IFERROR(OFFSET(CalculationsAndCharts!$AR$32,'Transaction Summary'!K45,0,1,1),"") ->  | N45: =IFERROR(MATCH(TRUE,OFFSET(CalculationsAndCharts!$AQ$33,N44,0,'Transaction Summary'!$C$2-N44,1),0)+N44,"") ->  | O45: =IFERROR(OFFSET(CalculationsAndCharts!$B$32,'Transaction Summary'!N45,0,1,1),"") ->  | P45: =IFERROR(OFFSET(CalculationsAndCharts!$AS$32,'Transaction Summary'!N45,0,1,1),"") -> 
B46: =IFERROR(MATCH(TRUE,OFFSET(CalculationsAndCharts!$AE$33,B45,0,'Transaction Summary'!$C$2-B45,1),0)+B45,"") ->  | C46: =IFERROR(OFFSET(CalculationsAndCharts!$B$32,'Transaction Summary'!B46,0,1,1),"") ->  | D46: =IFERROR(OFFSET(CalculationsAndCharts!$AI$32,'Transaction Summary'!B46,0,1,1),"") ->  | E46: =IFERROR(MATCH(TRUE,OFFSET(CalculationsAndCharts!$AH$33,E45,0,'Transaction Summary'!$C$2-E45,1),0)+E45,"") ->  | F46: =IFERROR(OFFSET(CalculationsAndCharts!$B$32,'Transaction Summary'!E46,0,1,1),"") ->  | G46: =IFERROR(OFFSET(CalculationsAndCharts!$AJ$32,'Transaction Summary'!E46,0,1,1),"") ->  | K46: =IFERROR(MATCH(TRUE,OFFSET(CalculationsAndCharts!$AN$33,K45,0,'Transaction Summary'!$C$2-K45,1),0)+K45,"") ->  | L46: =IFERROR(OFFSET(CalculationsAndCharts!$B$32,'Transaction Summary'!K46,0,1,1),"") ->  | M46: =IFERROR(OFFSET(CalculationsAndCharts!$AR$32,'Transaction Summary'!K46,0,1,1),"") ->  | N46: =IFERROR(MATCH(TRUE,OFFSET(CalculationsAndCharts!$AQ$33,N45,0,'Transaction Summary'!$C$2-N45,1),0)+N45,"") ->  | O46: =IFERROR(OFFSET(CalculationsAndCharts!$B$32,'Transaction Summary'!N46,0,1,1),"") ->  | P46: =IFERROR(OFFSET(CalculationsAndCharts!$AS$32,'Transaction Summary'!N46,0,1,1),"") -> 
B47: =IFERROR(MATCH(TRUE,OFFSET(CalculationsAndCharts!$AE$33,B46,0,'Transaction Summary'!$C$2-B46,1),0)+B46,"") ->  | C47: =IFERROR(OFFSET(CalculationsAndCharts!$B$32,'Transaction Summary'!B47,0,1,1),"") ->  | D47: =IFERROR(OFFSET(CalculationsAndCharts!$AI$32,'Transaction Summary'!B47,0,1,1),"") ->  | E47: =IFERROR(MATCH(TRUE,OFFSET(CalculationsAndCharts!$AH$33,E46,0,'Transaction Summary'!$C$2-E46,1),0)+E46,"") ->  | F47: =IFERROR(OFFSET(CalculationsAndCharts!$B$32,'Transaction Summary'!E47,0,1,1),"") ->  | G47: =IFERROR(OFFSET(CalculationsAndCharts!$AJ$32,'Transaction Summary'!E47,0,1,1),"") ->  | K47: =IFERROR(MATCH(TRUE,OFFSET(CalculationsAndCharts!$AN$33,K46,0,'Transaction Summary'!$C$2-K46,1),0)+K46,"") ->  | L47: =IFERROR(OFFSET(CalculationsAndCharts!$B$32,'Transaction Summary'!K47,0,1,1),"") ->  | M47: =IFERROR(OFFSET(CalculationsAndCharts!$AR$32,'Transaction Summary'!K47,0,1,1),"") ->  | N47: =IFERROR(MATCH(TRUE,OFFSET(CalculationsAndCharts!$AQ$33,N46,0,'Transaction Summary'!$C$2-N46,1),0)+N46,"") ->  | O47: =IFERROR(OFFSET(CalculationsAndCharts!$B$32,'Transaction Summary'!N47,0,1,1),"") ->  | P47: =IFERROR(OFFSET(CalculationsAndCharts!$AS$32,'Transaction Summary'!N47,0,1,1),"") -> 
B48: =IFERROR(MATCH(TRUE,OFFSET(CalculationsAndCharts!$AE$33,B47,0,'Transaction Summary'!$C$2-B47,1),0)+B47,"") ->  | C48: =IFERROR(OFFSET(CalculationsAndCharts!$B$32,'Transaction Summary'!B48,0,1,1),"") ->  | D48: =IFERROR(OFFSET(CalculationsAndCharts!$AI$32,'Transaction Summary'!B48,0,1,1),"") ->  | E48: =IFERROR(MATCH(TRUE,OFFSET(CalculationsAndCharts!$AH$33,E47,0,'Transaction Summary'!$C$2-E47,1),0)+E47,"") ->  | F48: =IFERROR(OFFSET(CalculationsAndCharts!$B$32,'Transaction Summary'!E48,0,1,1),"") ->  | G48: =IFERROR(OFFSET(CalculationsAndCharts!$AJ$32,'Transaction Summary'!E48,0,1,1),"") ->  | K48: =IFERROR(MATCH(TRUE,OFFSET(CalculationsAndCharts!$AN$33,K47,0,'Transaction Summary'!$C$2-K47,1),0)+K47,"") ->  | L48: =IFERROR(OFFSET(CalculationsAndCharts!$B$32,'Transaction Summary'!K48,0,1,1),"") ->  | M48: =IFERROR(OFFSET(CalculationsAndCharts!$AR$32,'Transaction Summary'!K48,0,1,1),"") ->  | N48: =IFERROR(MATCH(TRUE,OFFSET(CalculationsAndCharts!$AQ$33,N47,0,'Transaction Summary'!$C$2-N47,1),0)+N47,"") ->  | O48: =IFERROR(OFFSET(CalculationsAndCharts!$B$32,'Transaction Summary'!N48,0,1,1),"") ->  | P48: =IFERROR(OFFSET(CalculationsAndCharts!$AS$32,'Transaction Summary'!N48,0,1,1),"") -> 
B49: =IFERROR(MATCH(TRUE,OFFSET(CalculationsAndCharts!$AE$33,B48,0,'Transaction Summary'!$C$2-B48,1),0)+B48,"") ->  | C49: =IFERROR(OFFSET(CalculationsAndCharts!$B$32,'Transaction Summary'!B49,0,1,1),"") ->  | D49: =IFERROR(OFFSET(CalculationsAndCharts!$AI$32,'Transaction Summary'!B49,0,1,1),"") ->  | E49: =IFERROR(MATCH(TRUE,OFFSET(CalculationsAndCharts!$AH$33,E48,0,'Transaction Summary'!$C$2-E48,1),0)+E48,"") ->  | F49: =IFERROR(OFFSET(CalculationsAndCharts!$B$32,'Transaction Summary'!E49,0,1,1),"") ->  | G49: =IFERROR(OFFSET(CalculationsAndCharts!$AJ$32,'Transaction Summary'!E49,0,1,1),"") ->  | K49: =IFERROR(MATCH(TRUE,OFFSET(CalculationsAndCharts!$AN$33,K48,0,'Transaction Summary'!$C$2-K48,1),0)+K48,"") ->  | L49: =IFERROR(OFFSET(CalculationsAndCharts!$B$32,'Transaction Summary'!K49,0,1,1),"") ->  | M49: =IFERROR(OFFSET(CalculationsAndCharts!$AR$32,'Transaction Summary'!K49,0,1,1),"") ->  | N49: =IFERROR(MATCH(TRUE,OFFSET(CalculationsAndCharts!$AQ$33,N48,0,'Transaction Summary'!$C$2-N48,1),0)+N48,"") ->  | O49: =IFERROR(OFFSET(CalculationsAndCharts!$B$32,'Transaction Summary'!N49,0,1,1),"") ->  | P49: =IFERROR(OFFSET(CalculationsAndCharts!$AS$32,'Transaction Summary'!N49,0,1,1),"") -> 
B50: =IFERROR(MATCH(TRUE,OFFSET(CalculationsAndCharts!$AE$33,B49,0,'Transaction Summary'!$C$2-B49,1),0)+B49,"") ->  | C50: =IFERROR(OFFSET(CalculationsAndCharts!$B$32,'Transaction Summary'!B50,0,1,1),"") ->  | D50: =IFERROR(OFFSET(CalculationsAndCharts!$AI$32,'Transaction Summary'!B50,0,1,1),"") ->  | E50: =IFERROR(MATCH(TRUE,OFFSET(CalculationsAndCharts!$AH$33,E49,0,'Transaction Summary'!$C$2-E49,1),0)+E49,"") ->  | F50: =IFERROR(OFFSET(CalculationsAndCharts!$B$32,'Transaction Summary'!E50,0,1,1),"") ->  | G50: =IFERROR(OFFSET(CalculationsAndCharts!$AJ$32,'Transaction Summary'!E50,0,1,1),"") ->  | K50: =IFERROR(MATCH(TRUE,OFFSET(CalculationsAndCharts!$AN$33,K49,0,'Transaction Summary'!$C$2-K49,1),0)+K49,"") ->  | L50: =IFERROR(OFFSET(CalculationsAndCharts!$B$32,'Transaction Summary'!K50,0,1,1),"") ->  | M50: =IFERROR(OFFSET(CalculationsAndCharts!$AR$32,'Transaction Summary'!K50,0,1,1),"") ->  | N50: =IFERROR(MATCH(TRUE,OFFSET(CalculationsAndCharts!$AQ$33,N49,0,'Transaction Summary'!$C$2-N49,1),0)+N49,"") ->  | O50: =IFERROR(OFFSET(CalculationsAndCharts!$B$32,'Transaction Summary'!N50,0,1,1),"") ->  | P50: =IFERROR(OFFSET(CalculationsAndCharts!$AS$32,'Transaction Summary'!N50,0,1,1),"") -> 
B51: =IFERROR(MATCH(TRUE,OFFSET(CalculationsAndCharts!$AE$33,B50,0,'Transaction Summary'!$C$2-B50,1),0)+B50,"") ->  | C51: =IFERROR(OFFSET(CalculationsAndCharts!$B$32,'Transaction Summary'!B51,0,1,1),"") ->  | D51: =IFERROR(OFFSET(CalculationsAndCharts!$AI$32,'Transaction Summary'!B51,0,1,1),"") ->  | E51: =IFERROR(MATCH(TRUE,OFFSET(CalculationsAndCharts!$AH$33,E50,0,'Transaction Summary'!$C$2-E50,1),0)+E50,"") ->  | F51: =IFERROR(OFFSET(CalculationsAndCharts!$B$32,'Transaction Summary'!E51,0,1,1),"") ->  | G51: =IFERROR(OFFSET(CalculationsAndCharts!$AJ$32,'Transaction Summary'!E51,0,1,1),"") ->  | K51: =IFERROR(MATCH(TRUE,OFFSET(CalculationsAndCharts!$AN$33,K50,0,'Transaction Summary'!$C$2-K50,1),0)+K50,"") ->  | L51: =IFERROR(OFFSET(CalculationsAndCharts!$B$32,'Transaction Summary'!K51,0,1,1),"") ->  | M51: =IFERROR(OFFSET(CalculationsAndCharts!$AR$32,'Transaction Summary'!K51,0,1,1),"") ->  | N51: =IFERROR(MATCH(TRUE,OFFSET(CalculationsAndCharts!$AQ$33,N50,0,'Transaction Summary'!$C$2-N50,1),0)+N50,"") ->  | O51: =IFERROR(OFFSET(CalculationsAndCharts!$B$32,'Transaction Summary'!N51,0,1,1),"") ->  | P51: =IFERROR(OFFSET(CalculationsAndCharts!$AS$32,'Transaction Summary'!N51,0,1,1),"") -> 
B52: =IFERROR(MATCH(TRUE,OFFSET(CalculationsAndCharts!$AE$33,B51,0,'Transaction Summary'!$C$2-B51,1),0)+B51,"") ->  | C52: =IFERROR(OFFSET(CalculationsAndCharts!$B$32,'Transaction Summary'!B52,0,1,1),"") ->  | D52: =IFERROR(OFFSET(CalculationsAndCharts!$AI$32,'Transaction Summary'!B52,0,1,1),"") ->  | E52: =IFERROR(MATCH(TRUE,OFFSET(CalculationsAndCharts!$AH$33,E51,0,'Transaction Summary'!$C$2-E51,1),0)+E51,"") ->  | F52: =IFERROR(OFFSET(CalculationsAndCharts!$B$32,'Transaction Summary'!E52,0,1,1),"") ->  | G52: =IFERROR(OFFSET(CalculationsAndCharts!$AJ$32,'Transaction Summary'!E52,0,1,1),"") ->  | K52: =IFERROR(MATCH(TRUE,OFFSET(CalculationsAndCharts!$AN$33,K51,0,'Transaction Summary'!$C$2-K51,1),0)+K51,"") ->  | L52: =IFERROR(OFFSET(CalculationsAndCharts!$B$32,'Transaction Summary'!K52,0,1,1),"") ->  | M52: =IFERROR(OFFSET(CalculationsAndCharts!$AR$32,'Transaction Summary'!K52,0,1,1),"") ->  | N52: =IFERROR(MATCH(TRUE,OFFSET(CalculationsAndCharts!$AQ$33,N51,0,'Transaction Summary'!$C$2-N51,1),0)+N51,"") ->  | O52: =IFERROR(OFFSET(CalculationsAndCharts!$B$32,'Transaction Summary'!N52,0,1,1),"") ->  | P52: =IFERROR(OFFSET(CalculationsAndCharts!$AS$32,'Transaction Summary'!N52,0,1,1),"") -> 
B53: =IFERROR(MATCH(TRUE,OFFSET(CalculationsAndCharts!$AE$33,B52,0,'Transaction Summary'!$C$2-B52,1),0)+B52,"") ->  | C53: =IFERROR(OFFSET(CalculationsAndCharts!$B$32,'Transaction Summary'!B53,0,1,1),"") ->  | D53: =IFERROR(OFFSET(CalculationsAndCharts!$AI$32,'Transaction Summary'!B53,0,1,1),"") ->  | E53: =IFERROR(MATCH(TRUE,OFFSET(CalculationsAndCharts!$AH$33,E52,0,'Transaction Summary'!$C$2-E52,1),0)+E52,"") ->  | F53: =IFERROR(OFFSET(CalculationsAndCharts!$B$32,'Transaction Summary'!E53,0,1,1),"") ->  | G53: =IFERROR(OFFSET(CalculationsAndCharts!$AJ$32,'Transaction Summary'!E53,0,1,1),"") ->  | K53: =IFERROR(MATCH(TRUE,OFFSET(CalculationsAndCharts!$AN$33,K52,0,'Transaction Summary'!$C$2-K52,1),0)+K52,"") ->  | L53: =IFERROR(OFFSET(CalculationsAndCharts!$B$32,'Transaction Summary'!K53,0,1,1),"") ->  | M53: =IFERROR(OFFSET(CalculationsAndCharts!$AR$32,'Transaction Summary'!K53,0,1,1),"") ->  | N53: =IFERROR(MATCH(TRUE,OFFSET(CalculationsAndCharts!$AQ$33,N52,0,'Transaction Summary'!$C$2-N52,1),0)+N52,"") ->  | O53: =IFERROR(OFFSET(CalculationsAndCharts!$B$32,'Transaction Summary'!N53,0,1,1),"") ->  | P53: =IFERROR(OFFSET(CalculationsAndCharts!$AS$32,'Transaction Summary'!N53,0,1,1),"") -> 
B54: =IFERROR(MATCH(TRUE,OFFSET(CalculationsAndCharts!$AE$33,B53,0,'Transaction Summary'!$C$2-B53,1),0)+B53,"") ->  | C54: =IFERROR(OFFSET(CalculationsAndCharts!$B$32,'Transaction Summary'!B54,0,1,1),"") ->  | D54: =IFERROR(OFFSET(CalculationsAndCharts!$AI$32,'Transaction Summary'!B54,0,1,1),"") ->  | E54: =IFERROR(MATCH(TRUE,OFFSET(CalculationsAndCharts!$AH$33,E53,0,'Transaction Summary'!$C$2-E53,1),0)+E53,"") ->  | F54: =IFERROR(OFFSET(CalculationsAndCharts!$B$32,'Transaction Summary'!E54,0,1,1),"") ->  | G54: =IFERROR(OFFSET(CalculationsAndCharts!$AJ$32,'Transaction Summary'!E54,0,1,1),"") ->  | K54: =IFERROR(MATCH(TRUE,OFFSET(CalculationsAndCharts!$AN$33,K53,0,'Transaction Summary'!$C$2-K53,1),0)+K53,"") ->  | L54: =IFERROR(OFFSET(CalculationsAndCharts!$B$32,'Transaction Summary'!K54,0,1,1),"") ->  | M54: =IFERROR(OFFSET(CalculationsAndCharts!$AR$32,'Transaction Summary'!K54,0,1,1),"") ->  | N54: =IFERROR(MATCH(TRUE,OFFSET(CalculationsAndCharts!$AQ$33,N53,0,'Transaction Summary'!$C$2-N53,1),0)+N53,"") ->  | O54: =IFERROR(OFFSET(CalculationsAndCharts!$B$32,'Transaction Summary'!N54,0,1,1),"") ->  | P54: =IFERROR(OFFSET(CalculationsAndCharts!$AS$32,'Transaction Summary'!N54,0,1,1),"") -> 
B55: =IFERROR(MATCH(TRUE,OFFSET(CalculationsAndCharts!$AE$33,B54,0,'Transaction Summary'!$C$2-B54,1),0)+B54,"") ->  | C55: =IFERROR(OFFSET(CalculationsAndCharts!$B$32,'Transaction Summary'!B55,0,1,1),"") ->  | D55: =IFERROR(OFFSET(CalculationsAndCharts!$AI$32,'Transaction Summary'!B55,0,1,1),"") ->  | E55: =IFERROR(MATCH(TRUE,OFFSET(CalculationsAndCharts!$AH$33,E54,0,'Transaction Summary'!$C$2-E54,1),0)+E54,"") ->  | F55: =IFERROR(OFFSET(CalculationsAndCharts!$B$32,'Transaction Summary'!E55,0,1,1),"") ->  | G55: =IFERROR(OFFSET(CalculationsAndCharts!$AJ$32,'Transaction Summary'!E55,0,1,1),"") ->  | K55: =IFERROR(MATCH(TRUE,OFFSET(CalculationsAndCharts!$AN$33,K54,0,'Transaction Summary'!$C$2-K54,1),0)+K54,"") ->  | L55: =IFERROR(OFFSET(CalculationsAndCharts!$B$32,'Transaction Summary'!K55,0,1,1),"") ->  | M55: =IFERROR(OFFSET(CalculationsAndCharts!$AR$32,'Transaction Summary'!K55,0,1,1),"") ->  | N55: =IFERROR(MATCH(TRUE,OFFSET(CalculationsAndCharts!$AQ$33,N54,0,'Transaction Summary'!$C$2-N54,1),0)+N54,"") ->  | O55: =IFERROR(OFFSET(CalculationsAndCharts!$B$32,'Transaction Summary'!N55,0,1,1),"") ->  | P55: =IFERROR(OFFSET(CalculationsAndCharts!$AS$32,'Transaction Summary'!N55,0,1,1),"") -> 
B56: =IFERROR(MATCH(TRUE,OFFSET(CalculationsAndCharts!$AE$33,B55,0,'Transaction Summary'!$C$2-B55,1),0)+B55,"") ->  | C56: =IFERROR(OFFSET(CalculationsAndCharts!$B$32,'Transaction Summary'!B56,0,1,1),"") ->  | D56: =IFERROR(OFFSET(CalculationsAndCharts!$AI$32,'Transaction Summary'!B56,0,1,1),"") ->  | E56: =IFERROR(MATCH(TRUE,OFFSET(CalculationsAndCharts!$AH$33,E55,0,'Transaction Summary'!$C$2-E55,1),0)+E55,"") ->  | F56: =IFERROR(OFFSET(CalculationsAndCharts!$B$32,'Transaction Summary'!E56,0,1,1),"") ->  | G56: =IFERROR(OFFSET(CalculationsAndCharts!$AJ$32,'Transaction Summary'!E56,0,1,1),"") ->  | K56: =IFERROR(MATCH(TRUE,OFFSET(CalculationsAndCharts!$AN$33,K55,0,'Transaction Summary'!$C$2-K55,1),0)+K55,"") ->  | L56: =IFERROR(OFFSET(CalculationsAndCharts!$B$32,'Transaction Summary'!K56,0,1,1),"") ->  | M56: =IFERROR(OFFSET(CalculationsAndCharts!$AR$32,'Transaction Summary'!K56,0,1,1),"") ->  | N56: =IFERROR(MATCH(TRUE,OFFSET(CalculationsAndCharts!$AQ$33,N55,0,'Transaction Summary'!$C$2-N55,1),0)+N55,"") ->  | O56: =IFERROR(OFFSET(CalculationsAndCharts!$B$32,'Transaction Summary'!N56,0,1,1),"") ->  | P56: =IFERROR(OFFSET(CalculationsAndCharts!$AS$32,'Transaction Summary'!N56,0,1,1),"") -> 
B57: =IFERROR(MATCH(TRUE,OFFSET(CalculationsAndCharts!$AE$33,B56,0,'Transaction Summary'!$C$2-B56,1),0)+B56,"") ->  | C57: =IFERROR(OFFSET(CalculationsAndCharts!$B$32,'Transaction Summary'!B57,0,1,1),"") ->  | D57: =IFERROR(OFFSET(CalculationsAndCharts!$AI$32,'Transaction Summary'!B57,0,1,1),"") ->  | E57: =IFERROR(MATCH(TRUE,OFFSET(CalculationsAndCharts!$AH$33,E56,0,'Transaction Summary'!$C$2-E56,1),0)+E56,"") ->  | F57: =IFERROR(OFFSET(CalculationsAndCharts!$B$32,'Transaction Summary'!E57,0,1,1),"") ->  | G57: =IFERROR(OFFSET(CalculationsAndCharts!$AJ$32,'Transaction Summary'!E57,0,1,1),"") ->  | K57: =IFERROR(MATCH(TRUE,OFFSET(CalculationsAndCharts!$AN$33,K56,0,'Transaction Summary'!$C$2-K56,1),0)+K56,"") ->  | L57: =IFERROR(OFFSET(CalculationsAndCharts!$B$32,'Transaction Summary'!K57,0,1,1),"") ->  | M57: =IFERROR(OFFSET(CalculationsAndCharts!$AR$32,'Transaction Summary'!K57,0,1,1),"") ->  | N57: =IFERROR(MATCH(TRUE,OFFSET(CalculationsAndCharts!$AQ$33,N56,0,'Transaction Summary'!$C$2-N56,1),0)+N56,"") ->  | O57: =IFERROR(OFFSET(CalculationsAndCharts!$B$32,'Transaction Summary'!N57,0,1,1),"") ->  | P57: =IFERROR(OFFSET(CalculationsAndCharts!$AS$32,'Transaction Summary'!N57,0,1,1),"") -> 
B58: =IFERROR(MATCH(TRUE,OFFSET(CalculationsAndCharts!$AE$33,B57,0,'Transaction Summary'!$C$2-B57,1),0)+B57,"") ->  | C58: =IFERROR(OFFSET(CalculationsAndCharts!$B$32,'Transaction Summary'!B58,0,1,1),"") ->  | D58: =IFERROR(OFFSET(CalculationsAndCharts!$AI$32,'Transaction Summary'!B58,0,1,1),"") ->  | E58: =IFERROR(MATCH(TRUE,OFFSET(CalculationsAndCharts!$AH$33,E57,0,'Transaction Summary'!$C$2-E57,1),0)+E57,"") ->  | F58: =IFERROR(OFFSET(CalculationsAndCharts!$B$32,'Transaction Summary'!E58,0,1,1),"") ->  | G58: =IFERROR(OFFSET(CalculationsAndCharts!$AJ$32,'Transaction Summary'!E58,0,1,1),"") ->  | K58: =IFERROR(MATCH(TRUE,OFFSET(CalculationsAndCharts!$AN$33,K57,0,'Transaction Summary'!$C$2-K57,1),0)+K57,"") ->  | L58: =IFERROR(OFFSET(CalculationsAndCharts!$B$32,'Transaction Summary'!K58,0,1,1),"") ->  | M58: =IFERROR(OFFSET(CalculationsAndCharts!$AR$32,'Transaction Summary'!K58,0,1,1),"") ->  | N58: =IFERROR(MATCH(TRUE,OFFSET(CalculationsAndCharts!$AQ$33,N57,0,'Transaction Summary'!$C$2-N57,1),0)+N57,"") ->  | O58: =IFERROR(OFFSET(CalculationsAndCharts!$B$32,'Transaction Summary'!N58,0,1,1),"") ->  | P58: =IFERROR(OFFSET(CalculationsAndCharts!$AS$32,'Transaction Summary'!N58,0,1,1),"") -> 
B59: =IFERROR(MATCH(TRUE,OFFSET(CalculationsAndCharts!$AE$33,B58,0,'Transaction Summary'!$C$2-B58,1),0)+B58,"") ->  | C59: =IFERROR(OFFSET(CalculationsAndCharts!$B$32,'Transaction Summary'!B59,0,1,1),"") ->  | D59: =IFERROR(OFFSET(CalculationsAndCharts!$AI$32,'Transaction Summary'!B59,0,1,1),"") ->  | E59: =IFERROR(MATCH(TRUE,OFFSET(CalculationsAndCharts!$AH$33,E58,0,'Transaction Summary'!$C$2-E58,1),0)+E58,"") ->  | F59: =IFERROR(OFFSET(CalculationsAndCharts!$B$32,'Transaction Summary'!E59,0,1,1),"") ->  | G59: =IFERROR(OFFSET(CalculationsAndCharts!$AJ$32,'Transaction Summary'!E59,0,1,1),"") ->  | K59: =IFERROR(MATCH(TRUE,OFFSET(CalculationsAndCharts!$AN$33,K58,0,'Transaction Summary'!$C$2-K58,1),0)+K58,"") ->  | L59: =IFERROR(OFFSET(CalculationsAndCharts!$B$32,'Transaction Summary'!K59,0,1,1),"") ->  | M59: =IFERROR(OFFSET(CalculationsAndCharts!$AR$32,'Transaction Summary'!K59,0,1,1),"") ->  | N59: =IFERROR(MATCH(TRUE,OFFSET(CalculationsAndCharts!$AQ$33,N58,0,'Transaction Summary'!$C$2-N58,1),0)+N58,"") ->  | O59: =IFERROR(OFFSET(CalculationsAndCharts!$B$32,'Transaction Summary'!N59,0,1,1),"") ->  | P59: =IFERROR(OFFSET(CalculationsAndCharts!$AS$32,'Transaction Summary'!N59,0,1,1),"") -> 
B60: =IFERROR(MATCH(TRUE,OFFSET(CalculationsAndCharts!$AE$33,B59,0,'Transaction Summary'!$C$2-B59,1),0)+B59,"") ->  | C60: =IFERROR(OFFSET(CalculationsAndCharts!$B$32,'Transaction Summary'!B60,0,1,1),"") ->  | D60: =IFERROR(OFFSET(CalculationsAndCharts!$AI$32,'Transaction Summary'!B60,0,1,1),"") ->  | E60: =IFERROR(MATCH(TRUE,OFFSET(CalculationsAndCharts!$AH$33,E59,0,'Transaction Summary'!$C$2-E59,1),0)+E59,"") ->  | F60: =IFERROR(OFFSET(CalculationsAndCharts!$B$32,'Transaction Summary'!E60,0,1,1),"") ->  | G60: =IFERROR(OFFSET(CalculationsAndCharts!$AJ$32,'Transaction Summary'!E60,0,1,1),"") ->  | K60: =IFERROR(MATCH(TRUE,OFFSET(CalculationsAndCharts!$AN$33,K59,0,'Transaction Summary'!$C$2-K59,1),0)+K59,"") ->  | L60: =IFERROR(OFFSET(CalculationsAndCharts!$B$32,'Transaction Summary'!K60,0,1,1),"") ->  | M60: =IFERROR(OFFSET(CalculationsAndCharts!$AR$32,'Transaction Summary'!K60,0,1,1),"") ->  | N60: =IFERROR(MATCH(TRUE,OFFSET(CalculationsAndCharts!$AQ$33,N59,0,'Transaction Summary'!$C$2-N59,1),0)+N59,"") ->  | O60: =IFERROR(OFFSET(CalculationsAndCharts!$B$32,'Transaction Summary'!N60,0,1,1),"") ->  | P60: =IFERROR(OFFSET(CalculationsAndCharts!$AS$32,'Transaction Summary'!N60,0,1,1),"") -> 
B61: =IFERROR(MATCH(TRUE,OFFSET(CalculationsAndCharts!$AE$33,B60,0,'Transaction Summary'!$C$2-B60,1),0)+B60,"") ->  | C61: =IFERROR(OFFSET(CalculationsAndCharts!$B$32,'Transaction Summary'!B61,0,1,1),"") ->  | D61: =IFERROR(OFFSET(CalculationsAndCharts!$AI$32,'Transaction Summary'!B61,0,1,1),"") ->  | E61: =IFERROR(MATCH(TRUE,OFFSET(CalculationsAndCharts!$AH$33,E60,0,'Transaction Summary'!$C$2-E60,1),0)+E60,"") ->  | F61: =IFERROR(OFFSET(CalculationsAndCharts!$B$32,'Transaction Summary'!E61,0,1,1),"") ->  | G61: =IFERROR(OFFSET(CalculationsAndCharts!$AJ$32,'Transaction Summary'!E61,0,1,1),"") ->  | K61: =IFERROR(MATCH(TRUE,OFFSET(CalculationsAndCharts!$AN$33,K60,0,'Transaction Summary'!$C$2-K60,1),0)+K60,"") ->  | L61: =IFERROR(OFFSET(CalculationsAndCharts!$B$32,'Transaction Summary'!K61,0,1,1),"") ->  | M61: =IFERROR(OFFSET(CalculationsAndCharts!$AR$32,'Transaction Summary'!K61,0,1,1),"") ->  | N61: =IFERROR(MATCH(TRUE,OFFSET(CalculationsAndCharts!$AQ$33,N60,0,'Transaction Summary'!$C$2-N60,1),0)+N60,"") ->  | O61: =IFERROR(OFFSET(CalculationsAndCharts!$B$32,'Transaction Summary'!N61,0,1,1),"") ->  | P61: =IFERROR(OFFSET(CalculationsAndCharts!$AS$32,'Transaction Summary'!N61,0,1,1),"") -> 
B62: =IFERROR(MATCH(TRUE,OFFSET(CalculationsAndCharts!$AE$33,B61,0,'Transaction Summary'!$C$2-B61,1),0)+B61,"") ->  | C62: =IFERROR(OFFSET(CalculationsAndCharts!$B$32,'Transaction Summary'!B62,0,1,1),"") ->  | D62: =IFERROR(OFFSET(CalculationsAndCharts!$AI$32,'Transaction Summary'!B62,0,1,1),"") ->  | E62: =IFERROR(MATCH(TRUE,OFFSET(CalculationsAndCharts!$AH$33,E61,0,'Transaction Summary'!$C$2-E61,1),0)+E61,"") ->  | F62: =IFERROR(OFFSET(CalculationsAndCharts!$B$32,'Transaction Summary'!E62,0,1,1),"") ->  | G62: =IFERROR(OFFSET(CalculationsAndCharts!$AJ$32,'Transaction Summary'!E62,0,1,1),"") ->  | K62: =IFERROR(MATCH(TRUE,OFFSET(CalculationsAndCharts!$AN$33,K61,0,'Transaction Summary'!$C$2-K61,1),0)+K61,"") ->  | L62: =IFERROR(OFFSET(CalculationsAndCharts!$B$32,'Transaction Summary'!K62,0,1,1),"") ->  | M62: =IFERROR(OFFSET(CalculationsAndCharts!$AR$32,'Transaction Summary'!K62,0,1,1),"") ->  | N62: =IFERROR(MATCH(TRUE,OFFSET(CalculationsAndCharts!$AQ$33,N61,0,'Transaction Summary'!$C$2-N61,1),0)+N61,"") ->  | O62: =IFERROR(OFFSET(CalculationsAndCharts!$B$32,'Transaction Summary'!N62,0,1,1),"") ->  | P62: =IFERROR(OFFSET(CalculationsAndCharts!$AS$32,'Transaction Summary'!N62,0,1,1),"") -> 
B63: =IFERROR(MATCH(TRUE,OFFSET(CalculationsAndCharts!$AE$33,B62,0,'Transaction Summary'!$C$2-B62,1),0)+B62,"") ->  | C63: =IFERROR(OFFSET(CalculationsAndCharts!$B$32,'Transaction Summary'!B63,0,1,1),"") ->  | D63: =IFERROR(OFFSET(CalculationsAndCharts!$AI$32,'Transaction Summary'!B63,0,1,1),"") ->  | E63: =IFERROR(MATCH(TRUE,OFFSET(CalculationsAndCharts!$AH$33,E62,0,'Transaction Summary'!$C$2-E62,1),0)+E62,"") ->  | F63: =IFERROR(OFFSET(CalculationsAndCharts!$B$32,'Transaction Summary'!E63,0,1,1),"") ->  | G63: =IFERROR(OFFSET(CalculationsAndCharts!$AJ$32,'Transaction Summary'!E63,0,1,1),"") ->  | K63: =IFERROR(MATCH(TRUE,OFFSET(CalculationsAndCharts!$AN$33,K62,0,'Transaction Summary'!$C$2-K62,1),0)+K62,"") ->  | L63: =IFERROR(OFFSET(CalculationsAndCharts!$B$32,'Transaction Summary'!K63,0,1,1),"") ->  | M63: =IFERROR(OFFSET(CalculationsAndCharts!$AR$32,'Transaction Summary'!K63,0,1,1),"") ->  | N63: =IFERROR(MATCH(TRUE,OFFSET(CalculationsAndCharts!$AQ$33,N62,0,'Transaction Summary'!$C$2-N62,1),0)+N62,"") ->  | O63: =IFERROR(OFFSET(CalculationsAndCharts!$B$32,'Transaction Summary'!N63,0,1,1),"") ->  | P63: =IFERROR(OFFSET(CalculationsAndCharts!$AS$32,'Transaction Summary'!N63,0,1,1),"") -> 
B64: =IFERROR(MATCH(TRUE,OFFSET(CalculationsAndCharts!$AE$33,B63,0,'Transaction Summary'!$C$2-B63,1),0)+B63,"") ->  | C64: =IFERROR(OFFSET(CalculationsAndCharts!$B$32,'Transaction Summary'!B64,0,1,1),"") ->  | D64: =IFERROR(OFFSET(CalculationsAndCharts!$AI$32,'Transaction Summary'!B64,0,1,1),"") ->  | E64: =IFERROR(MATCH(TRUE,OFFSET(CalculationsAndCharts!$AH$33,E63,0,'Transaction Summary'!$C$2-E63,1),0)+E63,"") ->  | F64: =IFERROR(OFFSET(CalculationsAndCharts!$B$32,'Transaction Summary'!E64,0,1,1),"") ->  | G64: =IFERROR(OFFSET(CalculationsAndCharts!$AJ$32,'Transaction Summary'!E64,0,1,1),"") ->  | K64: =IFERROR(MATCH(TRUE,OFFSET(CalculationsAndCharts!$AN$33,K63,0,'Transaction Summary'!$C$2-K63,1),0)+K63,"") ->  | L64: =IFERROR(OFFSET(CalculationsAndCharts!$B$32,'Transaction Summary'!K64,0,1,1),"") ->  | M64: =IFERROR(OFFSET(CalculationsAndCharts!$AR$32,'Transaction Summary'!K64,0,1,1),"") ->  | N64: =IFERROR(MATCH(TRUE,OFFSET(CalculationsAndCharts!$AQ$33,N63,0,'Transaction Summary'!$C$2-N63,1),0)+N63,"") ->  | O64: =IFERROR(OFFSET(CalculationsAndCharts!$B$32,'Transaction Summary'!N64,0,1,1),"") ->  | P64: =IFERROR(OFFSET(CalculationsAndCharts!$AS$32,'Transaction Summary'!N64,0,1,1),"") -> 
B65: =IFERROR(MATCH(TRUE,OFFSET(CalculationsAndCharts!$AE$33,B64,0,'Transaction Summary'!$C$2-B64,1),0)+B64,"") ->  | C65: =IFERROR(OFFSET(CalculationsAndCharts!$B$32,'Transaction Summary'!B65,0,1,1),"") ->  | D65: =IFERROR(OFFSET(CalculationsAndCharts!$AI$32,'Transaction Summary'!B65,0,1,1),"") ->  | E65: =IFERROR(MATCH(TRUE,OFFSET(CalculationsAndCharts!$AH$33,E64,0,'Transaction Summary'!$C$2-E64,1),0)+E64,"") ->  | F65: =IFERROR(OFFSET(CalculationsAndCharts!$B$32,'Transaction Summary'!E65,0,1,1),"") ->  | G65: =IFERROR(OFFSET(CalculationsAndCharts!$AJ$32,'Transaction Summary'!E65,0,1,1),"") ->  | K65: =IFERROR(MATCH(TRUE,OFFSET(CalculationsAndCharts!$AN$33,K64,0,'Transaction Summary'!$C$2-K64,1),0)+K64,"") ->  | L65: =IFERROR(OFFSET(CalculationsAndCharts!$B$32,'Transaction Summary'!K65,0,1,1),"") ->  | M65: =IFERROR(OFFSET(CalculationsAndCharts!$AR$32,'Transaction Summary'!K65,0,1,1),"") ->  | N65: =IFERROR(MATCH(TRUE,OFFSET(CalculationsAndCharts!$AQ$33,N64,0,'Transaction Summary'!$C$2-N64,1),0)+N64,"") ->  | O65: =IFERROR(OFFSET(CalculationsAndCharts!$B$32,'Transaction Summary'!N65,0,1,1),"") ->  | P65: =IFERROR(OFFSET(CalculationsAndCharts!$AS$32,'Transaction Summary'!N65,0,1,1),"") -> 
B66: =IFERROR(MATCH(TRUE,OFFSET(CalculationsAndCharts!$AE$33,B65,0,'Transaction Summary'!$C$2-B65,1),0)+B65,"") ->  | C66: =IFERROR(OFFSET(CalculationsAndCharts!$B$32,'Transaction Summary'!B66,0,1,1),"") ->  | D66: =IFERROR(OFFSET(CalculationsAndCharts!$AI$32,'Transaction Summary'!B66,0,1,1),"") ->  | E66: =IFERROR(MATCH(TRUE,OFFSET(CalculationsAndCharts!$AH$33,E65,0,'Transaction Summary'!$C$2-E65,1),0)+E65,"") ->  | F66: =IFERROR(OFFSET(CalculationsAndCharts!$B$32,'Transaction Summary'!E66,0,1,1),"") ->  | G66: =IFERROR(OFFSET(CalculationsAndCharts!$AJ$32,'Transaction Summary'!E66,0,1,1),"") ->  | K66: =IFERROR(MATCH(TRUE,OFFSET(CalculationsAndCharts!$AN$33,K65,0,'Transaction Summary'!$C$2-K65,1),0)+K65,"") ->  | L66: =IFERROR(OFFSET(CalculationsAndCharts!$B$32,'Transaction Summary'!K66,0,1,1),"") ->  | M66: =IFERROR(OFFSET(CalculationsAndCharts!$AR$32,'Transaction Summary'!K66,0,1,1),"") ->  | N66: =IFERROR(MATCH(TRUE,OFFSET(CalculationsAndCharts!$AQ$33,N65,0,'Transaction Summary'!$C$2-N65,1),0)+N65,"") ->  | O66: =IFERROR(OFFSET(CalculationsAndCharts!$B$32,'Transaction Summary'!N66,0,1,1),"") ->  | P66: =IFERROR(OFFSET(CalculationsAndCharts!$AS$32,'Transaction Summary'!N66,0,1,1),"") -> 
B67: =IFERROR(MATCH(TRUE,OFFSET(CalculationsAndCharts!$AE$33,B66,0,'Transaction Summary'!$C$2-B66,1),0)+B66,"") ->  | C67: =IFERROR(OFFSET(CalculationsAndCharts!$B$32,'Transaction Summary'!B67,0,1,1),"") ->  | D67: =IFERROR(OFFSET(CalculationsAndCharts!$AI$32,'Transaction Summary'!B67,0,1,1),"") ->  | E67: =IFERROR(MATCH(TRUE,OFFSET(CalculationsAndCharts!$AH$33,E66,0,'Transaction Summary'!$C$2-E66,1),0)+E66,"") ->  | F67: =IFERROR(OFFSET(CalculationsAndCharts!$B$32,'Transaction Summary'!E67,0,1,1),"") ->  | G67: =IFERROR(OFFSET(CalculationsAndCharts!$AJ$32,'Transaction Summary'!E67,0,1,1),"") ->  | K67: =IFERROR(MATCH(TRUE,OFFSET(CalculationsAndCharts!$AN$33,K66,0,'Transaction Summary'!$C$2-K66,1),0)+K66,"") ->  | L67: =IFERROR(OFFSET(CalculationsAndCharts!$B$32,'Transaction Summary'!K67,0,1,1),"") ->  | M67: =IFERROR(OFFSET(CalculationsAndCharts!$AR$32,'Transaction Summary'!K67,0,1,1),"") ->  | N67: =IFERROR(MATCH(TRUE,OFFSET(CalculationsAndCharts!$AQ$33,N66,0,'Transaction Summary'!$C$2-N66,1),0)+N66,"") ->  | O67: =IFERROR(OFFSET(CalculationsAndCharts!$B$32,'Transaction Summary'!N67,0,1,1),"") ->  | P67: =IFERROR(OFFSET(CalculationsAndCharts!$AS$32,'Transaction Summary'!N67,0,1,1),"") -> 
B68: =IFERROR(MATCH(TRUE,OFFSET(CalculationsAndCharts!$AE$33,B67,0,'Transaction Summary'!$C$2-B67,1),0)+B67,"") ->  | C68: =IFERROR(OFFSET(CalculationsAndCharts!$B$32,'Transaction Summary'!B68,0,1,1),"") ->  | D68: =IFERROR(OFFSET(CalculationsAndCharts!$AI$32,'Transaction Summary'!B68,0,1,1),"") ->  | E68: =IFERROR(MATCH(TRUE,OFFSET(CalculationsAndCharts!$AH$33,E67,0,'Transaction Summary'!$C$2-E67,1),0)+E67,"") ->  | F68: =IFERROR(OFFSET(CalculationsAndCharts!$B$32,'Transaction Summary'!E68,0,1,1),"") ->  | G68: =IFERROR(OFFSET(CalculationsAndCharts!$AJ$32,'Transaction Summary'!E68,0,1,1),"") ->  | K68: =IFERROR(MATCH(TRUE,OFFSET(CalculationsAndCharts!$AN$33,K67,0,'Transaction Summary'!$C$2-K67,1),0)+K67,"") ->  | L68: =IFERROR(OFFSET(CalculationsAndCharts!$B$32,'Transaction Summary'!K68,0,1,1),"") ->  | M68: =IFERROR(OFFSET(CalculationsAndCharts!$AR$32,'Transaction Summary'!K68,0,1,1),"") ->  | N68: =IFERROR(MATCH(TRUE,OFFSET(CalculationsAndCharts!$AQ$33,N67,0,'Transaction Summary'!$C$2-N67,1),0)+N67,"") ->  | O68: =IFERROR(OFFSET(CalculationsAndCharts!$B$32,'Transaction Summary'!N68,0,1,1),"") ->  | P68: =IFERROR(OFFSET(CalculationsAndCharts!$AS$32,'Transaction Summary'!N68,0,1,1),"") -> 
B69: =IFERROR(MATCH(TRUE,OFFSET(CalculationsAndCharts!$AE$33,B68,0,'Transaction Summary'!$C$2-B68,1),0)+B68,"") ->  | C69: =IFERROR(OFFSET(CalculationsAndCharts!$B$32,'Transaction Summary'!B69,0,1,1),"") ->  | D69: =IFERROR(OFFSET(CalculationsAndCharts!$AI$32,'Transaction Summary'!B69,0,1,1),"") ->  | E69: =IFERROR(MATCH(TRUE,OFFSET(CalculationsAndCharts!$AH$33,E68,0,'Transaction Summary'!$C$2-E68,1),0)+E68,"") ->  | F69: =IFERROR(OFFSET(CalculationsAndCharts!$B$32,'Transaction Summary'!E69,0,1,1),"") ->  | G69: =IFERROR(OFFSET(CalculationsAndCharts!$AJ$32,'Transaction Summary'!E69,0,1,1),"") ->  | K69: =IFERROR(MATCH(TRUE,OFFSET(CalculationsAndCharts!$AN$33,K68,0,'Transaction Summary'!$C$2-K68,1),0)+K68,"") ->  | L69: =IFERROR(OFFSET(CalculationsAndCharts!$B$32,'Transaction Summary'!K69,0,1,1),"") ->  | M69: =IFERROR(OFFSET(CalculationsAndCharts!$AR$32,'Transaction Summary'!K69,0,1,1),"") ->  | N69: =IFERROR(MATCH(TRUE,OFFSET(CalculationsAndCharts!$AQ$33,N68,0,'Transaction Summary'!$C$2-N68,1),0)+N68,"") ->  | O69: =IFERROR(OFFSET(CalculationsAndCharts!$B$32,'Transaction Summary'!N69,0,1,1),"") ->  | P69: =IFERROR(OFFSET(CalculationsAndCharts!$AS$32,'Transaction Summary'!N69,0,1,1),"") -> 
B70: =IFERROR(MATCH(TRUE,OFFSET(CalculationsAndCharts!$AE$33,B69,0,'Transaction Summary'!$C$2-B69,1),0)+B69,"") ->  | C70: =IFERROR(OFFSET(CalculationsAndCharts!$B$32,'Transaction Summary'!B70,0,1,1),"") ->  | D70: =IFERROR(OFFSET(CalculationsAndCharts!$AI$32,'Transaction Summary'!B70,0,1,1),"") ->  | E70: =IFERROR(MATCH(TRUE,OFFSET(CalculationsAndCharts!$AH$33,E69,0,'Transaction Summary'!$C$2-E69,1),0)+E69,"") ->  | F70: =IFERROR(OFFSET(CalculationsAndCharts!$B$32,'Transaction Summary'!E70,0,1,1),"") ->  | G70: =IFERROR(OFFSET(CalculationsAndCharts!$AJ$32,'Transaction Summary'!E70,0,1,1),"") ->  | K70: =IFERROR(MATCH(TRUE,OFFSET(CalculationsAndCharts!$AN$33,K69,0,'Transaction Summary'!$C$2-K69,1),0)+K69,"") ->  | L70: =IFERROR(OFFSET(CalculationsAndCharts!$B$32,'Transaction Summary'!K70,0,1,1),"") ->  | M70: =IFERROR(OFFSET(CalculationsAndCharts!$AR$32,'Transaction Summary'!K70,0,1,1),"") ->  | N70: =IFERROR(MATCH(TRUE,OFFSET(CalculationsAndCharts!$AQ$33,N69,0,'Transaction Summary'!$C$2-N69,1),0)+N69,"") ->  | O70: =IFERROR(OFFSET(CalculationsAndCharts!$B$32,'Transaction Summary'!N70,0,1,1),"") ->  | P70: =IFERROR(OFFSET(CalculationsAndCharts!$AS$32,'Transaction Summary'!N70,0,1,1),"") -> 
B71: =IFERROR(MATCH(TRUE,OFFSET(CalculationsAndCharts!$AE$33,B70,0,'Transaction Summary'!$C$2-B70,1),0)+B70,"") ->  | C71: =IFERROR(OFFSET(CalculationsAndCharts!$B$32,'Transaction Summary'!B71,0,1,1),"") ->  | D71: =IFERROR(OFFSET(CalculationsAndCharts!$AI$32,'Transaction Summary'!B71,0,1,1),"") ->  | E71: =IFERROR(MATCH(TRUE,OFFSET(CalculationsAndCharts!$AH$33,E70,0,'Transaction Summary'!$C$2-E70,1),0)+E70,"") ->  | F71: =IFERROR(OFFSET(CalculationsAndCharts!$B$32,'Transaction Summary'!E71,0,1,1),"") ->  | G71: =IFERROR(OFFSET(CalculationsAndCharts!$AJ$32,'Transaction Summary'!E71,0,1,1),"") ->  | K71: =IFERROR(MATCH(TRUE,OFFSET(CalculationsAndCharts!$AN$33,K70,0,'Transaction Summary'!$C$2-K70,1),0)+K70,"") ->  | L71: =IFERROR(OFFSET(CalculationsAndCharts!$B$32,'Transaction Summary'!K71,0,1,1),"") ->  | M71: =IFERROR(OFFSET(CalculationsAndCharts!$AR$32,'Transaction Summary'!K71,0,1,1),"") ->  | N71: =IFERROR(MATCH(TRUE,OFFSET(CalculationsAndCharts!$AQ$33,N70,0,'Transaction Summary'!$C$2-N70,1),0)+N70,"") ->  | O71: =IFERROR(OFFSET(CalculationsAndCharts!$B$32,'Transaction Summary'!N71,0,1,1),"") ->  | P71: =IFERROR(OFFSET(CalculationsAndCharts!$AS$32,'Transaction Summary'!N71,0,1,1),"") -> 
B72: =IFERROR(MATCH(TRUE,OFFSET(CalculationsAndCharts!$AE$33,B71,0,'Transaction Summary'!$C$2-B71,1),0)+B71,"") ->  | C72: =IFERROR(OFFSET(CalculationsAndCharts!$B$32,'Transaction Summary'!B72,0,1,1),"") ->  | D72: =IFERROR(OFFSET(CalculationsAndCharts!$AI$32,'Transaction Summary'!B72,0,1,1),"") ->  | E72: =IFERROR(MATCH(TRUE,OFFSET(CalculationsAndCharts!$AH$33,E71,0,'Transaction Summary'!$C$2-E71,1),0)+E71,"") ->  | F72: =IFERROR(OFFSET(CalculationsAndCharts!$B$32,'Transaction Summary'!E72,0,1,1),"") ->  | G72: =IFERROR(OFFSET(CalculationsAndCharts!$AJ$32,'Transaction Summary'!E72,0,1,1),"") ->  | K72: =IFERROR(MATCH(TRUE,OFFSET(CalculationsAndCharts!$AN$33,K71,0,'Transaction Summary'!$C$2-K71,1),0)+K71,"") ->  | L72: =IFERROR(OFFSET(CalculationsAndCharts!$B$32,'Transaction Summary'!K72,0,1,1),"") ->  | M72: =IFERROR(OFFSET(CalculationsAndCharts!$AR$32,'Transaction Summary'!K72,0,1,1),"") ->  | N72: =IFERROR(MATCH(TRUE,OFFSET(CalculationsAndCharts!$AQ$33,N71,0,'Transaction Summary'!$C$2-N71,1),0)+N71,"") ->  | O72: =IFERROR(OFFSET(CalculationsAndCharts!$B$32,'Transaction Summary'!N72,0,1,1),"") ->  | P72: =IFERROR(OFFSET(CalculationsAndCharts!$AS$32,'Transaction Summary'!N72,0,1,1),"") -> 
B73: =IFERROR(MATCH(TRUE,OFFSET(CalculationsAndCharts!$AE$33,B72,0,'Transaction Summary'!$C$2-B72,1),0)+B72,"") ->  | C73: =IFERROR(OFFSET(CalculationsAndCharts!$B$32,'Transaction Summary'!B73,0,1,1),"") ->  | D73: =IFERROR(OFFSET(CalculationsAndCharts!$AI$32,'Transaction Summary'!B73,0,1,1),"") ->  | E73: =IFERROR(MATCH(TRUE,OFFSET(CalculationsAndCharts!$AH$33,E72,0,'Transaction Summary'!$C$2-E72,1),0)+E72,"") ->  | F73: =IFERROR(OFFSET(CalculationsAndCharts!$B$32,'Transaction Summary'!E73,0,1,1),"") ->  | G73: =IFERROR(OFFSET(CalculationsAndCharts!$AJ$32,'Transaction Summary'!E73,0,1,1),"") ->  | K73: =IFERROR(MATCH(TRUE,OFFSET(CalculationsAndCharts!$AN$33,K72,0,'Transaction Summary'!$C$2-K72,1),0)+K72,"") ->  | L73: =IFERROR(OFFSET(CalculationsAndCharts!$B$32,'Transaction Summary'!K73,0,1,1),"") ->  | M73: =IFERROR(OFFSET(CalculationsAndCharts!$AR$32,'Transaction Summary'!K73,0,1,1),"") ->  | N73: =IFERROR(MATCH(TRUE,OFFSET(CalculationsAndCharts!$AQ$33,N72,0,'Transaction Summary'!$C$2-N72,1),0)+N72,"") ->  | O73: =IFERROR(OFFSET(CalculationsAndCharts!$B$32,'Transaction Summary'!N73,0,1,1),"") ->  | P73: =IFERROR(OFFSET(CalculationsAndCharts!$AS$32,'Transaction Summary'!N73,0,1,1),"") -> 
B74: =IFERROR(MATCH(TRUE,OFFSET(CalculationsAndCharts!$AE$33,B73,0,'Transaction Summary'!$C$2-B73,1),0)+B73,"") ->  | C74: =IFERROR(OFFSET(CalculationsAndCharts!$B$32,'Transaction Summary'!B74,0,1,1),"") ->  | D74: =IFERROR(OFFSET(CalculationsAndCharts!$AI$32,'Transaction Summary'!B74,0,1,1),"") ->  | E74: =IFERROR(MATCH(TRUE,OFFSET(CalculationsAndCharts!$AH$33,E73,0,'Transaction Summary'!$C$2-E73,1),0)+E73,"") ->  | F74: =IFERROR(OFFSET(CalculationsAndCharts!$B$32,'Transaction Summary'!E74,0,1,1),"") ->  | G74: =IFERROR(OFFSET(CalculationsAndCharts!$AJ$32,'Transaction Summary'!E74,0,1,1),"") ->  | K74: =IFERROR(MATCH(TRUE,OFFSET(CalculationsAndCharts!$AN$33,K73,0,'Transaction Summary'!$C$2-K73,1),0)+K73,"") ->  | L74: =IFERROR(OFFSET(CalculationsAndCharts!$B$32,'Transaction Summary'!K74,0,1,1),"") ->  | M74: =IFERROR(OFFSET(CalculationsAndCharts!$AR$32,'Transaction Summary'!K74,0,1,1),"") ->  | N74: =IFERROR(MATCH(TRUE,OFFSET(CalculationsAndCharts!$AQ$33,N73,0,'Transaction Summary'!$C$2-N73,1),0)+N73,"") ->  | O74: =IFERROR(OFFSET(CalculationsAndCharts!$B$32,'Transaction Summary'!N74,0,1,1),"") ->  | P74: =IFERROR(OFFSET(CalculationsAndCharts!$AS$32,'Transaction Summary'!N74,0,1,1),"") -> 
B75: =IFERROR(MATCH(TRUE,OFFSET(CalculationsAndCharts!$AE$33,B74,0,'Transaction Summary'!$C$2-B74,1),0)+B74,"") ->  | C75: =IFERROR(OFFSET(CalculationsAndCharts!$B$32,'Transaction Summary'!B75,0,1,1),"") ->  | D75: =IFERROR(OFFSET(CalculationsAndCharts!$AI$32,'Transaction Summary'!B75,0,1,1),"") ->  | E75: =IFERROR(MATCH(TRUE,OFFSET(CalculationsAndCharts!$AH$33,E74,0,'Transaction Summary'!$C$2-E74,1),0)+E74,"") ->  | F75: =IFERROR(OFFSET(CalculationsAndCharts!$B$32,'Transaction Summary'!E75,0,1,1),"") ->  | G75: =IFERROR(OFFSET(CalculationsAndCharts!$AJ$32,'Transaction Summary'!E75,0,1,1),"") ->  | K75: =IFERROR(MATCH(TRUE,OFFSET(CalculationsAndCharts!$AN$33,K74,0,'Transaction Summary'!$C$2-K74,1),0)+K74,"") ->  | L75: =IFERROR(OFFSET(CalculationsAndCharts!$B$32,'Transaction Summary'!K75,0,1,1),"") ->  | M75: =IFERROR(OFFSET(CalculationsAndCharts!$AR$32,'Transaction Summary'!K75,0,1,1),"") ->  | N75: =IFERROR(MATCH(TRUE,OFFSET(CalculationsAndCharts!$AQ$33,N74,0,'Transaction Summary'!$C$2-N74,1),0)+N74,"") ->  | O75: =IFERROR(OFFSET(CalculationsAndCharts!$B$32,'Transaction Summary'!N75,0,1,1),"") ->  | P75: =IFERROR(OFFSET(CalculationsAndCharts!$AS$32,'Transaction Summary'!N75,0,1,1),"") -> 
B76: =IFERROR(MATCH(TRUE,OFFSET(CalculationsAndCharts!$AE$33,B75,0,'Transaction Summary'!$C$2-B75,1),0)+B75,"") ->  | C76: =IFERROR(OFFSET(CalculationsAndCharts!$B$32,'Transaction Summary'!B76,0,1,1),"") ->  | D76: =IFERROR(OFFSET(CalculationsAndCharts!$AI$32,'Transaction Summary'!B76,0,1,1),"") ->  | E76: =IFERROR(MATCH(TRUE,OFFSET(CalculationsAndCharts!$AH$33,E75,0,'Transaction Summary'!$C$2-E75,1),0)+E75,"") ->  | F76: =IFERROR(OFFSET(CalculationsAndCharts!$B$32,'Transaction Summary'!E76,0,1,1),"") ->  | G76: =IFERROR(OFFSET(CalculationsAndCharts!$AJ$32,'Transaction Summary'!E76,0,1,1),"") ->  | K76: =IFERROR(MATCH(TRUE,OFFSET(CalculationsAndCharts!$AN$33,K75,0,'Transaction Summary'!$C$2-K75,1),0)+K75,"") ->  | L76: =IFERROR(OFFSET(CalculationsAndCharts!$B$32,'Transaction Summary'!K76,0,1,1),"") ->  | M76: =IFERROR(OFFSET(CalculationsAndCharts!$AR$32,'Transaction Summary'!K76,0,1,1),"") ->  | N76: =IFERROR(MATCH(TRUE,OFFSET(CalculationsAndCharts!$AQ$33,N75,0,'Transaction Summary'!$C$2-N75,1),0)+N75,"") ->  | O76: =IFERROR(OFFSET(CalculationsAndCharts!$B$32,'Transaction Summary'!N76,0,1,1),"") ->  | P76: =IFERROR(OFFSET(CalculationsAndCharts!$AS$32,'Transaction Summary'!N76,0,1,1),"") -> 
B77: =IFERROR(MATCH(TRUE,OFFSET(CalculationsAndCharts!$AE$33,B76,0,'Transaction Summary'!$C$2-B76,1),0)+B76,"") ->  | C77: =IFERROR(OFFSET(CalculationsAndCharts!$B$32,'Transaction Summary'!B77,0,1,1),"") ->  | D77: =IFERROR(OFFSET(CalculationsAndCharts!$AI$32,'Transaction Summary'!B77,0,1,1),"") ->  | E77: =IFERROR(MATCH(TRUE,OFFSET(CalculationsAndCharts!$AH$33,E76,0,'Transaction Summary'!$C$2-E76,1),0)+E76,"") ->  | F77: =IFERROR(OFFSET(CalculationsAndCharts!$B$32,'Transaction Summary'!E77,0,1,1),"") ->  | G77: =IFERROR(OFFSET(CalculationsAndCharts!$AJ$32,'Transaction Summary'!E77,0,1,1),"") ->  | K77: =IFERROR(MATCH(TRUE,OFFSET(CalculationsAndCharts!$AN$33,K76,0,'Transaction Summary'!$C$2-K76,1),0)+K76,"") ->  | L77: =IFERROR(OFFSET(CalculationsAndCharts!$B$32,'Transaction Summary'!K77,0,1,1),"") ->  | M77: =IFERROR(OFFSET(CalculationsAndCharts!$AR$32,'Transaction Summary'!K77,0,1,1),"") ->  | N77: =IFERROR(MATCH(TRUE,OFFSET(CalculationsAndCharts!$AQ$33,N76,0,'Transaction Summary'!$C$2-N76,1),0)+N76,"") ->  | O77: =IFERROR(OFFSET(CalculationsAndCharts!$B$32,'Transaction Summary'!N77,0,1,1),"") ->  | P77: =IFERROR(OFFSET(CalculationsAndCharts!$AS$32,'Transaction Summary'!N77,0,1,1),"") -> 
B78: =IFERROR(MATCH(TRUE,OFFSET(CalculationsAndCharts!$AE$33,B77,0,'Transaction Summary'!$C$2-B77,1),0)+B77,"") ->  | C78: =IFERROR(OFFSET(CalculationsAndCharts!$B$32,'Transaction Summary'!B78,0,1,1),"") ->  | D78: =IFERROR(OFFSET(CalculationsAndCharts!$AI$32,'Transaction Summary'!B78,0,1,1),"") ->  | E78: =IFERROR(MATCH(TRUE,OFFSET(CalculationsAndCharts!$AH$33,E77,0,'Transaction Summary'!$C$2-E77,1),0)+E77,"") ->  | F78: =IFERROR(OFFSET(CalculationsAndCharts!$B$32,'Transaction Summary'!E78,0,1,1),"") ->  | G78: =IFERROR(OFFSET(CalculationsAndCharts!$AJ$32,'Transaction Summary'!E78,0,1,1),"") ->  | K78: =IFERROR(MATCH(TRUE,OFFSET(CalculationsAndCharts!$AN$33,K77,0,'Transaction Summary'!$C$2-K77,1),0)+K77,"") ->  | L78: =IFERROR(OFFSET(CalculationsAndCharts!$B$32,'Transaction Summary'!K78,0,1,1),"") ->  | M78: =IFERROR(OFFSET(CalculationsAndCharts!$AR$32,'Transaction Summary'!K78,0,1,1),"") ->  | N78: =IFERROR(MATCH(TRUE,OFFSET(CalculationsAndCharts!$AQ$33,N77,0,'Transaction Summary'!$C$2-N77,1),0)+N77,"") ->  | O78: =IFERROR(OFFSET(CalculationsAndCharts!$B$32,'Transaction Summary'!N78,0,1,1),"") ->  | P78: =IFERROR(OFFSET(CalculationsAndCharts!$AS$32,'Transaction Summary'!N78,0,1,1),"") -> 
B79: =IFERROR(MATCH(TRUE,OFFSET(CalculationsAndCharts!$AE$33,B78,0,'Transaction Summary'!$C$2-B78,1),0)+B78,"") ->  | C79: =IFERROR(OFFSET(CalculationsAndCharts!$B$32,'Transaction Summary'!B79,0,1,1),"") ->  | D79: =IFERROR(OFFSET(CalculationsAndCharts!$AI$32,'Transaction Summary'!B79,0,1,1),"") ->  | E79: =IFERROR(MATCH(TRUE,OFFSET(CalculationsAndCharts!$AH$33,E78,0,'Transaction Summary'!$C$2-E78,1),0)+E78,"") ->  | F79: =IFERROR(OFFSET(CalculationsAndCharts!$B$32,'Transaction Summary'!E79,0,1,1),"") ->  | G79: =IFERROR(OFFSET(CalculationsAndCharts!$AJ$32,'Transaction Summary'!E79,0,1,1),"") ->  | K79: =IFERROR(MATCH(TRUE,OFFSET(CalculationsAndCharts!$AN$33,K78,0,'Transaction Summary'!$C$2-K78,1),0)+K78,"") ->  | L79: =IFERROR(OFFSET(CalculationsAndCharts!$B$32,'Transaction Summary'!K79,0,1,1),"") ->  | M79: =IFERROR(OFFSET(CalculationsAndCharts!$AR$32,'Transaction Summary'!K79,0,1,1),"") ->  | N79: =IFERROR(MATCH(TRUE,OFFSET(CalculationsAndCharts!$AQ$33,N78,0,'Transaction Summary'!$C$2-N78,1),0)+N78,"") ->  | O79: =IFERROR(OFFSET(CalculationsAndCharts!$B$32,'Transaction Summary'!N79,0,1,1),"") ->  | P79: =IFERROR(OFFSET(CalculationsAndCharts!$AS$32,'Transaction Summary'!N79,0,1,1),"") -> 
B80: =IFERROR(MATCH(TRUE,OFFSET(CalculationsAndCharts!$AE$33,B79,0,'Transaction Summary'!$C$2-B79,1),0)+B79,"") ->  | C80: =IFERROR(OFFSET(CalculationsAndCharts!$B$32,'Transaction Summary'!B80,0,1,1),"") ->  | D80: =IFERROR(OFFSET(CalculationsAndCharts!$AI$32,'Transaction Summary'!B80,0,1,1),"") ->  | E80: =IFERROR(MATCH(TRUE,OFFSET(CalculationsAndCharts!$AH$33,E79,0,'Transaction Summary'!$C$2-E79,1),0)+E79,"") ->  | F80: =IFERROR(OFFSET(CalculationsAndCharts!$B$32,'Transaction Summary'!E80,0,1,1),"") ->  | G80: =IFERROR(OFFSET(CalculationsAndCharts!$AJ$32,'Transaction Summary'!E80,0,1,1),"") ->  | K80: =IFERROR(MATCH(TRUE,OFFSET(CalculationsAndCharts!$AN$33,K79,0,'Transaction Summary'!$C$2-K79,1),0)+K79,"") ->  | L80: =IFERROR(OFFSET(CalculationsAndCharts!$B$32,'Transaction Summary'!K80,0,1,1),"") ->  | M80: =IFERROR(OFFSET(CalculationsAndCharts!$AR$32,'Transaction Summary'!K80,0,1,1),"") ->  | N80: =IFERROR(MATCH(TRUE,OFFSET(CalculationsAndCharts!$AQ$33,N79,0,'Transaction Summary'!$C$2-N79,1),0)+N79,"") ->  | O80: =IFERROR(OFFSET(CalculationsAndCharts!$B$32,'Transaction Summary'!N80,0,1,1),"") ->  | P80: =IFERROR(OFFSET(CalculationsAndCharts!$AS$32,'Transaction Summary'!N80,0,1,1),"") -> 
B81: =IFERROR(MATCH(TRUE,OFFSET(CalculationsAndCharts!$AE$33,B80,0,'Transaction Summary'!$C$2-B80,1),0)+B80,"") ->  | C81: =IFERROR(OFFSET(CalculationsAndCharts!$B$32,'Transaction Summary'!B81,0,1,1),"") ->  | D81: =IFERROR(OFFSET(CalculationsAndCharts!$AI$32,'Transaction Summary'!B81,0,1,1),"") ->  | E81: =IFERROR(MATCH(TRUE,OFFSET(CalculationsAndCharts!$AH$33,E80,0,'Transaction Summary'!$C$2-E80,1),0)+E80,"") ->  | F81: =IFERROR(OFFSET(CalculationsAndCharts!$B$32,'Transaction Summary'!E81,0,1,1),"") ->  | G81: =IFERROR(OFFSET(CalculationsAndCharts!$AJ$32,'Transaction Summary'!E81,0,1,1),"") ->  | K81: =IFERROR(MATCH(TRUE,OFFSET(CalculationsAndCharts!$AN$33,K80,0,'Transaction Summary'!$C$2-K80,1),0)+K80,"") ->  | L81: =IFERROR(OFFSET(CalculationsAndCharts!$B$32,'Transaction Summary'!K81,0,1,1),"") ->  | M81: =IFERROR(OFFSET(CalculationsAndCharts!$AR$32,'Transaction Summary'!K81,0,1,1),"") ->  | N81: =IFERROR(MATCH(TRUE,OFFSET(CalculationsAndCharts!$AQ$33,N80,0,'Transaction Summary'!$C$2-N80,1),0)+N80,"") ->  | O81: =IFERROR(OFFSET(CalculationsAndCharts!$B$32,'Transaction Summary'!N81,0,1,1),"") ->  | P81: =IFERROR(OFFSET(CalculationsAndCharts!$AS$32,'Transaction Summary'!N81,0,1,1),"") -> 
B82: =IFERROR(MATCH(TRUE,OFFSET(CalculationsAndCharts!$AE$33,B81,0,'Transaction Summary'!$C$2-B81,1),0)+B81,"") ->  | C82: =IFERROR(OFFSET(CalculationsAndCharts!$B$32,'Transaction Summary'!B82,0,1,1),"") ->  | D82: =IFERROR(OFFSET(CalculationsAndCharts!$AI$32,'Transaction Summary'!B82,0,1,1),"") ->  | E82: =IFERROR(MATCH(TRUE,OFFSET(CalculationsAndCharts!$AH$33,E81,0,'Transaction Summary'!$C$2-E81,1),0)+E81,"") ->  | F82: =IFERROR(OFFSET(CalculationsAndCharts!$B$32,'Transaction Summary'!E82,0,1,1),"") ->  | G82: =IFERROR(OFFSET(CalculationsAndCharts!$AJ$32,'Transaction Summary'!E82,0,1,1),"") ->  | K82: =IFERROR(MATCH(TRUE,OFFSET(CalculationsAndCharts!$AN$33,K81,0,'Transaction Summary'!$C$2-K81,1),0)+K81,"") ->  | L82: =IFERROR(OFFSET(CalculationsAndCharts!$B$32,'Transaction Summary'!K82,0,1,1),"") ->  | M82: =IFERROR(OFFSET(CalculationsAndCharts!$AR$32,'Transaction Summary'!K82,0,1,1),"") ->  | N82: =IFERROR(MATCH(TRUE,OFFSET(CalculationsAndCharts!$AQ$33,N81,0,'Transaction Summary'!$C$2-N81,1),0)+N81,"") ->  | O82: =IFERROR(OFFSET(CalculationsAndCharts!$B$32,'Transaction Summary'!N82,0,1,1),"") ->  | P82: =IFERROR(OFFSET(CalculationsAndCharts!$AS$32,'Transaction Summary'!N82,0,1,1),"") -> 
B83: =IFERROR(MATCH(TRUE,OFFSET(CalculationsAndCharts!$AE$33,B82,0,'Transaction Summary'!$C$2-B82,1),0)+B82,"") ->  | C83: =IFERROR(OFFSET(CalculationsAndCharts!$B$32,'Transaction Summary'!B83,0,1,1),"") ->  | D83: =IFERROR(OFFSET(CalculationsAndCharts!$AI$32,'Transaction Summary'!B83,0,1,1),"") ->  | E83: =IFERROR(MATCH(TRUE,OFFSET(CalculationsAndCharts!$AH$33,E82,0,'Transaction Summary'!$C$2-E82,1),0)+E82,"") ->  | F83: =IFERROR(OFFSET(CalculationsAndCharts!$B$32,'Transaction Summary'!E83,0,1,1),"") ->  | G83: =IFERROR(OFFSET(CalculationsAndCharts!$AJ$32,'Transaction Summary'!E83,0,1,1),"") ->  | K83: =IFERROR(MATCH(TRUE,OFFSET(CalculationsAndCharts!$AN$33,K82,0,'Transaction Summary'!$C$2-K82,1),0)+K82,"") ->  | L83: =IFERROR(OFFSET(CalculationsAndCharts!$B$32,'Transaction Summary'!K83,0,1,1),"") ->  | M83: =IFERROR(OFFSET(CalculationsAndCharts!$AR$32,'Transaction Summary'!K83,0,1,1),"") ->  | N83: =IFERROR(MATCH(TRUE,OFFSET(CalculationsAndCharts!$AQ$33,N82,0,'Transaction Summary'!$C$2-N82,1),0)+N82,"") ->  | O83: =IFERROR(OFFSET(CalculationsAndCharts!$B$32,'Transaction Summary'!N83,0,1,1),"") ->  | P83: =IFERROR(OFFSET(CalculationsAndCharts!$AS$32,'Transaction Summary'!N83,0,1,1),"") -> 
B84: =IFERROR(MATCH(TRUE,OFFSET(CalculationsAndCharts!$AE$33,B83,0,'Transaction Summary'!$C$2-B83,1),0)+B83,"") ->  | C84: =IFERROR(OFFSET(CalculationsAndCharts!$B$32,'Transaction Summary'!B84,0,1,1),"") ->  | D84: =IFERROR(OFFSET(CalculationsAndCharts!$AI$32,'Transaction Summary'!B84,0,1,1),"") ->  | E84: =IFERROR(MATCH(TRUE,OFFSET(CalculationsAndCharts!$AH$33,E83,0,'Transaction Summary'!$C$2-E83,1),0)+E83,"") ->  | F84: =IFERROR(OFFSET(CalculationsAndCharts!$B$32,'Transaction Summary'!E84,0,1,1),"") ->  | G84: =IFERROR(OFFSET(CalculationsAndCharts!$AJ$32,'Transaction Summary'!E84,0,1,1),"") ->  | K84: =IFERROR(MATCH(TRUE,OFFSET(CalculationsAndCharts!$AN$33,K83,0,'Transaction Summary'!$C$2-K83,1),0)+K83,"") ->  | L84: =IFERROR(OFFSET(CalculationsAndCharts!$B$32,'Transaction Summary'!K84,0,1,1),"") ->  | M84: =IFERROR(OFFSET(CalculationsAndCharts!$AR$32,'Transaction Summary'!K84,0,1,1),"") ->  | N84: =IFERROR(MATCH(TRUE,OFFSET(CalculationsAndCharts!$AQ$33,N83,0,'Transaction Summary'!$C$2-N83,1),0)+N83,"") ->  | O84: =IFERROR(OFFSET(CalculationsAndCharts!$B$32,'Transaction Summary'!N84,0,1,1),"") ->  | P84: =IFERROR(OFFSET(CalculationsAndCharts!$AS$32,'Transaction Summary'!N84,0,1,1),"") -> 
